Workbook

Sheet Cover
A1: =RIGHT(CELL("filename", $A$1), LEN(CELL("filename", $A$1)) - SEARCH("]", CELL("filename", $A$1))) -> Cover
B3: PR24 Delivery Plan Tables
B5: Model code | C5: PR24DP
B6: Version number: | C6: 3
B7: File name: | C7: =MID(CELL("filename"), FIND("[", CELL("filename"), 1) + 1, FIND("]", CELL("filename"), 1) - FIND("[", CELL("filename"), 1) - 1) -> BRL_Updated 2026-27 Q1 High-Profile Scheme Update.xlsx
B8: Date: | C8: 2025-06-20
B10: For enquiries please contact: | C10: PR24ofwat.gov.uk
B12: Instructions: | C12: See below.
B50: Changes since previous published model:
B52: Please see Change log sheet for changes common for all companies. We also have included company specific change logs.
B53: With red the changes we made in tables based on companies' feedback.
B56: Tables
B57: Please note that we will collect the input values as given. The number of decimal places stated is for our database visual view. With respect to the colours shown in the baseline tables, we note that: • If there is a cell which contains a formula and is performing a calculation on the cell(s) inside its formula using information from another sheet, it is pink. • If there is a cell which contains a formula and is performing a calculation on the cell(s) inside its formula, it is blue. We have set out in the guidance document the assumptions we used to calculate the PCD output and expenditure delivery profiles for the baseline tables. We expect companies to use our profiles for the baseline tables in their delivery plan submission. For PCDs where we have not provided a baseline profile but reported only the target output or allowed total expenditure (totex) at year 5 of AMP, we ask companies to provide profiled annual output and totex values in their deliver plans (commentary). We also ask companies to provide the assumptions used to derive these profiles in their delivery plans.
B68: Price base for financial data
B69: We set out the price base of any financial data in the related submission tables guidance document. The price base for financial information is 2022-23 base year prices indexed using the financial year average Consumer Price Index (including housing costs), that is, 2022-23 prices FYA (CPIH deflated).
B71: Submissions
B72: Your completed spreadsheet should be uploaded to your company's area of our SharePoint DCS website. We provide a link to this website below. Please upload the tables we have requested by 12 August 2025 to the folder, "Delivery Plan Data Capture" and the 2025-26 Q# sub Folders. If you require any assistance with this, please contact PR24ofwat.gov.uk.
B77: Links to data capture site
B78: <Data Capture site>
B79: Links to additional information / guidance
B80: <Delivery Plan Guidance>

Sheet Change log>>>

Sheet Industry_Change logs
C2: May template changes - applied to all companies
C3: Sheet | D3: PCD ref | E3: Line description | F3: PCD Output Description | G3: Changes
C4: DPB2 | D4: PCDB1a | E4: Mains renewals - base | F4: Base wholesale water model funded renewals expenditure | G4: Use the PCD output profile from DBP1
C5: DPB2 | D5: PCDB1b | E5: Mains renewals - asset health adjustment | F5: Base asset health adjustment renewals expenditure | G5: Use the PCD output profile from DBP1
C6: DPB2 | D6: PCDB1c | E6: Mains renewals - enhancement leakage | F6: Enhancement leakage renewals expenditure | G6: Use the PCD output profile from DBP1
C7: DPB2 | D7: PCDB3a | E7: Water network reinforcement | F7: Water network reinforcement expenditure | G7: Use the expenditure profile from F_Inputs_NRF
C8: DPB2 | D8: PCDB3b | E8: Wastewater network reinforcement | F8: Wastewater network reinforcement expenditure | G8: Use the expenditure profile from F_Inputs_NRF
C9: DPWW1 | D9: PCDWW27 | E9: Growth to Sewerage Treatment Works | F9: Added Process Capacity in PE | G9: Replaced with Nr
C10: DPWW1 | D10: PCDWW34 | E10: Greenhouse gas reduction (net zero) | F10: tCO2e | G10: Replaced with tonnes
C11: DPWW1, DPWW2, DPWW3 | D11: PCDWW34 | E11: Greenhouse gas reduction (net zero) | F11: Number of hectares | G11: Deleted and pasted to DPW1, DPW2 and DPW3 sheets.
C12: DPWW1,DWW3 | D12: PCDWW34 | E12: Greenhouse gas reduction (net zero) | F12: tCO2e | G12: Combined tCO2e with the number of sites - one line of expenditure and one line for IM.
C13: DPWW1,DWW3 | D13: PCDWW34 | E13: Greenhouse gas reduction (net zero) | F13: Number of sites
C14: DPWW2 | D14: PCDWW6 | E14: Storm Overflow - Screens | F14: Number of EnvAct_IMP5 compliant screens installed and operational at screen only solutions | G14: Replaced with Number of EnvAct_IMP5 compliant screens installed and operational at screen only solutions
C15: DPW1 | D15: PCDW12 | E15: Metering | F15: All | G15: Rounded meter numbers where needed. Reported in 0 decimal points
C16: DPW2 | D16: PCDWW32 | E16: W Resilience CC Uplift | F16: Spend on scheme as a % of allowance | G16: Use the enhancement aggregator cost file to generate an expenditure delivery profile for AMP8.
C17: DPW2 | D17: PCDW11b | E17: Supply interconnectors | F17: WAFU Benefit | G17: Use the enhancement aggregator cost file to generate an expenditure delivery profile for AMP8.
C18: DPW2 | D18: PCDW16b | E18: Resilience Interconnector | F18: All | G18: Use the enhancement aggregator cost file to generate an expenditure delivery profile for AMP8.
C19: DPW2 | D19: PCDW16c | E19: Resilience | F19: All | G19: Use the enhancement aggregator cost file to generate an expenditure delivery profile for AMP8.
C20: DPW2 | D20: PCDW5 | E20: Water framework directive obligations | G20: Use the enhancement aggregator cost file to generate an expenditure delivery profile for AMP8.
C21: DPW2 | D21: PCDW12 | E21: Metering | F21: New installations | G21: Updated the values of the non-delivery PCD payment column
C22: DPW2 | D22: PCDW12 | E22: Metering | F22: Household meter upgrades | G22: Updated the values of the non-delivery PCD payment column
C23: DPW2 | D23: PCDW12 | E23: Metering | F23: Non household meter upgrades | G23: Updated the values of the non-delivery PCD payment column
C24: DPW2 | D24: PCDW12 | E24: Metering | F24: Large bulk meters | G24: Updated the values of the non-delivery PCD payment column
C25: DPW2 | D25: PCDW12 | E25: Metering | F25: Small bulk meters | G25: Updated the values of the non-delivery PCD payment column
C26: DPW2 | D26: PCDW12 | E26: Metering | F26: All | G26: Use the PCD output profile from DPW1 sheet
C27: DPWW4, DPW4 | G27: Added drop-down list of primary reasons for delay
C28: DPWW4, DPW4 | G28: Added the word 'cumulative' on column headings AD and AE and baseline and forecast expenditure annual profiles column headings.
C29: DPWW4, DPW4 | G29: Added a new column 'High-profile scheme (Y/N)' and a drop-down list
C30: DPWW4 | G30: Added drop down list on the Type of scheme (enhanced engagement, large gated and delivery mechanism) column
C31: DPW4 | G31: Added drop down list on the Type of scheme (enhanced engagement, large gated, resilience) column
C32: DPW3 | G32: To avoid confusion we deleted the grey out areas. Format is now consistent with DPWW3. It includes the list of water PCDs for which we ask for an IM.
C35: June template changes - applied to all companies
C36: Sheet | D36: PCD ref | E36: Line description | F36: PCD Output Description | G36: Changes
C37: DPW3 | G37: We have added a pre-2025-26 column
C38: DPW1 | D38: PCDWW34 | E38: Greenhouse gas reduction (net zero) | F38: tCO2e | G38: Added a new row
C39: DPWW3, DPW3 | G39: Updated the structure of template
C40: DPWW4, DPW4 | G40: Headings/dropw down list have been updated and columns have been added
C41: DPWW5, DPW5 | G41: New table has been updated
C42: DPWW1, DPW1 | G42: Update annual baseline output profile where we did not have a profile before
C43: DPW2 | D43: PCDW11a | E43: Supply | F43: WAFU Benefit | G43: Update baseline expenditure profile
C44: DPW2 | D44: PCDW12 | E44: Metering | F44: Connected meters | G44: Update Baseline PCD allowance for connected meters by multiplying the existing non-delivery payment rate of connected meters with an updated number of connected meters (sum of new installations, household and non-household meter upgrades, small and large bulk meters)
C45: DPW1 | D45: PCDW17b | E45: Cyber | F45: Legal instruments | G45: Updated baseline output profile
C46: DPW1 | D46: PCDW17a | E46: SEMD | F46: Legal instruments | G46: Updated baseline output profile
C47: DPW2 | D47: PCDW8 | E47: Water WINEP/NEP Investigations | F47: Water WINEP/NEP Investigations | G47: Expanded the formula to include pre-AMP8 years
C48: DPW2 | D48: PCDW14, PCDW13 | E48: Raw Water Deterioration and Taste, Odour and Colour | F48: Legal instruments | G48: Provide an expenditure profile for years where this has not been previously populated (ie. where cells were previously blank). Thus, we do not have any missing annual expenditure profile data.
C49: DPW1 | D49: PCDW14, PCDW13 | E49: Raw Water Deterioration and Taste, Odour and Colour | F49: Legal instruments | G49: Where possible expand the number till end of AMP9 so that there is a AMP9 output target
C51: July template changes - applied to all companies
C52: Sheet | D52: PCD ref | E52: Line description | F52: PCD Output Description | G52: Changes
C53: DPW2 | D53: PCDW14, PCDW13 | E53: Raw Water Deterioration and Taste, Odour and Colour | F53: Legal instruments | G53: Use the enhancement aggregator cost file to generate an expenditure delivery profile for AMP8.
C54: DPB1,DPW(W)1 | D54: All | G54: Added Blue RAG rating

Sheet BRL_Change log
A1: =RIGHT(CELL("filename", A1), LEN(CELL("filename", A1)) - SEARCH("]", CELL("filename", A1))) -> BRL_Change log
B6: Change summary
B7: Company | C7: Sheet | D7: PCD ref | E7: Line description | F7: PCD Output Description | G7: Changes
B8: BRL | C8: DPW1 | D8: PCDW17b | E8: Cyber | F8: Legal instruments | G8: Updated baseline profile
B9: BRL | C9: DPW2 | D9: PCDW17b | E9: Cyber | F9: Legal instruments | G9: Updated excel formula on expenditure formula. Total allowance remains the same.
B10: BRL | C10: DPW2 | D10: n/a | E10: Total PCD and non - total enhancement expenditure | F10: n/a | G10: Corrected calc to remove total supply benefit

Sheet Query log>>>

Sheet Industry_Query logs
B1: Delivery Plan
E3: Company query | F3: Ofwat response
B4: Query number | C4: Sheet | D4: PCD ref
B5: 1 | C5: DPWW1/DPWW2 | D5: PCDWW2b Continuous river water quality monitoring | E5: DPWW1 – the Ofwat assumed profile is logical, however, we believe the baseline plan needs to consider the initial trail period that will impact a consistent profile across the AMP, especially across year 1 and 2. DPWW2 – given the updated baseline plan, we have updated the baseline expenditure profile. This closely aligns with the assumptions Ofwat made but including some additional expenditure early on. | F5: We follow a consistent approach across all companies to setting PCD output and expenditure delivery profiles. If you have a different view of the baseline profile please use the outturn/forecast tables to set out your view and explain the reasons for this as part of your commentary in your May submission. Based on this we will consider resetting the baseline output and expenditure profiles ahead of the July delivery plan submission. We will not consider resetting output profiles for areas where time incentives apply.
B6: =B5 + 1 -> 2 | C6: DPWW1 | D6: PCDWW3 MCERTs monitoring of emergency overflows at sewage pumping stations | E6: DPWW1 – the Ofwat assumed profile is logical, however, we have a baseline plan agreed by the EA for all monitor types. This is to enable all monitors to be MCERT’d and then signed off by the EA. There is a recognition from the EA that due to other monitors being certified early in AMP8, this is an acceptable profile for UMON_6. The initial trail period that will impact a consistent profile across the AMP, especially in year 1.
B7: 3 | C7: DPWW1 | D7: PCDWW18 Wastewater Investigations | E7: DPWW1 – the Ofwat assumed profile is logical, however, we believe the baseline plan needs to reflect the fact that all of the investigations just need to be completed by year 2. The majority require hydraulic and water quality modelling, which take significant time to complete. Although these are ongoing it is not realistic to complete a significant number in year, including agreement from the EA, when the full process is yet to be agreed.
B8: 4 | C8: DPWW2 | D8: PCDWW25b BIO WINEP Sludge Treatment – Other | E8: DPWW2 – the Ofwat assumed expenditure profile is logical, however, given that the technology is relatively new for the industry, further feasibility and planning will need to take place, altering the baseline expenditure profile further towards the end of the AMP.
B9: 5 | D9: PCDWW30 IED | E9: DPWW2 - the Ofwat assumed expenditure profile is logical, however, given that the EA is yet to confirm the final requirements for compliance with the IED, our expenditure profile will be slower at the beginning of the AMP to deal with this uncertainty. This will alter the expenditure profile further towards the end of the AMP.
B10: 6 | C10: DPW1, DPW2 | E10: We ask for clarity as to whether the totals for AMP9 should include AMP8 data. The pre-populated tables are inconsistent on this point. For example, the outputs in table DPW1 for legal instruments (PCDW14, PCDW13) do not show a carry over into AMP9 but the financial tables do (DPW2). | F10: Yes, the totals for AMP9 should include AMP8 delivery as we want reporting to be on a cumulative basis. The PCD output profile for water quality was pre-populated incorrectly, thus the confusion. We have corrected this error and agreed with your approach (second option).
B11: 7 | C11: DPW1 & DPWW1 | D11: PCDW8 & PCDWW18 WINEP Investigations | E11: Ofwat pre-populated the annual delivery profile for WINEP investigations for wastewater but not for water. We would be grateful if Ofwat could confirm whether it expects companies to submit an annual profile for WINEP investigations, regardless of the profile published in the PCD model, or whether it expects companies to only include the profile as per the PCD model, which would only show the total number of investigations complete by 2029-30. | F11: We do not have information on how to populate the annual delivery profile for WINEP investigations for water. We expect companies to include an annual profile for WINEP investigations. We therefore now include the following statement in the cover sheet of the updated delivery plan table template: For PCDs where we have not provided a baseline profile but reported only the target output or allowed total expenditure (totex) at year 5 of AMP8 or at year 5 of AMP9, we ask companies to provide profiled annual output and totex values in their deliver plans. These should be reported for both baseline and outturn & forecast tables. We also ask companies to provide the assumptions used to derive these profiles as part of their commentary in their delivery plan submission.
B12: 8 | C12: DPB1, DPB2 | D12: PCDB3a PCDB3b Network Reinforcement | E12: Network Reinforcement For network reinforcement, we note that although the PCD is included in the expenditure tables (DPB2), there is no output included in the output tables (DPB1). We will add a delivery profile for these schemes in our draft submission in May. | F12: As per the PCD appendix, there is no output related to network reinforcement expenditure in the output tables (DPB1). We monitor network reinforcement expenditure only in the expenditure table (DPB2). We provide a baseline expenditure profile based on business plan profile.
B13: 9 | C13: DPB2, DPB2_ADD DPWW2 | D13: PCDB1a (example) Mains Renewals (base) | E13: Mains Renewals (base) In the pre-populated data tables we note that for some PCDs, Ofwat’s expenditure profile only shows the cumulative total for the end of an AMP, whereas for other PCDs the expenditure profile is based on an annual profile. We ask Ofwat to clarify its guidance on whether or not companies are expected to complete a planned delivery profile for investments lines where Ofwat have only provided a total AMP cumulative value. | F13: We provide a baseline expenditure profile based on the PCD output profile. We expect companies to include an annual profile for network reinforcement. To clarify this we therefore included the following statement in the cover sheet of the updated DP table template: For PCDs where we have not provided a baseline profile but reported only the target output or allowed total expenditure (totex) at year 5 of AMP8 or at year 5 of AMP9, we ask companies to provide profiled annual output and totex values in their deliver plans. These should be reported in both baseline and outturn & forecast tables. We also ask companies to provide the assumptions used to derive these profiles in their delivery plans.
B14: 10 | C14: DPWW1 | D14: PCDWW25a Sludge Treatment (Thickening and dewatering) | E14: Sludge Treatment (Thickening and Dewatering) We believe there is a mistake in the pre-populated tables for PCDWW25a (Sludge thickening and dewatering). The pre-populated table has a profile starting in 2025/26 where-as you our business plan delivery profile in BIO5 should be used which starts in 2026/27 (below). | F14: You are correct. There is a formula error. We have now corrected this for all companies.
B15: 11 | C15: DPW1 | D15: PCDW12 Metering | E15: Metering. The pre-populated profiles are broadly correct however, these appear to be created from an expenditure profile which creates some unintended consequences, eg, 13,273.5 new meters in 2025/26. We recommend the output profile should be based on the PCD model. | F15: We use the PCD output profile from the published PCD model. We agree with your suggestion, so we have rounded the meter numbers for all companies. Please also note that in the updated delivery plan table template we changed the metering expenditure delivery profile. This is now based on the PCD output profile.
B16: 12 | C16: DPW1 | D16: PCDW12 Metering | E16: For the Non delivery PCD payments, we have noted a misalignment between the pre-populated data (which matched the payments listed in the final determination metering model PR24CA32) and the latest version of the Water Supply and Demand Balance PCD model (published February 2025). | F16: Your are correct. We will use the updated payment rates for the different metering categories using the updated PCD model. We have now corrected this error for all companies
B17: 13 | D17: PCDW11b: Supply Interconnectors PCDW16c: Reservoir safety improvements PCDWW32: Water resilience climate change uplift | E17: Use the enhancement costs aggregator model for the PCDs in column E. Although the delivery is in AMP9 expenditure incurs in AMP8 as well. For water resilience climate change uplift, the water resilience profile from the enhancement costs aggregator model has been used. | F17: We will use the enhancement costs aggregator model to derive an AMP8 expenditure delivery profile for supply interconnectors, resilience and resilience interconnectors. We apply this approach to all companies.
B18: 14 | D18: PCDWW34: Net Zero - GHG/Carbon PCDWW34: Peatlands | E18: For the following 2 PCDs, the expenditure profile does not match the enhancement costs aggregator model, so we propose that it is updated. For PCDWW34: Net Zero - GHG/Carbon, DPWW2 presents expenditure for tCO2e and number of sites as separate lines (DPWW2.43 and DPWW2.44). While we recognise that Ofwat has applied a percentage split to calculate non-delivery payment rates, expenditure will not be incurred separately for tCO2e and number of sites, so we have presented this information as 1 line. | F18: In the enhancement costs aggregator model the expenditure percentages were calculated using both wastewater and water expenditure. The total (water and wastewater) enhancement expenditure for net zero in the enhancement costs aggregator over the whole period matches with the one reported in the deliver plan (please see the allowed PCD totex in year 2029-30). However, based on your subsequent comments on peatland restoration expenditure we moved the PCDWW34 for peatland restoration to water tables because it is for water price control. We agree with your proposal to report one expenditure line for tCO2eq and number of sites. The interim milestone in DPWW3 has one line as well. The updated template reflects this change.
B19: 15 | D19: Treatment of PCDWW34 Peatland Restoration DPWW3.18, DPWW2.45, DPWW1.58 | E19: This component of PCDWW34 is for peatland restoration and forms part of the water price control. We have moved the lines DPWW3.18, DPWW2.45, DPWW1.58 from the wastewater table 1, 2 and 3 to the water equivalents. | F19: Based on your subsequent comments on peatland restoration expenditure we moved the PCDWW34 for peatland restoration to water tables as it relates to the water price control.
B20: 16 | D20: PCDWW4: Increase flow to full treatment PCDWW5: Storm Overflows PCDWW5b: WINEP Storm Overflows – Wetlands | E20: For the following 3 PCDs, the total storm overflow expenditure profile has been used but the 3 PCDs have individual spend profiles. We propose that the individual business plan profiles are applied to each PCD to more closely reflect forecast expenditure as the total of these PCDs is over £1bn. | F20: Companies have allocated components of storm overflows e.g. Flow to full treatment, storm overflows, screens, wetlands etc across all storm overflows lines. Therefore it is not possible to split these expenditure lines out from the CWW3 lines and derive an accurate expenditure profile. We consider that our approach to use the combined storm overflows enhancement expenditure for the different areas of storm overflows expenditure will allow us to draw a baseline for all companies on a consistent basis. We are not making further changes at this stage. Please provide your view of the expenditure profile in the outturn & forecast tables and provide commentary explaining difference to our proposed baseline. We will consider amending baseline for final delivery plan.
B21: 17 | D21: PCDW12: Metering | E21: The allowance is split between base and enhancement, but the expenditure profile applied is only for enhancement. We propose that the base cost aggregator profile is applied for the base expenditure portion. | F21: In the updated template we use the PCD output profile to derive expenditure profile for different metering categories.
B22: 18 | C22: DPWW2/DPW2 | E22: We have identified a potential issue with the total enhancement expenditure calculations in tabs ‘DPW2’ and ‘DPWW2’. In tab ‘DPW2’, the metering PCD (PCDW12) is comprised of both base and enhancement expenditure therefore when non-PCD enhancement is added in DPW2.43, the total in DPW2.44 will exceed the water enhancement allowance due to the inclusion of the base component of the metering PCD. This issue also applies to tab ‘DPWW2’ where the enhancement component of the sewer mains renewals PCD (PCDB2) is not included in DPWW2 therefore when non-PCD enhancement is added in DPWW2.46, the total in DPWW2.47 will be less than the wastewater enhancement allowance due to the exclusion of the enhancement component of the sewer mains renewals PCD. | F22: We understand this issue and expect the companies to inform us for any variance between PCD and non PCD expenditure in their delivery plan. We will consider adding a reconciliation line in the table for companies to provide this variance. We will update our guidance document to clarify this.
B23: 19 | D23: DPWW1.27 Volume of Sludge Storage delivered | E23: We note you have used the delivery profile from BIO5 however the table currently shows our year 2 target in year 1, bringing our whole programme forward a year. | F23: We have corrected this error for all companies.
B24: 20 | C24: F_Inputs_BIO5 | D24: DPWW1.28 Sludge Storage (Cake pads) | E24: For cake pads, that seems to be an error as F_Inputs_BIO5 has the value in 26/27 but the DPWW1 calcs it in 25/26. This also does not match the PCD which has the deliverable only in 29/30 | F24: We have corrected this error for all companies.
B25: 21 | C25: DPWW2 | D25: DPWW2.43, 44 Net zero | E25: While the monetary value included in the PCD for our wastewater net zero enhancement schemes is per our cost table CWW22. This has now been split into sites and carbon benefit delivered. Costs will be incurred as indicated however the carbon benefits will lag the investment and accrue across the AMP. There will be no carbon benefit in AMP8 year 1 as an example of how this cost allocation would not be applicable in practice. We understand the split of funding based on site delivery at 75% and carbon benefit at 25%, but not how this can be evidenced for the latter to the timeframes indicated. The carbon benefit will not be fully resolved until the end of the AMP. As the schemes cannot be delivered without the funding allowed, we propose that monies are allocated each year as set in CWW22 and final adjustment be applied at the end of year 5 based on the outturn performance (the cumulative benefit in AMP). That performance to be tracked separately against a defined baseline (which would be set early in AMP8 year 2 following the required 12 months monitoring period). If Ofwat wanted greater granularity for this area, we'd propose splitting expenditure between CH4 and N2O schemes rather than between sites and carbon benefit. | F25: We use the enhancement aggregator cost model to derive the PCD allowed totex delivery profile for net zero. The PCD allowed totex in year 2029-30 matches with the one in the enhancement aggregator cost model (please see the total value over the whole period). We agree with your proposal on reporting one expenditure line for tCO2eq and number of sites. The interim miletone table in DPWW3 has one line as well. The updated template reflects this change. We also moved the PCD related to peatland restoration to water as it is for water price control.
B26: 22 | C26: DPWW2 | D26: DPWW2.42 PR19 WINEP Carryover | E26: Ofwat assume flat profile (£36m/5 per year). We have last delivery date of 31/3/2027, so would not expect expenditure beyond yr2. | F26: Companies have different delivery dates for PR19 WINEP Carryover schemes across AMP8. For consistency purposes, we assumed a flat profile for all companies across the whole AMP8 as stated in the PR24 FD past delivery and PR24 FD PCD documents. This is the reason why the enhancement aggregator cost file has a flat profile for all companies across all years of AMP8. Please provide your view of the baseline expenditure profile in the outturn & forecast tables. We will consider whether to reset the baseline profile after draft delivery plan submissions.
B27: 23 | D27: PCDW12 | E27: Update non-delivery PCD rates for New installations, Household meter upgrades, Non-household meter upgrades. For simplicity, we suggest that meter unit rates x output volumes should be used to set annual totex values in the delivery plan. | F27: We have corrected the non-delivery payments for all companies using the updated PCD model. Also, we will use the PCD output profile to derive the delivery profile for metering expenditure.
B28: 24 | E28: For PCDs where Ofwat has reported the total totex in year 5, please could you confirm would you like us to provide profiled annual totex values in our May submission. | F28: For PCDs where we have not provided a baseline profile but reported only the target output or allowed total expenditure (totex) at year 5 of AMP8 or at year 5 of AMP9, we ask companies to provide profiled annual output and totex values in their deliver plans. These should be reported in both baseline and outturn & forecast tables. We also ask companies to provide the assumptions used to derive these profiles in their delivery plans.
E32: Company query | F32: Ofwat response
B33: Query number | C33: Sheet | D33: PCD ref
B34: =B28 + 1 -> 25 | D34: PCDW12 Metering | E34: IM for metering: •metering doesn’t meet the criteria that Ofwat has set for the purpose of IM reporting to monitor progress for back-ended delivery profiles, • the PCD has a yearly delivery profile and the current reporting requirement for DPW1 & 2 is sufficiently detailed to capture progress and hold companies to account. | F34: There is no interim milestone reporting for this PCD as indicated by N/A in the table of section 4.3 of our delivery plan guidance. This line in table DPW3 should therefore not be populated. Please also note that the updated DP template removes this line from the DPW3 table.
B35: =B34 + 1 -> 26 | D35: PCDW8 Water WINEP Investigations | E35: The level of detailed required for DPW1 & 2 is sufficient to capture the details required for progress against this PCD and the additional requirements for DPW3 will not add value or confidence in delivery to customers.
B36: 27 | D36: PCDW15 Lead | E36: The lead PCD has a consistent delivery profile that spans over the AMP and the current reporting requirement for DPW1 & 2 is significant and detailed enough to capture its progress and hold companies to the correct level of accountability. Its inclusion in DPW3 seems over burdensome and does not give any additional benefits to the customers.
B37: 28 | E37: IM Completion: It is not clear from the delivery plan guidance when a company achieves the PCD output in period, whether it then has to continue reporting on the PCD in the following updates. In the PR24 delivery plan workshop, it was mentioned that the level of reporting could be reduced over the AMP if companies remain on track and that the marginal reporting benefit does not increase towards the end of the AMP. We suggest that Ofwat updates its delivery plan guidance to provide further information on the process for completing PCDs in period and provide an incentive for companies in the form of potentially relaxed requirements given the successful delivery of PCDs in line with the baseline plan. | F37: Where companies complete a PCD we do not expect them to update reporting for this PCD in subsequent progress reports. Companies however should keep the values for these PCDs in subsequent delivery plan progress reports to enable us to compare against other companies on a consistent basis.
B38: 29 | E38: We encourage Ofwat to consider annual milestone rather than quarterly dates for tables DPW3 and DPWW3. Our July Delivery Plan baseline submission will include some indicative milestones generated backwards from our deliverable dates in our PR24 Final Determination. These will be produced at project level and is intended to provide an indicative view of the programme as a whole. However, we are concerned that showing information to customers at quarterly resolution provides a false sense of accuracy at this early stage. | F38: Companies have to deliver a significant step up in investment compared to PR19. Given the deliverability challenges that companies are likely to face we are enhancing the transparency of what companies will deliver and increase the frequency at which we collect delivery data. This will allow us, stakeholders and other regulators to have early sight of any delivery issues and consider taking action in a timely manner. The quarterly interim milestones will allow us to identify slippage that is greater than 3 months but smaller than a year. We will consider whether to move to six monthly or annual milestones for later years of the AMP as part of our annual delivery reviews.
B39: 30 | D39: PCDWW32 | E39: Interim milestones for PCDWW32 are missing from DPWW3 but the water equivalent is included in DPW3. | F39: We do not track progress for wastewater climate change uplift using intnerim milestones.
B40: 31 | D40: Delayed schemes: reason categories | E40: Would Ofwat support the addition of a commentary field within each of the DPW3 and DPWW3 tables? This would provide the opportunity for companies to provide further clarity. For example, a reason category ‘Change in solution (IM2)’, would often be due to one of the other categories, e.g. ‘Land and planning permission’, or ‘Programme level efficiency’. Similarly, ‘Programme level efficiency’ may be chosen where a scheme is combined with another driver to minimise costs overall to customers; the additional commentary field could be used to provide context for such changes. | F40: We consider that companies can provide comments for the reasons delayed in their commentary within the delivery plan as set out in our delivery plan guidance document. We will consider adding a commentary column within each of DPW3 and DPWW3 tables after the submission of draft delivery plans.
B41: 32 | D41: Wastewater investigations | E41: How do the interim milestones map out when considering schemes that deliver investigations? The IM definitions look to map out to asset delivery processes. We welcome some further guidance for Interim milestones relating to investigation schemes. | F41: We are not requiring companies to report interim milestones for wastewater investigations - please see Table DPWW3: Wastewater Enhancement PCD interim milestones in our guidance document.
B42: 33 | E42: For interim milestones and cost profiles do Ofwat require this to be cumulative or a count of in quarter / year deliverables? | F42: For interim milestones we expect a count of schemes require this reporting to be on a cumulative basis. Thus, by year 5 we expect to see 100% of the schemes at IM6. Our delivery plan guidance (p.13) states that the number of schemes at each stage should include both outturn and forecasts. Companies should provide the outturn number of schemes at each scheme for the quarters within the reporting year and previous years. In our guidance document we provide tables with worked examples (please see pp.15-16).
E46: Company query | F46: Ofwat response
B47: Query number | C47: Sheet | D47: PCD ref
B48: =B42 + 1 -> 34 | E48: The company wants Ofwat to provide definition/guidance on what we mean by schemes “which are of particular interest for relevant stakeholders”. | F48: We are asking companies to set out the list of schemes that you consider as high profile for your stakeholders. We have now included a column in tables DPW4 and DPWW4 so that companies can identify if the scheme is a high-profile scheme or not. Please provide commentary on the reasons why you consider these schemes as high-profile. If required, we may consider providing further guidance on the criteria for identifying high profile schemes for final delivery plans. Please also note that in tables DPW4 and DPWW4 the 'type of scheme' column has an updated drop down list; enhanced engagement, large gated and delivery mechanism schemes.
B49: =B48 + 1 -> 35 | E49: It is currently unclear how "spend to date" (column AD) and "forecast expenditure" (column AE) should be populated at each half-yearly progress report. We would welcome clarification of whether expenditure in column AD should be spend to the end of the previous full year, spend to date including the first half of the current year, or total spend including 6 months forecast for the second half of the current year to align to DPW(W)2. We would also welcome clarification in relation to column AE. It is unclear from the guidance and table labelling whether baseline and forecast expenditure profiles at scheme level are cumulative or not. We assume they are for consistency with DPW(W)2. We would welcome clarification of this in the guidance document and column heading in the tables. It is unclear how we should populate scheme level tables DPW(W)4 where there is an approved scheme substitution before the first agreed re-baselining date of 01/04/27 (reference guidance section 2.3, P13). In such a case, we propose to add the scheme to DPW(W)4 and complete the forecast columns but leave the baseline columns blank. One additional scheme would be reported in DPW(W)3 and the scheme being substituted would be reported against stage 7 (in DPW(W)3) and IM7 (in DPW(W)4). Column S of DPW4 asks for 'Current interim milestone' whereas column S of DPWW4 asks for 'Current stage'. We assume these should be consistent and would welcome clarification. | F49: Spend to date (column AD) should be populated at each half-yearly progress report by including the spend from the previous years of the price control period and spend to date in the first half of the current year. Forecast expenditure to complete the scheme (column AE) should include the total outstanding forecast expenditure to complete scheme. This shoudl exclude the expenditure reported in column AD, ie spend to date. The sum of AE and AD should provide the total scheme expenditure. The spend in columns AD and AE should be reported on a cumulative basis. The baseline and forecast expenditure profiles at scheme level should be reported on cumulative basis as suggested in the column headings. We will also clarify this in our guidance document. We agree with your proposal on how to report a substitution scheme in the DPW(W)3 and DPW(W)4 sheets. Column S in DPWW4 is now renamed 'Current interim Milestone' to be consistent with DPW4.
B50: =B49 + 1 -> 36 | E50: Does Ofwat require companies to report Wastewater resilience schemes in a similar way, perhaps in DPWW4? | F50: Companies are not required to report wastewater resilience schemes in DPWW4.
B51: =B50 + 1 -> 37 | E51: To support comparison of company plans and ensure full compliance with the reporting requirement, will Ofwat provide a definition of ‘High-profile’ schemes? | F51: We asking companies to set out the list of schemes that you consider as high profile for your stakeholders. We have now included a column in tables DPW4 and DPWW4 so that companies can identify if the scheme is a high-profile scheme or not. Please provide commentary on the reasons why you consider these schemes as high-profile. If required, we may consider providing further guidance on the criteria for identifying high profile schemes for final delivery plans. Please also note that in tables DPW4 and DPWW4 the 'type of scheme' column has an updated drop down list; enhanced engagement, large gated and delivery mechanism schemes in table DPWW4 and nhanced engagement, large gated and resilience schemes in table DPW4
E55: Company query | F55: Ofwat response
B56: Query number | C56: Sheet | D56: PCD ref
B57: =B51 + 1 -> 38 | C57: DPWW2 | D57: PCDWW5b & PCDWW6 Storm Overflows Scheme level & Screen Only | E57: Storm Overflows Scheme Level & Screen Only It appears the line description and output description have been interchanged, i.e. screen - to - number and wetland – to – wetland area. | F57: We have corrected this error.
B58: =B57 + 1 -> 39 | C58: HDD_DPB1_ADD & HDD_DPB2_ADD | D58: PCDB5 Supply Interruptions CAC, PCDB6 Reservoir Maintenance | E58: Errors in line descriptions | F58: We have corrected this error.
B59: 40 | D59: PCDW14 Metering | E59: Error in decimal point | F59: We have corrected this error. We ask companies to report the number of meters in 0 decimal points.
B60: 41 | C60: DPW3 | E60: In table DPW3 (column MO), the ‘DP Reference’ values state WW in the line references for this table, rather than W, as this table relates to water. | F60: We have corrected this error.
B61: 42 | D61: Metering PCD definition (Guidance section 4.1, P28) | E61: The line definition for DPW1.19 Meter replacements is meters replaced on a 'like-for-like' basis. Our Business Plan is predicated on us replacing basic meters with an AMR meter upgrade i.e. all replacements are upgrades. The PCD has been populated from PR24 Business Plan table CW7 which defines CW7.9/10 as "renewals" which include like for like and replacement of an existing meter with a different type of meter; CW7.11/13 as "replacement of basic meter with smart meter". The current definition of DPW1.19 would give rise to zero replacements. We request that the definition be corrected. | F61: Given that meter upgrades are funded partly through enhancement allowances and base allowances we expect you to report upgrades to AMR against lines DPW1.15, DPW1.16 and DPW1.19. If all of your meter replacements are upgrades to AMR then we would expect the sum of upgrades reported against lines DPW1.15 and DPW.16 to match those reported against DPW1.19.
B62: 43 | D62: Greenhouse gas reduction (net zero) tCO2e(DPWW1.56) | E62: For PCDWW34 greenhouse gas reduction, the unit value is shown as (000s) it should be (Nr or Tonnes). | F62: We have corrected this error.
B63: 44 | D63: Table DPB2 – ‘PCD Output Description’ (column F) | E63: For lines DPB2.1 to DPB2.3, ‘in kilometres’ should be replaced with ‘expenditure’. | F63: We have corrected this error.
B64: 45 | D64: Table DPW4 (cells AR5:AV5) | E64: This section is labelled ‘Baseline expenditure profile (£m)’ instead of ‘Forecast expenditure profile (£m)’. | F64: We have corrected this error.
B65: 46 | D65: DPWW2, PCDWW6 – Storm Overflow – Screens | E65: Tab DPWW2, PCDWW6 – Storm Overflow – Screens: We believe that the PCD Output Description in cell G17, 'Wetland area delivered', should read 'Number of EnvAct_IMP5 compliant screens installed and operational at screen only solutions'. Question – We request Ofwat to review the description above with a view to correcting if appropriate. | F65: We have corrected this error.
B66: 47 | C66: DPWW1 | D66: Growth to Sewerage Treatment Works | E66: Believe there to be a decimal point missing in 9807 figure. Units are 000's. | F66: We have corrected this error by replacing 000s with Nr
B67: 48 | C67: DPWW1 | D67: DPWW1.56 Greenhouse gas reduction (net zero) | E67: Unit changes between tables Calc_Net Zero & DPWW1 - Figures are shown in wrong units (tCO2e) but needs to be in 000's. Values need to be divided by 1000 to be correct | F67: We changed the unit of measurement from 000s to tonnes.
B68: 49 | C68: DPWW1 | D68: DPW1.10 Continuous river water quality monitoring (CWQM) | E68: Numbers look right but PCD was just a yr5 figure with requirement we start in yr1. Should this then be in there? It should be in our forecast line | F68: We mapped the PCD output profile based on CWW_20. We consider our approach is appropriate. Note that this does not change our approach to how PCDs work - we will continue to apply PCD claw-back only if output target is not delivered by the end of 2029-30.
B69: 50 | C69: DPWW2 | D69: DPW1.10 Continuous river water quality monitoring (CWQM) | E69: Numbers look right but PCD was just a yr5 figure with requirement we start in yr1. Should this then be in there? It should be in our forecast line | F69: We mapped the PCD allowed totex delivery profile based on the enhancement aggregator cost file. We consider our approach is appropriate. Note that this does not change our approach to how PCDs work - we will continue to apply PCD claw-back only if output target is not delivered by the end of 2029-30.
B70: 51 | C70: DPWW1 | D70: CPWW1.23 WINEP Investigations (wastewater) | E70: Numbers do not match source and showing incorrect profile | F70: We checked the updated PCD model and our numbers in the Delivery Plan are correct.
B71: 52 | C71: DPW2 | D71: DPW2.21-25 Water Supply and Demand Balance - WAFU Benefit | E71: The costs do not match the allowance in the FD and the timing is not correct. | F71: We checked the updated PCD model and the number is unchanged. We used the PCD related FD allowance. This may not match the total allowance set in final determinations for this enhancement line due to large gated schemes not having a PCD.
B72: 53 | C72: DPB1 | D72: DPB2.3-4 Network reinforcement - Wastewater | E72: We notice that network reinforcement is include in DPB2 for PCDB3a and 3b but not included in DPB1 for the base PCD outputs. We belive this to be an error and would assume that it should be present in DPB1. | F72: There is no PCD output for network reinforcement. Please see Base PCD excel file and PR24 FD appendix.
B73: 54 | C73: All lines | E73: Decimal places shown are not consistent with stated tolerance | F73: We address dps issues where needed.
B74: 55 | C74: All lines | E74: Suggest showing column J on DPW2 in £000s rather than £m as units are too small to be accurately represented in £m | F74: We consider it is appropriate to retain the current format so that we can compare across companies on a consistent basis.
B75: 56 | D75: PDCW15 | E75: The Final Determination made an allowance for atypical costs associated with Schools and Nurseries (see page 168 of PR24 final determinations: Expenditure allowances - Enhancement cost modelling appendix). But the Delivery Plan table refers only to “Schools”. Can this be amended to avoid “Schools and Nurseries” to reflect the FD and avoid any subsequent confusion. | F75: Yes, we will amend the definition of this PCD output in the guidance document.
B76: 57 | C76: DPW1/DPW2/DPW3 | E76: All include PCDWW32 which is a Wastewater PCD and appears to have an incorrect line description. It is included in tables DPWW1/DPWW2 with what looks like the right line description | F76: PCDWW32 is the PCD for climate change uplift. We use the same PCD reference for both water and wastewater related climate change uplift outputs and expenditure.
B77: 58 | C77: DPWW1/DPWW2/DPWW3 | E77: PCDWW5b inconsistent output descriptions used across the different tables | F77: DPWW2 tracks the expenditure, whereas DPWW3 tracks the number of schemes. DPWW1 has the number of schemes and wetland area delivered.
B78: 59 | C78: DPWW1/DPWW2 | E78: PCDWW6 inconsistent output descriptions used across the different tables | F78: We have now corrected this error.
B79: 60 | C79: DPWW2/DPWW3 | E79: PCDWW9 appears to have the wrong output description because it is a copy of the line description. In table DPWW1 there are 2x outputs against PCDWW9 so should these tables also list 2x outputs against this PCD? | F79: DPWW2 includes total overall expenditure against PCDWW9. We do not split expenditure allowance between number of schemes and PE because the same expenditure is used to deliver both output types. DPWW3 tracks the number of schemes for all PCD areas.
B80: 61 | C80: DPWW1/DPWW2 | E80: there are PCDs missing from DPWW2 that are in DPWW1 e.g. PCDWW5. There are fewer rows in DPWW2 than DPWW1. | F80: Please see delivery plan guidance document where we set out reason for this. In DPWW2 there are fewer lines because for some PCDs we do not split expenditure by output type where the split is artificial.
B81: 62 | C81: DPW1/DPW2 | E81: there are inconsistent PCD refs and output descriptions e.g. DPW1 PCDW12=Large bulk meters but DPW2 PCDW12= Non household meter upgrades - looks like some incorrect copying down on the metering PCDs | F81: We have now corrected this error for all companies.
B82: 63 | E82: The assurers and company's own RAG's are filled in. Do they need to be at this stage given this is baseline? Have the inputs been assured? | F82: The RAG rating is for the companies to fill in. It is not related to the pre-populated data.The RAG from the assurer is only required for the July submissions. We expect companies to fill in and update their own RAG rating in each submission.
E86: Company query | F86: Ofwat response
B87: Query number | C87: Sheet | D87: PCD ref
B88: =B82 +1 -> 64 | E88: Timing and alignment with Annual Performance Reports (APRs): We do not support the need for draft reports in May ahead of the final report in July each year. This is not something that is done for company APRs and therefore it does not seem necessary here. Ofwat have not provided information on what the May submission will be used for or the benefits that a draft submission brings. Therefore, we recommend that the May requirement is removed or made optional.Remove May submission. | F88: Companies have to deliver a significant step up in investment compared to PR19. Given the deliverability challenges that companies are likely to face we are enhancing the transparency of what companies will deliver and increase the frequency at which we collect delivery data. This will allow us, stakeholders and other regulators to have early sight of any delivery issues and consider taking action in a timely manner. We will consider less frequent reporting for later years of the AMP for companies showing good progress against PCD targets as part of our annual delivery reviews.
B89: =B88 + 1 -> 65 | D89: RAG ratings | E89: ‘Amber’ and ‘Red’ categories both refer to ‘meet requirements by 30 June 2030’. We believe that a tolerance of 90 working days should be applied; this would ensure that a delay of, in extremis, a single day, which forces delivery into the next quarter, does not precipitate the application of a non-delivery penalty. Question - We request Ofwat to clarify the definition with respect to the application of non-delivery penalties and request a 90 working days tolerance control limit be applied. | F89: The RAG information will be used for monitoring purposes rather than for the application of PCDs. This is to identify the PCD areas that are at risk of not being met. We set out our approach to PCDs in section 4.7.2 of PR24 final determinations: expenditure allowances.
B90: 66 | D90: RAG ratings | E90: We note the guidance on RAG ratings. Question – We request Ofwat to confirm whether the timely delivery against the PCD time profile requirement as set out in PR24-final-determinations-Expenditure-allowances-1.pdf should continue to be provided in addition to the restated performance RAG rating for each PCD. | F90: Yes, we confirm that the timely delivery against the PCD time profile requirement as set out in PR24-final-determinations-Expenditure-allowances-1.pdf (please see Table 1 at pages 20-21) should continue to be provided in addition to the restated performance RAG rating for each PCD. As stated above, the RAG information is for monitoring information purposes rather than for the application of PCDs.
B91: 67 | D91: Commentaries | E91: We would expect to provide commentaries. However, there would seem to be some overlap with APR commentaries and narratives. To minimise resource effort, we would propose to only include a single narrative on PCD outputs and expenditure, in particular. Question – We request Ofwat to confirm whether and how PCD commentaries will be integrated into the APR. | F91: As stated in our delivery plan document, we want to understand the main risks that companies are facing in delivering their PR24 enhancement programme. As part of their delivery plan submission we expect companies to identify these risks and set out the actions they are undertaking, or planning to undertake, to mitigate those risks. As we go through the price control period companies are likely to make changes to their programmes. We expect companies to provide commentary within their delivery plan submission to explain these changes where they are material. We identify the material changes where we expect companies to provide additional commentary in section 2.5. As stated in our delivery plan guidance document, we will consider removing any unnecessary duplication in future APRs and update our guidance to reflect our latest view of definition of terms for similar output metrics. You can cross refer to your commentary in delivery plans in your APRs where appropriate.
B92: 68 | D92: Commentaries | E92: We would seek to also comment on where we may be ‘ahead’ of the baseline programme. External reporting on companies’ delivery progress should be balanced and recognise successes where evidenced, despite the focus on programme slippage, as per categories listed. Question – Will Ofwat recognise performance where favourable to baseline, in the same way as it will for performance adverse to baseline? | F92: We welcome companies commenting where they may be 'ahead' of the baseline programme in the delivery plans. In our public facing anual delivery reports we will report on the progress that companies are making in delivering PR24 and will highlight both early delivery and late delivery. Companies can earn time incentive payments where they deliver outputs on time in areas where time incentives apply.
B93: 69 | E93: We welcome the additional visibility of delivery which the delivery plan brings. However, we question the need for a May submission ahead of the final assured July submission, which in effect creates three submissions per annum rather than two. For the May submission we will need to use draft outturn figures, as these will not have been approved and assured as part of the APR process at this time. It is not clear why Ofwat requires a May submission and how it intends to use this. We suggest alignment with the annual return process, with one fully assured end of year submission. This will reduce the burden for both Ofwat and companies. | F93: Companies have to deliver a significant step up in investment compared to PR19. Given the deliverability challenges that companies are likely to face we are enhancing the transparency of what companies will deliver and increase the frequency at which we collect delivery data. This will allow us, stakeholders and other regulators to have early sight of any delivery issues and consider taking action in a timely manner. We will consider less frequent reporting for later years of the AMP for companies showing good progress against PCD targets as part of our annual delivery reviews.
B94: 70 | E94: We also ask Ofwat to reconsider the need for quarterly interim milestones. Given the delivery plan reports on half year and full year delivery, we think the use of half year milestones will provide sufficient level of visibility whilst simplifying the delivery plan tables. | F94: Companies have to deliver a significant step up in investment compared to PR19. Given the deliverability challenges that companies are likely to face we are enhancing the transparency of what companies will deliver and increase the frequency at which we collect delivery data. This will allow us, stakeholders and other regulators to have early sight of any delivery issues and consider taking action in a timely manner. The quarterly interim milestones will allow us to identify slippage that is greater than 3 months but smaller than a year. We will consider whether to move to six monthly or annual milestones for later years of the AMP as part of our annual delivery reviews.

Sheet Inputs>>>

Sheet F_Inputs_BIO5
A1: =RIGHT(CELL("filename", A1), LEN(CELL("filename", A1)) - SEARCH("]", CELL("filename", A1))) -> F_Inputs_BIO5
C2: PCD_Delivery_BIO5 | E2: Run on 08 Feb 2025 19:14 | U2: Delivery profile (no cumulative basis) | AC2: Delivery profile (cumulative basis)
A4: Company Acronym | B4: Item Code | C4: Item Description | D4: Item Unit | E4: Item Table Suite | F4: 2022-23 | G4: 2023-24 | H4: 2024-25 | I4: 2025-26 | J4: 2026-27 | K4: 2027-28 | L4: 2028-29 | M4: 2029-30 | N4: Total | P4: Line description | S4: 2023-24 | T4: 2024-25 | U4: 2025-26 | V4: 2026-27 | W4: 2027-28 | X4: 2028-29 | Y4: 2029-30 | AA4: 2023-24 | AB4: 2024-25 | AC4: 2025-26 | AD4: 2026-27 | AE4: 2027-28 | AF4: 2028-29 | AG4: 2029-30
A5: Company Acronym | B5: Item Code | C5: Item Description | D5: Item Unit | E5: Item Table Suite | F5: Price Review 2024 | G5: Price Review 2024 | H5: Price Review 2024 | I5: Price Review 2024 | J5: Price Review 2024 | K5: Price Review 2024 | L5: Price Review 2024 | M5: Price Review 2024
A6: Company Acronym | B6: Item Code | C6: Item Description | D6: Item Unit | E6: Item Table Suite | F6: Run 11 - PR24 FD Data | G6: Run 11 - PR24 FD Data | H6: Run 11 - PR24 FD Data | I6: Run 11 - PR24 FD Data | J6: Run 11 - PR24 FD Data | K6: Run 11 - PR24 FD Data | L6: Run 11 - PR24 FD Data | M6: Run 11 - PR24 FD Data
A7: Company Acronym | B7: Item Code | C7: Item Description | D7: Item Unit | E7: Item Table Suite | F7: Latest | G7: Latest | H7: Latest | I7: Latest | J7: Latest | K7: Latest | L7: Latest | M7: Latest

Sheet F_Inputs_CWW20
A1: =RIGHT(CELL("filename", A1), LEN(CELL("filename", A1)) - SEARCH("]", CELL("filename", A1))) -> F_Inputs_CWW20
C2: PCD_Delivery_CWW20 | E2: Run on 08 Feb 2025 18:57 | I2: id | J2: 29824 | U2: Delivery profile (no cumulative basis) | AC2: Delivery profile (cumulative basis)
A4: Company Acronym | B4: Item Code | C4: Item Description | D4: Item Unit | E4: Item Table Suite | F4: 2022-23 | G4: 2023-24 | H4: 2024-25 | I4: 2025-26 | J4: 2026-27 | K4: 2027-28 | L4: 2028-29 | M4: 2029-30 | N4: Total | P4: Line description | S4: 2023-24 | T4: 2024-25 | U4: 2025-26 | V4: 2026-27 | W4: 2027-28 | X4: 2028-29 | Y4: 2029-30 | AA4: 2023-24 | AB4: 2024-25 | AC4: 2025-26 | AD4: 2026-27 | AE4: 2027-28 | AF4: 2028-29 | AG4: 2029-30
A5: Company Acronym | B5: Item Code | C5: Item Description | D5: Item Unit | E5: Item Table Suite | F5: Price Review 2024 | G5: Price Review 2024 | H5: Price Review 2024 | I5: Price Review 2024 | J5: Price Review 2024 | K5: Price Review 2024 | L5: Price Review 2024 | M5: Price Review 2024
A6: Company Acronym | B6: Item Code | C6: Item Description | D6: Item Unit | E6: Item Table Suite | F6: Run 11 - PR24 FD Data | G6: Run 11 - PR24 FD Data | H6: Run 11 - PR24 FD Data | I6: Run 11 - PR24 FD Data | J6: Run 11 - PR24 FD Data | K6: Run 11 - PR24 FD Data | L6: Run 11 - PR24 FD Data | M6: Run 11 - PR24 FD Data
A7: Company Acronym | B7: Item Code | C7: Item Description | D7: Item Unit | E7: Item Table Suite | F7: Latest | G7: Latest | H7: Latest | I7: Latest | J7: Latest | K7: Latest | L7: Latest | M7: Latest

Sheet F_Inputs_WW_EXP
A1: =RIGHT(CELL("filename", A1), LEN(CELL("filename", A1)) - SEARCH("]", CELL("filename", A1))) -> F_Inputs_WW_EXP | C1: PR24CA14_Waste_Enh_out
A2: Acronym | B2: Reference | C2: Item description | D2: Unit | E2: Model | F2: 2023-24 | G2: 2024-25 | H2: 2025-26 | I2: 2026-27 | J2: 2027-28 | K2: 2028-29 | L2: 2029-30 | M2: Total | P2: Line description | Q2: Delivery profile (no cumulative basis) | Y2: Delivery profile (cumulative basis)
Q4: 2023-24 | R4: 2024-25 | S4: 2025-26 | T4: 2026-27 | U4: 2027-28 | V4: 2028-29 | W4: 2029-30 | Y4: 2023-24 | Z4: 2024-25 | AA4: 2025-26 | AB4: 2026-27 | AC4: 2027-28 | AD4: 2028-29 | AE4: 2029-30

Sheet F_Inputs_W_EXP
A1: =RIGHT(CELL("filename", A1), LEN(CELL("filename", A1)) - SEARCH("]", CELL("filename", A1))) -> F_Inputs_W_EXP | C1: PR24CA14_Water_Enh_out
A2: Acronym | B2: Reference | C2: Item description | D2: Unit | E2: Model | F2: 2023-24 | G2: 2024-25 | H2: 2025-26 | I2: 2026-27 | J2: 2027-28 | K2: 2028-29 | L2: 2029-30 | M2: Total | S2: Delivery profile (no cumulative basis) | Y2: Delivery profile (cumulative basis)
A4: Company | P4: Line description | Q4: 2023-24 | R4: 2024-25 | S4: 2025-26 | T4: 2026-27 | U4: 2027-28 | V4: 2028-29 | W4: 2029-30 | Y4: 2023-24 | Z4: 2024-25 | AA4: 2025-26 | AB4: 2026-27 | AC4: 2027-28 | AD4: 2028-29 | AE4: 2029-30
A8: BRL | B8: PR24CA14_W_TOTAL_ENHANCEMENT_ALLOW_TOT | C8: PR24 final water enhancement totex allowance- total enhancement expenditure | D8: £m | E8: Price review 2024 | F8: 0 | G8: 0 | H8: 22.00405658 | I8: 27.30520863 | J8: 29.15317519 | K8: 27.56516974 | L8: 29.42864342 | M8: =SUM( F8:L8) -> 135.4562536
A9: BRL | B9: PR24CA14_W_BIODIVERSITY_ALLOW_TOT | C9: PR24 final water enhancement totex allowance- WINEP/NEP - biodiversity and conservation expenditure | D9: £m | E9: Price review 2024 | F9: 0 | G9: 0 | H9: 0.5986430662 | I9: 0.5952267896 | J9: 0.5913692201 | K9: 0.5868639073 | L9: 0.5829011635 | M9: 2.955004147 | P9: Biodiversity and Conservation hectares | Q9: =F9 / $M9 -> 0 | R9: 0 | S9: 0.2025862017 | T9: 0.201430103 | U9: 0.2001246668 | V9: 0.1986000283 | W9: 0.1972590002 | Y9: =Q9 -> 0 | Z9: =SUM( Q9:R9) -> 0 | AA9: =SUM( Q9:S9) -> 0.2025862017 | AB9: =SUM( Q9:T9) -> 0.4040163047 | AC9: =SUM( Q9:U9) -> 0.6041409715 | AD9: =SUM( Q9:V9) -> 0.8027409998 | AE9: =SUM( Q9:W9) -> 1
A10: BRL | B10: PR24CA14_W_EELS_SCREENS_ALLOW_TOT | C10: PR24 final water enhancement totex allowance- WINEP/NEP - eels and fish screens expenditure | D10: £m | E10: Price review 2024 | F10: 0 | G10: 0 | H10: 0 | I10: 0 | J10: 0 | K10: 0 | L10: 0 | M10: 0 | P10: Biodiversity and Conservation kilometres | Q10: =Q9 -> 0 | R10: =R9 -> 0 | S10: =S9 -> 0.2025862017 | T10: =T9 -> 0.201430103 | U10: =U9 -> 0.2001246668 | V10: =V9 -> 0.1986000283 | W10: =W9 -> 0.1972590002 | Y10: =Y9 -> 0 | Z10: =Z9 -> 0 | AA10: =AA9 -> 0.2025862017 | AB10: =AB9 -> 0.4040163047 | AC10: =AC9 -> 0.6041409715 | AD10: =AD9 -> 0.8027409998 | AE10: =AE9 -> 1
A11: BRL | B11: PR24CA14_W_EELS_PASSES_ALLOW_TOT | C11: PR24 final water enhancement totex allowance- WINEP/NEP - eels and fish passes expenditure | D11: £m | E11: Price review 2024 | F11: 0 | G11: 0 | H11: 0 | I11: 0 | J11: 0 | K11: 0 | L11: 0 | M11: 0
A12: BRL | B12: PR24CA14_W_INNS_ALLOW_TOT | C12: PR24 final water enhancement totex allowance- WINEP/NEP - invasive non-native species expenditure | D12: £m | E12: Price review 2024 | F12: 0 | G12: 0 | H12: 0.1732558979 | I12: 0.1722671784 | J12: 0.1119979248 | K12: 0.1111446749 | L12: 0.1103941809 | M12: 0.6790598569
A13: BRL | B13: PR24CA14_W_DWPA_ALLOW_TOT | C13: PR24 final water enhancement totex allowance- WINEP/NEP - drinking water protected areas expenditure | D13: £m | E13: Price review 2024 | F13: 0 | G13: 0 | H13: 0 | I13: 0 | J13: 0 | K13: 0 | L13: 0 | M13: 0 | P13: Drinking Water Protected Areas | Q13: =F13 / $M13 ->  | Y13: =Q13 ->  | Z13: =SUM( Q13:R13) ->  | AA13: =SUM( Q13:S13) ->  | AB13: =SUM( Q13:T13) ->  | AC13: =SUM( Q13:U13) ->  | AD13: =SUM( Q13:V13) ->  | AE13: =SUM( Q13:W13) -> 
A14: BRL | B14: PR24CA14_W_WFD_ALLOW_TOT | C14: PR24 final water enhancement totex allowance- WINEP/NEP - water framework directive expenditure | D14: £m | E14: Price review 2024 | F14: 0 | G14: 0 | H14: 0.4902305318 | I14: 0.487432933 | J14: 0.4842722899 | K14: 0.480582889 | L14: 0.4773377978 | M14: 2.419856442 | P14: Water Framework Directive interconnector | Q14: 0 | R14: 0 | S14: 0.2025866177 | T14: 0.2014305166 | U14: 0.2001243882 | V14: 0.1985997519 | W14: 0.1972587256 | Y14: =Q14 -> 0 | Z14: =SUM( Q14:R14) -> 0 | AA14: =SUM( Q14:S14) -> 0.2025866177 | AB14: =SUM( Q14:T14) -> 0.4040171343 | AC14: =SUM( Q14:U14) -> 0.6041415225 | AD14: =SUM( Q14:V14) -> 0.8027412744 | AE14: =SUM( Q14:W14) -> 1
A15: BRL | B15: PR24CA14_W_DISCHARGE_MONITOR_ALLOW_TOT | C15: PR24 final water enhancement totex allowance- WINEP/NEP - trade effluent discharge flow monitoring expenditure | D15: £m | E15: Price review 2024 | F15: 0 | G15: 0 | H15: 0 | I15: 0 | J15: 0 | K15: 0 | L15: 0 | M15: 0
A16: BRL | B16: PR24CA14_W_25YR_EP_ALLOW_TOT | C16: PR24 final water enhancement totex allowance- WINEP/NEP - 25 year environment plan expenditure | D16: £m | E16: Price review 2024 | F16: 0 | G16: 0 | H16: 0 | I16: 0 | J16: 0 | K16: 0 | L16: 0 | M16: 0
A17: BRL | B17: PR24CA14_W_INVESTIGATIONS_ALLOW_TOT | C17: PR24 final water enhancement totex allowance- WINEP/NEP - investigations expenditure | D17: £m | E17: Price review 2024 | F17: 0 | G17: 0 | H17: 0.9271546638 | I17: 0.9218636699 | J17: 0.01466204727 | K17: 0.01455034529 | L17: 0.01445209544 | M17: 1.892682822 | P17: Water WINEP/NEP Investigations | Q17: =F17 / $M17 -> 0 | R17: 0 | S17: 0.4898626718 | T17: 0.4870671722 | U17: 0.007746700661 | V17: 0.007687682861 | W17: 0.007635772499 | Y17: =Q17 -> 0 | Z17: =SUM( Q17:R17) -> 0 | AA17: =SUM( Q17:S17) -> 0.4898626718 | AB17: =SUM( Q17:T17) -> 0.976929844 | AC17: =SUM( Q17:U17) -> 0.9846765446 | AD17: =SUM( Q17:V17) -> 0.9923642275 | AE17: =SUM( Q17:W17) -> 1
A18: BRL | B18: PR24CA14_W_WETLAND_ALLOW_TOT | C18: PR24 final water enhancement totex allowance- WINEP/NEP - wetland creation expenditure | D18: £m | E18: Price review 2024 | F18: 0 | G18: 0 | H18: 0 | I18: 0 | J18: 0 | K18: 0 | L18: 0 | M18: 0
A19: BRL | B19: PR24CA14_W_SUPPLY_ALLOW_TOT | C19: PR24 final water enhancement totex allowance- Supply-demand balance - supply expenditure | D19: £m | E19: Price review 2024 | F19: 0 | G19: 0 | H19: 0 | I19: 0 | J19: 0 | K19: 0 | L19: 0 | M19: 0 | P19: Supply | Q19: =F19 / $M19 ->  | Y19: =Q19 ->  | Z19: =SUM( Q19:R19) ->  | AA19: =SUM( Q19:S19) ->  | AB19: =SUM( Q19:T19) ->  | AC19: =SUM( Q19:U19) ->  | AD19: =SUM( Q19:V19) ->  | AE19: =SUM( Q19:W19) -> 
A20: BRL | B20: PR24CA14_W_SUPPLY_INTER_ALLOW_TOT | C20: PR24 final water enhancement totex allowance- Supply-demand balance - supply interconnectors expenditure | D20: £m | E20: Price review 2024 | F20: 0 | G20: 0 | H20: 0 | I20: 0 | J20: 0 | K20: 0 | L20: 0 | M20: 0 | P20: Supply interconnectors | Y20: =Q20 ->  | Z20: =SUM( Q20:R20) ->  | AA20: =SUM( Q20:S20) ->  | AB20: =SUM( Q20:T20) ->  | AC20: =SUM( Q20:U20) ->  | AD20: =SUM( Q20:V20) ->  | AE20: =SUM( Q20:W20) -> 
A21: BRL | B21: PR24CA14_W_LEAKAGE_ALLOW_TOT | C21: PR24 final water enhancement totex allowance- Supply-demand balance - leakage expenditure | D21: £m | E21: Price review 2024 | F21: 0 | G21: 0 | H21: 3.077256228 | I21: 3.059695249 | J21: 3.039865854 | K21: 3.017139386 | L21: 2.996766433 | M21: 15.19072315
A22: BRL | B22: PR24CA14_W_DEMAND_ALLOW_TOT | C22: PR24 final water enhancement totex allowance- Supply-demand balance - demand expenditure | D22: £m | E22: Price review 2024 | F22: 0 | G22: 0 | H22: 0.1038513667 | I22: 0.1028670645 | J22: 0.1025895148 | K22: 0.1025792666 | L22: 0.102269182 | M22: 0.5141563945 | P22: Efficiency
A23: BRL | B23: PR24CA14_W_SRO_ALLOW_TOT | C23: PR24 final water enhancement totex allowance- Supply-demand balance - strategic resource options expenditure | D23: £m | E23: Price review 2024 | F23: 0 | G23: 0 | H23: 0 | I23: 0 | J23: 0 | K23: 0 | L23: 0 | M23: 0
A24: BRL | B24: PR24CA14_W_METERING_ALLOW_TOT | C24: PR24 final water enhancement totex allowance- Metering - metering expenditure | D24: £m | E24: Price review 2024 | F24: 0 | G24: 0 | H24: 4.529075571 | I24: 4.401931738 | J24: 3.88123244 | K24: 4.142809924 | L24: 6.168702296 | M24: 23.12375197 | P24: Metering | Q24: =F24 / $M24 -> 0 | R24: 0 | S24: 0.1958624871 | T24: 0.1903640786 | U24: 0.167846137 | V24: 0.1791582062 | W24: 0.2667690911 | Y24: =Q24 -> 0 | Z24: =SUM( Q24:R24) -> 0 | AA24: =SUM( Q24:S24) -> 0.1958624871 | AB24: =SUM( Q24:T24) -> 0.3862265657 | AC24: =SUM( Q24:U24) -> 0.5540727026 | AD24: =SUM( Q24:V24) -> 0.7332309089 | AE24: =SUM( Q24:W24) -> 1
A25: BRL | B25: PR24CA14_W_TOC_ALLOW_TOT | C25: PR24 final water enhancement totex allowance- water quality improvements - taste, odour and colour expenditure | D25: £m | E25: Price review 2024 | F25: 0 | G25: 0 | H25: 3.568922129 | I25: 5.43791275 | J25: 3.502518434 | K25: 2.262958829 | L25: 2.429145816 | M25: 17.20145796
A26: BRL | B26: PR24CA14_W_RWD_ALLOW_TOT | C26: PR24 final water enhancement totex allowance- water quality improvements - raw water deterioration expenditure | D26: £m | E26: Price review 2024 | F26: 0 | G26: 0 | H26: 4.127902754 | I26: 7.994629503 | J26: 13.79463558 | K26: 13.06864636 | L26: 12.98040155 | M26: 51.96621575 | P26: Raw Water Deterioration and Taste, Odour and Colour | Q26: =(F25 + F26) / ( $M25 + $M26 ) -> 0 | R26: 0 | S26: 0.1112777758 | T26: 0.1942026027 | U26: 0.2500756941 | V26: 0.2216585346 | W26: 0.2227853929 | Y26: =Q26 -> 0 | Z26: =SUM( Q26:R26) -> 0 | AA26: =SUM( Q26:S26) -> 0.1112777758 | AB26: =SUM( Q26:T26) -> 0.3054803784 | AC26: =SUM( Q26:U26) -> 0.5555560725 | AD26: =SUM( Q26:V26) -> 0.7772146071 | AE26: =SUM( Q26:W26) -> 1
A27: BRL | B27: PR24CA14_W_LEAD_ALLOW_TOT | C27: PR24 final water enhancement totex allowance- water quality improvements - lead expenditure | D27: £m | E27: Price review 2024 | F27: 0 | G27: 0 | H27: 2.953601481 | I27: 2.936746162 | J27: 2.917713581 | K27: 2.895485146 | L27: 2.875933652 | M27: 14.57948002 | P27: Lead | Q27: =F27 / $M27 -> 0 | R27: 0 | S27: 0.2025862017 | T27: 0.201430103 | U27: 0.2001246668 | V27: 0.1986000283 | W27: 0.1972590002 | Y27: 0 | Z27: 0 | AA27: 0.2025862017 | AB27: 0.4040163047 | AC27: 0.6041409715 | AD27: 0.8027409998 | AE27: 1
A28: BRL | B28: PR24CA14_W_RESILIENCE_INTER_ALLOW_TOT | C28: PR24 final water enhancement totex allowance- resilience interconnectors expenditure | D28: £m | E28: Price review 2024 | F28: 0 | G28: 0 | H28: 0 | I28: 0 | J28: 0 | K28: 0 | L28: 0 | M28: 0 | P28: Resilience Interconnector
A29: BRL | B29: PR24CA14_W_RESILIENCE_ALLOW_TOT | C29: PR24 final water enhancement totex allowance- resilience expenditure | D29: £m | E29: Price review 2024 | F29: 0 | G29: 0 | H29: 0 | I29: 0 | J29: 0 | K29: 0 | L29: 0 | M29: 0 | P29: Resilience
A30: BRL | B30: PR24CA14_W_SEMD_ALLOW_TOT | C30: PR24 final water enhancement totex allowance- security SEMD expenditure | D30: £m | E30: Price review 2024 | F30: 0 | G30: 0 | H30: 0.7244450115 | I30: 0.5366591673 | J30: 0.1148527036 | K30: 0.1139777048 | L30: 0.1132080809 | M30: 1.603142668 | P30: SEMD | Q30: 0 | R30: 0 | S30: 0.4518905435 | T30: 0.3347544657 | U30: 0.07164222241 | V30: 0.0710964202 | W30: 0.07061634825 | Y30: 0 | Z30: 0 | AA30: 0.4518905435 | AB30: 0.7866450091 | AC30: 0.8582872316 | AD30: 0.9293836518 | AE30: 1
A31: BRL | B31: PR24CA14_W_CYBER_ALLOW_TOT | C31: PR24 final water enhancement totex allowance- security cyber expenditure | D31: £m | E31: Price review 2024 | F31: 0 | G31: 0 | H31: 0.7297178796 | I31: 0.6579764262 | J31: 0.5974656017 | K31: 0.7684313028 | L31: 0.577131174 | M31: 3.330722384 | P31: Cyber | Q31: 0 | R31: 0 | S31: 0.2190869714 | T31: 0.1975476639 | U31: 0.1793801863 | V31: 0.2307101025 | W31: 0.1732750759 | Y31: 0 | Z31: 0 | AA31: 0.2190869714 | AB31: 0.4166346353 | AC31: 0.5960148216 | AD31: 0.8267249241 | AE31: 1
A32: BRL | B32: PR24CA14_W_RESERVOIR_SAFETY_ALLOW_TOT | C32: PR24 final water enhancement totex allowance- reservoir safety expenditure | D32: £m | E32: Price review 2024 | F32: 0 | G32: 0 | H32: 0 | I32: 0 | J32: 0 | K32: 0 | L32: 0 | M32: 0
A33: BRL | B33: PR24CA14_W_NET_ZERO_ALLOW_TOT | C33: PR24 final water enhancement totex allowance- Greenhouse gas reduction (net zero) expenditure | D33: £m | E33: Price review 2024 | F33: 0 | G33: 0 | H33: 0 | I33: 0 | J33: 0 | K33: 0 | L33: 0 | M33: 0
A34: BRL | B34: PR24CA14_W_FREEFORM_ALLOW_TOT | C34: PR24 final water enhancement totex allowance- freeform line expenditure | D34: £m | E34: Price review 2024 | F34: 0 | G34: 0 | H34: 0 | I34: 0 | J34: 0 | K34: 0 | L34: 0 | M34: 0
A35: BRL | B35: PR24CA103_W_WINEPCARRYOVER_ALLOW_TOT | C35: PR24 final water enhancement totex allowance- WINEP carryover expenditure | D35: £m | E35: Price review 2024 | F35: 0 | G35: 0 | H35: 0 | I35: 0 | J35: 0 | K35: 0 | L35: 0 | M35: 0
A36: BRL | B36: PR24CA104_W_GRCARRYOVER_ALLOW_TOT | C36: PR24 final water enhancement totex allowance- Green recovery carryover expenditure | D36: £m | E36: Price review 2024 | F36: 0 | G36: 0 | H36: 0 | I36: 0 | J36: 0 | K36: 0 | L36: 0 | M36: 0
A37: BRL | B37: C_PR24CA14_ENH_W_ASSESSED | C37: Total amount assessed - Water - Totex | D37: £m | E37: Price review 2024 | M37: 0 | P37: W Resilience CC Uplift | Q37: =Q29 ->  | Y37: =Q37 ->  | Z37: =SUM( Q37:R37) ->  | AA37: =SUM( Q37:S37) ->  | AB37: =SUM( Q37:T37) ->  | AC37: =SUM( Q37:U37) ->  | AD37: =SUM( Q37:V37) ->  | AE37: =SUM( Q37:W37) -> 
A38: BRL | B38: PR24QA_PR24CA14_OUT1 | C38: Date & Time for Model - PR24CA14 | D38: Text | E38: Price Review 2024 | F38: […]10/02/2025 15:12:52 | G38: […]10/02/2025 15:12:52 | H38: […]10/02/2025 15:12:52 | I38: […]10/02/2025 15:12:52 | J38: […]10/02/2025 15:12:52 | K38: […]10/02/2025 15:12:52 | L38: […]10/02/2025 15:12:52 | M38: 0
A39: BRL | B39: PR24QA_PR24CA14_OUT2 | C39: Name of Model - PR24CA14 | D39: Text | E39: Price Review 2024 | F39: PR24-FD-CA14-Enhancement-costs-aggregator-model-2.xlsx | G39: PR24-FD-CA14-Enhancement-costs-aggregator-model-2.xlsx | H39: PR24-FD-CA14-Enhancement-costs-aggregator-model-2.xlsx | I39: PR24-FD-CA14-Enhancement-costs-aggregator-model-2.xlsx | J39: PR24-FD-CA14-Enhancement-costs-aggregator-model-2.xlsx | K39: PR24-FD-CA14-Enhancement-costs-aggregator-model-2.xlsx | L39: PR24-FD-CA14-Enhancement-costs-aggregator-model-2.xlsx | M39: 0
A40: BRL | B40: PR24QA_PR24CA14_OUT3 | C40: F_Inputs time stamp - PR24CA14 | D40: Text | E40: Price Review 2024 | F40: Run on 17 Nov 2024 17:43 | G40: Run on 17 Nov 2024 17:43 | H40: Run on 17 Nov 2024 17:43 | I40: Run on 17 Nov 2024 17:43 | J40: Run on 17 Nov 2024 17:43 | K40: Run on 17 Nov 2024 17:43 | L40: Run on 17 Nov 2024 17:43 | M40: 0
A41: BRL | B41: PR24QA_PR24CA14_OUT4 | C41: Model override switch for - PR24CA14 | D41: nr | E41: Price Review 2024 | F41: 0 | G41: 0 | H41: 0 | I41: 0 | J41: 0 | K41: 0 | L41: 0 | M41: 0

Sheet F_Inputs_NRF
A1: =RIGHT(CELL("filename", A1), LEN(CELL("filename", A1)) - SEARCH("]", CELL("filename", A1))) -> F_Inputs_NRF | G1: id | H1: 30265
C2: Network Reinforcement | E2: Run on 17 Apr 2025 13:44
A4: Company Acronym | B4: Item Code | C4: Item Description | D4: Item Unit | E4: Item Table Suite | F4: 2023-24 | G4: 2024-25 | H4: 2025-26 | I4: 2026-27 | J4: 2027-28 | K4: 2028-29 | L4: 2029-30 | M4: Total | S4: Delivery profile (no cumulative basis) | Y4: Delivery profile (cumulative basis)
A5: Company Acronym | B5: Item Code | C5: Item Description | D5: Item Unit | E5: Item Table Suite | F5: Price Review 2024 | G5: Price Review 2024 | H5: Price Review 2024 | I5: Price Review 2024 | J5: Price Review 2024 | K5: Price Review 2024 | L5: Price Review 2024
A6: Company Acronym | B6: Item Code | C6: Item Description | D6: Item Unit | E6: Item Table Suite | F6: Run 11 - PR24 FD Data | G6: Run 11 - PR24 FD Data | H6: Run 11 - PR24 FD Data | I6: Run 11 - PR24 FD Data | J6: Run 11 - PR24 FD Data | K6: Run 11 - PR24 FD Data | L6: Run 11 - PR24 FD Data | P6: Line description | Q6: 2023-24 | R6: 2024-25 | S6: 2025-26 | T6: 2026-27 | U6: 2027-28 | V6: 2028-29 | W6: 2029-30 | Y6: 2023-24 | Z6: 2024-25 | AA6: 2025-26 | AB6: 2026-27 | AC6: 2027-28 | AD6: 2028-29 | AE6: 2029-30
A7: Company Acronym | B7: Item Code | C7: Item Description | D7: Item Unit | E7: Item Table Suite | F7: Latest | G7: Latest | H7: Latest | I7: Latest | J7: Latest | K7: Latest | L7: Latest
A8: BRL | B8: B0201DSITDWNC | C8: Infrastructure network reinforcement - Capex - Treated water distribution | D8: £m | E8: Price Review 2024 | F8: 2.984 | G8: 2.764 | H8: 1.568 | I8: 0.65 | J8: 0.65 | K8: 0.65 | L8: 0.65 | M8: =SUM( H8:L8) -> 4.168
A9: BRL | B9: B0201DSITDWNO | C9: Infrastructure network reinforcement - Opex - Treated water distribution | D9: £m | E9: Price Review 2024 | F9: 0 | G9: 0 | H9: 0 | I9: 0 | J9: 0 | K9: 0 | L9: 0 | M9: 0 | P9: Water network reinforcement | S9: =SUM(H8:H9) / SUM( $M8:$M9 ) -> 0.3761996161 | T9: =SUM(I8:I9) / SUM( $M8:$M9 ) -> 0.155950096 | U9: =SUM(J8:J9) / SUM( $M8:$M9 ) -> 0.155950096 | V9: =SUM(K8:K9) / SUM( $M8:$M9 ) -> 0.155950096 | W9: =SUM(L8:L9) / SUM( $M8:$M9 ) -> 0.155950096 | Y9: =Q9 -> 0 | Z9: =SUM( Q9:R9) -> 0 | AA9: =SUM( Q9:S9) -> 0.3761996161 | AB9: =SUM( Q9:T9) -> 0.5321497121 | AC9: =SUM( Q9:U9) -> 0.6880998081 | AD9: =SUM( Q9:V9) -> 0.844049904 | AE9: =SUM( Q9:W9) -> 1
A10: BRL | B10: B0200DSISWCWWC | C10: Infrastructure network reinforcement - Capex - Combined | D10: £m | E10: Price Review 2024 | M10: 0
A11: BRL | B11: B0200DSISWCWWO | C11: Infrastructure network reinforcement - Opex - Combined | D11: £m | E11: Price Review 2024 | M11: 0 | P11: Wastewater network reinforcement | S11: =SUM(H10:H11) / SUM( $M10:$M11 ) ->  | T11: =SUM(I10:I11) / SUM( $M10:$M11 ) ->  | U11: =SUM(J10:J11) / SUM( $M10:$M11 ) ->  | V11: =SUM(K10:K11) / SUM( $M10:$M11 ) ->  | W11: =SUM(L10:L11) / SUM( $M10:$M11 ) ->  | Y11: =Q11 -> 0 | Z11: =SUM( Q11:R11) -> 0 | AA11: =SUM( Q11:S11) ->  | AB11: =SUM( Q11:T11) ->  | AC11: =SUM( Q11:U11) ->  | AD11: =SUM( Q11:V11) ->  | AE11: =SUM( Q11:W11) -> 

Sheet PCD List
A1: =RIGHT(CELL("filename", A1), LEN(CELL("filename", A1)) - SEARCH("]", CELL("filename", A1))) -> PCD List
C2: MODEL | D2: PCD | E2: ANH | F2: SVE | G2: TMS | H2: SRN | I2: WSX | J2: SWB | K2: NES | L2: HDD | M2: WSH | N2: NWT | O2: YKY | T2: MODEL | U2: PCD | V2: Line description | W2: PCD Output | X2: ANH | Y2: SVE | Z2: TMS | AA2: SRN | AB2: WSX | AC2: SWB | AD2: NES | AE2: HDD | AF2: WSH | AG2: NWT | AH2: YKY | AI2: AFW | AJ2: BRL | AK2: PRT | AL2: SSC | AM2: SEW | AN2: SES | AQ2: MODEL | AR2: PCD | AS2: Line description | AT2: PCD Output | AU2: ANH | AV2: SVE | AW2: TMS | AX2: SRN | AY2: WSX | AZ2: SWB | BA2: NES | BB2: HDD | BC2: WSH | BD2: NWT | BE2: YKY | BF2: AFW | BG2: BRL | BH2: PRT | BI2: SSC | BJ2: SEW | BK2: SES
C3: PR24CA110 Wastewater flow and monitoring | D3: PCDWW2a | H3: Y | T3: PR24CA105 Base PCDs | U3: PCDB1a | V3: Mains renewals - base | W3: Base wholesale water model funded renewals in kilometres | X3: Y | Y3: Y | Z3: Y | AA3: Y | AB3: Y | AC3: Y | AD3: Y | AE3: Y | AF3: Y | AG3: Y | AH3: Y | AI3: Y | AJ3: Y | AK3: Y | AL3: Y | AM3: Y | AN3: Y
D4: PCDWW2a | U4: PCDB1b | V4: Mains renewals - asset health adjustment | W4: Base asset health adjustment renewals in kilometres | X4: Y | Z4: Y | AA4: Y | AB4: Y | AD4: Y | AF4: Y | AH4: Y | AM4: Y
D5: PCDWW2b | E5: Y | F5: Y | I5: Y | J5: Y | K5: Y | N5: Y | O5: Y | U5: PCDB1c | V5: Mains renewals - enhancement leakage | W5: Enhancement leakage renewals in kilometres | X5: Y | Y5: Y | AA5: Y | AD5: Y | AG5: Y | AJ5: Y | AM5: Y | AQ5: PR24CA106 Water WINEP | AR5: PCDW1 | AS5: Biodiversity and Conservation | AT5: Hectares of environmental improvement | BD5: Y | BI5: Y
D6: PCDWW3 | E6: Y | F6: Y | G6: Y | H6: Y | I6: Y | J6: Y | K6: Y | L6: Y | M6: Y | N6: Y | O6: Y | U6: PCDB1d | V6: Mains renewals - enhancement water quality | W6: Enhancement water quality renewals in kilometres | AJ6: Y | AR6: PCDW1 | AS6: Biodiversity and Conservation | AT6: Kilometres of environmental improvement | BI6: Y
C7: PR24CA115 Wastewater Other Storm Overflow | D7: PCDWW5b | G7: Y | H7: Y | I7: Y | M7: Y | U7: PCDB4 | V7: Water softening | W7: Water softening target | AN7: Y | AR7: PCDW4 | AS7: Drinking Water Protected Areas | AT7: No Deterioration and Implementation actions | BJ7: Y
D8: PCDWW6 | E8: Y | H8: Y | J8: Y | U8: PCDB5 | V8: Supply interruptions | W8: Increased storage at Higher Berse DSR | AE8: Y | AR8: PCDW5 | AS8: Water Framework Directive interconnector | AT8: Length of WFD interconnector | AV8: Y | AW8: Y | BF8: Y
C9: PR24CA111 Wastewater Treatment | D9: PCDWW7 | F9: Y | G9: Y | U9: PCDB5 | V9: Supply interruptions | W9: Trunk main | AE9: Y | AR9: PCDW5 | AS9: Water Framework Directive actions | AT9: Other WFD actions | AV9: Y | AW9: Y | BF9: Y
D10: PCDWW9 | E10: Y | H10: Y | I10: Y | U10: PCDB4 | V10: Water softening | W10: Softening equipment at Kenley WTW​ | AN10: Y | AR10: PCDW8 | AS10: Water WINEP/NEP Investigations | AT10: Water WINEP/NEP Investigations | AU10: Y | AV10: Y | AW10: Y | AX10: Y | AY10: Y | AZ10: Y | BA10: Y | BB10: Y | BC10: Y | BD10: Y | BE10: Y | BF10: Y | BG10: Y | BH10: Y | BI10: Y | BJ10: Y | BK10: Y
D11: PCDWW11 | J11: Y | U11: PCDB4 | V11: Water softening | W11: Other capex investment​ | AN11: Y | AQ11: PR24CA108 Water quality | AR11: PCDW14, PCDW13 | AS11: Raw Water Deterioration and Taste, Odour and Colour | AT11: Legal instruments | AU11: Y | AV11: Y | AW11: Y | AX11: Y | AY11: Y | AZ11: Y | BA11: Y | BC11: Y | BD11: Y | BE11: Y | BF11: Y | BG11: Y | BH11: Y | BI11: Y | BJ11: Y | BK11: Y
D12: PCDWW13a | K12: Y | U12: PCDB3 | V12: Water network reinforcement | W12: Water network reinforcement | X12: Y | Y12: Y | Z12: Y | AA12: Y | AB12: Y | AC12: Y | AD12: Y | AE12: Y | AF12: Y | AG12: Y | AH12: Y | AI12: Y | AK12: Y | AL12: Y | AM12: Y | AR12: PCDW15 | AS12: Lead communication | AT12: Lead communication pipes replaced/relined | AU12: Y | AW12: Y | AX12: Y | AY12: Y | AZ12: Y | BA12: Y | BB12: Y | BD12: Y | BE12: Y | BG12: Y | BH12: Y | BI12: Y | BK12: Y
D13: PCDWW14 | E13: Y | U13: PCDB6 | V13: Reservoir maintenance | W13: Reservoir maintenance | AE13: Y | AR13: PCDW15 | AS13: Lead external non school | AT13: Lead external supply pipes replaced/relined - Non-schools | AU13: Y | AW13: Y | AX13: Y | AY13: Y | AZ13: Y | BA13: Y | BB13: Y | BD13: Y | BE13: Y | BG13: Y | BH13: Y | BI13: Y | BK13: Y
D14: PCDWW15 | L14: Y | U14: PCDB2 | V14: Sewer pumping mains | W14: Base wholesale wastewater model funded renewals | AF14: Y | AG14: Y | AR14: PCDW15 | AS14: Lead external school | AT14: Lead external supply pipes replaced/relined - Schools | AU14: Y | AW14: Y | AX14: Y | AY14: Y | AZ14: Y | BA14: Y | BB14: Y | BD14: Y | BE14: Y | BG14: Y | BH14: Y | BI14: Y | BK14: Y
D15: PCDWW17 | K15: Y | U15: PCDB2 | V15: Sewer pumping mains | W15: Pollution incidents schemes | AF15: Y | AR15: PCDW15 | AS15: Lead internal non school | AT15: Lead internal supply pipes replaced/relined - Non-schools | AU15: Y | AW15: Y | AX15: Y | AY15: Y | AZ15: Y | BA15: Y | BB15: Y | BD15: Y | BE15: Y | BG15: Y | BH15: Y | BI15: Y | BK15: Y
C16: PR24CA112 Wastewater Other WINEP | D16: PCDWW18 | E16: Y | F16: Y | G16: Y | H16: Y | I16: Y | J16: Y | K16: Y | L16: Y | M16: Y | N16: Y | O16: Y | U16: PCDB3 | V16: Wastewater Network reinforcement | W16: Wastewater network reinforcement | X16: Y | Y16: Y | Z16: Y | AA16: Y | AB16: Y | AC16: Y | AE16: Y | AG16: Y | AH16: Y | AR16: PCDW15 | AS16: Lead internal school | AT16: Lead internal supply pipes replaced/relined - Schools | AU16: Y | AW16: Y | AX16: Y | AY16: Y | AZ16: Y | BA16: Y | BB16: Y | BD16: Y | BE16: Y | BG16: Y | BH16: Y | BI16: Y | BK16: Y
D17: PCDWW23a | E17: Y | U17: PCDB7 | V17: Flood management | W17: Unit of area discounnted from the combined network | AH17: Y | AQ17: PR24CA109 Water Resilience and Security | AR17: PCDWW32 | AS17: W Resilience CC Uplift | AT17: Spend on scheme as a % of allowance | AU17: Y | AV17: Y | AW17: Y | AX17: Y | AY17: Y | BA17: Y | BB17: Y | BC17: Y | BD17: Y | BE17: Y | BF17: Y | BH17: Y | BI17: Y | BK17: Y
D18: PCDWW23b | N18: Y | U18: PCDB7 | V18: Flood management | W18: Blue Green corridors | AH18: Y | AQ18: PR24CA107 Water Supply and Demand Balance | AR18: PCDW12 | AS18: Metering new | AT18: New installations | AU18: Y | AV18: Y | AW18: Y | AX18: Y | AY18: Y | AZ18: Y | BA18: Y | BB18: Y | BC18: Y | BD18: Y | BE18: Y | BF18: Y | BG18: Y | BH18: Y | BI18: Y | BJ18: Y | BK18: Y
C19: PR24CA114 Wastewater Bioresources | D19: PCDWW24a | M19: Y | U19: PCDB7 | V19: Flood management | W19: Pumping stations | AH19: Y | AR19: PCDW12 | AS19: Metering household upgrades | AT19: Household meter upgrades | AU19: Y | AV19: Y | AW19: Y | AX19: Y | AY19: Y | AZ19: Y | BA19: Y | BB19: Y | BC19: Y | BD19: Y | BE19: Y | BF19: Y | BG19: Y | BH19: Y | BI19: Y | BJ19: Y | BK19: Y
D20: PCDWW24b | E20: Y | H20: Y | I20: Y | K20: Y | O20: Y | AR20: PCDW12 | AS20: Metering non household upgrades | AT20: Non household meter upgrades | AU20: Y | AV20: Y | AW20: Y | AX20: Y | AY20: Y | AZ20: Y | BA20: Y | BB20: Y | BC20: Y | BD20: Y | BE20: Y | BF20: Y | BG20: Y | BH20: Y | BI20: Y | BJ20: Y | BK20: Y
D21: PCDWW25a | J21: Y | T21: Total PCD outputs | X21: =COUNTIF(X3:X19,"Y") -> 5 | Y21: 4 | Z21: 4 | AA21: 5 | AB21: 4 | AC21: 3 | AD21: 4 | AE21: 6 | AF21: 5 | AG21: 5 | AH21: 7 | AI21: 2 | AJ21: 3 | AK21: 2 | AL21: 2 | AM21: 4 | AN21: 4 | AR21: PCDW12 | AS21: Large bulk meters | AT21: Large bulk meters | AW21: Y
D22: PCDWW25b | F22: Y | AR22: PCDW12 | AS22: Small bulk meters | AT22: Small bulk meters | AW22: Y
D23: PCDWW25b | F23: Y | AR23: PCDW12 | AS23: Metering replacement | AT23: Meter Replacements | AU23: Y | AV23: Y | AW23: Y | AX23: Y | AY23: Y | AZ23: Y | BA23: Y | BB23: Y | BC23: Y | BD23: Y | BE23: Y | BF23: Y | BG23: Y | BH23: Y | BI23: Y | BJ23: Y | BK23: Y
D24: PCDWW30 | E24: Y | F24: Y | G24: Y | H24: Y | I24: Y | J24: Y | M24: Y | N24: Y | O24: Y | AR24: PCDW12 | AS24: Metering connected | AT24: Connected meters | AU24: Y | AV24: Y | AW24: Y | AX24: Y | AY24: Y | AZ24: Y | BA24: Y | BB24: Y | BC24: Y | BD24: Y | BE24: Y | BF24: Y | BG24: Y | BH24: Y | BI24: Y | BJ24: Y | BK24: Y
C25: PR24CA116 Wastewater Other | D25: PCDWW32 | E25: Y | F25: Y | G25: Y | H25: Y | I25: Y | K25: Y | L25: Y | M25: Y | N25: Y | O25: Y | AR25: PCDW11a | AS25: Supply | AT25: WAFU Benefit [Base Overlap Schemes] | AU25: Y | AV25: Y | AW25: Y | AX25: Y | AZ25: Y | BA25: Y | BE25: Y | BF25: Y | BI25: Y
D26: PCDWW32b | N26: Y | AR26: PCDW11a | AS26: Supply | AT26: WAFU Benefit [Medium] | AU26: Y | AV26: Y | AW26: Y | AX26: Y | AZ26: Y | BA26: Y | BE26: Y | BF26: Y | BI26: Y
D27: PCDWW32d | H27: Y | AR27: PCDW11a | AS27: Supply | AT27: WAFU Benefit [Low] | AU27: Y | AV27: Y | AW27: Y | AX27: Y | AZ27: Y | BA27: Y | BE27: Y | BF27: Y | BI27: Y
D28: PCDWW32e | F28: Y | AR28: PCDW11a | AS28: Supply | AT28: WAFU Benefit [Very Low] | AU28: Y | AV28: Y | AW28: Y | AX28: Y | AZ28: Y | BA28: Y | BE28: Y | BF28: Y | BI28: Y
D29: PCDWW32f | N29: Y | AR29: PCDW11a | AS29: Supply | AT29: WAFU Benefit [Total] | AU29: Y | AV29: Y | AW29: Y | AX29: Y | AZ29: Y | BA29: Y | BE29: Y | BF29: Y | BI29: Y
D30: PCDWW32g | K30: Y | AR30: PCDW11b | AS30: Supply interconnectors | AT30: WAFU Benefit | AU30: Y | AV30: Y | AX30: Y | AZ30: Y | BA30: Y | BC30: Y | BF30: Y
D31: PCDWW29 | J31: Y | AR31: PCDW11b | AS31: Supply interconnectors | AT31: Pipeline length | AU31: Y | AV31: Y | AX31: Y | AZ31: Y | BA31: Y | BC31: Y | BF31: Y
C32: PR24CA117 WINEP and GER Carryover | D32: PCDWW36 | N32: Y | AQ32: PR24CA109 Water Resilience and Security | AR32: PCDW9 | AS32: Efficiency | AT32: Water demand savings (benefit) | AY32: Y | AZ32: Y | BF32: Y | BH32: Y | BJ32: Y
D33: PCDWW36 | N33: Y | AR33: PCDW16b | AS33: Resilience Interconnector | AT33: Length of resilience interconnector | AU33: Y | AV33: Y | AZ33: Y | BC33: Y | BI33: Y | BJ33: Y
C34: PR24CA113 Wastewater scheme level PCDs | D34: PCDWW5 | E34: Y | F34: Y | G34: Y | H34: Y | I34: Y | J34: Y | K34: Y | L34: Y | M34: Y | N34: Y | O34: Y | AR34: PCDW16b | AS34: Resilience Interconnector | AT34: Crossing connections improvement | BC34: Y
C35: PR24CA113 Wastewater scheme level PCDs | D35: PCDWW4 | E35: Y | G35: Y | I35: Y | J35: Y | L35: Y | M35: Y | N35: Y | O35: Y | AR35: PCDW16b | AS35: Resilience Interconnector | AT35: Additional storage at reservoirs | BF35: Y | BI35: Y
C36: PR24CA113 Wastewater scheme level PCDs | D36: PCDWW10 | E36: Y | F36: Y | G36: Y | H36: Y | I36: Y | J36: Y | K36: Y | L36: Y | M36: Y | N36: Y | O36: Y | AR36: PCDW16b | AS36: Resilience Interconnector | AT36: Reservoir bypass | BK36: Y
C37: PR24CA113 Wastewater scheme level PCDs | D37: PCDWW27 | E37: Y | F37: Y | G37: Y | H37: Y | I37: Y | J37: Y | K37: Y | L37: Y | M37: Y | N37: Y | O37: Y | AR37: PCDW16a | AS37: Resilience | AT37: Number of water treatment works with new equipment | BA37: Y
C38: PR24CA113 Wastewater scheme level PCDs | D38: PCDWW12 | E38: Y | F38: Y | G38: Y | H38: Y | I38: Y | J38: Y | K38: Y | M38: Y | N38: Y | O38: Y | AR38: PCDW16a | AS38: Resilience | AT38: Upgrade works at water treatment works | AX38: Y
C39: PR24CA117 WINEP and GER Carryover | D39: PCDWW35 | E39: Y | G39: Y | H39: Y | I39: Y | K39: Y | N39: Y | O39: Y | AR39: PCDW16a | AS39: Resilience | AT39: Service reservoirs with new enhanced bypass provision | BH39: Y
C40: PR24CA118 Net Zero | D40: PCDWW34 | E40: Y | F40: Y | I40: Y | L40: Y | M40: Y | N40: Y | O40: Y | AR40: PCDW16a | AS40: Resilience | AT40: Installation of new equipment | BJ40: Y
C41: PR24PCD119-PR19-ODI-PCDs | D41: PR19PCD-1 | K41: Y | AR41: PCDW16a | AS41: Resilience | AT41: Ml of additional service reservoir storage at service reservoirs | BJ41: Y
D42: PR19PCD-2 | I42: Y | AR42: PCDW16a | AS42: Resilience | AT42: Ml/d of peak week production capacity of additional process stream | BJ42: Y
D43: PR19PCD-8 | O43: Y | AR43: PCDW16c | AS43: Resilience | AT43: Number of raw water reservoirs with the delivery of specified safety improvements | AX43: Y | BA43: Y | BB43: Y | BC43: Y | BD43: Y
AR44: PCDW16c | AS44: Resilience | AT44: Reservoirs - spend on MITIOS (Measures in the Interest of Safety) | BD44: Y
C45: Total PCD outputs | E45: =COUNTIF(E3:E43,"Y") -> 17 | F45: =COUNTIF(F3:F43,"Y") -> 14 | G45: 12 | H45: 15 | I45: 16 | J45: 13 | K45: 14 | L45: 9 | M45: 12 | N45: 17 | O45: 14 | AR45: PCDW17b | AS45: Cyber | AT45: Legal instruments | AU45: Y | AV45: Y | AW45: Y | AX45: Y | AY45: Y | AZ45: Y | BA45: Y | BB45: Y | BC45: Y | BD45: Y | BE45: Y | BF45: Y | BG45: Y | BH45: Y | BI45: Y | BJ45: Y | BK45: Y
AR46: PCDW17a | AS46: SEDM | AT46: Legal instruments | AU46: Y | AV46: Y | AW46: Y | AX46: Y | AY46: Y | AZ46: Y | BA46: Y | BC46: Y | BD46: Y | BE46: Y | BF46: Y | BG46: Y | BH46: Y | BI46: Y | BJ46: Y | BK46: Y
AQ47: PR24CA118 Net Zero | AR47: PCDWW34 | AS47: Greenhouse gas reduction (net zero) | AT47: tCO2e | BC47: Y | BD47: Y
AQ48: PR24CA118 Net Zero | AR48: PCDWW34 | AS48: Greenhouse gas reduction (net zero) | AT48: Number of hectares | BC48: Y | BD48: Y
AQ49: PR24PCD119-PR19-ODI-PCDs | AR49: PR19PCD-4 | AS49: Internal connection delivery | AT49: WAFU Benefit | AU49: Y
AR50: PR19PCD-10 | AS50: Strategic Main | AT50: Number of months delay to delivery of programme | BJ50: Y
AR51: PR19PCD-9 | AS51: Alderney WTW | AT51: Number of months delay to delivery of scheme | AZ51: Y
AR52: PR19PCD-7 | AS52: Water network improvement programme | AT52: Number of months delay to programme (Newport Zone DWR-2019-00004) | BC52: Y
AR53: PR19PCD-7 | AS53: Water network improvement programme | AT53: Number of months delay to programme (Newport Zone West DWR-2019-00005) | BC53: Y
AR54: PR19PCD-7 | AS54: Water network improvement programme | AT54: Number of months delay to programme (Barry / Sully Zone DWR-2019-00001) | BC54: Y
AQ56: Total PCD outputs | AU56: =COUNTIF(AU3:AU54,"Y") -> 24 | AV56: 20 | AW56: 24 | AX56: 24 | AY56: 16 | AZ56: 24 | BA56: 24 | BB56: 14 | BC56: 20 | BD56: 20 | BE56: 20 | BF56: 21 | BG56: 14 | BH56: 17 | BI56: 24 | BJ56: 16 | BK56: 16

Sheet Calcs_Net zero
A2: =RIGHT(CELL("filename", A2), LEN(CELL("filename", A2)) - SEARCH("]", CELL("filename", A2))) -> Calcs_Net zero
A3: PCD output & expenditure - Net Zero
B5: Company name | C5: PCD Model | D5: PCD Ref | E5: PCD Output Description | F5: Units | G5: DPs | H5: PCD output target (cumulative) | N5: Non delivery PCD payment (£m/Driver) in 2022-23 CPIH prices | P5: Allowed totex (cumulative)
H6: 2025-26 | I6: 2026-27 | J6: 2027-28 | K6: 2028-29 | L6: 2029-30 | P6: 2025-26 | Q6: 2026-27 | R6: 2027-28 | S6: 2028-29 | T6: 2029-30
B7: ANH | C7: PR24CA118 Net Zero | D7: PCDWW34 | E7: Liquor Recovery | F7: tCO2e | G7: 3 | H7: 0 | I7: 0 | J7: 0 | K7: 0 | L7: 287.5 | N7: =12399.57 / 1000000 -> 0.01239957 | T7: =L7 * N7 -> 3.564876375
B8: ANH | C8: PR24CA118 Net Zero | D8: PCDWW34 | E8: Containment | F8: tCO2e | G8: 3 | H8: 0 | I8: 0 | J8: 116 | K8: 348 | L8: 1027 | N8: =1097.728/1000000 -> 0.001097728 | T8: =L8 * N8 -> 1.127366656
B9: ANH | C9: PR24CA118 Net Zero | D9: PCDWW34 | E9: MABR | F9: tCO2e | G9: 3 | H9: 0 | I9: 0 | J9: 268.232 | K9: 73.272 | L9: 655.672 | N9: =17323.408/1000000 -> 0.017323408 | T9: 11.35847357
B10: ANH | C10: PR24CA118 Net Zero | D10: PCDWW34 | E10: Nitrous Oxide Abatement | F10: tCO2e | G10: 3 | H10: 0 | I10: 0 | J10: 90.125 | K10: 881.85 | L10: 2543.15 | N10: =923.863 / 1000000 -> 0.000923863 | T10: 2.349522188
B11: ANH | C11: PR24CA118 Net Zero | D11: PCDWW34 | E11: Liquor treatment plant | F11: Nr Sites | G11: 0 | L11: 1 | N11: =10694628.968/1000000 -> 10.69462897 | T11: 10.69462897
B12: ANH | C12: PR24CA118 Net Zero | D12: PCDWW34 | E12: Tank covers and odour control measures | F12: Nr Sites | G12: 0 | L12: 3 | N12: =1127366.548 / 1000000 -> 1.127366548 | T12: 3.382099644
B13: ANH | C13: PR24CA118 Net Zero | D13: PCDWW34 | E13: Membrane Aerated Biofilm Reactors | F13: Nr Sites | G13: 0 | L13: 5 | N13: =6815084.317 / 1000000 -> 6.815084317 | T13: 34.07542159
B14: ANH | C14: PR24CA118 Net Zero | D14: PCDWW34 | E14: Nitrous Oxide Abatement | F14: Nr Sites | G14: 0 | L14: 9 | N14: =783258.99/1000000 -> 0.78325899 | T14: 7.04933091
B15: WSH | C15: PR24CA118 Net Zero | D15: PCDWW34 | E15: Net Zero Carbon Strategy | F15: tCO2e | G15: 3 | H15: 3874 | I15: 7748 | J15: 11623 | K15: 15498 | L15: 19372 | N15: =446.338/1000000 -> 0.000446338 | T15: 8.646459736
B16: WSH | C16: PR24CA118 Net Zero | D16: PCDWW34 | E16: Peatland Restoration | F16: tCO2e | G16: 3 | H16: 0 | I16: 0 | J16: 0 | K16: 0 | L16: 0 | N16: 0 | T16: 0
B17: WSH | C17: PR24CA118 Net Zero | D17: PCDWW34 | E17: Net Zero Carbon Strategy | F17: Nr Sites | G17: 0 | L17: 30 | N17: =864646.55/1000000 -> 0.86464655 | T17: 25.9393965
B18: WSH | C18: PR24CA118 Net Zero | D18: PCDWW34 | E18: Peatland Restoration | F18: Nr Hectares | G18: 0 | L18: 2000 | N18: =6685.148/1000000 -> 0.006685148 | T18: 13.370296
B19: HDD | C19: PR24CA118 Net Zero | D19: PCDWW34 | E19: GHG emissions reduction | F19: tCO2e | G19: 3 | H19: 0 | I19: 0 | J19: 137.13 | K19: 274.2650176 | L19: 411.39 | N19: =517.96/1000000 -> 0.00051796 | T19: 0.2130835644
B20: HDD | C20: PR24CA118 Net Zero | D20: PCDWW34 | E20: Digital Twin with Cover and Treat | F20: Nr Sites | G20: 0 | L20: 1 | N20: =639251.175/1000000 -> 0.639251175 | T20: 0.639251175
B21: SVE | C21: PR24CA118 Net Zero | D21: PCDWW34 | E21: Cover & Treat | F21: tCO2e | G21: 3 | H21: 0 | I21: 0 | J21: 2010.388 | K21: 6144.459 | L21: 19618.18 | N21: =1157.51/1000000 -> 0.00115751 | T21: 22.70823953
B22: SVE | C22: PR24CA118 Net Zero | D22: PCDWW34 | E22: ASP Intensification | F22: tCO2e | G22: 3 | H22: 0 | I22: 0 | J22: 2200.349 | K22: 6601.047 | L22: 13202.094 | N22: =1927.723/1000000 -> 0.001927723 | T22: 25.44998025
B23: SVE | C23: PR24CA118 Net Zero | D23: PCDWW34 | E23: Digital Twin | F23: tCO2e | G23: 3 | H23: 0 | I23: 0 | J23: 1337.931 | K23: 4013.794 | L23: 8027.589 | N23: =1624.302/1000000 -> 0.001624302 | T23: 13.03922887
B24: SVE | C24: PR24CA118 Net Zero | D24: PCDWW34 | E24: Active Gas Capture | F24: tCO2e | G24: 3 | H24: 0 | I24: 0 | J24: 1359 | K24: 4078 | L24: 8156 | N24: =1067.628/1000000 -> 0.001067628 | T24: 8.707573968
B25: SVE | C25: PR24CA118 Net Zero | D25: PCDWW34 | E25: Process Optimisation | F25: tCO2e | G25: 3 | H25: 0 | I25: 0 | J25: 8984.727 | K25: 17969.453 | L25: 26954.18 | N25: =81.323/1000000 -> 8.1323e-05 | T25: 2.19199478
B26: SVE | C26: PR24CA118 Net Zero | D26: PCDWW34 | E26: Cover & Treat | F26: Nr Sites | G26: 0 | L26: 23 | N26: =2961942/1000000 -> 2.961942 | T26: 68.124666
B27: SVE | C27: PR24CA118 Net Zero | D27: PCDWW34 | E27: ASP Intensification | F27: Nr Sites | G27: 0 | L27: 7 | N27: =10907135.62/1000000 -> 10.90713562 | T27: 76.34994934
B28: SVE | C28: PR24CA118 Net Zero | D28: PCDWW34 | E28: Digital Twin | F28: Nr Sites | G28: 0 | L28: 32 | N28: =1222428.059/1000000 -> 1.222428059 | T28: 39.11769789
B29: SVE | C29: PR24CA118 Net Zero | D29: PCDWW34 | E29: Active Gas Capture | F29: Nr Sites | G29: 0 | L29: 18 | N29: =1451261.711/1000000 -> 1.451261711 | T29: 26.1227108
B30: SVE | C30: PR24CA118 Net Zero | D30: PCDWW34 | E30: Process Optimisation | F30: Nr Sites | G30: 0 | L30: 105 | N30: =62628.211/1000000 -> 0.062628211 | T30: 6.575962155
B31: UUW | C31: PR24CA118 Net Zero | D31: PCDWW34 | E31: Net Zero Catchment Strategy | F31: tCO2e | G31: 3 | H31: 0 | I31: 0 | J31: 0 | K31: 0 | L31: 0 | N31: 0 | T31: 0
B32: UUW | C32: PR24CA118 Net Zero | D32: PCDWW34 | E32: Process Emissions | F32: tCO2e | G32: 3 | H32: 0 | I32: 0 | J32: 12541.041 | K32: 37623.123 | L32: 62705.206 | N32: =134.25/1000000 -> 0.00013425 | T32: 8.418173905
B33: UUW | C33: PR24CA118 Net Zero | D33: PCDWW34 | E33: Peatland Restoration | F33: tCO2e | G33: 3 | H33: 0 | I33: 0 | J33: 0 | K33: 0 | L33: 13227 | N33: =378.67/1000000 -> 0.00037867 | T33: 5.00866809
B34: UUW | C34: PR24CA118 Net Zero | D34: PCDWW34 | E34: Net Zero Catchment Strategy | F34: Nr Sites | G34: 0 | L34: 1 | N34: =1003147.75/1000000 -> 1.00314775 | T34: 1.00314775
B35: UUW | C35: PR24CA118 Net Zero | D35: PCDWW34 | E35: Process Emissions | F35: Nr Sites | G35: 0 | L35: 17 | N35: =1485555.42/1000000 -> 1.48555542 | T35: 25.25444214
B36: UUW | C36: PR24CA118 Net Zero | D36: PCDWW34 | E36: Peatland Restoration | F36: Nr Hectares | G36: 0 | L36: 1494 | N36: =10057.557/1000000 -> 0.010057557 | T36: 15.02599016
B37: WSX | C37: PR24CA118 Net Zero | D37: PCDWW34 | E37: Nitrous Oxide - Standard | F37: tCO2e | G37: 3 | H37: 0 | I37: 0 | J37: 652.74 | K37: 1305.5 | L37: 1978 | N37: =105.61 / 1000000 -> 0.00010561 | T37: 0.20889658
B38: WSX | C38: PR24CA118 Net Zero | D38: PCDWW34 | E38: Nitrous Oxide - NZ | F38: tCO2e | G38: 3 | H38: 0 | I38: 0 | J38: 294.492 | K38: 589 | L38: 892.4 | N38: =376.404/1000000 -> 0.000376404 | T38: 0.3359029296
B39: WSX | C39: PR24CA118 Net Zero | D39: PCDWW34 | E39: Nitrous Oxide - Standard | F39: Nr Sites | G39: 0 | L39: 7 | N39: =89527.455/1000000 -> 0.089527455 | T39: 0.626692185
B40: WSX | C40: PR24CA118 Net Zero | D40: PCDWW34 | E40: Nitrous Oxide - NZ | F40: Nr Sites | G40: 0 | L40: 13 | N40: =77515.097/1000000 -> 0.077515097 | T40: 1.007696261
B41: YKY | C41: PR24CA118 Net Zero | D41: PCDWW34 | E41: Methane Reduction | F41: tCO2e | G41: 3 | H41: 0 | I41: 5397 | J41: 19300 | K41: 33203 | L41: 47106 | N41: =52.316/1000000 -> 5.2316e-05 | T41: 2.464397496
B42: YKY | C42: PR24CA118 Net Zero | D42: PCDWW34 | E42: Nitrous Oxide Reduction | F42: tCO2e | G42: 3 | H42: 0 | I42: 2500 | J42: 7000 | K42: 12418 | L42: 17836 | N42: =182.233/1000000 -> 0.000182233 | T42: 3.250307788
B43: YKY | C43: PR24CA118 Net Zero | D43: PCDWW34 | E43: Methane Reduction | F43: Nr Sites | G43: 0 | L43: 9 | N43: =821463.304/1000000 -> 0.821463304 | T43: 7.393169736
B44: YKY | C44: PR24CA118 Net Zero | D44: PCDWW34 | E44: Nitrous Oxide Reduction | F44: Nr Sites | G44: 0 | L44: 13 | N44: =750072.885/1000000 -> 0.750072885 | T44: 9.750947505

Sheet Calcs_Supply
G2: Capital expenditure (£m) | O2: Opex costs (£m) | V2: TOTEX (£m) | AC2: Cumulative TOTEX (£m) | AJ2: AMP8 Profile expenditure (%) | AU2: Cumulative AMP8 allowances (Post FS) (£m)
G3: pre-2025-26 | H3: 2025-26 | I3: 2026-27 | J3: 2027-28 | K3: 2028-29 | L3: 2029-30 | M3: After 2029-30 | O3: 2025-26 | P3: 2026-27 | Q3: 2027-28 | R3: 2028-29 | S3: 2029-30 | T3: After 2029-30 | V3: pre-2025-26 | W3: 2025-26 | X3: 2026-27 | Y3: 2027-28 | Z3: 2028-29 | AA3: 2029-30 | AC3: pre-2025-26 | AD3: 2025-26 | AE3: 2026-27 | AF3: 2027-28 | AG3: 2028-29 | AH3: 2029-30 | AJ3: pre-2025-26 | AK3: 2025-26 | AL3: 2026-27 | AM3: 2027-28 | AN3: 2028-29 | AO3: 2029-30 | AQ3: AMP8 allowances | AR3: FS adjustment | AS3: AMP8 allowances Post FS | AU3: pre-2025-26 | AV3: 2025-26 | AW3: 2026-27 | AX3: 2027-28 | AY3: 2028-29 | AZ3: 2029-30
B5: ANH | C5: Base-overlap schemes | D5: Treatment | E5: WAFU Benefit [Base Overlap Schemes] | G5: 0.15785034 | H5: 5.62811867 | I5: 10.2374471 | J5: 26.64726191 | K5: 56.9005878 | L5: 42.67339979 | M5: 0 | O5: 0 | P5: 0 | Q5: 0 | R5: 0 | S5: 0.879592246 | T5: 40.46124534 | V5: =G5 -> 0.15785034 | W5: =H5+O5 -> 5.62811867 | X5: =I5+P5 -> 10.2374471 | Y5: 26.64726191 | Z5: 56.9005878 | AA5: 43.55299203 | AC5: =SUM($V5:V5) -> 0.15785034 | AD5: =SUM($V5:W5) -> 5.78596901 | AE5: =SUM($V5:X5) -> 16.02341611 | AF5: =SUM($V5:Y5) -> 42.67067802 | AG5: =SUM($V5:Z5) -> 99.57126582 | AH5: =SUM($V5:AA5) -> 143.1242579 | AJ5: =IF($AH5=0,"",AC5/$AH5) -> 0.00110289019 | AK5: =IF($AH5=0,"",AD5/$AH5) -> 0.04042619397 | AL5: 0.1119545796 | AM5: 0.2981372876 | AN5: 0.6956980411 | AO5: 1 | AQ5: 150.9095 | AR5: 0.9738728886 | AS5: =AQ5*AR5 -> 146.9666707 | AU5: =IFERROR($AS5*AJ5,"") -> 0.1620880994 | AV5: 5.941303136 | AW5: 16.45359183 | AX5: 43.81624456 | AY5: 102.2444249 | AZ5: 146.9666707
B6: ANH | C6: High | D6: High | G6: 0 | H6: 0 | I6: 0 | J6: 0 | K6: 0 | L6: 0 | M6: 0 | O6: 0 | P6: 0 | Q6: 0 | R6: 0 | S6: 0 | T6: 0 | V6: =G6 -> 0 | W6: =H6+O6 -> 0 | X6: 0 | Y6: 0 | Z6: 0 | AA6: 0 | AC6: =SUM($V6:V6) -> 0 | AD6: =SUM($V6:W6) -> 0 | AE6: =SUM($V6:X6) -> 0 | AF6: =SUM($V6:Y6) -> 0 | AG6: =SUM($V6:Z6) -> 0 | AH6: =SUM($V6:AA6) -> 0 | AJ6: =IF($AH6=0,"",AC6/$AH6) ->  | AQ6: 0 | AR6: 0.9738728886 | AS6: 0
B7: ANH | C7: Medium | D7: Medium | E7: WAFU Benefit [Medium] | G7: 5.84510871 | H7: 7.54781004 | I7: 11.19990995 | J7: 8.75401277 | K7: 3.10730582 | L7: 0 | M7: 0 | O7: 0.09549989 | P7: 0.19099972 | Q7: 0.40776829 | R7: 0.69018301 | S7: 0.75582915 | T7: 17.38407045 | V7: 5.84510871 | W7: 7.64330993 | X7: 11.39090967 | Y7: 9.16178106 | Z7: 3.79748883 | AA7: 0.75582915 | AC7: =SUM($V7:V7) -> 5.84510871 | AD7: =SUM($V7:W7) -> 13.48841864 | AE7: =SUM($V7:X7) -> 24.87932831 | AF7: =SUM($V7:Y7) -> 34.04110937 | AG7: =SUM($V7:Z7) -> 37.8385982 | AH7: =SUM($V7:AA7) -> 38.59442735 | AJ7: 0.1514495514 | AK7: 0.3494913532 | AL7: 0.6446352497 | AM7: 0.8820213618 | AN7: 0.9804161066 | AO7: 1 | AQ7: 49.73055497 | AR7: 0.9738728886 | AS7: 48.43123922 | AU7: 7.334889455 | AV7: 16.92629933 | AW7: 31.22048398 | AX7: 42.71738757 | AY7: 47.48276699 | AZ7: 48.43123922
B8: ANH | C8: Low | D8: Low | E8: WAFU Benefit [Low] | G8: 0 | H8: 2.249040992 | I8: 4.262012312 | J8: 3.819418752 | K8: 0.944797024 | L8: 0 | M8: 0 | O8: 0 | P8: 0.002862784 | Q8: 0.02738924 | R8: 0.056241008 | S8: 0.063429176 | T8: 1.458871048 | V8: 0 | W8: 2.249040992 | X8: 4.264875096 | Y8: 3.846807992 | Z8: 1.001038032 | AA8: 0.063429176 | AC8: =SUM($V8:V8) -> 0 | AD8: =SUM($V8:W8) -> 2.249040992 | AE8: =SUM($V8:X8) -> 6.513916088 | AF8: =SUM($V8:Y8) -> 10.36072408 | AG8: =SUM($V8:Z8) -> 11.36176211 | AH8: =SUM($V8:AA8) -> 11.42519129 | AJ8: 0 | AK8: 0.1968493074 | AL8: 0.5701362825 | AM8: 0.9068315636 | AN8: 0.9944483051 | AO8: 1 | AQ8: 2.904761434 | AR8: 0.9738728886 | AS8: 2.828868408 | AU8: 0 | AV8: 0.5568607869 | AW8: 1.612840518 | AX8: 2.565307162 | AY8: 2.813163394 | AZ8: 2.828868408
B9: ANH | C9: Very Low | D9: Very Low | E9: WAFU Benefit [Very Low] | G9: 0 | H9: 0 | I9: 0 | J9: 0 | K9: 0 | L9: 0 | M9: 0 | O9: 0 | P9: 0 | Q9: 0 | R9: 0 | S9: 0 | T9: 0 | V9: 0 | W9: 0 | X9: 0 | Y9: 0 | Z9: 0 | AA9: 0 | AC9: =SUM($V9:V9) -> 0 | AD9: =SUM($V9:W9) -> 0 | AE9: =SUM($V9:X9) -> 0 | AF9: =SUM($V9:Y9) -> 0 | AG9: =SUM($V9:Z9) -> 0 | AH9: =SUM($V9:AA9) -> 0 | AQ9: 0 | AR9: 0.9738728886 | AS9: 0
B10: NES | C10: Base-overlap schemes | D10: Treatment | E10: WAFU Benefit [Base Overlap Schemes] | G10: 9 | H10: 20.555 | I10: 20.555 | J10: 20.555 | K10: 20.879 | L10: 11.879 | M10: 0 | O10: 0 | P10: 0 | Q10: 0 | R10: 0 | S10: 0 | T10: 5.744 | V10: 9 | W10: 20.555 | X10: 20.555 | Y10: 20.555 | Z10: 20.879 | AA10: 11.879 | AC10: =SUM($V10:V10) -> 9 | AD10: =SUM($V10:W10) -> 29.555 | AE10: =SUM($V10:X10) -> 50.11 | AF10: =SUM($V10:Y10) -> 70.665 | AG10: =SUM($V10:Z10) -> 91.544 | AH10: =SUM($V10:AA10) -> 103.423 | AJ10: 0.0870212622 | AK10: 0.285768156 | AL10: 0.4845150498 | AM10: 0.6832619437 | AN10: 0.8851416029 | AO10: 1 | AQ10: 103.423 | AR10: 0.9808283316 | AS10: 101.4402085 | AU10: 8.827454984 | AV10: 28.98838134 | AW10: 49.1493077 | AX10: 69.31023405 | AY10: 89.78894879 | AZ10: 101.4402085
B11: NES | C11: High | D11: High | G11: 0 | H11: 0 | I11: 0 | J11: 0 | K11: 0 | L11: 0 | M11: 0 | O11: 0 | P11: 0 | Q11: 0 | R11: 0 | S11: 0 | T11: 0 | V11: 0 | W11: 0 | X11: 0 | Y11: 0 | Z11: 0 | AA11: 0 | AC11: =SUM($V11:V11) -> 0 | AD11: =SUM($V11:W11) -> 0 | AE11: =SUM($V11:X11) -> 0 | AF11: =SUM($V11:Y11) -> 0 | AG11: =SUM($V11:Z11) -> 0 | AH11: =SUM($V11:AA11) -> 0 | AQ11: 0 | AR11: 0.9808283316 | AS11: 0
B12: NES | C12: Medium | D12: Medium | E12: WAFU Benefit [Medium] | G12: 1.632 | H12: 17.784 | I12: 17.784 | J12: 0 | K12: 0 | L12: 0 | M12: 0 | O12: 0 | P12: 0 | Q12: 1.566 | R12: 1.566 | S12: 1.566 | T12: 1.566 | V12: 1.632 | W12: 17.784 | X12: 17.784 | Y12: 1.566 | Z12: 1.566 | AA12: 1.566 | AC12: =SUM($V12:V12) -> 1.632 | AD12: =SUM($V12:W12) -> 19.416 | AE12: =SUM($V12:X12) -> 37.2 | AF12: =SUM($V12:Y12) -> 38.766 | AG12: =SUM($V12:Z12) -> 40.332 | AH12: =SUM($V12:AA12) -> 41.898 | AJ12: 0.03895173994 | AK12: 0.4634111413 | AL12: 0.8878705427 | AM12: 0.9252470285 | AN12: 0.9626235142 | AO12: 1 | AQ12: 39.72089055 | AR12: 0.9808283316 | AS12: 38.9593748 | AU12: 1.517535436 | AV12: 18.05420834 | AW12: 34.59088125 | AX12: 36.04704577 | AY12: 37.50321029 | AZ12: 38.9593748
B13: NES | C13: Low | D13: Low | E13: WAFU Benefit [Low] | G13: 0 | H13: 0 | I13: 0 | J13: 0 | K13: 0 | L13: 0 | M13: 0 | O13: 0 | P13: 0 | Q13: 0 | R13: 0 | S13: 0 | T13: 0 | V13: 0 | W13: 0 | X13: 0 | Y13: 0 | Z13: 0 | AA13: 0 | AC13: =SUM($V13:V13) -> 0 | AD13: =SUM($V13:W13) -> 0 | AE13: =SUM($V13:X13) -> 0 | AF13: =SUM($V13:Y13) -> 0 | AG13: =SUM($V13:Z13) -> 0 | AH13: =SUM($V13:AA13) -> 0 | AQ13: 0 | AR13: 0.9808283316 | AS13: 0
B14: NES | C14: Very Low | D14: Very Low | E14: WAFU Benefit [Very Low] | G14: 0 | H14: 0 | I14: 0 | J14: 0 | K14: 0 | L14: 0 | M14: 0 | O14: 0 | P14: 0 | Q14: 0 | R14: 0 | S14: 0 | T14: 0 | V14: 0 | W14: 0 | X14: 0 | Y14: 0 | Z14: 0 | AA14: 0 | AC14: =SUM($V14:V14) -> 0 | AD14: =SUM($V14:W14) -> 0 | AE14: =SUM($V14:X14) -> 0 | AF14: =SUM($V14:Y14) -> 0 | AG14: =SUM($V14:Z14) -> 0 | AH14: =SUM($V14:AA14) -> 0 | AQ14: 0 | AR14: 0.9808283316 | AS14: 0
B15: SVE | C15: Base-overlap schemes | D15: Treatment | E15: WAFU Benefit [Base Overlap Schemes] | G15: 29.3 | H15: 27.368 | I15: 36.878 | J15: 57.118 | K15: 59.518 | L15: 8.328 | M15: 0 | O15: 0 | P15: 0 | Q15: 0 | R15: 0 | S15: 1.2617416 | T15: 5.155048 | V15: 29.3 | W15: 27.368 | X15: 36.878 | Y15: 57.118 | Z15: 59.518 | AA15: 9.5897416 | AC15: =SUM($V15:V15) -> 29.3 | AD15: =SUM($V15:W15) -> 56.668 | AE15: =SUM($V15:X15) -> 93.546 | AF15: =SUM($V15:Y15) -> 150.664 | AG15: =SUM($V15:Z15) -> 210.182 | AH15: =SUM($V15:AA15) -> 219.7717416 | AJ15: 0.1333201429 | AK15: 0.2578493467 | AL15: 0.4256507198 | AM15: 0.6855476455 | AN15: 0.9563649925 | AO15: 1 | AQ15: 188.636875 | AR15: 0.9785837464 | AS15: 184.5969798 | AU15: 24.61049573 | AV15: 47.59821066 | AW15: 78.57383734 | AX15: 126.5500249 | AY15: 176.5420892 | AZ15: 184.5969798
B16: SVE | C16: High | D16: High | G16: 0 | H16: 0 | I16: 0 | J16: 0 | K16: 0 | L16: 0 | M16: 0 | O16: 0 | P16: 0 | Q16: 0 | R16: 0 | S16: 0 | T16: 0 | V16: 0 | W16: 0 | X16: 0 | Y16: 0 | Z16: 0 | AA16: 0 | AC16: =SUM($V16:V16) -> 0 | AD16: =SUM($V16:W16) -> 0 | AE16: =SUM($V16:X16) -> 0 | AF16: =SUM($V16:Y16) -> 0 | AG16: =SUM($V16:Z16) -> 0 | AH16: =SUM($V16:AA16) -> 0 | AQ16: 0 | AR16: 0.9785837464 | AS16: 0
B17: SVE | C17: Medium | D17: Medium | E17: WAFU Benefit [Medium] | G17: 1.31 | H17: 1.701 | I17: 0 | J17: 0 | K17: 0 | L17: 0 | M17: 0 | O17: 0 | P17: 0.429 | Q17: 0.429 | R17: 0.429 | S17: 0.429 | T17: 0.429 | V17: 1.31 | W17: 1.701 | X17: 0.429 | Y17: 0.429 | Z17: 0.429 | AA17: 0.429 | AC17: =SUM($V17:V17) -> 1.31 | AD17: =SUM($V17:W17) -> 3.011 | AE17: =SUM($V17:X17) -> 3.44 | AF17: =SUM($V17:Y17) -> 3.869 | AG17: =SUM($V17:Z17) -> 4.298 | AH17: =SUM($V17:AA17) -> 4.727 | AJ17: 0.277131373 | AK17: 0.6369790565 | AL17: 0.7277342924 | AM17: 0.8184895282 | AN17: 0.9092447641 | AO17: 1 | AQ17: 38.09233403 | AR17: 0.9785837464 | AS17: 37.27653895 | AU17: 10.33049842 | AV17: 23.74437461 | AW17: 27.12741569 | AX17: 30.51045678 | AY17: 33.89349786 | AZ17: 37.27653895
B18: SVE | C18: Low | D18: Low | E18: WAFU Benefit [Low] | G18: 0 | H18: 0 | I18: 0 | J18: 0 | K18: 0 | L18: 0 | M18: 0 | O18: 0 | P18: 0 | Q18: 0 | R18: 0 | S18: 0 | T18: 0 | V18: 0 | W18: 0 | X18: 0 | Y18: 0 | Z18: 0 | AA18: 0 | AC18: =SUM($V18:V18) -> 0 | AD18: =SUM($V18:W18) -> 0 | AE18: =SUM($V18:X18) -> 0 | AF18: =SUM($V18:Y18) -> 0 | AG18: =SUM($V18:Z18) -> 0 | AH18: =SUM($V18:AA18) -> 0 | AQ18: 0 | AR18: 0.9785837464 | AS18: 0
B19: SVE | C19: Very Low | D19: Very Low | E19: WAFU Benefit [Very Low] | G19: 0 | H19: 0 | I19: 0 | J19: 0 | K19: 0 | L19: 0 | M19: 0 | O19: 0 | P19: 0 | Q19: 0 | R19: 0 | S19: 0 | T19: 0 | V19: 0 | W19: 0 | X19: 0 | Y19: 0 | Z19: 0 | AA19: 0 | AC19: =SUM($V19:V19) -> 0 | AD19: =SUM($V19:W19) -> 0 | AE19: =SUM($V19:X19) -> 0 | AF19: =SUM($V19:Y19) -> 0 | AG19: =SUM($V19:Z19) -> 0 | AH19: =SUM($V19:AA19) -> 0 | AQ19: 0 | AR19: 0.9785837464 | AS19: 0
B20: SWB | C20: Base-overlap schemes | D20: Treatment | E20: WAFU Benefit [Base Overlap Schemes] | G20: 0 | H20: 3.793 | I20: 2.866 | J20: 11.463 | K20: 11.463 | L20: 2.866 | M20: 0 | O20: 0 | P20: 0 | Q20: 0 | R20: 0 | S20: 0 | T20: 1.527411185 | V20: 0 | W20: 3.793 | X20: 2.866 | Y20: 11.463 | Z20: 11.463 | AA20: 2.866 | AC20: =SUM($V20:V20) -> 0 | AD20: =SUM($V20:W20) -> 3.793 | AE20: =SUM($V20:X20) -> 6.659 | AF20: =SUM($V20:Y20) -> 18.122 | AG20: =SUM($V20:Z20) -> 29.585 | AH20: =SUM($V20:AA20) -> 32.451 | AJ20: 0 | AK20: 0.1168839173 | AL20: 0.2052016887 | AM20: 0.5584419586 | AN20: 0.9116822286 | AO20: 1 | AQ20: 8.982708333 | AR20: 0.9755626769 | AS20: 8.763194988 | AU20: 0 | AV20: 1.024276558 | AW20: 1.79822241 | AX20: 4.893735773 | AY20: 7.989249136 | AZ20: 8.763194988
B21: SWB | C21: High | D21: High | G21: 0 | H21: 0 | I21: 0 | J21: 0 | K21: 0 | L21: 0 | M21: 0 | O21: 0 | P21: 0 | Q21: 0 | R21: 0 | S21: 0 | T21: 0 | V21: 0 | W21: 0 | X21: 0 | Y21: 0 | Z21: 0 | AA21: 0 | AC21: =SUM($V21:V21) -> 0 | AD21: =SUM($V21:W21) -> 0 | AE21: =SUM($V21:X21) -> 0 | AF21: =SUM($V21:Y21) -> 0 | AG21: =SUM($V21:Z21) -> 0 | AH21: =SUM($V21:AA21) -> 0 | AQ21: 0 | AR21: 0.9755626769 | AS21: 0
B22: SWB | C22: Medium | D22: Medium | E22: WAFU Benefit [Medium] | G22: 0 | H22: 0 | I22: 0 | J22: 0.718 | K22: 1.167 | L22: 3.499 | M22: 0 | O22: 0 | P22: 0 | Q22: 0 | R22: 0 | S22: 0 | T22: 0.1852007228 | V22: 0 | W22: 0 | X22: 0 | Y22: 0.718 | Z22: 1.167 | AA22: 3.499 | AC22: =SUM($V22:V22) -> 0 | AD22: =SUM($V22:W22) -> 0 | AE22: =SUM($V22:X22) -> 0 | AF22: =SUM($V22:Y22) -> 0.718 | AG22: =SUM($V22:Z22) -> 1.885 | AH22: =SUM($V22:AA22) -> 5.384 | AJ22: 0 | AK22: 0 | AL22: 0 | AM22: 0.1333580981 | AN22: 0.3501114413 | AO22: 1 | AQ22: 3.972089055 | AR22: 0.9755626769 | AS22: 3.875021831 | AU22: 0 | AV22: 0 | AW22: 0 | AX22: 0.5167655414 | AY22: 1.356689478 | AZ22: 3.875021831
B23: SWB | C23: Low | D23: Low | E23: WAFU Benefit [Low] | G23: 0 | H23: 0 | I23: 0 | J23: 0 | K23: 0 | L23: 0 | M23: 0 | O23: 0 | P23: 0 | Q23: 0 | R23: 0 | S23: 0 | T23: 0 | V23: 0 | W23: 0 | X23: 0 | Y23: 0 | Z23: 0 | AA23: 0 | AC23: =SUM($V23:V23) -> 0 | AD23: =SUM($V23:W23) -> 0 | AE23: =SUM($V23:X23) -> 0 | AF23: =SUM($V23:Y23) -> 0 | AG23: =SUM($V23:Z23) -> 0 | AH23: =SUM($V23:AA23) -> 0 | AQ23: 0 | AR23: 0.9755626769 | AS23: 0
B24: SWB | C24: Very Low | D24: Very Low | E24: WAFU Benefit [Very Low] | G24: 0 | H24: 0 | I24: 0 | J24: 0 | K24: 0 | L24: 0 | M24: 0 | O24: 0 | P24: 0 | Q24: 0 | R24: 0 | S24: 0 | T24: 0 | V24: 0 | W24: 0 | X24: 0 | Y24: 0 | Z24: 0 | AA24: 0 | AC24: =SUM($V24:V24) -> 0 | AD24: =SUM($V24:W24) -> 0 | AE24: =SUM($V24:X24) -> 0 | AF24: =SUM($V24:Y24) -> 0 | AG24: =SUM($V24:Z24) -> 0 | AH24: =SUM($V24:AA24) -> 0 | AQ24: 0 | AR24: 0.9755626769 | AS24: 0
B25: SRN | C25: Base-overlap schemes | D25: Treatment | E25: WAFU Benefit [Base Overlap Schemes] | G25: 0 | H25: 14.18927199 | I25: 22.10984028 | J25: 23.76170569 | K25: 23.76170569 | L25: 7.92056828 | M25: 85.8672655 | O25: 0 | P25: 0 | Q25: 0 | R25: 0 | S25: 0 | T25: 0.0003911319048 | V25: 0 | W25: 14.18927199 | X25: 22.10984028 | Y25: 23.76170569 | Z25: 23.76170569 | AA25: 7.92056828 | AC25: =SUM($V25:V25) -> 0 | AD25: =SUM($V25:W25) -> 14.18927199 | AE25: =SUM($V25:X25) -> 36.29911227 | AF25: =SUM($V25:Y25) -> 60.06081796 | AG25: =SUM($V25:Z25) -> 83.82252365 | AH25: =SUM($V25:AA25) -> 91.74309193 | AJ25: 0 | AK25: 0.1546631108 | AL25: 0.3956604416 | AM25: 0.6546631108 | AN25: 0.91366578 | AO25: 1 | AQ25: 16.69084881 | AR25: 0.9765852278 | AS25: 16.30003639 | AU25: 0 | AV25: 2.521014333 | AW25: 6.449279595 | AX25: 10.67103253 | AY25: 14.89278546 | AZ25: 16.30003639
B26: SRN | C26: High | D26: High | G26: 0 | H26: 0 | I26: 0 | J26: 0 | K26: 0 | L26: 0 | M26: 0 | O26: 0 | P26: 0 | Q26: 0 | R26: 0 | S26: 0 | T26: 0 | V26: 0 | W26: 0 | X26: 0 | Y26: 0 | Z26: 0 | AA26: 0 | AC26: =SUM($V26:V26) -> 0 | AD26: =SUM($V26:W26) -> 0 | AE26: =SUM($V26:X26) -> 0 | AF26: =SUM($V26:Y26) -> 0 | AG26: =SUM($V26:Z26) -> 0 | AH26: =SUM($V26:AA26) -> 0 | AQ26: 0 | AR26: 0.9765852278 | AS26: 0
B27: SRN | C27: Medium | D27: Medium | E27: WAFU Benefit [Medium] | G27: 0 | H27: 8.87259898 | I27: 11.18616395 | J27: 2.12079197 | K27: 17.52777368 | L27: 17.45960884 | M27: 24.73124246 | O27: 0 | P27: 0 | Q27: 0.15233327 | R27: 0.15233327 | S27: 0.15233327 | T27: 0.750275558 | V27: 0 | W27: 8.87259898 | X27: 11.18616395 | Y27: 2.27312524 | Z27: 17.68010695 | AA27: 17.61194211 | AC27: =SUM($V27:V27) -> 0 | AD27: =SUM($V27:W27) -> 8.87259898 | AE27: =SUM($V27:X27) -> 20.05876293 | AF27: =SUM($V27:Y27) -> 22.33188817 | AG27: =SUM($V27:Z27) -> 40.01199512 | AH27: =SUM($V27:AA27) -> 57.62393723 | AJ27: 0 | AK27: 0.1539741886 | AL27: 0.3480977506 | AM27: 0.3875453369 | AN27: 0.6943641314 | AO27: 1 | AQ27: 75.83217902 | AR27: 0.9765852278 | AS27: 74.05658582 | AU27: 0 | AV27: 11.40280271 | AW27: 25.77893094 | AX27: 28.7002845 | AY27: 51.42223688 | AZ27: 74.05658582
B28: SRN | C28: Low | D28: Low | E28: WAFU Benefit [Low] | G28: 0 | H28: 18.69168526 | I28: 2.09571911 | J28: 4.6584793 | K28: 6.79587408 | L28: 5.24679841 | M28: 7.55513739 | O28: 1.46e-05 | P28: 1.46e-05 | Q28: 0.11365484 | R28: 0.11365484 | S28: 0.11365484 | T28: 1.039100148 | V28: 0 | W28: 18.69169986 | X28: 2.09573371 | Y28: 4.77213414 | Z28: 6.90952892 | AA28: 5.36045325 | AC28: =SUM($V28:V28) -> 0 | AD28: =SUM($V28:W28) -> 18.69169986 | AE28: =SUM($V28:X28) -> 20.78743357 | AF28: =SUM($V28:Y28) -> 25.55956771 | AG28: =SUM($V28:Z28) -> 32.46909663 | AH28: =SUM($V28:AA28) -> 37.82954988 | AJ28: 0 | AK28: 0.4941031527 | AL28: 0.5495025353 | AM28: 0.6756508547 | AN28: 0.8582998405 | AO28: 1 | AQ28: 20.8633733 | AR28: 0.9765852278 | AS28: 20.37486216 | AU28: 0 | AV28: 10.06728363 | AW28: 11.19603842 | AX28: 13.76629304 | AY28: 17.48774095 | AZ28: 20.37486216
B29: SRN | C29: Very Low | D29: Very Low | E29: WAFU Benefit [Very Low] | G29: 0 | H29: 0 | I29: 0 | J29: 0 | K29: 0 | L29: 0 | M29: 0 | O29: 0 | P29: 0 | Q29: 0 | R29: 0 | S29: 0 | T29: 0 | V29: 0 | W29: 0 | X29: 0 | Y29: 0 | Z29: 0 | AA29: 0 | AC29: =SUM($V29:V29) -> 0 | AD29: =SUM($V29:W29) -> 0 | AE29: =SUM($V29:X29) -> 0 | AF29: =SUM($V29:Y29) -> 0 | AG29: =SUM($V29:Z29) -> 0 | AH29: =SUM($V29:AA29) -> 0 | AQ29: 0 | AR29: 0.9765852278 | AS29: 0
B30: TMS | C30: Base-overlap schemes | D30: Treatment | E30: WAFU Benefit [Base Overlap Schemes] | G30: 0 | H30: 0 | I30: 0 | J30: 0 | K30: 0 | L30: 0 | M30: 0 | O30: 0 | P30: 0 | Q30: 0 | R30: 0 | S30: 0 | T30: 0 | V30: 0 | W30: 0 | X30: 0 | Y30: 0 | Z30: 0 | AA30: 0 | AC30: =SUM($V30:V30) -> 0 | AD30: =SUM($V30:W30) -> 0 | AE30: =SUM($V30:X30) -> 0 | AF30: =SUM($V30:Y30) -> 0 | AG30: =SUM($V30:Z30) -> 0 | AH30: =SUM($V30:AA30) -> 0 | AQ30: 0 | AR30: 0.9719847331 | AS30: 0
B31: TMS | C31: High | D31: High | G31: 0 | H31: 0 | I31: 0 | J31: 0 | K31: 0 | L31: 0 | M31: 0 | O31: 0 | P31: 0 | Q31: 0 | R31: 0 | S31: 0 | T31: 0 | V31: 0 | W31: 0 | X31: 0 | Y31: 0 | Z31: 0 | AA31: 0 | AC31: =SUM($V31:V31) -> 0 | AD31: =SUM($V31:W31) -> 0 | AE31: =SUM($V31:X31) -> 0 | AF31: =SUM($V31:Y31) -> 0 | AG31: =SUM($V31:Z31) -> 0 | AH31: =SUM($V31:AA31) -> 0 | AQ31: 0 | AR31: 0.9719847331 | AS31: 0
B32: TMS | C32: Medium | D32: Medium | E32: WAFU Benefit [Medium] | G32: 0 | H32: 5.397 | I32: 8.928 | J32: 17.025 | K32: 16.418 | L32: 14.217 | M32: 0 | O32: 0 | P32: 0 | Q32: 0.042 | R32: 0.134 | S32: 0.441 | T32: 0.447 | V32: 0 | W32: 5.397 | X32: 8.928 | Y32: 17.067 | Z32: 16.552 | AA32: 14.658 | AC32: =SUM($V32:V32) -> 0 | AD32: =SUM($V32:W32) -> 5.397 | AE32: =SUM($V32:X32) -> 14.325 | AF32: =SUM($V32:Y32) -> 31.392 | AG32: =SUM($V32:Z32) -> 47.944 | AH32: =SUM($V32:AA32) -> 62.602 | AJ32: 0 | AK32: 0.08621130315 | AL32: 0.2288265551 | AM32: 0.5014536277 | AN32: 0.7658541261 | AO32: 1 | AQ32: 82.46056878 | AR32: 0.9719847331 | AS32: 80.15041393 | AU32: 0 | AV32: 6.909871633 | AW32: 18.34054311 | AX32: 40.19171582 | AY32: 61.38352521 | AZ32: 80.15041393
B33: TMS | C33: Low | D33: Low | E33: WAFU Benefit [Low] | G33: 0 | H33: 0 | I33: 0 | J33: 0 | K33: 0 | L33: 0 | M33: 0 | O33: 3.118 | P33: 3.163 | Q33: 3.21 | R33: 3.256 | S33: 3.304 | T33: 0 | V33: 0 | W33: 3.118 | X33: 3.163 | Y33: 3.21 | Z33: 3.256 | AA33: 3.304 | AC33: =SUM($V33:V33) -> 0 | AD33: =SUM($V33:W33) -> 3.118 | AE33: =SUM($V33:X33) -> 6.281 | AF33: =SUM($V33:Y33) -> 9.491 | AG33: =SUM($V33:Z33) -> 12.747 | AH33: =SUM($V33:AA33) -> 16.051 | AJ33: 0 | AK33: 0.1942558096 | AL33: 0.3913151829 | AM33: 0.5913027226 | AN33: 0.7941561273 | AO33: 1 | AQ33: 16.051 | AR33: 0.9719847331 | AS33: 15.60132695 | AU33: 0 | AV33: 3.030648398 | AW33: 6.105036108 | AX33: 9.225107101 | AY33: 12.38988939 | AZ33: 15.60132695
B34: TMS | C34: Very Low | D34: Very Low | E34: WAFU Benefit [Very Low] | G34: 0 | H34: 0 | I34: 0 | J34: 0 | K34: 0 | L34: 0 | M34: 0 | O34: 0 | P34: 0 | Q34: 0 | R34: 0 | S34: 0 | T34: 0 | V34: 0 | W34: 0 | X34: 0 | Y34: 0 | Z34: 0 | AA34: 0 | AC34: =SUM($V34:V34) -> 0 | AD34: =SUM($V34:W34) -> 0 | AE34: =SUM($V34:X34) -> 0 | AF34: =SUM($V34:Y34) -> 0 | AG34: =SUM($V34:Z34) -> 0 | AH34: =SUM($V34:AA34) -> 0 | AQ34: 0 | AR34: 0.9719847331 | AS34: 0
B35: YKY | C35: Base-overlap schemes | D35: Treatment | E35: WAFU Benefit [Base Overlap Schemes] | G35: 0 | H35: 0 | I35: 0 | J35: 0 | K35: 0 | L35: 0 | M35: 0 | O35: 0 | P35: 0 | Q35: 0 | R35: 0 | S35: 0 | T35: 0 | V35: 0 | W35: 0 | X35: 0 | Y35: 0 | Z35: 0 | AA35: 0 | AC35: =SUM($V35:V35) -> 0 | AD35: =SUM($V35:W35) -> 0 | AE35: =SUM($V35:X35) -> 0 | AF35: =SUM($V35:Y35) -> 0 | AG35: =SUM($V35:Z35) -> 0 | AH35: =SUM($V35:AA35) -> 0 | AQ35: 0 | AR35: 0.9625130628 | AS35: 0
B36: YKY | C36: High | D36: High | G36: 0 | H36: 0 | I36: 0 | J36: 0 | K36: 0 | L36: 0 | M36: 0 | O36: 0 | P36: 0 | Q36: 0 | R36: 0 | S36: 0 | T36: 0 | V36: 0 | W36: 0 | X36: 0 | Y36: 0 | Z36: 0 | AA36: 0 | AC36: =SUM($V36:V36) -> 0 | AD36: =SUM($V36:W36) -> 0 | AE36: =SUM($V36:X36) -> 0 | AF36: =SUM($V36:Y36) -> 0 | AG36: =SUM($V36:Z36) -> 0 | AH36: =SUM($V36:AA36) -> 0 | AQ36: 0 | AR36: 0.9625130628 | AS36: 0
B37: YKY | C37: Medium | D37: Medium | E37: WAFU Benefit [Medium] | G37: 0.47744 | H37: 1.259572925 | I37: 5.327640339 | J37: 4.186602958 | K37: 0.8900608 | L37: 0.8900608 | M37: 74.16105905 | O37: 0 | P37: 0.1425949824 | Q37: 0.2851899543 | R37: 0.2851899543 | S37: 0.2851899543 | T37: 2.661048791 | V37: 0.47744 | W37: 1.259572925 | X37: 5.470235322 | Y37: 4.471792912 | Z37: 1.175250754 | AA37: 1.175250754 | AC37: =SUM($V37:V37) -> 0.47744 | AD37: =SUM($V37:W37) -> 1.737012925 | AE37: =SUM($V37:X37) -> 7.207248247 | AF37: =SUM($V37:Y37) -> 11.67904116 | AG37: =SUM($V37:Z37) -> 12.85429191 | AH37: =SUM($V37:AA37) -> 14.02954267 | AJ37: 0.03403104515 | AK37: 0.1238110868 | AL37: 0.5137194004 | AM37: 0.8324605752 | AN37: 0.9162302876 | AO37: 1 | AQ37: 27.20745086 | AR37: 0.9625130628 | AS37: 26.18752686 | AU37: 0.891188909 | AV37: 3.242306161 | AW37: 13.4530406 | AX37: 21.80008367 | AY37: 23.99380527 | AZ37: 26.18752686
B38: YKY | C38: Low | D38: Low | E38: WAFU Benefit [Low] | G38: 0.49 | H38: 3.859531726 | I38: 10.14642847 | J38: 6.612652563 | K38: 0 | L38: 0 | M38: 0 | O38: 0 | P38: 0 | Q38: 1.153617606 | R38: 2.307235212 | S38: 2.307235212 | T38: 2.307235212 | V38: 0.49 | W38: 3.859531726 | X38: 10.14642847 | Y38: 7.766270169 | Z38: 2.307235212 | AA38: 2.307235212 | AC38: =SUM($V38:V38) -> 0.49 | AD38: =SUM($V38:W38) -> 4.349531726 | AE38: =SUM($V38:X38) -> 14.4959602 | AF38: =SUM($V38:Y38) -> 22.26223037 | AG38: =SUM($V38:Z38) -> 24.56946558 | AH38: =SUM($V38:AA38) -> 26.8767008 | AJ38: 0.01823140436 | AK38: 0.1618327993 | AL38: 0.5393504326 | AM38: 0.8283096404 | AN38: 0.9141548202 | AO38: 1 | AQ38: 10.65315929 | AR38: 0.9625130628 | AS38: 10.25380498 | AU38: 0.1869412648 | AV38: 1.659401963 | AW38: 5.530394151 | AX38: 8.493325514 | AY38: 9.373565246 | AZ38: 10.25380498
B39: YKY | C39: Very Low | D39: Very Low | E39: WAFU Benefit [Very Low] | G39: 0.020992 | H39: 0.003990983375 | I39: 0.003990983375 | J39: 0 | K39: 0 | L39: 0 | M39: 0 | O39: 0 | P39: 0 | Q39: 0 | R39: 0 | S39: 0 | T39: 0 | V39: 0.020992 | W39: 0.003990983375 | X39: 0.003990983375 | Y39: 0 | Z39: 0 | AA39: 0 | AC39: =SUM($V39:V39) -> 0.020992 | AD39: =SUM($V39:W39) -> 0.02498298338 | AE39: =SUM($V39:X39) -> 0.02897396675 | AF39: =SUM($V39:Y39) -> 0.02897396675 | AG39: =SUM($V39:Z39) -> 0.02897396675 | AH39: =SUM($V39:AA39) -> 0.02897396675 | AJ39: 0.7245124626 | AK39: 0.8622562313 | AL39: 1 | AM39: 1 | AN39: 1 | AO39: 1 | AQ39: 0.02130631858 | AR39: 0.9625130628 | AS39: 0.02050760996 | AU39: 0.01485801899 | AV39: 0.01768281447 | AW39: 0.02050760996 | AX39: 0.02050760996 | AY39: 0.02050760996 | AZ39: 0.02050760996
B40: AFW | C40: Base-overlap schemes | D40: Treatment | E40: WAFU Benefit [Base Overlap Schemes] | G40: 0 | H40: 0 | I40: 0 | J40: 0 | K40: 0 | L40: 0 | M40: 0 | O40: 0 | P40: 0 | Q40: 0 | R40: 0 | S40: 0 | T40: 0 | V40: 0 | W40: 0 | X40: 0 | Y40: 0 | Z40: 0 | AA40: 0 | AC40: =SUM($V40:V40) -> 0 | AD40: =SUM($V40:W40) -> 0 | AE40: =SUM($V40:X40) -> 0 | AF40: =SUM($V40:Y40) -> 0 | AG40: =SUM($V40:Z40) -> 0 | AH40: =SUM($V40:AA40) -> 0 | AQ40: 0 | AR40: 0.978156706 | AS40: 0
B41: AFW | C41: High | D41: High | G41: 0 | H41: 0 | I41: 0 | J41: 0 | K41: 0 | L41: 0 | M41: 0 | O41: 0 | P41: 0 | Q41: 0 | R41: 0 | S41: 0 | T41: 0 | V41: 0 | W41: 0 | X41: 0 | Y41: 0 | Z41: 0 | AA41: 0 | AC41: =SUM($V41:V41) -> 0 | AD41: =SUM($V41:W41) -> 0 | AE41: =SUM($V41:X41) -> 0 | AF41: =SUM($V41:Y41) -> 0 | AG41: =SUM($V41:Z41) -> 0 | AH41: =SUM($V41:AA41) -> 0 | AQ41: 0 | AR41: 0.978156706 | AS41: 0
B42: AFW | C42: Medium | D42: Medium | E42: WAFU Benefit [Medium] | G42: 0 | H42: 0 | I42: 0 | J42: 0 | K42: 0 | L42: 0 | M42: 0 | O42: 0 | P42: 0 | Q42: 0 | R42: 0 | S42: 0 | T42: 0 | V42: 0 | W42: 0 | X42: 0 | Y42: 0 | Z42: 0 | AA42: 0 | AC42: =SUM($V42:V42) -> 0 | AD42: =SUM($V42:W42) -> 0 | AE42: =SUM($V42:X42) -> 0 | AF42: =SUM($V42:Y42) -> 0 | AG42: =SUM($V42:Z42) -> 0 | AH42: =SUM($V42:AA42) -> 0 | AQ42: 0 | AR42: 0.978156706 | AS42: 0
B43: AFW | C43: Low | D43: Low | E43: WAFU Benefit [Low] | G43: 0 | H43: 3.344319732 | I43: 0 | J43: 0 | K43: 1.802761985 | L43: 0 | M43: 0 | O43: 0.8968516278 | P43: 0.8968516278 | Q43: 0.8968516278 | R43: 0.8968516278 | S43: 1.494752713 | T43: 0 | V43: 0 | W43: 4.241171359 | X43: 0.8968516278 | Y43: 0.8968516278 | Z43: 2.699613612 | AA43: 1.494752713 | AC43: =SUM($V43:V43) -> 0 | AD43: =SUM($V43:W43) -> 4.241171359 | AE43: =SUM($V43:X43) -> 5.138022987 | AF43: =SUM($V43:Y43) -> 6.034874615 | AG43: =SUM($V43:Z43) -> 8.734488227 | AH43: =SUM($V43:AA43) -> 10.22924094 | AJ43: 0 | AK43: 0.4146125196 | AL43: 0.5022878058 | AM43: 0.5899630921 | AN43: 0.8538745229 | AO43: 1 | AQ43: 10.65315929 | AR43: 0.978156706 | AS43: 10.4204592 | AU43: 0 | AV43: 4.320452844 | AW43: 5.234069588 | AX43: 6.147686332 | AY43: 8.897764629 | AZ43: 10.4204592
B44: AFW | C44: Very Low | D44: Very Low | E44: WAFU Benefit [Very Low] | G44: 0 | H44: 0 | I44: 0 | J44: 0 | K44: 4.006 | L44: 0 | M44: 0 | O44: 0 | P44: 0 | Q44: 0 | R44: 0 | S44: 0.47 | T44: 0.47 | V44: 0 | W44: 0 | X44: 0 | Y44: 0 | Z44: 4.006 | AA44: 0.47 | AC44: =SUM($V44:V44) -> 0 | AD44: =SUM($V44:W44) -> 0 | AE44: =SUM($V44:X44) -> 0 | AF44: =SUM($V44:Y44) -> 0 | AG44: =SUM($V44:Z44) -> 4.006 | AH44: =SUM($V44:AA44) -> 4.476 | AJ44: 0 | AK44: 0 | AL44: 0 | AM44: 0 | AN44: 0.8949955317 | AO44: 1 | AQ44: 2.343695044 | AR44: 0.978156706 | AS44: 2.292501024 | AU44: 0 | AV44: 0 | AW44: 0 | AX44: 0 | AY44: 2.051778173 | AZ44: 2.292501024
B45: SSC | C45: Base-overlap schemes | D45: Treatment | E45: WAFU Benefit [Base Overlap Schemes] | G45: 0 | H45: 0 | I45: 0 | J45: 0 | K45: 0 | L45: 0 | M45: 0 | O45: 0 | P45: 0 | Q45: 0 | R45: 0 | S45: 0 | T45: 0 | V45: 0 | W45: 0 | X45: 0 | Y45: 0 | Z45: 0 | AA45: 0 | AC45: =SUM($V45:V45) -> 0 | AD45: =SUM($V45:W45) -> 0 | AE45: =SUM($V45:X45) -> 0 | AF45: =SUM($V45:Y45) -> 0 | AG45: =SUM($V45:Z45) -> 0 | AH45: =SUM($V45:AA45) -> 0 | AQ45: 0 | AR45: 0.8417528849 | AS45: 0
B46: SSC | C46: High | D46: High | G46: 0 | H46: 0 | I46: 0 | J46: 0 | K46: 0 | L46: 0 | M46: 0 | O46: 0 | P46: 0 | Q46: 0 | R46: 0 | S46: 0 | T46: 0 | V46: 0 | W46: 0 | X46: 0 | Y46: 0 | Z46: 0 | AA46: 0 | AC46: =SUM($V46:V46) -> 0 | AD46: =SUM($V46:W46) -> 0 | AE46: =SUM($V46:X46) -> 0 | AF46: =SUM($V46:Y46) -> 0 | AG46: =SUM($V46:Z46) -> 0 | AH46: =SUM($V46:AA46) -> 0 | AQ46: 0 | AR46: 0.8417528849 | AS46: 0
B47: SSC | C47: Medium | D47: Medium | E47: WAFU Benefit [Medium] | G47: 0 | H47: 0.288 | I47: 0.673 | J47: 0.962 | K47: 0 | L47: 0 | M47: 0 | O47: 0 | P47: 0 | Q47: 0.027 | R47: 0 | S47: 0 | T47: 0 | V47: 0 | W47: 0.288 | X47: 0.673 | Y47: 0.989 | Z47: 0 | AA47: 0 | AC47: =SUM($V47:V47) -> 0 | AD47: =SUM($V47:W47) -> 0.288 | AE47: =SUM($V47:X47) -> 0.961 | AF47: =SUM($V47:Y47) -> 1.95 | AG47: =SUM($V47:Z47) -> 1.95 | AH47: =SUM($V47:AA47) -> 1.95 | AJ47: 0 | AK47: 0.1476923077 | AL47: 0.4928205128 | AM47: 1 | AN47: 1 | AO47: 1 | AQ47: 1.588835622 | AR47: 0.8417528849 | AS47: 1.337406968 | AU47: 0 | AV47: 0.1975247215 | AW47: 0.659101588 | AX47: =IFERROR($AS47*AM47,"") -> 1.337406968 | AY47: 1.337406968 | AZ47: 1.337406968
B48: SSC | C48: Low | D48: Low | E48: WAFU Benefit [Low] | G48: 0.17 | H48: 1.379 | I48: 1.379 | J48: 3.748 | K48: 2.961 | L48: 2.961 | M48: 0 | O48: 0 | P48: 0 | Q48: 0 | R48: 0 | S48: 0 | T48: 57.953 | V48: 0.17 | W48: 1.379 | X48: 1.379 | Y48: 3.748 | Z48: 2.961 | AA48: 2.961 | AC48: =SUM($V48:V48) -> 0.17 | AD48: =SUM($V48:W48) -> 1.549 | AE48: =SUM($V48:X48) -> 2.928 | AF48: =SUM($V48:Y48) -> 6.676 | AG48: =SUM($V48:Z48) -> 9.637 | AH48: =SUM($V48:AA48) -> 12.598 | AJ48: 0.01349420543 | AK48: 0.1229560248 | AL48: 0.2324178441 | AM48: 0.529925385 | AN48: 0.7649626925 | AO48: 1 | AQ48: 18.46547611 | AR48: 0.8417528849 | AS48: 15.54336778 | AU48: =IFERROR($AS48*AJ48,"") -> 0.2097453979 | AV48: 1.911150714 | AW48: 3.61255603 | AX48: 8.236825156 | AY48: 11.89009647 | AZ48: 15.54336778
B49: SSC | C49: Very Low | D49: Very Low | E49: WAFU Benefit [Very Low] | G49: 0 | H49: 0 | I49: 0 | J49: 0 | K49: 0 | L49: 0 | M49: 0 | O49: 0 | P49: 0 | Q49: 0 | R49: 0 | S49: 0 | T49: 0 | V49: 0 | W49: 0 | X49: 0 | Y49: 0 | Z49: 0 | AA49: 0 | AC49: =SUM($V49:V49) -> 0 | AD49: =SUM($V49:W49) -> 0 | AE49: =SUM($V49:X49) -> 0 | AF49: =SUM($V49:Y49) -> 0 | AG49: =SUM($V49:Z49) -> 0 | AH49: =SUM($V49:AA49) -> 0 | AQ49: 0 | AR49: 0.8417528849 | AS49: 0

Sheet Base>>>

Sheet Common PCDs>>>

Sheet DPB1
A1: =RIGHT(CELL("filename", A1), LEN(CELL("filename", A1)) - SEARCH("]", CELL("filename", A1))) -> DPB1 | AS1: Ofwat Bon Numbers
A2: =LEFT(A1,3) -> DPB
A3: Base PCD outputs
A5: Header | B5: Company | C5: PCD Model | D5: PCD Ref | E5: Line description | F5: PCD Output Description | G5: Units | H5: DPs | I5: PCD output (cumulative) - Target | T5: PCD Output Target by 2029-30 | U5: PCD Output Target by 2034-35 | W5: PCD output (cumulative) - Outturn & Forecast | AH5: PCD Output Outturn & Forecast by 2029-30 | AI5: PCD Output Outturn & Forecast by 2034-35 | AK5: Performance | AP5: DP reference | AS5: PCD output (cumulative) - Target | BD5: PCD output by 2029-30 (Target) | BE5: PCD Output by 2034-35 (Target) | BG5: PCD output (cumulative) - Outturn & Forecast | BR5: PCD output by 2029-30 (Outturn & Forecast) | BS5: PCD Output by 2034-35 (Outturn & Forecast) | BU5: Performance
I6: Pre-AMP8 | J6: AMP8 | O6: AMP9 | W6: Pre-AMP8 | X6: AMP8 | AC6: AMP9 | AK6: Forecast delivery as a percentage of PCD output target in 2029-30 (%) | AL6: Forecast delivery as a percentage of PCD output target in 2034-35 (%) | AM6: RAG Rating - Assurer's view | AN6: RAG Rating - Company's own view | AS6: Pre- AMP8 | AT6: AMP8 | AY6: AMP9 | BD6: PCD output by 2029-30 (Target) | BE6: PCD Output by 2034-35 (Target) | BG6: Pre- AMP8 | BH6: AMP8 | BM6: AMP9 | BR6: PCD output by 2029-30 (Outturn & Forecast) | BS6: PCD Output by 2034-35 (Outturn & Forecast) | BU6: Forecast delivery as a percentage of PCD output target in 2029-30 (%) | BV6: Forecast delivery as a percentage of PCD output target in 2034-35 (%)
A7: Start_Data | I7: 2024-25 | J7: 2025-26 | K7: 2026-27 | L7: 2027-28 | M7: 2028-29 | N7: 2029-30 | O7: 2030-31 | P7: 2031-32 | Q7: 2032-33 | R7: 2033-34 | S7: 2034-35 | W7: 2024-25 | X7: 2025-26 | Y7: 2026-27 | Z7: 2027-28 | AA7: 2028-29 | AB7: 2029-30 | AC7: 2030-31 | AD7: 2031-32 | AE7: 2032-33 | AF7: 2033-34 | AG7: 2034-35 | AR7: Start_BON | AS7: 2024-25 | AT7: 2025-26 | AU7: 2026-27 | AV7: 2027-28 | AW7: 2028-29 | AX7: 2029-30 | AY7: 2030-31 | AZ7: 2031-32 | BA7: 2032-33 | BB7: 2033-34 | BC7: 2034-35 | BD7: 2029-30 | BE7: 2034-35 | BG7: 2024-25 | BH7: 2025-26 | BI7: 2026-27 | BJ7: 2027-28 | BK7: 2028-29 | BL7: 2029-30 | BM7: 2030-31 | BN7: 2031-32 | BO7: 2032-33 | BP7: 2033-34 | BQ7: 2034-35 | BR7: 2029-30 | BS7: 2034-35 | BU7: 2029-30 | BV7: 2034-35
B8: BRL | C8: PR24CA105 Base PCDs | D8: PCDB1a | E8: Mains renewals - base | F8: Base wholesale water model funded renewals in kilometres | G8: km | H8: 3 | J8: 16.02075786 | K8: 37.38176833 | L8: 64.08303142 | M8: 85.4440419 | N8: 106.8050524 | T8: =N8 -> 106.8050524 | U8: =S8 -> 0 | X8: 15.059 | Y8: 40.61252619 | Z8: 64.08303142 | AA8: 85.4440419 | AB8: 106.8050524 | AH8: =AB8 -> 106.8050524 | AI8: =AG8 -> 0 | AK8: =IFERROR(AH8 /T8, "") -> 1 | AN8: Green | AP8: DPB1.1 | AS8: PCD_DPB1_MRBASE | AT8: PCD_DPB1_MRBASE | AU8: PCD_DPB1_MRBASE | AV8: PCD_DPB1_MRBASE | AW8: PCD_DPB1_MRBASE | AX8: PCD_DPB1_MRBASE | AY8: PCD_DPB1_MRBASE | AZ8: PCD_DPB1_MRBASE | BA8: PCD_DPB1_MRBASE | BB8: PCD_DPB1_MRBASE | BC8: PCD_DPB1_MRBASE | BD8: PCD_DPB1_MRBASE_T | BE8: PCD_DPB1_MRBASE_T | BG8: PCD_DPB1_MRBASE_O | BH8: PCD_DPB1_MRBASE_O | BI8: PCD_DPB1_MRBASE_O | BJ8: PCD_DPB1_MRBASE_O | BK8: PCD_DPB1_MRBASE_O | BL8: PCD_DPB1_MRBASE_O | BM8: PCD_DPB1_MRBASE_O | BN8: PCD_DPB1_MRBASE_O | BO8: PCD_DPB1_MRBASE_O | BP8: PCD_DPB1_MRBASE_O | BQ8: PCD_DPB1_MRBASE_O | BR8: PCD_DPB1_MRBASE_OT | BS8: PCD_DPB1_MRBASE_OT | BU8: PCD_DPB1_MRBASE_P | BV8: PCD_DPB1_MRBASE_P
D9: PCDB1b | E9: Mains renewals - asset health adjustment | F9: Base asset health adjustment renewals in kilometres | G9: km | H9: 3 | J9: 6.694501973 | K9: 15.6205046 | L9: 26.77800789 | M9: 35.70401052 | N9: 44.63001315 | T9: =N9 -> 44.63001315 | U9: =S9 -> 0 | X9: 2.545 | Y9: 19.83800658 | Z9: 26.77800789 | AA9: 35.70401052 | AB9: 44.63001315 | AH9: =AB9 -> 44.63001315 | AI9: =AG9 -> 0 | AK9: 1 | AN9: Green | AP9: DPB1.2 | AS9: PCD_DPB1_MRAH | AT9: PCD_DPB1_MRAH | AU9: PCD_DPB1_MRAH | AV9: PCD_DPB1_MRAH | AW9: PCD_DPB1_MRAH | AX9: PCD_DPB1_MRAH | AY9: PCD_DPB1_MRAH | AZ9: PCD_DPB1_MRAH | BA9: PCD_DPB1_MRAH | BB9: PCD_DPB1_MRAH | BC9: PCD_DPB1_MRAH | BD9: PCD_DPB1_MRAH_T | BE9: PCD_DPB1_MRAH_T | BG9: PCD_DPB1_MRAH_O | BH9: PCD_DPB1_MRAH_O | BI9: PCD_DPB1_MRAH_O | BJ9: PCD_DPB1_MRAH_O | BK9: PCD_DPB1_MRAH_O | BL9: PCD_DPB1_MRAH_O | BM9: PCD_DPB1_MRAH_O | BN9: PCD_DPB1_MRAH_O | BO9: PCD_DPB1_MRAH_O | BP9: PCD_DPB1_MRAH_O | BQ9: PCD_DPB1_MRAH_O | BR9: PCD_DPB1_MRAH_OT | BS9: PCD_DPB1_MRAH_OT | BU9: PCD_DPB1_MRAH_P | BV9: PCD_DPB1_MRAH_P
D10: PCDB1c | E10: Mains renewals - enhancement leakage | F10: Enhancement leakage renewals in kilometres | G10: km | H10: 3 | J10: 3.55515 | K10: 8.29535 | L10: 14.2206 | M10: 18.9608 | N10: 23.701 | T10: =N10 -> 23.701 | U10: 0 | X10: 1.517 | Y10: 8.8085 | Z10: 14.2206 | AA10: 18.9608 | AB10: 23.701 | AH10: =AB10 -> 23.701 | AI10: 0 | AK10: 1 | AN10: Green | AP10: DPB1.3 | AS10: PCD_DPB1_MRENHLEA | AT10: PCD_DPB1_MRENHLEA | AU10: PCD_DPB1_MRENHLEA | AV10: PCD_DPB1_MRENHLEA | AW10: PCD_DPB1_MRENHLEA | AX10: PCD_DPB1_MRENHLEA | AY10: PCD_DPB1_MRENHLEA | AZ10: PCD_DPB1_MRENHLEA | BA10: PCD_DPB1_MRENHLEA | BB10: PCD_DPB1_MRENHLEA | BC10: PCD_DPB1_MRENHLEA | BD10: PCD_DPB1_MRENHLEA_T | BE10: PCD_DPB1_MRENHLEA_T | BG10: PCD_DPB1_MRENHLEA_O | BH10: PCD_DPB1_MRENHLEA_O | BI10: PCD_DPB1_MRENHLEA_O | BJ10: PCD_DPB1_MRENHLEA_O | BK10: PCD_DPB1_MRENHLEA_O | BL10: PCD_DPB1_MRENHLEA_O | BM10: PCD_DPB1_MRENHLEA_O | BN10: PCD_DPB1_MRENHLEA_O | BO10: PCD_DPB1_MRENHLEA_O | BP10: PCD_DPB1_MRENHLEA_O | BQ10: PCD_DPB1_MRENHLEA_O | BR10: PCD_DPB1_MRENHLEA_OT | BS10: PCD_DPB1_MRENHLEA_OT | BU10: PCD_DPB1_MRENHLEA_P | BV10: PCD_DPB1_MRENHLEA_P
J12: =SUM(J8:J10+BRL_DPB1_ADD!J8) -> 41.79540983 | X12: =SUM(X8:X10+BRL_DPB1_ADD!X8) -> 21.1667317

Sheet DPB2
A1: =RIGHT(CELL("filename", A1), LEN(CELL("filename", A1)) - SEARCH("]", CELL("filename", A1))) -> DPB2 | AU1: Ofwat Bon Numbers
A2: =LEFT(A1,3) -> DPB
A3: Base PCD expenditure
A5: Header | B5: Company | C5: PCD Model | D5: PCD Ref | E5: Line description | F5: PCD Output Description | G5: Units | H5: DPs | I5: Non delivery PCD payment (£m/Driver) in 2022-23 prices | K5: PCD Total Expenditure (Cumulative) - Allowance (£m) | V5: Total Expenditure by 2029-30 (Allowance) | W5: Total Expenditure by 2034-35 (Allowance) | Y5: PCD Total Expenditure (Cumulative) - Outturn & Forecast (£m) | AJ5: Total Expenditure by 2029-30 (Outturn & Forecast) | AK5: Total Expenditure by 2034-35 (Outturn & Forecast) | AM5: Performance | AP5: DP reference | AS5: Non delivery PCD payment (£m/Driver) in 2022-23 prices | AU5: PCD Total Expenditure (Cumulative) - Allowance (£m) | BF5: Total Expenditure by 2029-30 (Allowance) | BG5: Total Expenditure by 2034-35 (Allowance) | BI5: PCD Total Expenditure (Cumulative) - Outturn & Forecast (£m) | BT5: Total Expenditure by 2029-30 (Outturn & Forecast) | BU5: Total Expenditure by 2034-35 (Outturn & Forecast) | BW5: Performance
K6: Pre-AMP8 | L6: AMP8 | Q6: AMP9 | Y6: Pre-AMP8 | Z6: AMP8 | AE6: AMP9 | AM6: Forecast total expenditure as a percentage of allowed total expenditure in 2029-30 (%) | AN6: Forecast total expenditure as a percentage of allowed total expenditure in 2034-35 (%) | AS6: Non delivery PCD payment (£m/Driver) in 2022-23 prices | AU6: Pre- AMP8 | AV6: AMP8 | BA6: AMP9 | BF6: Total Expenditure by 2029-30 (Allowance) | BG6: Total Expenditure by 2034-35 (Allowance) | BI6: Pre- AMP8 | BJ6: AMP8 | BO6: AMP9 | BT6: Total Expenditure by 2029-30 (Outturn & Forecast) | BU6: Total Expenditure by 2034-35 (Outturn & Forecast) | BW6: Forecast total expenditure as a percentage of allowed total expenditure in 2029-30 (%) | BX6: Forecast total expenditure as a percentage of allowed total expenditure in 2034-35 (%)
A7: Start_Data | K7: 2024-25 | L7: 2025-26 | M7: 2026-27 | N7: 2027-28 | O7: 2028-29 | P7: 2029-30 | Q7: 2030-31 | R7: 2031-32 | S7: 2032-33 | T7: 2033-34 | U7: 2034-35 | Y7: 2024-25 | Z7: 2025-26 | AA7: 2026-27 | AB7: 2027-28 | AC7: 2028-29 | AD7: 2029-30 | AE7: 2030-31 | AF7: 2031-32 | AG7: 2032-33 | AH7: 2033-34 | AI7: 2034-35 | AR7: Start_BON | AS7: 2025-30 | AU7: 2024-25 | AV7: 2025-26 | AW7: 2026-27 | AX7: 2027-28 | AY7: 2028-29 | AZ7: 2029-30 | BA7: 2030-31 | BB7: 2031-32 | BC7: 2032-33 | BD7: 2033-34 | BE7: 2034-35 | BF7: 2029-30 | BG7: 2034-35 | BI7: 2024-25 | BJ7: 2025-26 | BK7: 2026-27 | BL7: 2027-28 | BM7: 2028-29 | BN7: 2029-30 | BO7: 2030-31 | BP7: 2031-32 | BQ7: 2032-33 | BR7: 2033-34 | BS7: 2034-35 | BT7: 2029-30 | BU7: 2034-35 | BW7: 2029-30 | BX7: 2034-35
B8: =rngAcronym -> BRL | C8: PR24CA105 Base PCDs | D8: PCDB1a | E8: Mains renewals - base | F8: Base wholesale water model funded renewals expenditure | G8: £m | H8: 3 | L8: 4.704261494 | M8: 10.97661015 | N8: 18.81704598 | O8: 25.08939463 | P8: 31.36174329 | V8: =P8 -> 31.36174329 | W8: =U8 -> 0 | Z8: =4.52077341397974*0.884449502815383 -> 3.998395798 | AA8: =11.9850418044876*0.884449502815383 -> 10.60016427 | AB8: =20.5458049356909*0.884449502815383 -> 18.17172696 | AC8: =27.3941333261988*0.884449502815383 -> 24.2287276 | AD8: =34.2424617167067*0.884449502815383 -> 30.28572824 | AJ8: =AD8 -> 30.28572824 | AK8: =AI8 -> 0 | AM8: =IFERROR(AJ8 / V8, "") -> 0.9656902028 | AP8: DPB2.1 | AS8: PCD_DPB2_MR_BASE_NP | AU8: PCD_DPB2_MR_BASE | AV8: PCD_DPB2_MR_BASE | AW8: PCD_DPB2_MR_BASE | AX8: PCD_DPB2_MR_BASE | AY8: PCD_DPB2_MR_BASE | AZ8: PCD_DPB2_MR_BASE | BA8: PCD_DPB2_MR_BASE | BB8: PCD_DPB2_MR_BASE | BC8: PCD_DPB2_MR_BASE | BD8: PCD_DPB2_MR_BASE | BE8: PCD_DPB2_MR_BASE | BF8: PCD_DPB2_MR_BASE_T | BG8: PCD_DPB2_MR_BASE_T | BI8: PCD_DPB2_MR_BASE_O | BJ8: PCD_DPB2_MR_BASE_O | BK8: PCD_DPB2_MR_BASE_O | BL8: PCD_DPB2_MR_BASE_O | BM8: PCD_DPB2_MR_BASE_O | BN8: PCD_DPB2_MR_BASE_O | BO8: PCD_DPB2_MR_BASE_O | BP8: PCD_DPB2_MR_BASE_O | BQ8: PCD_DPB2_MR_BASE_O | BR8: PCD_DPB2_MR_BASE_O | BS8: PCD_DPB2_MR_BASE_O | BT8: PCD_DPB2_MR_BASE_OT | BU8: PCD_DPB2_MR_BASE_OT | BW8: PCD_DPB2_MR_BASE_P | BX8: PCD_DPB2_MR_BASE_P
D9: PCDB1b | E9: Mains renewals - asset health adjustment | F9: Base asset health adjustment renewals expenditure | G9: £m | H9: 3 | L9: 1.965742703 | M9: 4.586732973 | N9: 7.862970812 | O9: 10.48396108 | P9: 13.10495135 | V9: =P9 -> 13.10495135 | W9: =U9 -> 0 | Z9: =1.72034045283655*0.884449502815383 -> 1.521554258 | AA9: =5.00807206232869*0.884449502815383 -> 4.429386846 | AB9: =8.58530893112535*0.884449502815383 -> 7.593272216 | AC9: =11.4469805406175*0.884449502815383 -> 10.12427625 | AD9: =14.3086521501096*0.884449502815383 -> 12.65528028 | AJ9: =AD9 -> 12.65528028 | AK9: 0 | AM9: 0.9656869331 | AP9: DPB2.2 | AS9: PCD_DPB2_MR_AH_NP | AU9: PCD_DPB2_MR_AH | AV9: PCD_DPB2_MR_AH | AW9: PCD_DPB2_MR_AH | AX9: PCD_DPB2_MR_AH | AY9: PCD_DPB2_MR_AH | AZ9: PCD_DPB2_MR_AH | BA9: PCD_DPB2_MR_AH | BB9: PCD_DPB2_MR_AH | BC9: PCD_DPB2_MR_AH | BD9: PCD_DPB2_MR_AH | BE9: PCD_DPB2_MR_AH | BF9: PCD_DPB2_MR_AH_T | BG9: PCD_DPB2_MR_AH_T | BI9: PCD_DPB2_MR_AH_O | BJ9: PCD_DPB2_MR_AH_O | BK9: PCD_DPB2_MR_AH_O | BL9: PCD_DPB2_MR_AH_O | BM9: PCD_DPB2_MR_AH_O | BN9: PCD_DPB2_MR_AH_O | BO9: PCD_DPB2_MR_AH_O | BP9: PCD_DPB2_MR_AH_O | BQ9: PCD_DPB2_MR_AH_O | BR9: PCD_DPB2_MR_AH_O | BS9: PCD_DPB2_MR_AH_O | BT9: PCD_DPB2_MR_AH_OT | BU9: PCD_DPB2_MR_AH_OT | BW9: PCD_DPB2_MR_AH_P | BX9: PCD_DPB2_MR_AH_P
D10: PCDB1c | E10: Mains renewals - enhancement leakage | F10: Enhancement leakage renewals expenditure | G10: £m | H10: 3 | L10: 1.04391786 | M10: 2.435808339 | N10: 4.175671438 | O10: 5.567561918 | P10: 6.959452397 | V10: 6.959452397 | W10: 0 | Z10: =0.726624*0.884449502815383 -> 0.6426622355 | AA10: =2.70211664705882*0.884449502815383 -> 2.389885725 | AB10: =4.33976370588235*0.884449502815383 -> 3.838301852 | AC10: =5.64988135294118*0.884449502815383 -> 4.997034754 | AD10: =6.959999*0.884449502815383 -> 6.155767655 | AJ10: =AD10 -> 6.155767655 | AK10: 0 | AM10: 0.8845189684 | AP10: DPB2.3 | AS10: PCD_DPB2_MR_ENHLEA_NP | AU10: PCD_DPB2_MR_ENHLEA | AV10: PCD_DPB2_MR_ENHLEA | AW10: PCD_DPB2_MR_ENHLEA | AX10: PCD_DPB2_MR_ENHLEA | AY10: PCD_DPB2_MR_ENHLEA | AZ10: PCD_DPB2_MR_ENHLEA | BA10: PCD_DPB2_MR_ENHLEA | BB10: PCD_DPB2_MR_ENHLEA | BC10: PCD_DPB2_MR_ENHLEA | BD10: PCD_DPB2_MR_ENHLEA | BE10: PCD_DPB2_MR_ENHLEA | BF10: PCD_DPB2_MR_ENHLEA_T | BG10: PCD_DPB2_MR_ENHLEA_T | BI10: PCD_DPB2_MR_ENHLEA_O | BJ10: PCD_DPB2_MR_ENHLEA_O | BK10: PCD_DPB2_MR_ENHLEA_O | BL10: PCD_DPB2_MR_ENHLEA_O | BM10: PCD_DPB2_MR_ENHLEA_O | BN10: PCD_DPB2_MR_ENHLEA_O | BO10: PCD_DPB2_MR_ENHLEA_O | BP10: PCD_DPB2_MR_ENHLEA_O | BQ10: PCD_DPB2_MR_ENHLEA_O | BR10: PCD_DPB2_MR_ENHLEA_O | BS10: PCD_DPB2_MR_ENHLEA_O | BT10: PCD_DPB2_MR_ENHLEA_OT | BU10: PCD_DPB2_MR_ENHLEA_OT | BW10: PCD_DPB2_MR_ENHLEA_P | BX10: PCD_DPB2_MR_ENHLEA_P
D11: PCDB3a | E11: Water network reinforcement | F11: Water network reinforcement expenditure | G11: £m | H11: 3 | L11: 0 | M11: 0 | N11: 0 | O11: 0 | P11: 0 | V11: 0 | W11: 0 | AJ11: =AD11 -> 0 | AK11: 0 | AP11: DPB2.4 | AS11: PCD_DPB2_WN_RFT_NP | AU11: PCD_DPB2_WN_RFT | AV11: PCD_DPB2_WN_RFT | AW11: PCD_DPB2_WN_RFT | AX11: PCD_DPB2_WN_RFT | AY11: PCD_DPB2_WN_RFT | AZ11: PCD_DPB2_WN_RFT | BA11: PCD_DPB2_WN_RFT | BB11: PCD_DPB2_WN_RFT | BC11: PCD_DPB2_WN_RFT | BD11: PCD_DPB2_WN_RFT | BE11: PCD_DPB2_WN_RFT | BF11: PCD_DPB2_WN_RFT_T | BG11: PCD_DPB2_WN_RFT_T | BI11: PCD_DPB2_WN_RFT_O | BJ11: PCD_DPB2_WN_RFT_O | BK11: PCD_DPB2_WN_RFT_O | BL11: PCD_DPB2_WN_RFT_O | BM11: PCD_DPB2_WN_RFT_O | BN11: PCD_DPB2_WN_RFT_O | BO11: PCD_DPB2_WN_RFT_O | BP11: PCD_DPB2_WN_RFT_O | BQ11: PCD_DPB2_WN_RFT_O | BR11: PCD_DPB2_WN_RFT_O | BS11: PCD_DPB2_WN_RFT_O | BT11: PCD_DPB2_WN_RFT_OT | BU11: PCD_DPB2_WN_RFT_OT | BW11: PCD_DPB2_WN_RFT_P | BX11: PCD_DPB2_WN_RFT_P
D12: PCDB3b | E12: Wastewater network reinforcement | F12: Wastewater network reinforcement expenditure | G12: £m | H12: 3 | P12: 0 | V12: 0 | W12: 0 | AJ12: =AD12 -> 0 | AK12: 0 | AP12: DPB2.5 | AS12: PCD_DPB2_WWN_RFT_NP | AU12: PCD_DPB2_WWN_RFT | AV12: PCD_DPB2_WWN_RFT | AW12: PCD_DPB2_WWN_RFT | AX12: PCD_DPB2_WWN_RFT | AY12: PCD_DPB2_WWN_RFT | AZ12: PCD_DPB2_WWN_RFT | BA12: PCD_DPB2_WWN_RFT | BB12: PCD_DPB2_WWN_RFT | BC12: PCD_DPB2_WWN_RFT | BD12: PCD_DPB2_WWN_RFT | BE12: PCD_DPB2_WWN_RFT | BF12: PCD_DPB2_WWN_RFT_T | BG12: PCD_DPB2_WWN_RFT_T | BI12: PCD_DPB2_WWN_RFT_O | BJ12: PCD_DPB2_WWN_RFT_O | BK12: PCD_DPB2_WWN_RFT_O | BL12: PCD_DPB2_WWN_RFT_O | BM12: PCD_DPB2_WWN_RFT_O | BN12: PCD_DPB2_WWN_RFT_O | BO12: PCD_DPB2_WWN_RFT_O | BP12: PCD_DPB2_WWN_RFT_O | BQ12: PCD_DPB2_WWN_RFT_O | BR12: PCD_DPB2_WWN_RFT_O | BS12: PCD_DPB2_WWN_RFT_O | BT12: PCD_DPB2_WWN_RFT_OT | BU12: PCD_DPB2_WWN_RFT_OT | BW12: PCD_DPB2_WWN_RFT_P | BX12: PCD_DPB2_WWN_RFT_P
AQ13: End_Data | BY13: End_BON
L14: =SUM(L8:L10) -> 7.713922056 | Z14: =SUM(Z8:Z10) -> 6.162612292
L15: =L14+(BRL_DPB2_ADD!P8/5) -> 9.740006253 | Z15: =Z14+(BRL_DPB2_ADD!Z8) -> 7.506533312

Sheet Bespoke PCDs>>>

Sheet BRL_DPB1_ADD
A1: =RIGHT(CELL("filename", A1), LEN(CELL("filename", A1)) - SEARCH("]", CELL("filename", A1))) -> BRL_DPB1_ADD | AR1: Ofwat Bon Numbers
A2: =LEFT(A1,3) -> BRL
A3: Base PCD outputs
B5: Company | C5: PCD Model | D5: PCD Ref | E5: Line description | F5: PCD Output Description | G5: Units | H5: DPs | I5: PCD output (cumulative) - Target | T5: PCD Output Target by 2029-30 | U5: PCD Output Target by 2034-35 | W5: PCD output (cumulative) - Outturn & Forecast | AH5: PCD Output Outturn & Forecast by 2029-30 | AI5: PCD Output Outturn & Forecast by 2034-35 | AK5: Performance | AP5: DP reference | BC5: PCD output by 2029-30 (Target) | BD5: PCD Output by 2034-35 (Outturn & Forecast) | BP5: PCD output by 2029-30 (Target) | BQ5: PCD Output by 2034-35 (Outturn & Forecast)
I6: Pre-AMP8 | J6: AMP8 | O6: AMP9 | W6: Pre-AMP8 | X6: AMP8 | AC6: AMP9 | AK6: Forecast delivery as a percentage of PCD output target in 2029-30 (%) | AL6: Forecast delivery as a percentage of PCD output target in 2034-35 (%) | AM6: RAG Rating - Assurer's view | AN6: RAG Rating - Company's own view | AR6: Pre- AMP8 | AS6: AMP8 | AX6: AMP9 | BE6: Pre- AMP8 | BF6: AMP8 | BK6: AMP9
I7: 2024-25 | J7: 2025-26 | K7: 2026-27 | L7: 2027-28 | M7: 2028-29 | N7: 2029-30 | O7: 2030-31 | P7: 2031-32 | Q7: 2032-33 | R7: 2033-34 | S7: 2034-35 | W7: 2024-25 | X7: 2025-26 | Y7: 2026-27 | Z7: 2027-28 | AA7: 2028-29 | AB7: 2029-30 | AC7: 2030-31 | AD7: 2031-32 | AE7: 2032-33 | AF7: 2033-34 | AG7: 2034-35 | AR7: 2024-25 | AS7: 2025-26 | AT7: 2026-27 | AU7: 2027-28 | AV7: 2028-29 | AW7: 2029-30 | AX7: 2030-31 | AY7: 2031-32 | AZ7: 2032-33 | BA7: 2033-34 | BB7: 2034-35 | BE7: 2024-25 | BF7: 2025-26 | BG7: 2026-27 | BH7: 2027-28 | BI7: 2028-29 | BJ7: 2029-30 | BK7: 2030-31 | BL7: 2031-32 | BM7: 2032-33 | BN7: 2033-34 | BO7: 2034-35
C8: PR24CA105 Base PCDs | D8: PCDB1d | E8: Mains renewals - enhancement water quality | F8: Enhancement water quality renewals in kilometres | G8: km | H8: 3 | J8: 5.175 | K8: 12.075 | L8: 20.7 | M8: 27.6 | N8: 34.5 | T8: =N8 -> 34.5 | U8: =S8 -> 0 | X8: =0.771*0.884449502815383 -> 0.6819105667 | Y8: =16.559*0.884449502815383 -> 14.64559932 | Z8: 20.7 | AA8: 27.6 | AB8: 34.5 | AH8: =AB8 -> 34.5 | AI8: =AG8 -> 0 | AK8: =IFERROR(AH8 /T8, "") -> 1 | AL8: =IFERROR(AI8 /U8, "") ->  | AN8: Green | AP8: DPB1.4

Sheet BRL_DPB2_ADD
A1: =RIGHT(CELL("filename", A1), LEN(CELL("filename", A1)) - SEARCH("]", CELL("filename", A1))) -> BRL_DPB2_ADD | AR1: Ofwat Bon Numbers
A2: =LEFT(A1,3) -> BRL
A3: Base PCD expenditure
B5: Company | C5: PCD Model | D5: PCD Ref | E5: Line description | F5: PCD Output Description | G5: Units | H5: DPs | I5: Non delivery PCD payment (£m/Driver) in 2022-23 prices | K5: PCD Total Expenditure (Cumulative) - Allowance (£m) | V5: Total Expenditure by 2029-30 (Allowance) | W5: Total Expenditure by 2034-35 (Allowance) | Y5: PCD Total Expenditure (Cumulative) - Outturn & Forecast (£m) | AJ5: Total Expenditure by 2029-30 (Outturn & Forecast) | AK5: Total Expenditure by 2034-35 (Outturn & Forecast) | AM5: Performance | AP5: DP reference | BC5: Total Expenditure by 2029-30 (Allowance) | BD5: Total Expenditure by 2034-35 (Outturn & Forecast) | BP5: Total Expenditure by 2029-30 (Outturn & Forecast) | BQ5: Total Expenditure by 2034-35 (Outturn & Forecast)
K6: Pre-AMP8 | L6: AMP8 | Q6: AMP9 | Y6: Pre-AMP8 | Z6: AMP8 | AE6: AMP9 | AM6: Forecast total expenditure as a percentage of allowed total expenditure in 2029-30 (%) | AN6: Forecast total expenditure as a percentage of allowed total expenditure in 2034-35 (%) | AR6: Pre- AMP8 | AS6: AMP8 | AX6: AMP9 | BE6: Pre- AMP8 | BF6: AMP8 | BK6: AMP9
K7: 2024-25 | L7: 2025-26 | M7: 2026-27 | N7: 2027-28 | O7: 2028-29 | P7: 2029-30 | Q7: 2030-31 | R7: 2031-32 | S7: 2032-33 | T7: 2033-34 | U7: 2034-35 | Y7: 2024-25 | Z7: 2025-26 | AA7: 2026-27 | AB7: 2027-28 | AC7: 2028-29 | AD7: 2029-30 | AE7: 2030-31 | AF7: 2031-32 | AG7: 2032-33 | AH7: 2033-34 | AI7: 2034-35 | AR7: 2024-25 | AS7: 2025-26 | AT7: 2026-27 | AU7: 2027-28 | AV7: 2028-29 | AW7: 2029-30 | AX7: 2030-31 | AY7: 2031-32 | AZ7: 2032-33 | BA7: 2033-34 | BB7: 2034-35 | BE7: 2024-25 | BF7: 2025-26 | BG7: 2026-27 | BH7: 2027-28 | BI7: 2028-29 | BJ7: 2029-30 | BK7: 2030-31 | BL7: 2031-32 | BM7: 2032-33 | BN7: 2033-34 | BO7: 2034-35
C8: PR24CA105 Base PCDs | D8: PCDB1d | E8: Mains renewals - enhancement water quality | F8: Enhancement water quality renewals expenditure | G8: £m | H8: 3 | P8: 10.13042098 | V8: =P8 -> 10.13042098 | W8: =U8 -> 0 | Z8: =1.5195*0.884449502815383 -> 1.34392102 | AA8: 3.5455 | AB8: 6.078 | AC8: 8.104 | AD8: 10.13042098 | AJ8: =AD8 -> 10.13042098 | AK8: =AI8 -> 0 | AM8: =IFERROR(AJ8 / V8, "") -> 1 | AN8: =IFERROR(AK8 / W8, "") ->  | AP8: DPB2.6

Sheet Enhancement WW>>>

Sheet DPWW1
AT1: Ofwat Bon Numbers
A3: Enhancement PCD output - wastewater - Programme level
A5: Header | B5: Company | C5: PCD Model | D5: PCD Ref | E5: PCD applicable to company | F5: Line description | G5: PCD Output Description | H5: Units | I5: DPs | J5: PCD output (cumulative) - Target | U5: PCD Output Target by 2029-30 | V5: PCD Output Target by 2034-35 | X5: PCD output (cumulative) - Outturn & Forecast | AI5: PCD Output Outturn & Forecast by 2029-30 | AJ5: PCD Output Outturn & Forecast by 2034-35 | AL5: Performance | AQ5: DP reference | AT5: PCD output (cumulative) - Target` | BE5: PCD output by 2029-30 (Target) | BF5: PCD Output by 2034-35 (Target) | BH5: PCD output (cumulative) - Outturn & Forecast | BS5: PCD output by 2029-30 (Outturn & Forecast) | BT5: PCD Output by 2034-35 (Outturn & Forecast) | BV5: Performance
J6: Pre-AMP8 | K6: AMP8 | P6: AMP9 | X6: Pre-AMP8 | Y6: AMP8 | AD6: AMP9 | AL6: Forecast delivery as a percentage of PCD output target in 2029-30 (%) | AM6: Forecast delivery as a percentage of PCD output target in 2034-35 (%) | AN6: RAG Rating - Assurer's view | AO6: RAG Rating - Company's own view | AT6: Pre- AMP8 | AU6: AMP8 | AZ6: AMP9 | BE6: PCD Output Target by 2029-30 | BF6: PCD Output Target by 2034-35 | BH6: Pre- AMP8 | BI6: AMP8 | BN6: AMP9 | BS6: PCD Output Outturn & Forecast by 2029-30 | BT6: PCD Output Outturn & Forecast by 2034-35 | BV6: Forecast delivery as a percentage of PCD output target in 2029-30 (%) | BW6: Forecast delivery as a percentage of PCD output target in 2034-35 (%)
A7: Start_Data | J7: 2024-25 | K7: 2025-26 | L7: 2026-27 | M7: 2027-28 | N7: 2028-29 | O7: 2029-30 | P7: 2030-31 | Q7: 2031-32 | R7: 2032-33 | S7: 2033-34 | T7: 2034-35 | X7: 2024-25 | Y7: 2025-26 | Z7: 2026-27 | AA7: 2027-28 | AB7: 2028-29 | AC7: 2029-30 | AD7: 2030-31 | AE7: 2031-32 | AF7: 2032-33 | AG7: 2033-34 | AH7: 2034-35 | AS7: Start_BON | AT7: 2024-25 | AU7: 2025-26 | AV7: 2026-27 | AW7: 2027-28 | AX7: 2028-29 | AY7: 2029-30 | AZ7: 2030-31 | BA7: 2031-32 | BB7: 2032-33 | BC7: 2033-34 | BD7: 2034-35 | BE7: 2029-30 | BF7: 2034-35 | BH7: 2024-25 | BI7: 2025-26 | BJ7: 2026-27 | BK7: 2027-28 | BL7: 2028-29 | BM7: 2029-30 | BN7: 2030-31 | BO7: 2031-32 | BP7: 2032-33 | BQ7: 2033-34 | BR7: 2034-35 | BS7: 2029-30 | BT7: 2034-35 | BV7: 2029-30 | BW7: 2034-35
B8: =rngAcronym -> BRL | C8: PR24CA110 Wastewater flow and monitoring | D8: PCDWW2a | E8: =IFERROR(INDEX('PCD List'!$E$3:$O$41,MATCH(DPWW1!$D8,'PCD List'!$D$3:$D$41,0),MATCH(DPWW1!$B8,'PCD List'!$E$2:$O$2,0)),"") ->  | F8: Flow monitoring at sewage treatment works; (WINEP/NEP) | G8: Number of flow monitoring permits only or simple schemes delivered | H8: Nr | I8: 0 | U8: =O8 -> 0 | V8: =T8 -> 0 | AI8: =AC8 -> 0 | AJ8: =AH8 -> 0 | AL8: =IFERROR(AI8 /U8, "") ->  | AN8: Blue | AO8: Blue | AQ8: DPWW1.1 | AT8: PCD_DPWW1_FMS | AU8: PCD_DPWW1_FMS | AV8: PCD_DPWW1_FMS | AW8: PCD_DPWW1_FMS | AX8: PCD_DPWW1_FMS | AY8: PCD_DPWW1_FMS | AZ8: PCD_DPWW1_FMS | BA8: PCD_DPWW1_FMS | BB8: PCD_DPWW1_FMS | BC8: PCD_DPWW1_FMS | BD8: PCD_DPWW1_FMS | BE8: PCD_DPWW1_FMS_T | BF8: PCD_DPWW1_FMS_T | BH8: PCD_DPWW1_FMS_O | BI8: PCD_DPWW1_FMS_O | BJ8: PCD_DPWW1_FMS_O | BK8: PCD_DPWW1_FMS_O | BL8: PCD_DPWW1_FMS_O | BM8: PCD_DPWW1_FMS_O | BN8: PCD_DPWW1_FMS_O | BO8: PCD_DPWW1_FMS_O | BP8: PCD_DPWW1_FMS_O | BQ8: PCD_DPWW1_FMS_O | BR8: PCD_DPWW1_FMS_O | BS8: PCD_DPWW1_FMS_OT | BT8: PCD_DPWW1_FMS_OT | BV8: PCD_DPWW1_FMS_P | BW8: PCD_DPWW1_FMS_P
B9: =$B$8 -> BRL | D9: PCDWW2a | E9: =IFERROR(INDEX('PCD List'!$E$3:$O$41,MATCH(DPWW1!$D9,'PCD List'!$D$3:$D$41,0),MATCH(DPWW1!$B9,'PCD List'!$E$2:$O$2,0)),"") ->  | F9: Flow monitoring at sewage treatment works; (WINEP/NEP) | G9: Number of flow monitoring complex schemes delivered | H9: Nr | I9: 0 | U9: =O9 -> 0 | V9: =T9 -> 0 | AI9: =AC9 -> 0 | AJ9: =AH9 -> 0 | AL9: =IFERROR(AI9 /U9, "") ->  | AM9: =IFERROR(AJ9 /V9, "") ->  | AN9: Green | AO9: Green | AQ9: DPWW1.2 | AT9: PCD_DPWW1_FMC | AU9: PCD_DPWW1_FMC | AV9: PCD_DPWW1_FMC | AW9: PCD_DPWW1_FMC | AX9: PCD_DPWW1_FMC | AY9: PCD_DPWW1_FMC | AZ9: PCD_DPWW1_FMC | BA9: PCD_DPWW1_FMC | BB9: PCD_DPWW1_FMC | BC9: PCD_DPWW1_FMC | BD9: PCD_DPWW1_FMC | BE9: PCD_DPWW1_FMC_T | BF9: PCD_DPWW1_FMC_T | BH9: PCD_DPWW1_FMC_O | BI9: PCD_DPWW1_FMC_O | BJ9: PCD_DPWW1_FMC_O | BK9: PCD_DPWW1_FMC_O | BL9: PCD_DPWW1_FMC_O | BM9: PCD_DPWW1_FMC_O | BN9: PCD_DPWW1_FMC_O | BO9: PCD_DPWW1_FMC_O | BP9: PCD_DPWW1_FMC_O | BQ9: PCD_DPWW1_FMC_O | BR9: PCD_DPWW1_FMC_O | BS9: PCD_DPWW1_FMC_OT | BT9: PCD_DPWW1_FMC_OT | BV9: PCD_DPWW1_FMC_P | BW9: PCD_DPWW1_FMC_P
B10: BRL | D10: PCDWW2b | E10: =IFERROR(INDEX('PCD List'!$E$3:$O$41,MATCH(DPWW1!$D10,'PCD List'!$D$3:$D$41,0),MATCH(DPWW1!$B10,'PCD List'!$E$2:$O$2,0)),"") ->  | F10: Continuous river water quality monitoring (CWQM) | G10: Continuous river water quality monitoring (CWQM) | H10: Nr | I10: 0 | U10: 0 | V10: 0 | AI10: 0 | AJ10: 0 | AN10: Red | AO10: Red | AQ10: DPWW1.3 | AT10: PCD_DPWW1_CWQM | AU10: PCD_DPWW1_CWQM | AV10: PCD_DPWW1_CWQM | AW10: PCD_DPWW1_CWQM | AX10: PCD_DPWW1_CWQM | AY10: PCD_DPWW1_CWQM | AZ10: PCD_DPWW1_CWQM | BA10: PCD_DPWW1_CWQM | BB10: PCD_DPWW1_CWQM | BC10: PCD_DPWW1_CWQM | BD10: PCD_DPWW1_CWQM | BE10: PCD_DPWW1_CWQM_T | BF10: PCD_DPWW1_CWQM_T | BH10: PCD_DPWW1_CWQM_O | BI10: PCD_DPWW1_CWQM_O | BJ10: PCD_DPWW1_CWQM_O | BK10: PCD_DPWW1_CWQM_O | BL10: PCD_DPWW1_CWQM_O | BM10: PCD_DPWW1_CWQM_O | BN10: PCD_DPWW1_CWQM_O | BO10: PCD_DPWW1_CWQM_O | BP10: PCD_DPWW1_CWQM_O | BQ10: PCD_DPWW1_CWQM_O | BR10: PCD_DPWW1_CWQM_O | BS10: PCD_DPWW1_CWQM_OT | BT10: PCD_DPWW1_CWQM_OT | BV10: PCD_DPWW1_CWQM_P | BW10: PCD_DPWW1_CWQM_P
B11: BRL | D11: PCDWW3 | E11: =IFERROR(INDEX('PCD List'!$E$3:$O$41,MATCH(DPWW1!$D11,'PCD List'!$D$3:$D$41,0),MATCH(DPWW1!$B11,'PCD List'!$E$2:$O$2,0)),"") ->  | F11: MCERTs monitoring at emergency sewage pumping station overflows (WINEP/NEP) | G11: Number of MCERTs monitoring schemes at SPS emergency overflows - EDM only | H11: Nr | I11: 0 | U11: 0 | V11: 0 | AI11: 0 | AJ11: 0 | AN11: Green | AO11: Green | AQ11: DPWW1.4 | AT11: PCD_DPWW1_SPSO1 | AU11: PCD_DPWW1_SPSO1 | AV11: PCD_DPWW1_SPSO1 | AW11: PCD_DPWW1_SPSO1 | AX11: PCD_DPWW1_SPSO1 | AY11: PCD_DPWW1_SPSO1 | AZ11: PCD_DPWW1_SPSO1 | BA11: PCD_DPWW1_SPSO1 | BB11: PCD_DPWW1_SPSO1 | BC11: PCD_DPWW1_SPSO1 | BD11: PCD_DPWW1_SPSO1 | BE11: PCD_DPWW1_SPSO1_T | BF11: PCD_DPWW1_SPSO1_T | BH11: PCD_DPWW1_SPSO1_O | BI11: PCD_DPWW1_SPSO1_O | BJ11: PCD_DPWW1_SPSO1_O | BK11: PCD_DPWW1_SPSO1_O | BL11: PCD_DPWW1_SPSO1_O | BM11: PCD_DPWW1_SPSO1_O | BN11: PCD_DPWW1_SPSO1_O | BO11: PCD_DPWW1_SPSO1_O | BP11: PCD_DPWW1_SPSO1_O | BQ11: PCD_DPWW1_SPSO1_O | BR11: PCD_DPWW1_SPSO1_O | BS11: PCD_DPWW1_SPSO1_OT | BT11: PCD_DPWW1_SPSO1_OT | BV11: PCD_DPWW1_SPSO1_P | BW11: PCD_DPWW1_SPSO1_P
B12: BRL | D12: PCDWW3 | E12: =IFERROR(INDEX('PCD List'!$E$3:$O$41,MATCH(DPWW1!$D12,'PCD List'!$D$3:$D$41,0),MATCH(DPWW1!$B12,'PCD List'!$E$2:$O$2,0)),"") ->  | F12: MCERTs monitoring at emergency sewage pumping station overflows (WINEP/NEP) | G12: Number of MCERTs monitoring schemes at SPS emergency overflows - EDM + civils | H12: Nr | I12: 0 | U12: 0 | V12: 0 | AI12: 0 | AJ12: 0 | AN12: Red | AO12: Red | AQ12: DPWW1.5 | AT12: PCD_DPWW1_SPSO2 | AU12: PCD_DPWW1_SPSO2 | AV12: PCD_DPWW1_SPSO2 | AW12: PCD_DPWW1_SPSO2 | AX12: PCD_DPWW1_SPSO2 | AY12: PCD_DPWW1_SPSO2 | AZ12: PCD_DPWW1_SPSO2 | BA12: PCD_DPWW1_SPSO2 | BB12: PCD_DPWW1_SPSO2 | BC12: PCD_DPWW1_SPSO2 | BD12: PCD_DPWW1_SPSO2 | BE12: PCD_DPWW1_SPSO2_T | BF12: PCD_DPWW1_SPSO2_T | BH12: PCD_DPWW1_SPSO2_O | BI12: PCD_DPWW1_SPSO2_O | BJ12: PCD_DPWW1_SPSO2_O | BK12: PCD_DPWW1_SPSO2_O | BL12: PCD_DPWW1_SPSO2_O | BM12: PCD_DPWW1_SPSO2_O | BN12: PCD_DPWW1_SPSO2_O | BO12: PCD_DPWW1_SPSO2_O | BP12: PCD_DPWW1_SPSO2_O | BQ12: PCD_DPWW1_SPSO2_O | BR12: PCD_DPWW1_SPSO2_O | BS12: PCD_DPWW1_SPSO2_OT | BT12: PCD_DPWW1_SPSO2_OT | BV12: PCD_DPWW1_SPSO2_P | BW12: PCD_DPWW1_SPSO2_P
B13: BRL | D13: PCDWW3 | E13: =IFERROR(INDEX('PCD List'!$E$3:$O$41,MATCH(DPWW1!$D13,'PCD List'!$D$3:$D$41,0),MATCH(DPWW1!$B13,'PCD List'!$E$2:$O$2,0)),"") ->  | F13: MCERTs monitoring at emergency sewage pumping station overflows (WINEP/NEP) | G13: Number of MCERTs monitoring schemes at SPS emergency overflows - EDM + PFF | H13: Nr | I13: 0 | U13: 0 | V13: 0 | AI13: 0 | AJ13: 0 | AN13: Green | AO13: Green | AQ13: DPWW1.6 | AT13: PCD_DPWW1_SPSO3 | AU13: PCD_DPWW1_SPSO3 | AV13: PCD_DPWW1_SPSO3 | AW13: PCD_DPWW1_SPSO3 | AX13: PCD_DPWW1_SPSO3 | AY13: PCD_DPWW1_SPSO3 | AZ13: PCD_DPWW1_SPSO3 | BA13: PCD_DPWW1_SPSO3 | BB13: PCD_DPWW1_SPSO3 | BC13: PCD_DPWW1_SPSO3 | BD13: PCD_DPWW1_SPSO3 | BE13: PCD_DPWW1_SPSO3_T | BF13: PCD_DPWW1_SPSO3_T | BH13: PCD_DPWW1_SPSO3_O | BI13: PCD_DPWW1_SPSO3_O | BJ13: PCD_DPWW1_SPSO3_O | BK13: PCD_DPWW1_SPSO3_O | BL13: PCD_DPWW1_SPSO3_O | BM13: PCD_DPWW1_SPSO3_O | BN13: PCD_DPWW1_SPSO3_O | BO13: PCD_DPWW1_SPSO3_O | BP13: PCD_DPWW1_SPSO3_O | BQ13: PCD_DPWW1_SPSO3_O | BR13: PCD_DPWW1_SPSO3_O | BS13: PCD_DPWW1_SPSO3_OT | BT13: PCD_DPWW1_SPSO3_OT | BV13: PCD_DPWW1_SPSO3_P | BW13: PCD_DPWW1_SPSO3_P
B14: BRL | D14: PCDWW3 | E14: =IFERROR(INDEX('PCD List'!$E$3:$O$41,MATCH(DPWW1!$D14,'PCD List'!$D$3:$D$41,0),MATCH(DPWW1!$B14,'PCD List'!$E$2:$O$2,0)),"") ->  | F14: MCERTs monitoring at emergency sewage pumping station overflows (WINEP/NEP) | G14: Number of MCERTs monitoring schemes at SPS emergency overflows - EDM + PFF + civils | H14: Nr | I14: 0 | U14: 0 | V14: 0 | AI14: 0 | AJ14: 0 | AN14: Green | AO14: Green | AQ14: DPWW1.7 | AT14: PCD_DPWW1_SPSO4 | AU14: PCD_DPWW1_SPSO4 | AV14: PCD_DPWW1_SPSO4 | AW14: PCD_DPWW1_SPSO4 | AX14: PCD_DPWW1_SPSO4 | AY14: PCD_DPWW1_SPSO4 | AZ14: PCD_DPWW1_SPSO4 | BA14: PCD_DPWW1_SPSO4 | BB14: PCD_DPWW1_SPSO4 | BC14: PCD_DPWW1_SPSO4 | BD14: PCD_DPWW1_SPSO4 | BE14: PCD_DPWW1_SPSO4_T | BF14: PCD_DPWW1_SPSO4_T | BH14: PCD_DPWW1_SPSO4_O | BI14: PCD_DPWW1_SPSO4_O | BJ14: PCD_DPWW1_SPSO4_O | BK14: PCD_DPWW1_SPSO4_O | BL14: PCD_DPWW1_SPSO4_O | BM14: PCD_DPWW1_SPSO4_O | BN14: PCD_DPWW1_SPSO4_O | BO14: PCD_DPWW1_SPSO4_O | BP14: PCD_DPWW1_SPSO4_O | BQ14: PCD_DPWW1_SPSO4_O | BR14: PCD_DPWW1_SPSO4_O | BS14: PCD_DPWW1_SPSO4_OT | BT14: PCD_DPWW1_SPSO4_OT | BV14: PCD_DPWW1_SPSO4_P | BW14: PCD_DPWW1_SPSO4_P
B15: BRL | D15: PCDWW3 | E15: =IFERROR(INDEX('PCD List'!$E$3:$O$41,MATCH(DPWW1!$D15,'PCD List'!$D$3:$D$41,0),MATCH(DPWW1!$B15,'PCD List'!$E$2:$O$2,0)),"") ->  | F15: MCERTs monitoring at emergency sewage pumping station overflows (WINEP/NEP) | G15: Number of MCERTs monitoring schemes at SPS emergency overflows - Permits only | H15: Nr | I15: 0 | U15: 0 | V15: 0 | AI15: 0 | AJ15: 0 | AN15: Amber | AO15: Amber | AQ15: DPWW1.8 | AT15: PCD_DPWW1_SPSO5 | AU15: PCD_DPWW1_SPSO5 | AV15: PCD_DPWW1_SPSO5 | AW15: PCD_DPWW1_SPSO5 | AX15: PCD_DPWW1_SPSO5 | AY15: PCD_DPWW1_SPSO5 | AZ15: PCD_DPWW1_SPSO5 | BA15: PCD_DPWW1_SPSO5 | BB15: PCD_DPWW1_SPSO5 | BC15: PCD_DPWW1_SPSO5 | BD15: PCD_DPWW1_SPSO5 | BE15: PCD_DPWW1_SPSO5_T | BF15: PCD_DPWW1_SPSO5_T | BH15: PCD_DPWW1_SPSO5_O | BI15: PCD_DPWW1_SPSO5_O | BJ15: PCD_DPWW1_SPSO5_O | BK15: PCD_DPWW1_SPSO5_O | BL15: PCD_DPWW1_SPSO5_O | BM15: PCD_DPWW1_SPSO5_O | BN15: PCD_DPWW1_SPSO5_O | BO15: PCD_DPWW1_SPSO5_O | BP15: PCD_DPWW1_SPSO5_O | BQ15: PCD_DPWW1_SPSO5_O | BR15: PCD_DPWW1_SPSO5_O | BS15: PCD_DPWW1_SPSO5_OT | BT15: PCD_DPWW1_SPSO5_OT | BV15: PCD_DPWW1_SPSO5_P | BW15: PCD_DPWW1_SPSO5_P
B16: BRL | C16: PR24CA115 Wastewater Other Storm Overflow | D16: PCDWW5b | E16: =IFERROR(INDEX('PCD List'!$E$3:$O$41,MATCH(DPWW1!$D16,'PCD List'!$D$3:$D$41,0),MATCH(DPWW1!$B16,'PCD List'!$E$2:$O$2,0)),"") ->  | F16: Storm Overflow - Wetland | G16: Number of schemes | H16: Nr | I16: 0 | U16: 0 | V16: 0 | AI16: 0 | AJ16: 0 | AN16: Green | AO16: Green | AQ16: DPWW1.9 | AT16: PCD_DPWW1_SOFW1 | AU16: PCD_DPWW1_SOFW1 | AV16: PCD_DPWW1_SOFW1 | AW16: PCD_DPWW1_SOFW1 | AX16: PCD_DPWW1_SOFW1 | AY16: PCD_DPWW1_SOFW1 | AZ16: PCD_DPWW1_SOFW1 | BA16: PCD_DPWW1_SOFW1 | BB16: PCD_DPWW1_SOFW1 | BC16: PCD_DPWW1_SOFW1 | BD16: PCD_DPWW1_SOFW1 | BE16: PCD_DPWW1_SOFW1_T | BF16: PCD_DPWW1_SOFW1_T | BH16: PCD_DPWW1_SOFW1_O | BI16: PCD_DPWW1_SOFW1_O | BJ16: PCD_DPWW1_SOFW1_O | BK16: PCD_DPWW1_SOFW1_O | BL16: PCD_DPWW1_SOFW1_O | BM16: PCD_DPWW1_SOFW1_O | BN16: PCD_DPWW1_SOFW1_O | BO16: PCD_DPWW1_SOFW1_O | BP16: PCD_DPWW1_SOFW1_O | BQ16: PCD_DPWW1_SOFW1_O | BR16: PCD_DPWW1_SOFW1_O | BS16: PCD_DPWW1_SOFW1_OT | BT16: PCD_DPWW1_SOFW1_OT | BV16: PCD_DPWW1_SOFW1_P | BW16: PCD_DPWW1_SOFW1_P
B17: BRL | D17: PCDWW5b | E17: =IFERROR(INDEX('PCD List'!$E$3:$O$41,MATCH(DPWW1!$D17,'PCD List'!$D$3:$D$41,0),MATCH(DPWW1!$B17,'PCD List'!$E$2:$O$2,0)),"") ->  | F17: Storm Overflow - Wetland | G17: Wetland area delivered | H17: ha | I17: 0 | U17: 0 | V17: 0 | AI17: 0 | AJ17: 0 | AN17: Green | AO17: Green | AQ17: DPWW1.10 | AT17: PCD_DPWW1_SOFW2 | AU17: PCD_DPWW1_SOFW2 | AV17: PCD_DPWW1_SOFW2 | AW17: PCD_DPWW1_SOFW2 | AX17: PCD_DPWW1_SOFW2 | AY17: PCD_DPWW1_SOFW2 | AZ17: PCD_DPWW1_SOFW2 | BA17: PCD_DPWW1_SOFW2 | BB17: PCD_DPWW1_SOFW2 | BC17: PCD_DPWW1_SOFW2 | BD17: PCD_DPWW1_SOFW2 | BE17: PCD_DPWW1_SOFW2_T | BF17: PCD_DPWW1_SOFW2_T | BH17: PCD_DPWW1_SOFW2_O | BI17: PCD_DPWW1_SOFW2_O | BJ17: PCD_DPWW1_SOFW2_O | BK17: PCD_DPWW1_SOFW2_O | BL17: PCD_DPWW1_SOFW2_O | BM17: PCD_DPWW1_SOFW2_O | BN17: PCD_DPWW1_SOFW2_O | BO17: PCD_DPWW1_SOFW2_O | BP17: PCD_DPWW1_SOFW2_O | BQ17: PCD_DPWW1_SOFW2_O | BR17: PCD_DPWW1_SOFW2_O | BS17: PCD_DPWW1_SOFW2_OT | BT17: PCD_DPWW1_SOFW2_OT | BV17: PCD_DPWW1_SOFW2_P | BW17: PCD_DPWW1_SOFW2_P
B18: BRL | D18: PCDWW6 | E18: =IFERROR(INDEX('PCD List'!$E$3:$O$41,MATCH(DPWW1!$D18,'PCD List'!$D$3:$D$41,0),MATCH(DPWW1!$B18,'PCD List'!$E$2:$O$2,0)),"") ->  | F18: Storm Overflow - Screens | G18: Number of EnvAct_IMP5 compliant screens installed and operational at screen only solutions | H18: Nr | I18: 0 | U18: 0 | V18: 0 | AI18: 0 | AJ18: 0 | AN18: Green | AO18: Green | AQ18: DPWW1.11 | AT18: PCD_DPWW1_SOFS | AU18: PCD_DPWW1_SOFS | AV18: PCD_DPWW1_SOFS | AW18: PCD_DPWW1_SOFS | AX18: PCD_DPWW1_SOFS | AY18: PCD_DPWW1_SOFS | AZ18: PCD_DPWW1_SOFS | BA18: PCD_DPWW1_SOFS | BB18: PCD_DPWW1_SOFS | BC18: PCD_DPWW1_SOFS | BD18: PCD_DPWW1_SOFS | BE18: PCD_DPWW1_SOFS_T | BF18: PCD_DPWW1_SOFS_T | BH18: PCD_DPWW1_SOFS_O | BI18: PCD_DPWW1_SOFS_O | BJ18: PCD_DPWW1_SOFS_O | BK18: PCD_DPWW1_SOFS_O | BL18: PCD_DPWW1_SOFS_O | BM18: PCD_DPWW1_SOFS_O | BN18: PCD_DPWW1_SOFS_O | BO18: PCD_DPWW1_SOFS_O | BP18: PCD_DPWW1_SOFS_O | BQ18: PCD_DPWW1_SOFS_O | BR18: PCD_DPWW1_SOFS_O | BS18: PCD_DPWW1_SOFS_OT | BT18: PCD_DPWW1_SOFS_OT | BV18: PCD_DPWW1_SOFS_P | BW18: PCD_DPWW1_SOFS_P
B19: BRL | C19: PR24CA111 Wastewater Treatment | D19: PCDWW7 | E19: =IFERROR(INDEX('PCD List'!$E$3:$O$41,MATCH(DPWW1!$D19,'PCD List'!$D$3:$D$41,0),MATCH(DPWW1!$B19,'PCD List'!$E$2:$O$2,0)),"") ->  | F19: Treatment for chemical removal (WINEP/NEP) | G19: Total number of schemes with a treatment solution delivered to meet compliance | H19: Nr | I19: 0 | U19: 0 | V19: 0 | AI19: 0 | AJ19: 0 | AN19: Green | AO19: Green | AQ19: DPWW1.12 | AT19: PCD_DPWW1_TCR1 | AU19: PCD_DPWW1_TCR1 | AV19: PCD_DPWW1_TCR1 | AW19: PCD_DPWW1_TCR1 | AX19: PCD_DPWW1_TCR1 | AY19: PCD_DPWW1_TCR1 | AZ19: PCD_DPWW1_TCR1 | BA19: PCD_DPWW1_TCR1 | BB19: PCD_DPWW1_TCR1 | BC19: PCD_DPWW1_TCR1 | BD19: PCD_DPWW1_TCR1 | BE19: PCD_DPWW1_TCR1_T | BF19: PCD_DPWW1_TCR1_T | BH19: PCD_DPWW1_TCR1_O | BI19: PCD_DPWW1_TCR1_O | BJ19: PCD_DPWW1_TCR1_O | BK19: PCD_DPWW1_TCR1_O | BL19: PCD_DPWW1_TCR1_O | BM19: PCD_DPWW1_TCR1_O | BN19: PCD_DPWW1_TCR1_O | BO19: PCD_DPWW1_TCR1_O | BP19: PCD_DPWW1_TCR1_O | BQ19: PCD_DPWW1_TCR1_O | BR19: PCD_DPWW1_TCR1_O | BS19: PCD_DPWW1_TCR1_OT | BT19: PCD_DPWW1_TCR1_OT | BV19: PCD_DPWW1_TCR1_P | BW19: PCD_DPWW1_TCR1_P
B20: BRL | D20: PCDWW7 | E20: =IFERROR(INDEX('PCD List'!$E$3:$O$41,MATCH(DPWW1!$D20,'PCD List'!$D$3:$D$41,0),MATCH(DPWW1!$B20,'PCD List'!$E$2:$O$2,0)),"") ->  | F20: Treatment for chemical removal (WINEP/NEP) | G20: Population equivalent served by schemes with a treatment solution being delivered to meet compliance | H20: Nr | I20: 0 | U20: 0 | V20: 0 | AI20: 0 | AJ20: 0 | AN20: Red | AO20: Red | AQ20: DPWW1.13 | AT20: PCD_DPWW1_TCR2 | AU20: PCD_DPWW1_TCR2 | AV20: PCD_DPWW1_TCR2 | AW20: PCD_DPWW1_TCR2 | AX20: PCD_DPWW1_TCR2 | AY20: PCD_DPWW1_TCR2 | AZ20: PCD_DPWW1_TCR2 | BA20: PCD_DPWW1_TCR2 | BB20: PCD_DPWW1_TCR2 | BC20: PCD_DPWW1_TCR2 | BD20: PCD_DPWW1_TCR2 | BE20: PCD_DPWW1_TCR2_T | BF20: PCD_DPWW1_TCR2_T | BH20: PCD_DPWW1_TCR2_O | BI20: PCD_DPWW1_TCR2_O | BJ20: PCD_DPWW1_TCR2_O | BK20: PCD_DPWW1_TCR2_O | BL20: PCD_DPWW1_TCR2_O | BM20: PCD_DPWW1_TCR2_O | BN20: PCD_DPWW1_TCR2_O | BO20: PCD_DPWW1_TCR2_O | BP20: PCD_DPWW1_TCR2_O | BQ20: PCD_DPWW1_TCR2_O | BR20: PCD_DPWW1_TCR2_O | BS20: PCD_DPWW1_TCR2_OT | BT20: PCD_DPWW1_TCR2_OT | BV20: PCD_DPWW1_TCR2_P | BW20: PCD_DPWW1_TCR2_P
B21: BRL | D21: PCDWW9 | E21: =IFERROR(INDEX('PCD List'!$E$3:$O$41,MATCH(DPWW1!$D21,'PCD List'!$D$3:$D$41,0),MATCH(DPWW1!$B21,'PCD List'!$E$2:$O$2,0)),"") ->  | F21: Treatment for total nitrogen removal (WINEP/NEP) | G21: Total number of schemes delivered to meet compliance | H21: Nr | I21: 0 | U21: 0 | V21: 0 | AI21: 0 | AJ21: 0 | AN21: Green | AO21: Green | AQ21: DPWW1.14 | AT21: PCD_DPWW1_TNR1 | AU21: PCD_DPWW1_TNR1 | AV21: PCD_DPWW1_TNR1 | AW21: PCD_DPWW1_TNR1 | AX21: PCD_DPWW1_TNR1 | AY21: PCD_DPWW1_TNR1 | AZ21: PCD_DPWW1_TNR1 | BA21: PCD_DPWW1_TNR1 | BB21: PCD_DPWW1_TNR1 | BC21: PCD_DPWW1_TNR1 | BD21: PCD_DPWW1_TNR1 | BE21: PCD_DPWW1_TNR1_T | BF21: PCD_DPWW1_TNR1_T | BH21: PCD_DPWW1_TNR1_O | BI21: PCD_DPWW1_TNR1_O | BJ21: PCD_DPWW1_TNR1_O | BK21: PCD_DPWW1_TNR1_O | BL21: PCD_DPWW1_TNR1_O | BM21: PCD_DPWW1_TNR1_O | BN21: PCD_DPWW1_TNR1_O | BO21: PCD_DPWW1_TNR1_O | BP21: PCD_DPWW1_TNR1_O | BQ21: PCD_DPWW1_TNR1_O | BR21: PCD_DPWW1_TNR1_O | BS21: PCD_DPWW1_TNR1_OT | BT21: PCD_DPWW1_TNR1_OT | BV21: PCD_DPWW1_TNR1_P | BW21: PCD_DPWW1_TNR1_P
B22: BRL | D22: PCDWW9 | E22: =IFERROR(INDEX('PCD List'!$E$3:$O$41,MATCH(DPWW1!$D22,'PCD List'!$D$3:$D$41,0),MATCH(DPWW1!$B22,'PCD List'!$E$2:$O$2,0)),"") ->  | F22: Treatment for total nitrogen removal (WINEP/NEP) | G22: Population equivalent served by schemes delivered to meet compliance | H22: Nr | I22: 0 | U22: 0 | V22: 0 | AI22: 0 | AJ22: 0 | AN22: Green | AO22: Green | AQ22: DPWW1.15 | AT22: PCD_DPWW1_TNR2 | AU22: PCD_DPWW1_TNR2 | AV22: PCD_DPWW1_TNR2 | AW22: PCD_DPWW1_TNR2 | AX22: PCD_DPWW1_TNR2 | AY22: PCD_DPWW1_TNR2 | AZ22: PCD_DPWW1_TNR2 | BA22: PCD_DPWW1_TNR2 | BB22: PCD_DPWW1_TNR2 | BC22: PCD_DPWW1_TNR2 | BD22: PCD_DPWW1_TNR2 | BE22: PCD_DPWW1_TNR2_T | BF22: PCD_DPWW1_TNR2_T | BH22: PCD_DPWW1_TNR2_O | BI22: PCD_DPWW1_TNR2_O | BJ22: PCD_DPWW1_TNR2_O | BK22: PCD_DPWW1_TNR2_O | BL22: PCD_DPWW1_TNR2_O | BM22: PCD_DPWW1_TNR2_O | BN22: PCD_DPWW1_TNR2_O | BO22: PCD_DPWW1_TNR2_O | BP22: PCD_DPWW1_TNR2_O | BQ22: PCD_DPWW1_TNR2_O | BR22: PCD_DPWW1_TNR2_O | BS22: PCD_DPWW1_TNR2_OT | BT22: PCD_DPWW1_TNR2_OT | BV22: PCD_DPWW1_TNR2_P | BW22: PCD_DPWW1_TNR2_P
B23: BRL | D23: PCDWW11 | E23: =IFERROR(INDEX('PCD List'!$E$3:$O$41,MATCH(DPWW1!$D23,'PCD List'!$D$3:$D$41,0),MATCH(DPWW1!$B23,'PCD List'!$E$2:$O$2,0)),"") ->  | F23: Nature based solutions for treatment for nutrients and/or sanitary determinands (WINEP/NEP) | G23: Total number of site treatment solutions delivered to meet compliance | H23: Nr | I23: 0 | U23: 0 | V23: 0 | AI23: 0 | AJ23: 0 | AN23: Green | AO23: Green | AQ23: DPWW1.16 | AT23: PCD_DPWW1_NBS_SOL | AU23: PCD_DPWW1_NBS_SOL | AV23: PCD_DPWW1_NBS_SOL | AW23: PCD_DPWW1_NBS_SOL | AX23: PCD_DPWW1_NBS_SOL | AY23: PCD_DPWW1_NBS_SOL | AZ23: PCD_DPWW1_NBS_SOL | BA23: PCD_DPWW1_NBS_SOL | BB23: PCD_DPWW1_NBS_SOL | BC23: PCD_DPWW1_NBS_SOL | BD23: PCD_DPWW1_NBS_SOL | BE23: PCD_DPWW1_NBS_SOL_T | BF23: PCD_DPWW1_NBS_SOL_T | BH23: PCD_DPWW1_NBS_SOL_O | BI23: PCD_DPWW1_NBS_SOL_O | BJ23: PCD_DPWW1_NBS_SOL_O | BK23: PCD_DPWW1_NBS_SOL_O | BL23: PCD_DPWW1_NBS_SOL_O | BM23: PCD_DPWW1_NBS_SOL_O | BN23: PCD_DPWW1_NBS_SOL_O | BO23: PCD_DPWW1_NBS_SOL_O | BP23: PCD_DPWW1_NBS_SOL_O | BQ23: PCD_DPWW1_NBS_SOL_O | BR23: PCD_DPWW1_NBS_SOL_O | BS23: PCD_DPWW1_NBS_SOL_OT | BT23: PCD_DPWW1_NBS_SOL_OT | BV23: PCD_DPWW1_NBS_SOL_P | BW23: PCD_DPWW1_NBS_SOL_P
B24: BRL | D24: PCDWW13a | E24: =IFERROR(INDEX('PCD List'!$E$3:$O$41,MATCH(DPWW1!$D24,'PCD List'!$D$3:$D$41,0),MATCH(DPWW1!$B24,'PCD List'!$E$2:$O$2,0)),"") ->  | F24: Catchment solutions (WINEP/NEP) | G24: Total number of CNB solutions delivered to meet compliance (allowance/7) | H24: Nr | I24: 0 | U24: 0 | V24: 0 | AI24: 0 | AJ24: 0 | AN24: Red | AO24: Red | AQ24: DPWW1.17 | AT24: PCD_DPWW1_CS1 | AU24: PCD_DPWW1_CS1 | AV24: PCD_DPWW1_CS1 | AW24: PCD_DPWW1_CS1 | AX24: PCD_DPWW1_CS1 | AY24: PCD_DPWW1_CS1 | AZ24: PCD_DPWW1_CS1 | BA24: PCD_DPWW1_CS1 | BB24: PCD_DPWW1_CS1 | BC24: PCD_DPWW1_CS1 | BD24: PCD_DPWW1_CS1 | BE24: PCD_DPWW1_CS1_T | BF24: PCD_DPWW1_CS1_T | BH24: PCD_DPWW1_CS1_O | BI24: PCD_DPWW1_CS1_O | BJ24: PCD_DPWW1_CS1_O | BK24: PCD_DPWW1_CS1_O | BL24: PCD_DPWW1_CS1_O | BM24: PCD_DPWW1_CS1_O | BN24: PCD_DPWW1_CS1_O | BO24: PCD_DPWW1_CS1_O | BP24: PCD_DPWW1_CS1_O | BQ24: PCD_DPWW1_CS1_O | BR24: PCD_DPWW1_CS1_O | BS24: PCD_DPWW1_CS1_OT | BT24: PCD_DPWW1_CS1_OT | BV24: PCD_DPWW1_CS1_P | BW24: PCD_DPWW1_CS1_P
B25: BRL | D25: PCDWW13a | E25: =IFERROR(INDEX('PCD List'!$E$3:$O$41,MATCH(DPWW1!$D25,'PCD List'!$D$3:$D$41,0),MATCH(DPWW1!$B25,'PCD List'!$E$2:$O$2,0)),"") ->  | F25: Catchment solutions (WINEP/NEP) | G25: Total number of CP solutions delivered to meet compliance (allowance/6) | H25: Nr | I25: 0 | U25: 0 | V25: 0 | AI25: 0 | AJ25: 0 | AN25: Green | AO25: Green | AQ25: DPWW1.18 | AT25: PCD_DPWW1_CS2 | AU25: PCD_DPWW1_CS2 | AV25: PCD_DPWW1_CS2 | AW25: PCD_DPWW1_CS2 | AX25: PCD_DPWW1_CS2 | AY25: PCD_DPWW1_CS2 | AZ25: PCD_DPWW1_CS2 | BA25: PCD_DPWW1_CS2 | BB25: PCD_DPWW1_CS2 | BC25: PCD_DPWW1_CS2 | BD25: PCD_DPWW1_CS2 | BE25: PCD_DPWW1_CS2_T | BF25: PCD_DPWW1_CS2_T | BH25: PCD_DPWW1_CS2_O | BI25: PCD_DPWW1_CS2_O | BJ25: PCD_DPWW1_CS2_O | BK25: PCD_DPWW1_CS2_O | BL25: PCD_DPWW1_CS2_O | BM25: PCD_DPWW1_CS2_O | BN25: PCD_DPWW1_CS2_O | BO25: PCD_DPWW1_CS2_O | BP25: PCD_DPWW1_CS2_O | BQ25: PCD_DPWW1_CS2_O | BR25: PCD_DPWW1_CS2_O | BS25: PCD_DPWW1_CS2_OT | BT25: PCD_DPWW1_CS2_OT | BV25: PCD_DPWW1_CS2_P | BW25: PCD_DPWW1_CS2_P
B26: BRL | D26: PCDWW14 | F26: Microbiological treatment - bathing waters, coastal and inland (WINEP/NEP) | G26: Number of schemes delivered | H26: Nr | I26: 0 | U26: 0 | V26: 0 | AI26: 0 | AJ26: 0 | AN26: Green | AO26: Green | AQ26: DPWW1.19 | AT26: PCD_DPWW1_MBT1 | AU26: PCD_DPWW1_MBT1 | AV26: PCD_DPWW1_MBT1 | AW26: PCD_DPWW1_MBT1 | AX26: PCD_DPWW1_MBT1 | AY26: PCD_DPWW1_MBT1 | AZ26: PCD_DPWW1_MBT1 | BA26: PCD_DPWW1_MBT1 | BB26: PCD_DPWW1_MBT1 | BC26: PCD_DPWW1_MBT1 | BD26: PCD_DPWW1_MBT1 | BE26: PCD_DPWW1_MBT1_T | BF26: PCD_DPWW1_MBT1_T | BH26: PCD_DPWW1_MBT1_O | BI26: PCD_DPWW1_MBT1_O | BJ26: PCD_DPWW1_MBT1_O | BK26: PCD_DPWW1_MBT1_O | BL26: PCD_DPWW1_MBT1_O | BM26: PCD_DPWW1_MBT1_O | BN26: PCD_DPWW1_MBT1_O | BO26: PCD_DPWW1_MBT1_O | BP26: PCD_DPWW1_MBT1_O | BQ26: PCD_DPWW1_MBT1_O | BR26: PCD_DPWW1_MBT1_O | BS26: PCD_DPWW1_MBT1_OT | BT26: PCD_DPWW1_MBT1_OT | BV26: PCD_DPWW1_MBT1_P | BW26: PCD_DPWW1_MBT1_P
B27: BRL | D27: PCDWW14 | F27: Microbiological treatment - bathing waters, coastal and inland (WINEP/NEP) | G27: Current population equivalent served by STWs with tightened/new microbiological standards | H27: Nr | I27: 0 | U27: 0 | V27: 0 | AI27: 0 | AJ27: 0 | AN27: Amber | AO27: Amber | AQ27: DPWW1.20 | AT27: PCD_DPWW1_MBT2 | AU27: PCD_DPWW1_MBT2 | AV27: PCD_DPWW1_MBT2 | AW27: PCD_DPWW1_MBT2 | AX27: PCD_DPWW1_MBT2 | AY27: PCD_DPWW1_MBT2 | AZ27: PCD_DPWW1_MBT2 | BA27: PCD_DPWW1_MBT2 | BB27: PCD_DPWW1_MBT2 | BC27: PCD_DPWW1_MBT2 | BD27: PCD_DPWW1_MBT2 | BE27: PCD_DPWW1_MBT2_T | BF27: PCD_DPWW1_MBT2_T | BH27: PCD_DPWW1_MBT2_O | BI27: PCD_DPWW1_MBT2_O | BJ27: PCD_DPWW1_MBT2_O | BK27: PCD_DPWW1_MBT2_O | BL27: PCD_DPWW1_MBT2_O | BM27: PCD_DPWW1_MBT2_O | BN27: PCD_DPWW1_MBT2_O | BO27: PCD_DPWW1_MBT2_O | BP27: PCD_DPWW1_MBT2_O | BQ27: PCD_DPWW1_MBT2_O | BR27: PCD_DPWW1_MBT2_O | BS27: PCD_DPWW1_MBT2_OT | BT27: PCD_DPWW1_MBT2_OT | BV27: PCD_DPWW1_MBT2_P | BW27: PCD_DPWW1_MBT2_P
B28: BRL | D28: PCDWW15 | E28: =IFERROR(INDEX('PCD List'!$E$3:$O$41,MATCH(DPWW1!$D28,'PCD List'!$D$3:$D$41,0),MATCH(DPWW1!$B28,'PCD List'!$E$2:$O$2,0)),"") ->  | F28: Septic tank replacements - treatment solution; (WINEP/NEP) | G28: Total number of septic tank replacement or flow diversion schemes delivered | H28: Nr | I28: 0 | U28: 0 | V28: 0 | AI28: 0 | AJ28: 0 | AN28: Green | AO28: Green | AQ28: DPWW1.21 | AT28: PCD_DPWW1_STR | AU28: PCD_DPWW1_STR | AV28: PCD_DPWW1_STR | AW28: PCD_DPWW1_STR | AX28: PCD_DPWW1_STR | AY28: PCD_DPWW1_STR | AZ28: PCD_DPWW1_STR | BA28: PCD_DPWW1_STR | BB28: PCD_DPWW1_STR | BC28: PCD_DPWW1_STR | BD28: PCD_DPWW1_STR | BE28: PCD_DPWW1_STR_T | BF28: PCD_DPWW1_STR_T | BH28: PCD_DPWW1_STR_O | BI28: PCD_DPWW1_STR_O | BJ28: PCD_DPWW1_STR_O | BK28: PCD_DPWW1_STR_O | BL28: PCD_DPWW1_STR_O | BM28: PCD_DPWW1_STR_O | BN28: PCD_DPWW1_STR_O | BO28: PCD_DPWW1_STR_O | BP28: PCD_DPWW1_STR_O | BQ28: PCD_DPWW1_STR_O | BR28: PCD_DPWW1_STR_O | BS28: PCD_DPWW1_STR_OT | BT28: PCD_DPWW1_STR_OT | BV28: PCD_DPWW1_STR_P | BW28: PCD_DPWW1_STR_P
B29: BRL | D29: PCDWW17 | E29: =IFERROR(INDEX('PCD List'!$E$3:$O$41,MATCH(DPWW1!$D29,'PCD List'!$D$3:$D$41,0),MATCH(DPWW1!$B29,'PCD List'!$E$2:$O$2,0)),"") ->  | F29: 25 year environment plan; (WINEP/NEP) | G29: Number of schemes delivered | H29: Nr | I29: 0 | U29: 0 | V29: 0 | AI29: 0 | AJ29: 0 | AN29: Green | AO29: Green | AQ29: DPWW1.22 | AT29: PCD_DPWW1_25EP | AU29: PCD_DPWW1_25EP | AV29: PCD_DPWW1_25EP | AW29: PCD_DPWW1_25EP | AX29: PCD_DPWW1_25EP | AY29: PCD_DPWW1_25EP | AZ29: PCD_DPWW1_25EP | BA29: PCD_DPWW1_25EP | BB29: PCD_DPWW1_25EP | BC29: PCD_DPWW1_25EP | BD29: PCD_DPWW1_25EP | BE29: PCD_DPWW1_25EP_T | BF29: PCD_DPWW1_25EP_T | BH29: PCD_DPWW1_25EP_O | BI29: PCD_DPWW1_25EP_O | BJ29: PCD_DPWW1_25EP_O | BK29: PCD_DPWW1_25EP_O | BL29: PCD_DPWW1_25EP_O | BM29: PCD_DPWW1_25EP_O | BN29: PCD_DPWW1_25EP_O | BO29: PCD_DPWW1_25EP_O | BP29: PCD_DPWW1_25EP_O | BQ29: PCD_DPWW1_25EP_O | BR29: PCD_DPWW1_25EP_O | BS29: PCD_DPWW1_25EP_OT | BT29: PCD_DPWW1_25EP_OT | BV29: PCD_DPWW1_25EP_P | BW29: PCD_DPWW1_25EP_P
B30: BRL | C30: PR24CA112 Wastewater Other WINEP | D30: PCDWW18 | E30: =IFERROR(INDEX('PCD List'!$E$3:$O$41,MATCH(DPWW1!$D30,'PCD List'!$D$3:$D$41,0),MATCH(DPWW1!$B30,'PCD List'!$E$2:$O$2,0)),"") ->  | F30: WINEP Investigations (wastewater) | G30: Number of satisfactorily completed WINEP / NEP investigations - all categories | H30: Nr | I30: 0 | U30: 0 | V30: 0 | AI30: 0 | AJ30: 0 | AN30: Green | AO30: Green | AQ30: DPWW1.23 | AT30: PCD_DPWW1_WINIVG | AU30: PCD_DPWW1_WINIVG | AV30: PCD_DPWW1_WINIVG | AW30: PCD_DPWW1_WINIVG | AX30: PCD_DPWW1_WINIVG | AY30: PCD_DPWW1_WINIVG | AZ30: PCD_DPWW1_WINIVG | BA30: PCD_DPWW1_WINIVG | BB30: PCD_DPWW1_WINIVG | BC30: PCD_DPWW1_WINIVG | BD30: PCD_DPWW1_WINIVG | BE30: PCD_DPWW1_WINIVG_T | BF30: PCD_DPWW1_WINIVG_T | BH30: PCD_DPWW1_WINIVG_O | BI30: PCD_DPWW1_WINIVG_O | BJ30: PCD_DPWW1_WINIVG_O | BK30: PCD_DPWW1_WINIVG_O | BL30: PCD_DPWW1_WINIVG_O | BM30: PCD_DPWW1_WINIVG_O | BN30: PCD_DPWW1_WINIVG_O | BO30: PCD_DPWW1_WINIVG_O | BP30: PCD_DPWW1_WINIVG_O | BQ30: PCD_DPWW1_WINIVG_O | BR30: PCD_DPWW1_WINIVG_O | BS30: PCD_DPWW1_WINIVG_OT | BT30: PCD_DPWW1_WINIVG_OT | BV30: PCD_DPWW1_WINIVG_P | BW30: PCD_DPWW1_WINIVG_P
B31: BRL | D31: PCDWW23a | E31: =IFERROR(INDEX('PCD List'!$E$3:$O$41,MATCH(DPWW1!$D31,'PCD List'!$D$3:$D$41,0),MATCH(DPWW1!$B31,'PCD List'!$E$2:$O$2,0)),"") ->  | F31: Advanced WINEP | G31: Number of restoration plans developed and designed | H31: Nr | I31: 0 | U31: 0 | V31: 0 | AI31: 0 | AJ31: 0 | AN31: Green | AO31: Green | AQ31: DPWW1.24 | AT31: PCD_DPWW1_ADWIN1 | AU31: PCD_DPWW1_ADWIN1 | AV31: PCD_DPWW1_ADWIN1 | AW31: PCD_DPWW1_ADWIN1 | AX31: PCD_DPWW1_ADWIN1 | AY31: PCD_DPWW1_ADWIN1 | AZ31: PCD_DPWW1_ADWIN1 | BA31: PCD_DPWW1_ADWIN1 | BB31: PCD_DPWW1_ADWIN1 | BC31: PCD_DPWW1_ADWIN1 | BD31: PCD_DPWW1_ADWIN1 | BE31: PCD_DPWW1_ADWIN1_T | BF31: PCD_DPWW1_ADWIN1_T | BH31: PCD_DPWW1_ADWIN1_O | BI31: PCD_DPWW1_ADWIN1_O | BJ31: PCD_DPWW1_ADWIN1_O | BK31: PCD_DPWW1_ADWIN1_O | BL31: PCD_DPWW1_ADWIN1_O | BM31: PCD_DPWW1_ADWIN1_O | BN31: PCD_DPWW1_ADWIN1_O | BO31: PCD_DPWW1_ADWIN1_O | BP31: PCD_DPWW1_ADWIN1_O | BQ31: PCD_DPWW1_ADWIN1_O | BR31: PCD_DPWW1_ADWIN1_O | BS31: PCD_DPWW1_ADWIN1_OT | BT31: PCD_DPWW1_ADWIN1_OT | BV31: PCD_DPWW1_ADWIN1_P | BW31: PCD_DPWW1_ADWIN1_P
B32: BRL | D32: PCDWW23a | E32: =IFERROR(INDEX('PCD List'!$E$3:$O$41,MATCH(DPWW1!$D32,'PCD List'!$D$3:$D$41,0),MATCH(DPWW1!$B32,'PCD List'!$E$2:$O$2,0)),"") ->  | F32: Advanced WINEP | G32: Partnership funding | H32: % | I32: 0 | U32: 0 | V32: 0 | AI32: 0 | AJ32: 0 | AN32: Green | AO32: Green | AQ32: DPWW1.25 | AT32: PCD_DPWW1_ADWIN2 | AU32: PCD_DPWW1_ADWIN2 | AV32: PCD_DPWW1_ADWIN2 | AW32: PCD_DPWW1_ADWIN2 | AX32: PCD_DPWW1_ADWIN2 | AY32: PCD_DPWW1_ADWIN2 | AZ32: PCD_DPWW1_ADWIN2 | BA32: PCD_DPWW1_ADWIN2 | BB32: PCD_DPWW1_ADWIN2 | BC32: PCD_DPWW1_ADWIN2 | BD32: PCD_DPWW1_ADWIN2 | BE32: PCD_DPWW1_ADWIN2_T | BF32: PCD_DPWW1_ADWIN2_T | BH32: PCD_DPWW1_ADWIN2_O | BI32: PCD_DPWW1_ADWIN2_O | BJ32: PCD_DPWW1_ADWIN2_O | BK32: PCD_DPWW1_ADWIN2_O | BL32: PCD_DPWW1_ADWIN2_O | BM32: PCD_DPWW1_ADWIN2_O | BN32: PCD_DPWW1_ADWIN2_O | BO32: PCD_DPWW1_ADWIN2_O | BP32: PCD_DPWW1_ADWIN2_O | BQ32: PCD_DPWW1_ADWIN2_O | BR32: PCD_DPWW1_ADWIN2_O | BS32: PCD_DPWW1_ADWIN2_OT | BT32: PCD_DPWW1_ADWIN2_OT | BV32: PCD_DPWW1_ADWIN2_P | BW32: PCD_DPWW1_ADWIN2_P
B33: BRL | D33: PCDWW23b | E33: =IFERROR(INDEX('PCD List'!$E$3:$O$41,MATCH(DPWW1!$D33,'PCD List'!$D$3:$D$41,0),MATCH(DPWW1!$B33,'PCD List'!$E$2:$O$2,0)),"") ->  | F33: Advanced WINEP | G33: Equivalent storage avoided | H33: m3 | I33: 3 | U33: 0 | V33: 0 | AI33: 0 | AJ33: 0 | AN33: Green | AO33: Green | AQ33: DPWW1.26 | AT33: PCD_DPWW1_ADWIN3 | AU33: PCD_DPWW1_ADWIN3 | AV33: PCD_DPWW1_ADWIN3 | AW33: PCD_DPWW1_ADWIN3 | AX33: PCD_DPWW1_ADWIN3 | AY33: PCD_DPWW1_ADWIN3 | AZ33: PCD_DPWW1_ADWIN3 | BA33: PCD_DPWW1_ADWIN3 | BB33: PCD_DPWW1_ADWIN3 | BC33: PCD_DPWW1_ADWIN3 | BD33: PCD_DPWW1_ADWIN3 | BE33: PCD_DPWW1_ADWIN3_T | BF33: PCD_DPWW1_ADWIN3_T | BH33: PCD_DPWW1_ADWIN3_O | BI33: PCD_DPWW1_ADWIN3_O | BJ33: PCD_DPWW1_ADWIN3_O | BK33: PCD_DPWW1_ADWIN3_O | BL33: PCD_DPWW1_ADWIN3_O | BM33: PCD_DPWW1_ADWIN3_O | BN33: PCD_DPWW1_ADWIN3_O | BO33: PCD_DPWW1_ADWIN3_O | BP33: PCD_DPWW1_ADWIN3_O | BQ33: PCD_DPWW1_ADWIN3_O | BR33: PCD_DPWW1_ADWIN3_O | BS33: PCD_DPWW1_ADWIN3_OT | BT33: PCD_DPWW1_ADWIN3_OT | BV33: PCD_DPWW1_ADWIN3_P | BW33: PCD_DPWW1_ADWIN3_P
B34: BRL | C34: PR24CA114 Wastewater Bioresources | D34: PCDWW24a | E34: =IFERROR(INDEX('PCD List'!$E$3:$O$41,MATCH(DPWW1!$D34,'PCD List'!$D$3:$D$41,0),MATCH(DPWW1!$B34,'PCD List'!$E$2:$O$2,0)),"") ->  | F34: Sludge storage -Tanks | G34: Volume of Sludge Storage delivered | H34: m3 | I34: 3 | U34: 0 | V34: 0 | AI34: 0 | AJ34: 0 | AN34: Amber | AO34: Amber | AQ34: DPWW1.27 | AT34: PCD_DPWW1_SSTT | AU34: PCD_DPWW1_SSTT | AV34: PCD_DPWW1_SSTT | AW34: PCD_DPWW1_SSTT | AX34: PCD_DPWW1_SSTT | AY34: PCD_DPWW1_SSTT | AZ34: PCD_DPWW1_SSTT | BA34: PCD_DPWW1_SSTT | BB34: PCD_DPWW1_SSTT | BC34: PCD_DPWW1_SSTT | BD34: PCD_DPWW1_SSTT | BE34: PCD_DPWW1_SSTT_T | BF34: PCD_DPWW1_SSTT_T | BH34: PCD_DPWW1_SSTT_O | BI34: PCD_DPWW1_SSTT_O | BJ34: PCD_DPWW1_SSTT_O | BK34: PCD_DPWW1_SSTT_O | BL34: PCD_DPWW1_SSTT_O | BM34: PCD_DPWW1_SSTT_O | BN34: PCD_DPWW1_SSTT_O | BO34: PCD_DPWW1_SSTT_O | BP34: PCD_DPWW1_SSTT_O | BQ34: PCD_DPWW1_SSTT_O | BR34: PCD_DPWW1_SSTT_O | BS34: PCD_DPWW1_SSTT_OT | BT34: PCD_DPWW1_SSTT_OT | BV34: PCD_DPWW1_SSTT_P | BW34: PCD_DPWW1_SSTT_P
B35: BRL | D35: PCDWW24b | E35: =IFERROR(INDEX('PCD List'!$E$3:$O$41,MATCH(DPWW1!$D35,'PCD List'!$D$3:$D$41,0),MATCH(DPWW1!$B35,'PCD List'!$E$2:$O$2,0)),"") ->  | F35: Sludge storage (cake pads) | G35: Sludge Storage area delivered | H35: m2 | I35: 3 | U35: 0 | V35: 0 | AI35: 0 | AJ35: 0 | AN35: Green | AO35: Green | AQ35: DPWW1.28 | AT35: PCD_DPWW1_SSCP | AU35: PCD_DPWW1_SSCP | AV35: PCD_DPWW1_SSCP | AW35: PCD_DPWW1_SSCP | AX35: PCD_DPWW1_SSCP | AY35: PCD_DPWW1_SSCP | AZ35: PCD_DPWW1_SSCP | BA35: PCD_DPWW1_SSCP | BB35: PCD_DPWW1_SSCP | BC35: PCD_DPWW1_SSCP | BD35: PCD_DPWW1_SSCP | BE35: PCD_DPWW1_SSCP_T | BF35: PCD_DPWW1_SSCP_T | BH35: PCD_DPWW1_SSCP_O | BI35: PCD_DPWW1_SSCP_O | BJ35: PCD_DPWW1_SSCP_O | BK35: PCD_DPWW1_SSCP_O | BL35: PCD_DPWW1_SSCP_O | BM35: PCD_DPWW1_SSCP_O | BN35: PCD_DPWW1_SSCP_O | BO35: PCD_DPWW1_SSCP_O | BP35: PCD_DPWW1_SSCP_O | BQ35: PCD_DPWW1_SSCP_O | BR35: PCD_DPWW1_SSCP_O | BS35: PCD_DPWW1_SSCP_OT | BT35: PCD_DPWW1_SSCP_OT | BV35: PCD_DPWW1_SSCP_P | BW35: PCD_DPWW1_SSCP_P
B36: BRL | D36: PCDWW25a | E36: =IFERROR(INDEX('PCD List'!$E$3:$O$41,MATCH(DPWW1!$D36,'PCD List'!$D$3:$D$41,0),MATCH(DPWW1!$B36,'PCD List'!$E$2:$O$2,0)),"") ->  | F36: Sludge thickening and dewatering | G36: Tonnes of dry solids/ year | H36: ttds/yr | I36: 3 | U36: 0 | V36: 0 | AI36: 0 | AJ36: 0 | AN36: Green | AO36: Green | AQ36: DPWW1.29 | AT36: PCD_DPWW1_STDW | AU36: PCD_DPWW1_STDW | AV36: PCD_DPWW1_STDW | AW36: PCD_DPWW1_STDW | AX36: PCD_DPWW1_STDW | AY36: PCD_DPWW1_STDW | AZ36: PCD_DPWW1_STDW | BA36: PCD_DPWW1_STDW | BB36: PCD_DPWW1_STDW | BC36: PCD_DPWW1_STDW | BD36: PCD_DPWW1_STDW | BE36: PCD_DPWW1_STDW_T | BF36: PCD_DPWW1_STDW_T | BH36: PCD_DPWW1_STDW_O | BI36: PCD_DPWW1_STDW_O | BJ36: PCD_DPWW1_STDW_O | BK36: PCD_DPWW1_STDW_O | BL36: PCD_DPWW1_STDW_O | BM36: PCD_DPWW1_STDW_O | BN36: PCD_DPWW1_STDW_O | BO36: PCD_DPWW1_STDW_O | BP36: PCD_DPWW1_STDW_O | BQ36: PCD_DPWW1_STDW_O | BR36: PCD_DPWW1_STDW_O | BS36: PCD_DPWW1_STDW_OT | BT36: PCD_DPWW1_STDW_OT | BV36: PCD_DPWW1_STDW_P | BW36: PCD_DPWW1_STDW_P
B37: BRL | D37: PCDWW25b | E37: =IFERROR(INDEX('PCD List'!$E$3:$O$41,MATCH(DPWW1!$D37,'PCD List'!$D$3:$D$41,0),MATCH(DPWW1!$B37,'PCD List'!$E$2:$O$2,0)),"") ->  | F37: Sludge treatment (Other) | G37: Sludge throughput Dryer/Pelletiser installed plant capacity | H37: ttds/yr | I37: 3 | U37: 0 | V37: 0 | AI37: 0 | AJ37: 0 | AN37: Red | AO37: Red | AQ37: DPWW1.30 | AT37: PCD_DPWW1_STOTH1 | AU37: PCD_DPWW1_STOTH1 | AV37: PCD_DPWW1_STOTH1 | AW37: PCD_DPWW1_STOTH1 | AX37: PCD_DPWW1_STOTH1 | AY37: PCD_DPWW1_STOTH1 | AZ37: PCD_DPWW1_STOTH1 | BA37: PCD_DPWW1_STOTH1 | BB37: PCD_DPWW1_STOTH1 | BC37: PCD_DPWW1_STOTH1 | BD37: PCD_DPWW1_STOTH1 | BE37: PCD_DPWW1_STOTH1_T | BF37: PCD_DPWW1_STOTH1_T | BH37: PCD_DPWW1_STOTH1_O | BI37: PCD_DPWW1_STOTH1_O | BJ37: PCD_DPWW1_STOTH1_O | BK37: PCD_DPWW1_STOTH1_O | BL37: PCD_DPWW1_STOTH1_O | BM37: PCD_DPWW1_STOTH1_O | BN37: PCD_DPWW1_STOTH1_O | BO37: PCD_DPWW1_STOTH1_O | BP37: PCD_DPWW1_STOTH1_O | BQ37: PCD_DPWW1_STOTH1_O | BR37: PCD_DPWW1_STOTH1_O | BS37: PCD_DPWW1_STOTH1_OT | BT37: PCD_DPWW1_STOTH1_OT | BV37: PCD_DPWW1_STOTH1_P | BW37: PCD_DPWW1_STOTH1_P
B38: BRL | D38: PCDWW25b | E38: =IFERROR(INDEX('PCD List'!$E$3:$O$41,MATCH(DPWW1!$D38,'PCD List'!$D$3:$D$41,0),MATCH(DPWW1!$B38,'PCD List'!$E$2:$O$2,0)),"") ->  | F38: Sludge treatment (Other) | G38: Sludge Throughput P Recovery installed plant capacity | H38: 000m3/month | I38: 3 | U38: 0 | V38: 0 | AI38: 0 | AJ38: 0 | AN38: Green | AO38: Green | AQ38: DPWW1.31 | AT38: PCD_DPWW1_STOTH2 | AU38: PCD_DPWW1_STOTH2 | AV38: PCD_DPWW1_STOTH2 | AW38: PCD_DPWW1_STOTH2 | AX38: PCD_DPWW1_STOTH2 | AY38: PCD_DPWW1_STOTH2 | AZ38: PCD_DPWW1_STOTH2 | BA38: PCD_DPWW1_STOTH2 | BB38: PCD_DPWW1_STOTH2 | BC38: PCD_DPWW1_STOTH2 | BD38: PCD_DPWW1_STOTH2 | BE38: PCD_DPWW1_STOTH2_T | BF38: PCD_DPWW1_STOTH2_T | BH38: PCD_DPWW1_STOTH2_O | BI38: PCD_DPWW1_STOTH2_O | BJ38: PCD_DPWW1_STOTH2_O | BK38: PCD_DPWW1_STOTH2_O | BL38: PCD_DPWW1_STOTH2_O | BM38: PCD_DPWW1_STOTH2_O | BN38: PCD_DPWW1_STOTH2_O | BO38: PCD_DPWW1_STOTH2_O | BP38: PCD_DPWW1_STOTH2_O | BQ38: PCD_DPWW1_STOTH2_O | BR38: PCD_DPWW1_STOTH2_O | BS38: PCD_DPWW1_STOTH2_OT | BT38: PCD_DPWW1_STOTH2_OT | BV38: PCD_DPWW1_STOTH2_P | BW38: PCD_DPWW1_STOTH2_P
B39: BRL | D39: PCDWW30 | E39: =IFERROR(INDEX('PCD List'!$E$3:$O$41,MATCH(DPWW1!$D39,'PCD List'!$D$3:$D$41,0),MATCH(DPWW1!$B39,'PCD List'!$E$2:$O$2,0)),"") ->  | F39: Bioresources - IED and Reg changes | G39: Number of sites achieving IED compliance | H39: Nr | I39: 0 | U39: 0 | V39: 0 | AI39: 0 | AJ39: 0 | AN39: Green | AO39: Green | AQ39: DPWW1.32 | AT39: PCD_DPWW1_BIO_IED | AU39: PCD_DPWW1_BIO_IED | AV39: PCD_DPWW1_BIO_IED | AW39: PCD_DPWW1_BIO_IED | AX39: PCD_DPWW1_BIO_IED | AY39: PCD_DPWW1_BIO_IED | AZ39: PCD_DPWW1_BIO_IED | BA39: PCD_DPWW1_BIO_IED | BB39: PCD_DPWW1_BIO_IED | BC39: PCD_DPWW1_BIO_IED | BD39: PCD_DPWW1_BIO_IED | BE39: PCD_DPWW1_BIO_IED_T | BF39: PCD_DPWW1_BIO_IED_T | BH39: PCD_DPWW1_BIO_IED_O | BI39: PCD_DPWW1_BIO_IED_O | BJ39: PCD_DPWW1_BIO_IED_O | BK39: PCD_DPWW1_BIO_IED_O | BL39: PCD_DPWW1_BIO_IED_O | BM39: PCD_DPWW1_BIO_IED_O | BN39: PCD_DPWW1_BIO_IED_O | BO39: PCD_DPWW1_BIO_IED_O | BP39: PCD_DPWW1_BIO_IED_O | BQ39: PCD_DPWW1_BIO_IED_O | BR39: PCD_DPWW1_BIO_IED_O | BS39: PCD_DPWW1_BIO_IED_OT | BT39: PCD_DPWW1_BIO_IED_OT | BV39: PCD_DPWW1_BIO_IED_P | BW39: PCD_DPWW1_BIO_IED_P
B40: BRL | C40: PR24CA116 Wastewater Other | D40: PCDWW32 | E40: =IFERROR(INDEX('PCD List'!$E$3:$O$41,MATCH(DPWW1!$D40,'PCD List'!$D$3:$D$41,0),MATCH(DPWW1!$B40,'PCD List'!$E$2:$O$2,0)),"") ->  | F40: Climate change uplift | G40: Spend on schemes for power and flood resilience delivered: | H40: % | I40: 0 | U40: 0 | V40: 0 | AI40: 0 | AJ40: 0 | AN40: Green | AO40: Green | AQ40: DPWW1.33 | AT40: PCD_DPWW1_CCUP | AU40: PCD_DPWW1_CCUP | AV40: PCD_DPWW1_CCUP | AW40: PCD_DPWW1_CCUP | AX40: PCD_DPWW1_CCUP | AY40: PCD_DPWW1_CCUP | AZ40: PCD_DPWW1_CCUP | BA40: PCD_DPWW1_CCUP | BB40: PCD_DPWW1_CCUP | BC40: PCD_DPWW1_CCUP | BD40: PCD_DPWW1_CCUP | BE40: PCD_DPWW1_CCUP_T | BF40: PCD_DPWW1_CCUP_T | BH40: PCD_DPWW1_CCUP_O | BI40: PCD_DPWW1_CCUP_O | BJ40: PCD_DPWW1_CCUP_O | BK40: PCD_DPWW1_CCUP_O | BL40: PCD_DPWW1_CCUP_O | BM40: PCD_DPWW1_CCUP_O | BN40: PCD_DPWW1_CCUP_O | BO40: PCD_DPWW1_CCUP_O | BP40: PCD_DPWW1_CCUP_O | BQ40: PCD_DPWW1_CCUP_O | BR40: PCD_DPWW1_CCUP_O | BS40: PCD_DPWW1_CCUP_OT | BT40: PCD_DPWW1_CCUP_OT | BV40: PCD_DPWW1_CCUP_P | BW40: PCD_DPWW1_CCUP_P
B41: =$B$8 -> BRL | D41: PCDWW32b | E41: =IFERROR(INDEX('PCD List'!$E$3:$O$41,MATCH(DPWW1!$D41,'PCD List'!$D$3:$D$41,0),MATCH(DPWW1!$B41,'PCD List'!$E$2:$O$2,0)),"") ->  | F41: Coastal Erosion Risk | G41: Crosby Rising Main | H41: % | I41: 0 | U41: 0 | V41: 0 | AI41: 0 | AJ41: 0 | AN41: Green | AO41: Green | AQ41: DPWW1.34 | AT41: PCD_DPWW1_CER1 | AU41: PCD_DPWW1_CER1 | AV41: PCD_DPWW1_CER1 | AW41: PCD_DPWW1_CER1 | AX41: PCD_DPWW1_CER1 | AY41: PCD_DPWW1_CER1 | AZ41: PCD_DPWW1_CER1 | BA41: PCD_DPWW1_CER1 | BB41: PCD_DPWW1_CER1 | BC41: PCD_DPWW1_CER1 | BD41: PCD_DPWW1_CER1 | BE41: PCD_DPWW1_CER1_T | BF41: PCD_DPWW1_CER1_T | BH41: PCD_DPWW1_CER1_O | BI41: PCD_DPWW1_CER1_O | BJ41: PCD_DPWW1_CER1_O | BK41: PCD_DPWW1_CER1_O | BL41: PCD_DPWW1_CER1_O | BM41: PCD_DPWW1_CER1_O | BN41: PCD_DPWW1_CER1_O | BO41: PCD_DPWW1_CER1_O | BP41: PCD_DPWW1_CER1_O | BQ41: PCD_DPWW1_CER1_O | BR41: PCD_DPWW1_CER1_O | BS41: PCD_DPWW1_CER1_OT | BT41: PCD_DPWW1_CER1_OT | BV41: PCD_DPWW1_CER1_P | BW41: PCD_DPWW1_CER1_P
B42: BRL | D42: PCDWW32b | E42: =IFERROR(INDEX('PCD List'!$E$3:$O$41,MATCH(DPWW1!$D42,'PCD List'!$D$3:$D$41,0),MATCH(DPWW1!$B42,'PCD List'!$E$2:$O$2,0)),"") ->  | F42: Coastal Erosion Risk | G42: Halcroft Cottages Sewer | H42: % | I42: 0 | U42: 0 | V42: 0 | AI42: 0 | AJ42: 0 | AN42: Green | AO42: Green | AQ42: DPWW1.35 | AT42: PCD_DPWW1_CER2 | AU42: PCD_DPWW1_CER2 | AV42: PCD_DPWW1_CER2 | AW42: PCD_DPWW1_CER2 | AX42: PCD_DPWW1_CER2 | AY42: PCD_DPWW1_CER2 | AZ42: PCD_DPWW1_CER2 | BA42: PCD_DPWW1_CER2 | BB42: PCD_DPWW1_CER2 | BC42: PCD_DPWW1_CER2 | BD42: PCD_DPWW1_CER2 | BE42: PCD_DPWW1_CER2_T | BF42: PCD_DPWW1_CER2_T | BH42: PCD_DPWW1_CER2_O | BI42: PCD_DPWW1_CER2_O | BJ42: PCD_DPWW1_CER2_O | BK42: PCD_DPWW1_CER2_O | BL42: PCD_DPWW1_CER2_O | BM42: PCD_DPWW1_CER2_O | BN42: PCD_DPWW1_CER2_O | BO42: PCD_DPWW1_CER2_O | BP42: PCD_DPWW1_CER2_O | BQ42: PCD_DPWW1_CER2_O | BR42: PCD_DPWW1_CER2_O | BS42: PCD_DPWW1_CER2_OT | BT42: PCD_DPWW1_CER2_OT | BV42: PCD_DPWW1_CER2_P | BW42: PCD_DPWW1_CER2_P
B43: BRL | D43: PCDWW32b | E43: =IFERROR(INDEX('PCD List'!$E$3:$O$41,MATCH(DPWW1!$D43,'PCD List'!$D$3:$D$41,0),MATCH(DPWW1!$B43,'PCD List'!$E$2:$O$2,0)),"") ->  | F43: Coastal Erosion Risk | G43: London Road Terrace Sewer | H43: % | I43: 0 | U43: 0 | V43: 0 | AI43: 0 | AJ43: 0 | AN43: Green | AO43: Green | AQ43: DPWW1.36 | AT43: PCD_DPWW1_CER3 | AU43: PCD_DPWW1_CER3 | AV43: PCD_DPWW1_CER3 | AW43: PCD_DPWW1_CER3 | AX43: PCD_DPWW1_CER3 | AY43: PCD_DPWW1_CER3 | AZ43: PCD_DPWW1_CER3 | BA43: PCD_DPWW1_CER3 | BB43: PCD_DPWW1_CER3 | BC43: PCD_DPWW1_CER3 | BD43: PCD_DPWW1_CER3 | BE43: PCD_DPWW1_CER3_T | BF43: PCD_DPWW1_CER3_T | BH43: PCD_DPWW1_CER3_O | BI43: PCD_DPWW1_CER3_O | BJ43: PCD_DPWW1_CER3_O | BK43: PCD_DPWW1_CER3_O | BL43: PCD_DPWW1_CER3_O | BM43: PCD_DPWW1_CER3_O | BN43: PCD_DPWW1_CER3_O | BO43: PCD_DPWW1_CER3_O | BP43: PCD_DPWW1_CER3_O | BQ43: PCD_DPWW1_CER3_O | BR43: PCD_DPWW1_CER3_O | BS43: PCD_DPWW1_CER3_OT | BT43: PCD_DPWW1_CER3_OT | BV43: PCD_DPWW1_CER3_P | BW43: PCD_DPWW1_CER3_P
B44: BRL | D44: PCDWW32b | E44: =IFERROR(INDEX('PCD List'!$E$3:$O$41,MATCH(DPWW1!$D44,'PCD List'!$D$3:$D$41,0),MATCH(DPWW1!$B44,'PCD List'!$E$2:$O$2,0)),"") ->  | F44: Coastal Erosion Risk | G44: Rhodes Business Park Sewer | H44: % | I44: 0 | U44: 0 | V44: 0 | AI44: 0 | AJ44: 0 | AN44: Green | AO44: Green | AQ44: DPWW1.37 | AT44: PCD_DPWW1_CER4 | AU44: PCD_DPWW1_CER4 | AV44: PCD_DPWW1_CER4 | AW44: PCD_DPWW1_CER4 | AX44: PCD_DPWW1_CER4 | AY44: PCD_DPWW1_CER4 | AZ44: PCD_DPWW1_CER4 | BA44: PCD_DPWW1_CER4 | BB44: PCD_DPWW1_CER4 | BC44: PCD_DPWW1_CER4 | BD44: PCD_DPWW1_CER4 | BE44: PCD_DPWW1_CER4_T | BF44: PCD_DPWW1_CER4_T | BH44: PCD_DPWW1_CER4_O | BI44: PCD_DPWW1_CER4_O | BJ44: PCD_DPWW1_CER4_O | BK44: PCD_DPWW1_CER4_O | BL44: PCD_DPWW1_CER4_O | BM44: PCD_DPWW1_CER4_O | BN44: PCD_DPWW1_CER4_O | BO44: PCD_DPWW1_CER4_O | BP44: PCD_DPWW1_CER4_O | BQ44: PCD_DPWW1_CER4_O | BR44: PCD_DPWW1_CER4_O | BS44: PCD_DPWW1_CER4_OT | BT44: PCD_DPWW1_CER4_OT | BV44: PCD_DPWW1_CER4_P | BW44: PCD_DPWW1_CER4_P
B45: BRL | D45: PCDWW32b | E45: =IFERROR(INDEX('PCD List'!$E$3:$O$41,MATCH(DPWW1!$D45,'PCD List'!$D$3:$D$41,0),MATCH(DPWW1!$B45,'PCD List'!$E$2:$O$2,0)),"") ->  | F45: Coastal Erosion Risk | G45: Leyland WwTW | H45: % | I45: 0 | U45: 0 | V45: 0 | AI45: 0 | AJ45: 0 | AN45: Green | AO45: Green | AQ45: DPWW1.38 | AT45: PCD_DPWW1_CER5 | AU45: PCD_DPWW1_CER5 | AV45: PCD_DPWW1_CER5 | AW45: PCD_DPWW1_CER5 | AX45: PCD_DPWW1_CER5 | AY45: PCD_DPWW1_CER5 | AZ45: PCD_DPWW1_CER5 | BA45: PCD_DPWW1_CER5 | BB45: PCD_DPWW1_CER5 | BC45: PCD_DPWW1_CER5 | BD45: PCD_DPWW1_CER5 | BE45: PCD_DPWW1_CER5_T | BF45: PCD_DPWW1_CER5_T | BH45: PCD_DPWW1_CER5_O | BI45: PCD_DPWW1_CER5_O | BJ45: PCD_DPWW1_CER5_O | BK45: PCD_DPWW1_CER5_O | BL45: PCD_DPWW1_CER5_O | BM45: PCD_DPWW1_CER5_O | BN45: PCD_DPWW1_CER5_O | BO45: PCD_DPWW1_CER5_O | BP45: PCD_DPWW1_CER5_O | BQ45: PCD_DPWW1_CER5_O | BR45: PCD_DPWW1_CER5_O | BS45: PCD_DPWW1_CER5_OT | BT45: PCD_DPWW1_CER5_OT | BV45: PCD_DPWW1_CER5_P | BW45: PCD_DPWW1_CER5_P
B46: BRL | D46: PCDWW32b | E46: =IFERROR(INDEX('PCD List'!$E$3:$O$41,MATCH(DPWW1!$D46,'PCD List'!$D$3:$D$41,0),MATCH(DPWW1!$B46,'PCD List'!$E$2:$O$2,0)),"") ->  | F46: Coastal Erosion Risk | G46: Bowdon WwTW | H46: % | I46: 0 | U46: 0 | V46: 0 | AI46: 0 | AJ46: 0 | AN46: Green | AO46: Green | AQ46: DPWW1.39 | AT46: PCD_DPWW1_CER6 | AU46: PCD_DPWW1_CER6 | AV46: PCD_DPWW1_CER6 | AW46: PCD_DPWW1_CER6 | AX46: PCD_DPWW1_CER6 | AY46: PCD_DPWW1_CER6 | AZ46: PCD_DPWW1_CER6 | BA46: PCD_DPWW1_CER6 | BB46: PCD_DPWW1_CER6 | BC46: PCD_DPWW1_CER6 | BD46: PCD_DPWW1_CER6 | BE46: PCD_DPWW1_CER6_T | BF46: PCD_DPWW1_CER6_T | BH46: PCD_DPWW1_CER6_O | BI46: PCD_DPWW1_CER6_O | BJ46: PCD_DPWW1_CER6_O | BK46: PCD_DPWW1_CER6_O | BL46: PCD_DPWW1_CER6_O | BM46: PCD_DPWW1_CER6_O | BN46: PCD_DPWW1_CER6_O | BO46: PCD_DPWW1_CER6_O | BP46: PCD_DPWW1_CER6_O | BQ46: PCD_DPWW1_CER6_O | BR46: PCD_DPWW1_CER6_O | BS46: PCD_DPWW1_CER6_OT | BT46: PCD_DPWW1_CER6_OT | BV46: PCD_DPWW1_CER6_P | BW46: PCD_DPWW1_CER6_P
B47: BRL | D47: PCDWW32d | E47: =IFERROR(INDEX('PCD List'!$E$3:$O$41,MATCH(DPWW1!$D47,'PCD List'!$D$3:$D$41,0),MATCH(DPWW1!$B47,'PCD List'!$E$2:$O$2,0)),"") ->  | F47: Infiltration | G47: Total length (in metre) of sewer effectively sealed / lined | H47: m | I47: 0 | U47: 0 | V47: 0 | AI47: 0 | AJ47: 0 | AN47: Green | AO47: Green | AQ47: DPWW1.40 | AT47: PCD_DPWW1_INF | AU47: PCD_DPWW1_INF | AV47: PCD_DPWW1_INF | AW47: PCD_DPWW1_INF | AX47: PCD_DPWW1_INF | AY47: PCD_DPWW1_INF | AZ47: PCD_DPWW1_INF | BA47: PCD_DPWW1_INF | BB47: PCD_DPWW1_INF | BC47: PCD_DPWW1_INF | BD47: PCD_DPWW1_INF | BE47: PCD_DPWW1_INF_T | BF47: PCD_DPWW1_INF_T | BH47: PCD_DPWW1_INF_O | BI47: PCD_DPWW1_INF_O | BJ47: PCD_DPWW1_INF_O | BK47: PCD_DPWW1_INF_O | BL47: PCD_DPWW1_INF_O | BM47: PCD_DPWW1_INF_O | BN47: PCD_DPWW1_INF_O | BO47: PCD_DPWW1_INF_O | BP47: PCD_DPWW1_INF_O | BQ47: PCD_DPWW1_INF_O | BR47: PCD_DPWW1_INF_O | BS47: PCD_DPWW1_INF_OT | BT47: PCD_DPWW1_INF_OT | BV47: PCD_DPWW1_INF_P | BW47: PCD_DPWW1_INF_P
B48: BRL | D48: PCDWW32e | E48: =IFERROR(INDEX('PCD List'!$E$3:$O$41,MATCH(DPWW1!$D48,'PCD List'!$D$3:$D$41,0),MATCH(DPWW1!$B48,'PCD List'!$E$2:$O$2,0)),"") ->  | F48: WW Partnership Funding | G48: spend on schemes for power and flood resilience delivered: | H48: % | I48: 0 | U48: 0 | V48: 0 | AI48: 0 | AJ48: 0 | AN48: Green | AO48: Green | AQ48: DPWW1.41 | AT48: PCD_DPWW1_WWPF1 | AU48: PCD_DPWW1_WWPF1 | AV48: PCD_DPWW1_WWPF1 | AW48: PCD_DPWW1_WWPF1 | AX48: PCD_DPWW1_WWPF1 | AY48: PCD_DPWW1_WWPF1 | AZ48: PCD_DPWW1_WWPF1 | BA48: PCD_DPWW1_WWPF1 | BB48: PCD_DPWW1_WWPF1 | BC48: PCD_DPWW1_WWPF1 | BD48: PCD_DPWW1_WWPF1 | BE48: PCD_DPWW1_WWPF1_T | BF48: PCD_DPWW1_WWPF1_T | BH48: PCD_DPWW1_WWPF1_O | BI48: PCD_DPWW1_WWPF1_O | BJ48: PCD_DPWW1_WWPF1_O | BK48: PCD_DPWW1_WWPF1_O | BL48: PCD_DPWW1_WWPF1_O | BM48: PCD_DPWW1_WWPF1_O | BN48: PCD_DPWW1_WWPF1_O | BO48: PCD_DPWW1_WWPF1_O | BP48: PCD_DPWW1_WWPF1_O | BQ48: PCD_DPWW1_WWPF1_O | BR48: PCD_DPWW1_WWPF1_O | BS48: PCD_DPWW1_WWPF1_OT | BT48: PCD_DPWW1_WWPF1_OT | BV48: PCD_DPWW1_WWPF1_P | BW48: PCD_DPWW1_WWPF1_P
B49: BRL | D49: PCDWW32e | E49: =IFERROR(INDEX('PCD List'!$E$3:$O$41,MATCH(DPWW1!$D49,'PCD List'!$D$3:$D$41,0),MATCH(DPWW1!$B49,'PCD List'!$E$2:$O$2,0)),"") ->  | F49: WW Partnership Funding | G49: Minimum number of schemes delivered | H49: Nr | I49: 0 | U49: 0 | V49: 0 | AI49: 0 | AJ49: 0 | AN49: Green | AO49: Green | AQ49: DPWW1.42 | AT49: PCD_DPWW1_WWPF2 | AU49: PCD_DPWW1_WWPF2 | AV49: PCD_DPWW1_WWPF2 | AW49: PCD_DPWW1_WWPF2 | AX49: PCD_DPWW1_WWPF2 | AY49: PCD_DPWW1_WWPF2 | AZ49: PCD_DPWW1_WWPF2 | BA49: PCD_DPWW1_WWPF2 | BB49: PCD_DPWW1_WWPF2 | BC49: PCD_DPWW1_WWPF2 | BD49: PCD_DPWW1_WWPF2 | BE49: PCD_DPWW1_WWPF2_T | BF49: PCD_DPWW1_WWPF2_T | BH49: PCD_DPWW1_WWPF2_O | BI49: PCD_DPWW1_WWPF2_O | BJ49: PCD_DPWW1_WWPF2_O | BK49: PCD_DPWW1_WWPF2_O | BL49: PCD_DPWW1_WWPF2_O | BM49: PCD_DPWW1_WWPF2_O | BN49: PCD_DPWW1_WWPF2_O | BO49: PCD_DPWW1_WWPF2_O | BP49: PCD_DPWW1_WWPF2_O | BQ49: PCD_DPWW1_WWPF2_O | BR49: PCD_DPWW1_WWPF2_O | BS49: PCD_DPWW1_WWPF2_OT | BT49: PCD_DPWW1_WWPF2_OT | BV49: PCD_DPWW1_WWPF2_P | BW49: PCD_DPWW1_WWPF2_P
B50: BRL | D50: PCDWW32f | E50: =IFERROR(INDEX('PCD List'!$E$3:$O$41,MATCH(DPWW1!$D50,'PCD List'!$D$3:$D$41,0),MATCH(DPWW1!$B50,'PCD List'!$E$2:$O$2,0)),"") ->  | F50: Rainwater management | G50: Total storage volume provided via SuDS solutions | H50: Cubic metre | I50: 3 | U50: 0 | V50: 0 | AI50: 0 | AJ50: 0 | AN50: Green | AO50: Green | AQ50: DPWW1.43 | AT50: PCD_DPWW1_RRM1 | AU50: PCD_DPWW1_RRM1 | AV50: PCD_DPWW1_RRM1 | AW50: PCD_DPWW1_RRM1 | AX50: PCD_DPWW1_RRM1 | AY50: PCD_DPWW1_RRM1 | AZ50: PCD_DPWW1_RRM1 | BA50: PCD_DPWW1_RRM1 | BB50: PCD_DPWW1_RRM1 | BC50: PCD_DPWW1_RRM1 | BD50: PCD_DPWW1_RRM1 | BE50: PCD_DPWW1_RRM1_T | BF50: PCD_DPWW1_RRM1_T | BH50: PCD_DPWW1_RRM1_O | BI50: PCD_DPWW1_RRM1_O | BJ50: PCD_DPWW1_RRM1_O | BK50: PCD_DPWW1_RRM1_O | BL50: PCD_DPWW1_RRM1_O | BM50: PCD_DPWW1_RRM1_O | BN50: PCD_DPWW1_RRM1_O | BO50: PCD_DPWW1_RRM1_O | BP50: PCD_DPWW1_RRM1_O | BQ50: PCD_DPWW1_RRM1_O | BR50: PCD_DPWW1_RRM1_O | BS50: PCD_DPWW1_RRM1_OT | BT50: PCD_DPWW1_RRM1_OT | BV50: PCD_DPWW1_RRM1_P | BW50: PCD_DPWW1_RRM1_P
B51: BRL | D51: PCDWW32f | E51: =IFERROR(INDEX('PCD List'!$E$3:$O$41,MATCH(DPWW1!$D51,'PCD List'!$D$3:$D$41,0),MATCH(DPWW1!$B51,'PCD List'!$E$2:$O$2,0)),"") ->  | F51: Rainwater management | G51: Completion of named schemes | H51: Nr | I51: 0 | U51: 0 | V51: 0 | AI51: 0 | AJ51: 0 | AN51: Green | AO51: Green | AQ51: DPWW1.44 | AT51: PCD_DPWW1_RRM2 | AU51: PCD_DPWW1_RRM2 | AV51: PCD_DPWW1_RRM2 | AW51: PCD_DPWW1_RRM2 | AX51: PCD_DPWW1_RRM2 | AY51: PCD_DPWW1_RRM2 | AZ51: PCD_DPWW1_RRM2 | BA51: PCD_DPWW1_RRM2 | BB51: PCD_DPWW1_RRM2 | BC51: PCD_DPWW1_RRM2 | BD51: PCD_DPWW1_RRM2 | BE51: PCD_DPWW1_RRM2_T | BF51: PCD_DPWW1_RRM2_T | BH51: PCD_DPWW1_RRM2_O | BI51: PCD_DPWW1_RRM2_O | BJ51: PCD_DPWW1_RRM2_O | BK51: PCD_DPWW1_RRM2_O | BL51: PCD_DPWW1_RRM2_O | BM51: PCD_DPWW1_RRM2_O | BN51: PCD_DPWW1_RRM2_O | BO51: PCD_DPWW1_RRM2_O | BP51: PCD_DPWW1_RRM2_O | BQ51: PCD_DPWW1_RRM2_O | BR51: PCD_DPWW1_RRM2_O | BS51: PCD_DPWW1_RRM2_OT | BT51: PCD_DPWW1_RRM2_OT | BV51: PCD_DPWW1_RRM2_P | BW51: PCD_DPWW1_RRM2_P
B52: BRL | D52: PCDWW32g | E52: =IFERROR(INDEX('PCD List'!$E$3:$O$41,MATCH(DPWW1!$D52,'PCD List'!$D$3:$D$41,0),MATCH(DPWW1!$B52,'PCD List'!$E$2:$O$2,0)),"") ->  | F52: Flood and power | G52: Flooding resilience scheme unit rate | H52: Nr | I52: 0 | U52: 0 | V52: 0 | AI52: 0 | AJ52: 0 | AN52: Green | AO52: Green | AQ52: DPWW1.45 | AT52: PCD_DPWW1_FP2 | AU52: PCD_DPWW1_FP2 | AV52: PCD_DPWW1_FP2 | AW52: PCD_DPWW1_FP2 | AX52: PCD_DPWW1_FP2 | AY52: PCD_DPWW1_FP2 | AZ52: PCD_DPWW1_FP2 | BA52: PCD_DPWW1_FP2 | BB52: PCD_DPWW1_FP2 | BC52: PCD_DPWW1_FP2 | BD52: PCD_DPWW1_FP2 | BE52: PCD_DPWW1_FP2_T | BF52: PCD_DPWW1_FP2_T | BH52: PCD_DPWW1_FP2_O | BI52: PCD_DPWW1_FP2_O | BJ52: PCD_DPWW1_FP2_O | BK52: PCD_DPWW1_FP2_O | BL52: PCD_DPWW1_FP2_O | BM52: PCD_DPWW1_FP2_O | BN52: PCD_DPWW1_FP2_O | BO52: PCD_DPWW1_FP2_O | BP52: PCD_DPWW1_FP2_O | BQ52: PCD_DPWW1_FP2_O | BR52: PCD_DPWW1_FP2_O | BS52: PCD_DPWW1_FP2_OT | BT52: PCD_DPWW1_FP2_OT | BV52: PCD_DPWW1_FP2_P | BW52: PCD_DPWW1_FP2_P
B53: BRL | D53: PCDWW32g | E53: =IFERROR(INDEX('PCD List'!$E$3:$O$41,MATCH(DPWW1!$D53,'PCD List'!$D$3:$D$41,0),MATCH(DPWW1!$B53,'PCD List'!$E$2:$O$2,0)),"") ->  | F53: Flood and power | G53: Power resilience scheme unit rate | H53: Nr | I53: 0 | U53: 0 | V53: 0 | AI53: 0 | AJ53: 0 | AN53: Green | AO53: Green | AQ53: DPWW1.46 | AT53: PCD_DPWW1_FP3 | AU53: PCD_DPWW1_FP3 | AV53: PCD_DPWW1_FP3 | AW53: PCD_DPWW1_FP3 | AX53: PCD_DPWW1_FP3 | AY53: PCD_DPWW1_FP3 | AZ53: PCD_DPWW1_FP3 | BA53: PCD_DPWW1_FP3 | BB53: PCD_DPWW1_FP3 | BC53: PCD_DPWW1_FP3 | BD53: PCD_DPWW1_FP3 | BE53: PCD_DPWW1_FP3_T | BF53: PCD_DPWW1_FP3_T | BH53: PCD_DPWW1_FP3_O | BI53: PCD_DPWW1_FP3_O | BJ53: PCD_DPWW1_FP3_O | BK53: PCD_DPWW1_FP3_O | BL53: PCD_DPWW1_FP3_O | BM53: PCD_DPWW1_FP3_O | BN53: PCD_DPWW1_FP3_O | BO53: PCD_DPWW1_FP3_O | BP53: PCD_DPWW1_FP3_O | BQ53: PCD_DPWW1_FP3_O | BR53: PCD_DPWW1_FP3_O | BS53: PCD_DPWW1_FP3_OT | BT53: PCD_DPWW1_FP3_OT | BV53: PCD_DPWW1_FP3_P | BW53: PCD_DPWW1_FP3_P
B54: BRL | D54: PCDWW29 | E54: =IFERROR(INDEX('PCD List'!$E$3:$O$41,MATCH(DPWW1!$D54,'PCD List'!$D$3:$D$41,0),MATCH(DPWW1!$B54,'PCD List'!$E$2:$O$2,0)),"") ->  | F54: First time sewerage | G54: Number of connected properties served by S101A schemes | H54: Nr | I54: 0 | U54: 0 | V54: 0 | AI54: 0 | AJ54: 0 | AN54: Green | AO54: Green | AQ54: DPWW1.47 | AT54: PCD_DPWW1_FTS | AU54: PCD_DPWW1_FTS | AV54: PCD_DPWW1_FTS | AW54: PCD_DPWW1_FTS | AX54: PCD_DPWW1_FTS | AY54: PCD_DPWW1_FTS | AZ54: PCD_DPWW1_FTS | BA54: PCD_DPWW1_FTS | BB54: PCD_DPWW1_FTS | BC54: PCD_DPWW1_FTS | BD54: PCD_DPWW1_FTS | BE54: PCD_DPWW1_FTS_T | BF54: PCD_DPWW1_FTS_T | BH54: PCD_DPWW1_FTS_O | BI54: PCD_DPWW1_FTS_O | BJ54: PCD_DPWW1_FTS_O | BK54: PCD_DPWW1_FTS_O | BL54: PCD_DPWW1_FTS_O | BM54: PCD_DPWW1_FTS_O | BN54: PCD_DPWW1_FTS_O | BO54: PCD_DPWW1_FTS_O | BP54: PCD_DPWW1_FTS_O | BQ54: PCD_DPWW1_FTS_O | BR54: PCD_DPWW1_FTS_O | BS54: PCD_DPWW1_FTS_OT | BT54: PCD_DPWW1_FTS_OT | BV54: PCD_DPWW1_FTS_P | BW54: PCD_DPWW1_FTS_P
B55: BRL | C55: PR24CA117 WINEP and GER Carryover | D55: PCDWW36 | E55: =IFERROR(INDEX('PCD List'!$E$3:$O$41,MATCH(DPWW1!$D55,'PCD List'!$D$3:$D$41,0),MATCH(DPWW1!$B55,'PCD List'!$E$2:$O$2,0)),"") ->  | F55: PR19 Green recovery carryover | G55: Storage in the network close to Nuttall Road combined sewer overflow | H55: m3 | I55: 3 | U55: 0 | V55: 0 | AI55: 0 | AJ55: 0 | AN55: Green | AO55: Green | AQ55: DPWW1.48 | AT55: PCD_DPWW1_GRC1 | AU55: PCD_DPWW1_GRC1 | AV55: PCD_DPWW1_GRC1 | AW55: PCD_DPWW1_GRC1 | AX55: PCD_DPWW1_GRC1 | AY55: PCD_DPWW1_GRC1 | AZ55: PCD_DPWW1_GRC1 | BA55: PCD_DPWW1_GRC1 | BB55: PCD_DPWW1_GRC1 | BC55: PCD_DPWW1_GRC1 | BD55: PCD_DPWW1_GRC1 | BE55: PCD_DPWW1_GRC1_T | BF55: PCD_DPWW1_GRC1_T | BH55: PCD_DPWW1_GRC1_O | BI55: PCD_DPWW1_GRC1_O | BJ55: PCD_DPWW1_GRC1_O | BK55: PCD_DPWW1_GRC1_O | BL55: PCD_DPWW1_GRC1_O | BM55: PCD_DPWW1_GRC1_O | BN55: PCD_DPWW1_GRC1_O | BO55: PCD_DPWW1_GRC1_O | BP55: PCD_DPWW1_GRC1_O | BQ55: PCD_DPWW1_GRC1_O | BR55: PCD_DPWW1_GRC1_O | BS55: PCD_DPWW1_GRC1_OT | BT55: PCD_DPWW1_GRC1_OT | BV55: PCD_DPWW1_GRC1_P | BW55: PCD_DPWW1_GRC1_P
B56: BRL | D56: PCDWW36 | E56: =IFERROR(INDEX('PCD List'!$E$3:$O$41,MATCH(DPWW1!$D56,'PCD List'!$D$3:$D$41,0),MATCH(DPWW1!$B56,'PCD List'!$E$2:$O$2,0)),"") ->  | F56: PR19 Green recovery carryover | G56: Storm tank capacity at Bury wastewater treatment works | H56: m3 | I56: 3 | U56: 0 | V56: 0 | AI56: 0 | AJ56: 0 | AN56: Green | AO56: Green | AQ56: DPWW1.49 | AT56: PCD_DPWW1_GRC2 | AU56: PCD_DPWW1_GRC2 | AV56: PCD_DPWW1_GRC2 | AW56: PCD_DPWW1_GRC2 | AX56: PCD_DPWW1_GRC2 | AY56: PCD_DPWW1_GRC2 | AZ56: PCD_DPWW1_GRC2 | BA56: PCD_DPWW1_GRC2 | BB56: PCD_DPWW1_GRC2 | BC56: PCD_DPWW1_GRC2 | BD56: PCD_DPWW1_GRC2 | BE56: PCD_DPWW1_GRC2_T | BF56: PCD_DPWW1_GRC2_T | BH56: PCD_DPWW1_GRC2_O | BI56: PCD_DPWW1_GRC2_O | BJ56: PCD_DPWW1_GRC2_O | BK56: PCD_DPWW1_GRC2_O | BL56: PCD_DPWW1_GRC2_O | BM56: PCD_DPWW1_GRC2_O | BN56: PCD_DPWW1_GRC2_O | BO56: PCD_DPWW1_GRC2_O | BP56: PCD_DPWW1_GRC2_O | BQ56: PCD_DPWW1_GRC2_O | BR56: PCD_DPWW1_GRC2_O | BS56: PCD_DPWW1_GRC2_OT | BT56: PCD_DPWW1_GRC2_OT | BV56: PCD_DPWW1_GRC2_P | BW56: PCD_DPWW1_GRC2_P
B57: BRL | C57: PR24CA113 Wastewater scheme level PCDs | D57: PCDWW5 | E57: =IFERROR(INDEX('PCD List'!$E$3:$O$41,MATCH(DPWW1!$D57,'PCD List'!$D$3:$D$41,0),MATCH(DPWW1!$B57,'PCD List'!$E$2:$O$2,0)),"") ->  | F57: Storm overflows | G57: Equivalent storage | H57: m3 | I57: 3 | U57: 0 | V57: 0 | AI57: 0 | AJ57: 0 | AN57: Green | AO57: Green | AQ57: DPWW1.50 | AT57: PCD_DPWW1_SOFES | AU57: PCD_DPWW1_SOFES | AV57: PCD_DPWW1_SOFES | AW57: PCD_DPWW1_SOFES | AX57: PCD_DPWW1_SOFES | AY57: PCD_DPWW1_SOFES | AZ57: PCD_DPWW1_SOFES | BA57: PCD_DPWW1_SOFES | BB57: PCD_DPWW1_SOFES | BC57: PCD_DPWW1_SOFES | BD57: PCD_DPWW1_SOFES | BE57: PCD_DPWW1_SOFES_T | BF57: PCD_DPWW1_SOFES_T | BH57: PCD_DPWW1_SOFES_O | BI57: PCD_DPWW1_SOFES_O | BJ57: PCD_DPWW1_SOFES_O | BK57: PCD_DPWW1_SOFES_O | BL57: PCD_DPWW1_SOFES_O | BM57: PCD_DPWW1_SOFES_O | BN57: PCD_DPWW1_SOFES_O | BO57: PCD_DPWW1_SOFES_O | BP57: PCD_DPWW1_SOFES_O | BQ57: PCD_DPWW1_SOFES_O | BR57: PCD_DPWW1_SOFES_O | BS57: PCD_DPWW1_SOFES_OT | BT57: PCD_DPWW1_SOFES_OT | BV57: PCD_DPWW1_SOFES_P | BW57: PCD_DPWW1_SOFES_P
B58: BRL | C58: PR24CA113 Wastewater scheme level PCDs | D58: PCDWW4 | E58: =IFERROR(INDEX('PCD List'!$E$3:$O$41,MATCH(DPWW1!$D58,'PCD List'!$D$3:$D$41,0),MATCH(DPWW1!$B58,'PCD List'!$E$2:$O$2,0)),"") ->  | F58: Flow to Full Treatment | G58: litres per second | H58: l/s | I58: 3 | U58: 0 | V58: 0 | AI58: 0 | AJ58: 0 | AN58: Green | AO58: Green | AQ58: DPWW1.51 | AT58: PCD_DPWW1_FTFT | AU58: PCD_DPWW1_FTFT | AV58: PCD_DPWW1_FTFT | AW58: PCD_DPWW1_FTFT | AX58: PCD_DPWW1_FTFT | AY58: PCD_DPWW1_FTFT | AZ58: PCD_DPWW1_FTFT | BA58: PCD_DPWW1_FTFT | BB58: PCD_DPWW1_FTFT | BC58: PCD_DPWW1_FTFT | BD58: PCD_DPWW1_FTFT | BE58: PCD_DPWW1_FTFT_T | BF58: PCD_DPWW1_FTFT_T | BH58: PCD_DPWW1_FTFT_O | BI58: PCD_DPWW1_FTFT_O | BJ58: PCD_DPWW1_FTFT_O | BK58: PCD_DPWW1_FTFT_O | BL58: PCD_DPWW1_FTFT_O | BM58: PCD_DPWW1_FTFT_O | BN58: PCD_DPWW1_FTFT_O | BO58: PCD_DPWW1_FTFT_O | BP58: PCD_DPWW1_FTFT_O | BQ58: PCD_DPWW1_FTFT_O | BR58: PCD_DPWW1_FTFT_O | BS58: PCD_DPWW1_FTFT_OT | BT58: PCD_DPWW1_FTFT_OT | BV58: PCD_DPWW1_FTFT_P | BW58: PCD_DPWW1_FTFT_P
B59: BRL | C59: PR24CA113 Wastewater scheme level PCDs | D59: PCDWW10 | E59: =IFERROR(INDEX('PCD List'!$E$3:$O$41,MATCH(DPWW1!$D59,'PCD List'!$D$3:$D$41,0),MATCH(DPWW1!$B59,'PCD List'!$E$2:$O$2,0)),"") ->  | F59: P-removal | G59: Population equivalent served | H59: 000s | I59: 3 | U59: 0 | V59: 0 | AI59: 0 | AJ59: 0 | AN59: Green | AO59: Green | AQ59: DPWW1.52 | AT59: PCD_DPWW1_PRMVL | AU59: PCD_DPWW1_PRMVL | AV59: PCD_DPWW1_PRMVL | AW59: PCD_DPWW1_PRMVL | AX59: PCD_DPWW1_PRMVL | AY59: PCD_DPWW1_PRMVL | AZ59: PCD_DPWW1_PRMVL | BA59: PCD_DPWW1_PRMVL | BB59: PCD_DPWW1_PRMVL | BC59: PCD_DPWW1_PRMVL | BD59: PCD_DPWW1_PRMVL | BE59: PCD_DPWW1_PRMVL_T | BF59: PCD_DPWW1_PRMVL_T | BH59: PCD_DPWW1_PRMVL_O | BI59: PCD_DPWW1_PRMVL_O | BJ59: PCD_DPWW1_PRMVL_O | BK59: PCD_DPWW1_PRMVL_O | BL59: PCD_DPWW1_PRMVL_O | BM59: PCD_DPWW1_PRMVL_O | BN59: PCD_DPWW1_PRMVL_O | BO59: PCD_DPWW1_PRMVL_O | BP59: PCD_DPWW1_PRMVL_O | BQ59: PCD_DPWW1_PRMVL_O | BR59: PCD_DPWW1_PRMVL_O | BS59: PCD_DPWW1_PRMVL_OT | BT59: PCD_DPWW1_PRMVL_OT | BV59: PCD_DPWW1_PRMVL_P | BW59: PCD_DPWW1_PRMVL_P
B60: BRL | C60: PR24CA113 Wastewater scheme level PCDs | D60: PCDWW27 | E60: =IFERROR(INDEX('PCD List'!$E$3:$O$41,MATCH(DPWW1!$D60,'PCD List'!$D$3:$D$41,0),MATCH(DPWW1!$B60,'PCD List'!$E$2:$O$2,0)),"") ->  | F60: Growth to Sewerage Treatment Works | G60: Added Process Capacity in PE | H60: Nr | I60: 3 | U60: 0 | V60: 0 | AI60: 0 | AJ60: 0 | AN60: Red | AO60: Green | AQ60: DPWW1.53 | AT60: PCD_DPWW1_GSTW | AU60: PCD_DPWW1_GSTW | AV60: PCD_DPWW1_GSTW | AW60: PCD_DPWW1_GSTW | AX60: PCD_DPWW1_GSTW | AY60: PCD_DPWW1_GSTW | AZ60: PCD_DPWW1_GSTW | BA60: PCD_DPWW1_GSTW | BB60: PCD_DPWW1_GSTW | BC60: PCD_DPWW1_GSTW | BD60: PCD_DPWW1_GSTW | BE60: PCD_DPWW1_GSTW_T | BF60: PCD_DPWW1_GSTW_T | BH60: PCD_DPWW1_GSTW_O | BI60: PCD_DPWW1_GSTW_O | BJ60: PCD_DPWW1_GSTW_O | BK60: PCD_DPWW1_GSTW_O | BL60: PCD_DPWW1_GSTW_O | BM60: PCD_DPWW1_GSTW_O | BN60: PCD_DPWW1_GSTW_O | BO60: PCD_DPWW1_GSTW_O | BP60: PCD_DPWW1_GSTW_O | BQ60: PCD_DPWW1_GSTW_O | BR60: PCD_DPWW1_GSTW_O | BS60: PCD_DPWW1_GSTW_OT | BT60: PCD_DPWW1_GSTW_OT | BV60: PCD_DPWW1_GSTW_P | BW60: PCD_DPWW1_GSTW_P
B61: BRL | C61: PR24CA113 Wastewater scheme level PCDs | D61: PCDWW12 | E61: =IFERROR(INDEX('PCD List'!$E$3:$O$41,MATCH(DPWW1!$D61,'PCD List'!$D$3:$D$41,0),MATCH(DPWW1!$B61,'PCD List'!$E$2:$O$2,0)),"") ->  | F61: Treatment for tightening of sanitary parameters | G61: Population equivalent served | H61: 000s | I61: 3 | U61: 0 | V61: 0 | AI61: 0 | AJ61: 0 | AN61: Green | AO61: Green | AQ61: DPWW1.54 | AT61: PCD_DPWW1_TTSP | AU61: PCD_DPWW1_TTSP | AV61: PCD_DPWW1_TTSP | AW61: PCD_DPWW1_TTSP | AX61: PCD_DPWW1_TTSP | AY61: PCD_DPWW1_TTSP | AZ61: PCD_DPWW1_TTSP | BA61: PCD_DPWW1_TTSP | BB61: PCD_DPWW1_TTSP | BC61: PCD_DPWW1_TTSP | BD61: PCD_DPWW1_TTSP | BE61: PCD_DPWW1_TTSP_T | BF61: PCD_DPWW1_TTSP_T | BH61: PCD_DPWW1_TTSP_O | BI61: PCD_DPWW1_TTSP_O | BJ61: PCD_DPWW1_TTSP_O | BK61: PCD_DPWW1_TTSP_O | BL61: PCD_DPWW1_TTSP_O | BM61: PCD_DPWW1_TTSP_O | BN61: PCD_DPWW1_TTSP_O | BO61: PCD_DPWW1_TTSP_O | BP61: PCD_DPWW1_TTSP_O | BQ61: PCD_DPWW1_TTSP_O | BR61: PCD_DPWW1_TTSP_O | BS61: PCD_DPWW1_TTSP_OT | BT61: PCD_DPWW1_TTSP_OT | BV61: PCD_DPWW1_TTSP_P | BW61: PCD_DPWW1_TTSP_P
B62: BRL | C62: PR24CA117 WINEP and GER Carryover | D62: PCDWW35 | E62: =IFERROR(INDEX('PCD List'!$E$3:$O$41,MATCH(DPWW1!$D62,'PCD List'!$D$3:$D$41,0),MATCH(DPWW1!$B62,'PCD List'!$E$2:$O$2,0)),"") ->  | F62: PR19 WINEP Carryover actions | G62: Number of schemes | H62: Nr | I62: 0 | U62: 0 | V62: 0 | AI62: 0 | AJ62: 0 | AN62: Green | AO62: Green | AQ62: DPWW1.55 | AT62: PCD_DPWW1_PR19WINCA | AU62: PCD_DPWW1_PR19WINCA | AV62: PCD_DPWW1_PR19WINCA | AW62: PCD_DPWW1_PR19WINCA | AX62: PCD_DPWW1_PR19WINCA | AY62: PCD_DPWW1_PR19WINCA | AZ62: PCD_DPWW1_PR19WINCA | BA62: PCD_DPWW1_PR19WINCA | BB62: PCD_DPWW1_PR19WINCA | BC62: PCD_DPWW1_PR19WINCA | BD62: PCD_DPWW1_PR19WINCA | BE62: PCD_DPWW1_PR19WINCA_T | BF62: PCD_DPWW1_PR19WINCA_T | BH62: PCD_DPWW1_PR19WINCA_O | BI62: PCD_DPWW1_PR19WINCA_O | BJ62: PCD_DPWW1_PR19WINCA_O | BK62: PCD_DPWW1_PR19WINCA_O | BL62: PCD_DPWW1_PR19WINCA_O | BM62: PCD_DPWW1_PR19WINCA_O | BN62: PCD_DPWW1_PR19WINCA_O | BO62: PCD_DPWW1_PR19WINCA_O | BP62: PCD_DPWW1_PR19WINCA_O | BQ62: PCD_DPWW1_PR19WINCA_O | BR62: PCD_DPWW1_PR19WINCA_O | BS62: PCD_DPWW1_PR19WINCA_OT | BT62: PCD_DPWW1_PR19WINCA_OT | BV62: PCD_DPWW1_PR19WINCA_P | BW62: PCD_DPWW1_PR19WINCA_P
B63: BRL | C63: PR24CA118 Net Zero | D63: PCDWW34 | E63: =IFERROR(INDEX('PCD List'!$E$3:$O$41,MATCH(DPWW1!$D63,'PCD List'!$D$3:$D$41,0),MATCH(DPWW1!$B63,'PCD List'!$E$2:$O$2,0)),"") ->  | F63: Greenhouse gas reduction (net zero) | G63: tCO2e | H63: tonnes | I63: 3 | U63: 0 | V63: 0 | AI63: 0 | AJ63: 0 | AN63: Green | AO63: Green | AQ63: DPWW1.56 | AT63: PCD_DPWW1_GGR1 | AU63: PCD_DPWW1_GGR1 | AV63: PCD_DPWW1_GGR1 | AW63: PCD_DPWW1_GGR1 | AX63: PCD_DPWW1_GGR1 | AY63: PCD_DPWW1_GGR1 | AZ63: PCD_DPWW1_GGR1 | BA63: PCD_DPWW1_GGR1 | BB63: PCD_DPWW1_GGR1 | BC63: PCD_DPWW1_GGR1 | BD63: PCD_DPWW1_GGR1 | BE63: PCD_DPWW1_GGR1_T | BF63: PCD_DPWW1_GGR1_T | BH63: PCD_DPWW1_GGR1_O | BI63: PCD_DPWW1_GGR1_O | BJ63: PCD_DPWW1_GGR1_O | BK63: PCD_DPWW1_GGR1_O | BL63: PCD_DPWW1_GGR1_O | BM63: PCD_DPWW1_GGR1_O | BN63: PCD_DPWW1_GGR1_O | BO63: PCD_DPWW1_GGR1_O | BP63: PCD_DPWW1_GGR1_O | BQ63: PCD_DPWW1_GGR1_O | BR63: PCD_DPWW1_GGR1_O | BS63: PCD_DPWW1_GGR1_OT | BT63: PCD_DPWW1_GGR1_OT | BV63: PCD_DPWW1_GGR1_P | BW63: PCD_DPWW1_GGR1_P
B64: BRL | C64: PR24CA118 Net Zero | D64: PCDWW34 | E64: =IFERROR(INDEX('PCD List'!$E$3:$O$41,MATCH(DPWW1!$D64,'PCD List'!$D$3:$D$41,0),MATCH(DPWW1!$B64,'PCD List'!$E$2:$O$2,0)),"") ->  | F64: Greenhouse gas reduction (net zero) | G64: Number of sites | H64: Nr | I64: 0 | U64: 0 | V64: 0 | AI64: 0 | AJ64: 0 | AN64: Blue | AO64: Blue | AQ64: DPWW1.57 | AT64: PCD_DPWW1_GGR2 | AU64: PCD_DPWW1_GGR2 | AV64: PCD_DPWW1_GGR2 | AW64: PCD_DPWW1_GGR2 | AX64: PCD_DPWW1_GGR2 | AY64: PCD_DPWW1_GGR2 | AZ64: PCD_DPWW1_GGR2 | BA64: PCD_DPWW1_GGR2 | BB64: PCD_DPWW1_GGR2 | BC64: PCD_DPWW1_GGR2 | BD64: PCD_DPWW1_GGR2 | BE64: PCD_DPWW1_GGR2_T | BF64: PCD_DPWW1_GGR2_T | BH64: PCD_DPWW1_GGR2_O | BI64: PCD_DPWW1_GGR2_O | BJ64: PCD_DPWW1_GGR2_O | BK64: PCD_DPWW1_GGR2_O | BL64: PCD_DPWW1_GGR2_O | BM64: PCD_DPWW1_GGR2_O | BN64: PCD_DPWW1_GGR2_O | BO64: PCD_DPWW1_GGR2_O | BP64: PCD_DPWW1_GGR2_O | BQ64: PCD_DPWW1_GGR2_O | BR64: PCD_DPWW1_GGR2_O | BS64: PCD_DPWW1_GGR2_OT | BT64: PCD_DPWW1_GGR2_OT | BV64: PCD_DPWW1_GGR2_P | BW64: PCD_DPWW1_GGR2_P
AR65: End_Data | BX65: End_BON

Sheet DPWW2
A1: =RIGHT(CELL("filename", A1), LEN(CELL("filename", A1)) - SEARCH("]", CELL("filename", A1))) -> DPWW2 | AV1: Ofwat Bon Numbers
A3: Enhancement PCD expenditure - wastewater - Programme level
A5: Header | B5: Company | C5: PCD Model | D5: PCD Ref | E5: PCD applicable to company | F5: Line description | G5: PCD Output Description | H5: Units | I5: DPs | J5: Non delivery PCD payment (£m/Driver) in 2022-23 prices | L5: PCD Total Expenditure (Cumulative) - Allowance (£m) | W5: Total Expenditure by 2029-30 (Allowance) | X5: Total Expenditure by 2034-35 (Allowance) | Z5: PCD Total Expenditure (Cumulative) - Outturn & Forecast (£m) | AK5: Total Expenditure by 2029-30 (Outturn & Forecast) | AL5: Total Expenditure by 2034-35 (Outturn & Forecast) | AN5: Performance | AQ5: DP reference | AT5: Non delivery PCD payment (£m/Driver) in 2022-23 prices | AV5: PCD Total Expenditure (Cumulative) - Allowance (£m) | BG5: Total Expenditure by 2029-30 (Allowance) | BH5: Total Expenditure by 2034-35 (Allowance) | BJ5: PCD Total Expenditure (Cumulative) - Outturn & Forecast (£m) | BU5: Total Expenditure by 2029-30 (Outturn & Forecast) | BV5: Total Expenditure by 2034-35 (Outturn & Forecast) | BX5: Performance
L6: Pre-AMP8 | M6: AMP8 | R6: AMP9 | Z6: Pre-AMP8 | AA6: AMP8 | AF6: AMP9 | AN6: Forecast total expenditure as a percentage of allowed total expenditure in 2029-30 (%) | AO6: Forecast total expenditure as a percentage of allowed total expenditure in 2034-35 (%) | AT6: Non delivery PCD payment (£m/Driver) in 2022-23 prices | AV6: Pre- AMP8 | AW6: AMP8 | BB6: AMP9 | BJ6: Pre- AMP8 | BK6: AMP8 | BP6: AMP9 | BX6: Forecast total expenditure as a percentage of allowed total expenditure in 2029-30 (%) | BY6: Forecast total expenditure as a percentage of allowed total expenditure in 2034-35 (%)
A7: Start_Data | L7: 2024-25 | M7: 2025-26 | N7: 2026-27 | O7: 2027-28 | P7: 2028-29 | Q7: 2029-30 | R7: 2030-31 | S7: 2031-32 | T7: 2032-33 | U7: 2033-34 | V7: 2034-35 | Z7: 2024-25 | AA7: 2025-26 | AB7: 2026-27 | AC7: 2027-28 | AD7: 2028-29 | AE7: 2029-30 | AF7: 2030-31 | AG7: 2031-32 | AH7: 2032-33 | AI7: 2033-34 | AJ7: 2034-35 | AS7: Start_BON | AT7: 2025-30 | AV7: 2024-25 | AW7: 2025-26 | AX7: 2026-27 | AY7: 2027-28 | AZ7: 2028-29 | BA7: 2029-30 | BB7: 2030-31 | BC7: 2031-32 | BD7: 2032-33 | BE7: 2033-34 | BF7: 2034-35 | BG7: 2029-30 | BH7: 2034-35 | BJ7: 2024-25 | BK7: 2025-26 | BL7: 2026-27 | BM7: 2027-28 | BN7: 2028-29 | BO7: 2029-30 | BP7: 2030-31 | BQ7: 2031-32 | BR7: 2032-33 | BS7: 2033-34 | BT7: 2034-35 | BU7: 2029-30 | BV7: 2034-35 | BX7: 2029-30 | BY7: 2034-35
B8: =rngAcronym -> BRL | C8: PR24CA110 Wastewater flow and monitoring | D8: PCDWW2a | E8: =IFERROR(INDEX('PCD List'!$E$3:$O$41,MATCH(DPWW2!$D8,'PCD List'!$D$3:$D$41,0),MATCH(DPWW2!$B8,'PCD List'!$E$2:$O$2,0)),"") ->  | F8: Flow monitoring at sewage treatment works; (WINEP/NEP) | G8: Number of flow monitoring permits only or simple schemes delivered | H8: £m | I8: 3 | W8: =Q8 -> 0 | X8: =V8 -> 0 | AK8: =AE8 -> 0 | AL8: =AJ8 -> 0 | AN8: =IFERROR(AK8 / W8, "") ->  | AQ8: DPWW2.1 | AT8: PCD_DPWW2_FMS_NP | AV8: PCD_DPWW2_FMS | AW8: PCD_DPWW2_FMS | AX8: PCD_DPWW2_FMS | AY8: PCD_DPWW2_FMS | AZ8: PCD_DPWW2_FMS | BA8: PCD_DPWW2_FMS | BB8: PCD_DPWW2_FMS | BC8: PCD_DPWW2_FMS | BD8: PCD_DPWW2_FMS | BE8: PCD_DPWW2_FMS | BF8: PCD_DPWW2_FMS | BG8: PCD_DPWW2_FMS_T | BH8: PCD_DPWW2_FMS_T | BJ8: PCD_DPWW2_FMS_O | BK8: PCD_DPWW2_FMS_O | BL8: PCD_DPWW2_FMS_O | BM8: PCD_DPWW2_FMS_O | BN8: PCD_DPWW2_FMS_O | BO8: PCD_DPWW2_FMS_O | BP8: PCD_DPWW2_FMS_O | BQ8: PCD_DPWW2_FMS_O | BR8: PCD_DPWW2_FMS_O | BS8: PCD_DPWW2_FMS_O | BT8: PCD_DPWW2_FMS_O | BU8: PCD_DPWW2_FMS_OT | BV8: PCD_DPWW2_FMS_OT | BX8: PCD_DPWW2_FMS_P | BY8: PCD_DPWW2_FMS_P
B9: =B8 -> BRL | D9: PCDWW2a | E9: =IFERROR(INDEX('PCD List'!$E$3:$O$41,MATCH(DPWW2!$D9,'PCD List'!$D$3:$D$41,0),MATCH(DPWW2!$B9,'PCD List'!$E$2:$O$2,0)),"") ->  | F9: Flow monitoring at sewage treatment works; (WINEP/NEP) | G9: Number of flow monitoring complex schemes delivered | H9: £m | I9: 3 | W9: =Q9 -> 0 | X9: =V9 -> 0 | AK9: =AE9 -> 0 | AL9: =AJ9 -> 0 | AN9: =IFERROR(AK9 / W9, "") ->  | AO9: =IFERROR(AL9 / X9, "") ->  | AQ9: DPWW2.2 | AT9: PCD_DPWW2_FMC_NP | AV9: PCD_DPWW2_FMC | AW9: PCD_DPWW2_FMC | AX9: PCD_DPWW2_FMC | AY9: PCD_DPWW2_FMC | AZ9: PCD_DPWW2_FMC | BA9: PCD_DPWW2_FMC | BB9: PCD_DPWW2_FMC | BC9: PCD_DPWW2_FMC | BD9: PCD_DPWW2_FMC | BE9: PCD_DPWW2_FMC | BF9: PCD_DPWW2_FMC | BG9: PCD_DPWW2_FMC_T | BH9: PCD_DPWW2_FMC_T | BJ9: PCD_DPWW2_FMC_O | BK9: PCD_DPWW2_FMC_O | BL9: PCD_DPWW2_FMC_O | BM9: PCD_DPWW2_FMC_O | BN9: PCD_DPWW2_FMC_O | BO9: PCD_DPWW2_FMC_O | BP9: PCD_DPWW2_FMC_O | BQ9: PCD_DPWW2_FMC_O | BR9: PCD_DPWW2_FMC_O | BS9: PCD_DPWW2_FMC_O | BT9: PCD_DPWW2_FMC_O | BU9: PCD_DPWW2_FMC_OT | BV9: PCD_DPWW2_FMC_OT | BX9: PCD_DPWW2_FMC_P | BY9: PCD_DPWW2_FMC_P
B10: BRL | D10: PCDWW2b | E10: =IFERROR(INDEX('PCD List'!$E$3:$O$41,MATCH(DPWW2!$D10,'PCD List'!$D$3:$D$41,0),MATCH(DPWW2!$B10,'PCD List'!$E$2:$O$2,0)),"") ->  | F10: Continuous river water quality monitoring (CWQM) | G10: Continuous river water quality monitoring (CWQM) | H10: £m | I10: 3 | W10: 0 | X10: 0 | AK10: 0 | AL10: 0 | AQ10: DPWW2.3 | AT10: PCD_DPWW2_CWQM_NP | AV10: PCD_DPWW2_CWQM | AW10: PCD_DPWW2_CWQM | AX10: PCD_DPWW2_CWQM | AY10: PCD_DPWW2_CWQM | AZ10: PCD_DPWW2_CWQM | BA10: PCD_DPWW2_CWQM | BB10: PCD_DPWW2_CWQM | BC10: PCD_DPWW2_CWQM | BD10: PCD_DPWW2_CWQM | BE10: PCD_DPWW2_CWQM | BF10: PCD_DPWW2_CWQM | BG10: PCD_DPWW2_CWQM_T | BH10: PCD_DPWW2_CWQM_T | BJ10: PCD_DPWW2_CWQM_O | BK10: PCD_DPWW2_CWQM_O | BL10: PCD_DPWW2_CWQM_O | BM10: PCD_DPWW2_CWQM_O | BN10: PCD_DPWW2_CWQM_O | BO10: PCD_DPWW2_CWQM_O | BP10: PCD_DPWW2_CWQM_O | BQ10: PCD_DPWW2_CWQM_O | BR10: PCD_DPWW2_CWQM_O | BS10: PCD_DPWW2_CWQM_O | BT10: PCD_DPWW2_CWQM_O | BU10: PCD_DPWW2_CWQM_OT | BV10: PCD_DPWW2_CWQM_OT | BX10: PCD_DPWW2_CWQM_P | BY10: PCD_DPWW2_CWQM_P
B11: BRL | D11: PCDWW3 | E11: =IFERROR(INDEX('PCD List'!$E$3:$O$41,MATCH(DPWW2!$D11,'PCD List'!$D$3:$D$41,0),MATCH(DPWW2!$B11,'PCD List'!$E$2:$O$2,0)),"") ->  | F11: MCERTs monitoring at emergency sewage pumping station overflows (WINEP/NEP) | G11: Number of MCERTs monitoring schemes at SPS emergency overflows - EDM only | H11: £m | I11: 3 | W11: 0 | X11: 0 | AK11: 0 | AL11: 0 | AQ11: DPWW2.4 | AT11: PCD_DPWW2_SPSO1_NP | AV11: PCD_DPWW2_SPSO1 | AW11: PCD_DPWW2_SPSO1 | AX11: PCD_DPWW2_SPSO1 | AY11: PCD_DPWW2_SPSO1 | AZ11: PCD_DPWW2_SPSO1 | BA11: PCD_DPWW2_SPSO1 | BB11: PCD_DPWW2_SPSO1 | BC11: PCD_DPWW2_SPSO1 | BD11: PCD_DPWW2_SPSO1 | BE11: PCD_DPWW2_SPSO1 | BF11: PCD_DPWW2_SPSO1 | BG11: PCD_DPWW2_SPSO1_T | BH11: PCD_DPWW2_SPSO1_T | BJ11: PCD_DPWW2_SPSO1_O | BK11: PCD_DPWW2_SPSO1_O | BL11: PCD_DPWW2_SPSO1_O | BM11: PCD_DPWW2_SPSO1_O | BN11: PCD_DPWW2_SPSO1_O | BO11: PCD_DPWW2_SPSO1_O | BP11: PCD_DPWW2_SPSO1_O | BQ11: PCD_DPWW2_SPSO1_O | BR11: PCD_DPWW2_SPSO1_O | BS11: PCD_DPWW2_SPSO1_O | BT11: PCD_DPWW2_SPSO1_O | BU11: PCD_DPWW2_SPSO1_OT | BV11: PCD_DPWW2_SPSO1_OT | BX11: PCD_DPWW2_SPSO1_P | BY11: PCD_DPWW2_SPSO1_P
B12: BRL | D12: PCDWW3 | E12: =IFERROR(INDEX('PCD List'!$E$3:$O$41,MATCH(DPWW2!$D12,'PCD List'!$D$3:$D$41,0),MATCH(DPWW2!$B12,'PCD List'!$E$2:$O$2,0)),"") ->  | F12: MCERTs monitoring at emergency sewage pumping station overflows (WINEP/NEP) | G12: Number of MCERTs monitoring schemes at SPS emergency overflows - EDM + civils | H12: £m | I12: 3 | W12: 0 | X12: 0 | AK12: 0 | AL12: 0 | AQ12: DPWW2.5 | AT12: PCD_DPWW2_SPSO2_NP | AV12: PCD_DPWW2_SPSO2 | AW12: PCD_DPWW2_SPSO2 | AX12: PCD_DPWW2_SPSO2 | AY12: PCD_DPWW2_SPSO2 | AZ12: PCD_DPWW2_SPSO2 | BA12: PCD_DPWW2_SPSO2 | BB12: PCD_DPWW2_SPSO2 | BC12: PCD_DPWW2_SPSO2 | BD12: PCD_DPWW2_SPSO2 | BE12: PCD_DPWW2_SPSO2 | BF12: PCD_DPWW2_SPSO2 | BG12: PCD_DPWW2_SPSO2_T | BH12: PCD_DPWW2_SPSO2_T | BJ12: PCD_DPWW2_SPSO2_O | BK12: PCD_DPWW2_SPSO2_O | BL12: PCD_DPWW2_SPSO2_O | BM12: PCD_DPWW2_SPSO2_O | BN12: PCD_DPWW2_SPSO2_O | BO12: PCD_DPWW2_SPSO2_O | BP12: PCD_DPWW2_SPSO2_O | BQ12: PCD_DPWW2_SPSO2_O | BR12: PCD_DPWW2_SPSO2_O | BS12: PCD_DPWW2_SPSO2_O | BT12: PCD_DPWW2_SPSO2_O | BU12: PCD_DPWW2_SPSO2_OT | BV12: PCD_DPWW2_SPSO2_OT | BX12: PCD_DPWW2_SPSO2_P | BY12: PCD_DPWW2_SPSO2_P
B13: BRL | D13: PCDWW3 | E13: =IFERROR(INDEX('PCD List'!$E$3:$O$41,MATCH(DPWW2!$D13,'PCD List'!$D$3:$D$41,0),MATCH(DPWW2!$B13,'PCD List'!$E$2:$O$2,0)),"") ->  | F13: MCERTs monitoring at emergency sewage pumping station overflows (WINEP/NEP) | G13: Number of MCERTs monitoring schemes at SPS emergency overflows - EDM + PFF | H13: £m | I13: 3 | W13: 0 | X13: 0 | AK13: 0 | AL13: 0 | AQ13: DPWW2.6 | AT13: PCD_DPWW2_SPSO3_NP | AV13: PCD_DPWW2_SPSO3 | AW13: PCD_DPWW2_SPSO3 | AX13: PCD_DPWW2_SPSO3 | AY13: PCD_DPWW2_SPSO3 | AZ13: PCD_DPWW2_SPSO3 | BA13: PCD_DPWW2_SPSO3 | BB13: PCD_DPWW2_SPSO3 | BC13: PCD_DPWW2_SPSO3 | BD13: PCD_DPWW2_SPSO3 | BE13: PCD_DPWW2_SPSO3 | BF13: PCD_DPWW2_SPSO3 | BG13: PCD_DPWW2_SPSO3_T | BH13: PCD_DPWW2_SPSO3_T | BJ13: PCD_DPWW2_SPSO3_O | BK13: PCD_DPWW2_SPSO3_O | BL13: PCD_DPWW2_SPSO3_O | BM13: PCD_DPWW2_SPSO3_O | BN13: PCD_DPWW2_SPSO3_O | BO13: PCD_DPWW2_SPSO3_O | BP13: PCD_DPWW2_SPSO3_O | BQ13: PCD_DPWW2_SPSO3_O | BR13: PCD_DPWW2_SPSO3_O | BS13: PCD_DPWW2_SPSO3_O | BT13: PCD_DPWW2_SPSO3_O | BU13: PCD_DPWW2_SPSO3_OT | BV13: PCD_DPWW2_SPSO3_OT | BX13: PCD_DPWW2_SPSO3_P | BY13: PCD_DPWW2_SPSO3_P
B14: BRL | D14: PCDWW3 | E14: =IFERROR(INDEX('PCD List'!$E$3:$O$41,MATCH(DPWW2!$D14,'PCD List'!$D$3:$D$41,0),MATCH(DPWW2!$B14,'PCD List'!$E$2:$O$2,0)),"") ->  | F14: MCERTs monitoring at emergency sewage pumping station overflows (WINEP/NEP) | G14: Number of MCERTs monitoring schemes at SPS emergency overflows - EDM + PFF + civils | H14: £m | I14: 3 | W14: 0 | X14: 0 | AK14: 0 | AL14: 0 | AQ14: DPWW2.7 | AT14: PCD_DPWW2_SPSO4_NP | AV14: PCD_DPWW2_SPSO4 | AW14: PCD_DPWW2_SPSO4 | AX14: PCD_DPWW2_SPSO4 | AY14: PCD_DPWW2_SPSO4 | AZ14: PCD_DPWW2_SPSO4 | BA14: PCD_DPWW2_SPSO4 | BB14: PCD_DPWW2_SPSO4 | BC14: PCD_DPWW2_SPSO4 | BD14: PCD_DPWW2_SPSO4 | BE14: PCD_DPWW2_SPSO4 | BF14: PCD_DPWW2_SPSO4 | BG14: PCD_DPWW2_SPSO4_T | BH14: PCD_DPWW2_SPSO4_T | BJ14: PCD_DPWW2_SPSO4_O | BK14: PCD_DPWW2_SPSO4_O | BL14: PCD_DPWW2_SPSO4_O | BM14: PCD_DPWW2_SPSO4_O | BN14: PCD_DPWW2_SPSO4_O | BO14: PCD_DPWW2_SPSO4_O | BP14: PCD_DPWW2_SPSO4_O | BQ14: PCD_DPWW2_SPSO4_O | BR14: PCD_DPWW2_SPSO4_O | BS14: PCD_DPWW2_SPSO4_O | BT14: PCD_DPWW2_SPSO4_O | BU14: PCD_DPWW2_SPSO4_OT | BV14: PCD_DPWW2_SPSO4_OT | BX14: PCD_DPWW2_SPSO4_P | BY14: PCD_DPWW2_SPSO4_P
B15: BRL | D15: PCDWW3 | E15: =IFERROR(INDEX('PCD List'!$E$3:$O$41,MATCH(DPWW2!$D15,'PCD List'!$D$3:$D$41,0),MATCH(DPWW2!$B15,'PCD List'!$E$2:$O$2,0)),"") ->  | F15: MCERTs monitoring at emergency sewage pumping station overflows (WINEP/NEP) | G15: Number of MCERTs monitoring schemes at SPS emergency overflows - Permits only | H15: £m | I15: 3 | W15: 0 | X15: 0 | AK15: 0 | AL15: 0 | AQ15: DPWW2.8 | AT15: PCD_DPWW2_SPSO5_NP | AV15: PCD_DPWW2_SPSO5 | AW15: PCD_DPWW2_SPSO5 | AX15: PCD_DPWW2_SPSO5 | AY15: PCD_DPWW2_SPSO5 | AZ15: PCD_DPWW2_SPSO5 | BA15: PCD_DPWW2_SPSO5 | BB15: PCD_DPWW2_SPSO5 | BC15: PCD_DPWW2_SPSO5 | BD15: PCD_DPWW2_SPSO5 | BE15: PCD_DPWW2_SPSO5 | BF15: PCD_DPWW2_SPSO5 | BG15: PCD_DPWW2_SPSO5_T | BH15: PCD_DPWW2_SPSO5_T | BJ15: PCD_DPWW2_SPSO5_O | BK15: PCD_DPWW2_SPSO5_O | BL15: PCD_DPWW2_SPSO5_O | BM15: PCD_DPWW2_SPSO5_O | BN15: PCD_DPWW2_SPSO5_O | BO15: PCD_DPWW2_SPSO5_O | BP15: PCD_DPWW2_SPSO5_O | BQ15: PCD_DPWW2_SPSO5_O | BR15: PCD_DPWW2_SPSO5_O | BS15: PCD_DPWW2_SPSO5_O | BT15: PCD_DPWW2_SPSO5_O | BU15: PCD_DPWW2_SPSO5_OT | BV15: PCD_DPWW2_SPSO5_OT | BX15: PCD_DPWW2_SPSO5_P | BY15: PCD_DPWW2_SPSO5_P
B16: BRL | C16: PR24CA115 Wastewater Other Storm Overflow | D16: PCDWW5b | E16: =IFERROR(INDEX('PCD List'!$E$3:$O$41,MATCH(DPWW2!$D16,'PCD List'!$D$3:$D$41,0),MATCH(DPWW2!$B16,'PCD List'!$E$2:$O$2,0)),"") ->  | F16: Storm Overflow - Wetland | G16: Number of schemes | H16: £m | I16: 3 | W16: 0 | X16: 0 | AK16: 0 | AL16: 0 | AQ16: DPWW2.9 | AT16: PCD_DPWW2_SOFW1_NP | AV16: PCD_DPWW2_SOFW1 | AW16: PCD_DPWW2_SOFW1 | AX16: PCD_DPWW2_SOFW1 | AY16: PCD_DPWW2_SOFW1 | AZ16: PCD_DPWW2_SOFW1 | BA16: PCD_DPWW2_SOFW1 | BB16: PCD_DPWW2_SOFW1 | BC16: PCD_DPWW2_SOFW1 | BD16: PCD_DPWW2_SOFW1 | BE16: PCD_DPWW2_SOFW1 | BF16: PCD_DPWW2_SOFW1 | BG16: PCD_DPWW2_SOFW1_T | BH16: PCD_DPWW2_SOFW1_T | BJ16: PCD_DPWW2_SOFW1_O | BK16: PCD_DPWW2_SOFW1_O | BL16: PCD_DPWW2_SOFW1_O | BM16: PCD_DPWW2_SOFW1_O | BN16: PCD_DPWW2_SOFW1_O | BO16: PCD_DPWW2_SOFW1_O | BP16: PCD_DPWW2_SOFW1_O | BQ16: PCD_DPWW2_SOFW1_O | BR16: PCD_DPWW2_SOFW1_O | BS16: PCD_DPWW2_SOFW1_O | BT16: PCD_DPWW2_SOFW1_O | BU16: PCD_DPWW2_SOFW1_OT | BV16: PCD_DPWW2_SOFW1_OT | BX16: PCD_DPWW2_SOFW1_P | BY16: PCD_DPWW2_SOFW1_P
B17: BRL | D17: PCDWW6 | E17: =IFERROR(INDEX('PCD List'!$E$3:$O$41,MATCH(DPWW2!$D17,'PCD List'!$D$3:$D$41,0),MATCH(DPWW2!$B17,'PCD List'!$E$2:$O$2,0)),"") ->  | F17: Storm Overflow - Screens | G17: Number of EnvAct_IMP5 compliant screens installed and operational at screen only solutions | H17: £m | I17: 3 | W17: 0 | X17: 0 | AK17: 0 | AL17: 0 | AQ17: DPWW2.10 | AT17: PCD_DPWW2_SOFW2_NP | AV17: PCD_DPWW2_SOFW2 | AW17: PCD_DPWW2_SOFW2 | AX17: PCD_DPWW2_SOFW2 | AY17: PCD_DPWW2_SOFW2 | AZ17: PCD_DPWW2_SOFW2 | BA17: PCD_DPWW2_SOFW2 | BB17: PCD_DPWW2_SOFW2 | BC17: PCD_DPWW2_SOFW2 | BD17: PCD_DPWW2_SOFW2 | BE17: PCD_DPWW2_SOFW2 | BF17: PCD_DPWW2_SOFW2 | BG17: PCD_DPWW2_SOFW2_T | BH17: PCD_DPWW2_SOFW2_T | BJ17: PCD_DPWW2_SOFW2_O | BK17: PCD_DPWW2_SOFW2_O | BL17: PCD_DPWW2_SOFW2_O | BM17: PCD_DPWW2_SOFW2_O | BN17: PCD_DPWW2_SOFW2_O | BO17: PCD_DPWW2_SOFW2_O | BP17: PCD_DPWW2_SOFW2_O | BQ17: PCD_DPWW2_SOFW2_O | BR17: PCD_DPWW2_SOFW2_O | BS17: PCD_DPWW2_SOFW2_O | BT17: PCD_DPWW2_SOFW2_O | BU17: PCD_DPWW2_SOFW2_OT | BV17: PCD_DPWW2_SOFW2_OT | BX17: PCD_DPWW2_SOFW2_P | BY17: PCD_DPWW2_SOFW2_P
B18: BRL | C18: PR24CA111 Wastewater Treatment | D18: PCDWW7 | E18: =IFERROR(INDEX('PCD List'!$E$3:$O$41,MATCH(DPWW2!$D18,'PCD List'!$D$3:$D$41,0),MATCH(DPWW2!$B18,'PCD List'!$E$2:$O$2,0)),"") ->  | F18: Treatment for chemical removal (WINEP/NEP) | G18: Treatment for chemical removal (WINEP/NEP) | H18: £m | I18: 3 | W18: 0 | X18: 0 | AK18: 0 | AL18: 0 | AQ18: DPWW2.11 | AT18: PCD_DPWW2_TCR1_NP | AV18: PCD_DPWW2_TCR1 | AW18: PCD_DPWW2_TCR1 | AX18: PCD_DPWW2_TCR1 | AY18: PCD_DPWW2_TCR1 | AZ18: PCD_DPWW2_TCR1 | BA18: PCD_DPWW2_TCR1 | BB18: PCD_DPWW2_TCR1 | BC18: PCD_DPWW2_TCR1 | BD18: PCD_DPWW2_TCR1 | BE18: PCD_DPWW2_TCR1 | BF18: PCD_DPWW2_TCR1 | BG18: PCD_DPWW2_TCR1_T | BH18: PCD_DPWW2_TCR1_T | BJ18: PCD_DPWW2_TCR1_O | BK18: PCD_DPWW2_TCR1_O | BL18: PCD_DPWW2_TCR1_O | BM18: PCD_DPWW2_TCR1_O | BN18: PCD_DPWW2_TCR1_O | BO18: PCD_DPWW2_TCR1_O | BP18: PCD_DPWW2_TCR1_O | BQ18: PCD_DPWW2_TCR1_O | BR18: PCD_DPWW2_TCR1_O | BS18: PCD_DPWW2_TCR1_O | BT18: PCD_DPWW2_TCR1_O | BU18: PCD_DPWW2_TCR1_OT | BV18: PCD_DPWW2_TCR1_OT | BX18: PCD_DPWW2_TCR1_P | BY18: PCD_DPWW2_TCR1_P
B19: BRL | D19: PCDWW9 | E19: =IFERROR(INDEX('PCD List'!$E$3:$O$41,MATCH(DPWW2!$D19,'PCD List'!$D$3:$D$41,0),MATCH(DPWW2!$B19,'PCD List'!$E$2:$O$2,0)),"") ->  | F19: Treatment for total nitrogen removal (WINEP/NEP) | G19: Treatment for total nitrogen removal (WINEP/NEP) | H19: £m | I19: 3 | W19: 0 | X19: 0 | AK19: 0 | AL19: 0 | AQ19: DPWW2.12 | AT19: PCD_DPWW2_TNR1_NP | AV19: PCD_DPWW2_TNR1 | AW19: PCD_DPWW2_TNR1 | AX19: PCD_DPWW2_TNR1 | AY19: PCD_DPWW2_TNR1 | AZ19: PCD_DPWW2_TNR1 | BA19: PCD_DPWW2_TNR1 | BB19: PCD_DPWW2_TNR1 | BC19: PCD_DPWW2_TNR1 | BD19: PCD_DPWW2_TNR1 | BE19: PCD_DPWW2_TNR1 | BF19: PCD_DPWW2_TNR1 | BG19: PCD_DPWW2_TNR1_T | BH19: PCD_DPWW2_TNR1_T | BJ19: PCD_DPWW2_TNR1_O | BK19: PCD_DPWW2_TNR1_O | BL19: PCD_DPWW2_TNR1_O | BM19: PCD_DPWW2_TNR1_O | BN19: PCD_DPWW2_TNR1_O | BO19: PCD_DPWW2_TNR1_O | BP19: PCD_DPWW2_TNR1_O | BQ19: PCD_DPWW2_TNR1_O | BR19: PCD_DPWW2_TNR1_O | BS19: PCD_DPWW2_TNR1_O | BT19: PCD_DPWW2_TNR1_O | BU19: PCD_DPWW2_TNR1_OT | BV19: PCD_DPWW2_TNR1_OT | BX19: PCD_DPWW2_TNR1_P | BY19: PCD_DPWW2_TNR1_P
B20: BRL | D20: PCDWW11 | E20: =IFERROR(INDEX('PCD List'!$E$3:$O$41,MATCH(DPWW2!$D20,'PCD List'!$D$3:$D$41,0),MATCH(DPWW2!$B20,'PCD List'!$E$2:$O$2,0)),"") ->  | F20: Nature based solutions for treatment for nutrients and/or sanitary determinands (WINEP/NEP) | G20: Total number of site treatment solutions delivered to meet compliance | H20: £m | I20: 3 | W20: 0 | X20: 0 | AK20: 0 | AL20: 0 | AQ20: DPWW2.13 | AT20: PCD_DPWW2_NBS_SOL_NP | AV20: PCD_DPWW2_NBS_SOL | AW20: PCD_DPWW2_NBS_SOL | AX20: PCD_DPWW2_NBS_SOL | AY20: PCD_DPWW2_NBS_SOL | AZ20: PCD_DPWW2_NBS_SOL | BA20: PCD_DPWW2_NBS_SOL | BB20: PCD_DPWW2_NBS_SOL | BC20: PCD_DPWW2_NBS_SOL | BD20: PCD_DPWW2_NBS_SOL | BE20: PCD_DPWW2_NBS_SOL | BF20: PCD_DPWW2_NBS_SOL | BG20: PCD_DPWW2_NBS_SOL_T | BH20: PCD_DPWW2_NBS_SOL_T | BJ20: PCD_DPWW2_NBS_SOL_O | BK20: PCD_DPWW2_NBS_SOL_O | BL20: PCD_DPWW2_NBS_SOL_O | BM20: PCD_DPWW2_NBS_SOL_O | BN20: PCD_DPWW2_NBS_SOL_O | BO20: PCD_DPWW2_NBS_SOL_O | BP20: PCD_DPWW2_NBS_SOL_O | BQ20: PCD_DPWW2_NBS_SOL_O | BR20: PCD_DPWW2_NBS_SOL_O | BS20: PCD_DPWW2_NBS_SOL_O | BT20: PCD_DPWW2_NBS_SOL_O | BU20: PCD_DPWW2_NBS_SOL_OT | BV20: PCD_DPWW2_NBS_SOL_OT | BX20: PCD_DPWW2_NBS_SOL_P | BY20: PCD_DPWW2_NBS_SOL_P
B21: BRL | D21: PCDWW13a | E21: =IFERROR(INDEX('PCD List'!$E$3:$O$41,MATCH(DPWW2!$D21,'PCD List'!$D$3:$D$41,0),MATCH(DPWW2!$B21,'PCD List'!$E$2:$O$2,0)),"") ->  | F21: Catchment solutions - Catchment Nutrient Balancing (WINEP/NEP) | G21: Catchment solutions - Catchment Nutrient Balancing (WINEP/NEP) | H21: £m | I21: 3 | W21: 0 | X21: 0 | AK21: 0 | AL21: 0 | AQ21: DPWW2.14 | AT21: PCD_DPWW2_CS1_NP | AV21: PCD_DPWW2_CS1 | AW21: PCD_DPWW2_CS1 | AX21: PCD_DPWW2_CS1 | AY21: PCD_DPWW2_CS1 | AZ21: PCD_DPWW2_CS1 | BA21: PCD_DPWW2_CS1 | BB21: PCD_DPWW2_CS1 | BC21: PCD_DPWW2_CS1 | BD21: PCD_DPWW2_CS1 | BE21: PCD_DPWW2_CS1 | BF21: PCD_DPWW2_CS1 | BG21: PCD_DPWW2_CS1_T | BH21: PCD_DPWW2_CS1_T | BJ21: PCD_DPWW2_CS1_O | BK21: PCD_DPWW2_CS1_O | BL21: PCD_DPWW2_CS1_O | BM21: PCD_DPWW2_CS1_O | BN21: PCD_DPWW2_CS1_O | BO21: PCD_DPWW2_CS1_O | BP21: PCD_DPWW2_CS1_O | BQ21: PCD_DPWW2_CS1_O | BR21: PCD_DPWW2_CS1_O | BS21: PCD_DPWW2_CS1_O | BT21: PCD_DPWW2_CS1_O | BU21: PCD_DPWW2_CS1_OT | BV21: PCD_DPWW2_CS1_OT | BX21: PCD_DPWW2_CS1_P | BY21: PCD_DPWW2_CS1_P
B22: BRL | D22: PCDWW13a | E22: =IFERROR(INDEX('PCD List'!$E$3:$O$41,MATCH(DPWW2!$D22,'PCD List'!$D$3:$D$41,0),MATCH(DPWW2!$B22,'PCD List'!$E$2:$O$2,0)),"") ->  | F22: Catchment solutions - Catchment Permitting (WINEP/NEP) | G22: Catchment solutions - Catchment Permitting (WINEP/NEP) | H22: £m | I22: 3 | W22: 0 | X22: 0 | AK22: 0 | AL22: 0 | AQ22: DPWW2.15 | AT22: PCD_DPWW2_CS2_NP | AV22: PCD_DPWW2_CS2 | AW22: PCD_DPWW2_CS2 | AX22: PCD_DPWW2_CS2 | AY22: PCD_DPWW2_CS2 | AZ22: PCD_DPWW2_CS2 | BA22: PCD_DPWW2_CS2 | BB22: PCD_DPWW2_CS2 | BC22: PCD_DPWW2_CS2 | BD22: PCD_DPWW2_CS2 | BE22: PCD_DPWW2_CS2 | BF22: PCD_DPWW2_CS2 | BG22: PCD_DPWW2_CS2_T | BH22: PCD_DPWW2_CS2_T | BJ22: PCD_DPWW2_CS2_O | BK22: PCD_DPWW2_CS2_O | BL22: PCD_DPWW2_CS2_O | BM22: PCD_DPWW2_CS2_O | BN22: PCD_DPWW2_CS2_O | BO22: PCD_DPWW2_CS2_O | BP22: PCD_DPWW2_CS2_O | BQ22: PCD_DPWW2_CS2_O | BR22: PCD_DPWW2_CS2_O | BS22: PCD_DPWW2_CS2_O | BT22: PCD_DPWW2_CS2_O | BU22: PCD_DPWW2_CS2_OT | BV22: PCD_DPWW2_CS2_OT | BX22: PCD_DPWW2_CS2_P | BY22: PCD_DPWW2_CS2_P
B23: BRL | D23: PCDWW14 | F23: Microbiological treatment - bathing waters, coastal and inland (WINEP/NEP) | G23: Microbiological treatment - bathing waters, coastal and inland (WINEP/NEP) | H23: £m | I23: 3 | W23: 0 | X23: 0 | AK23: 0 | AL23: 0 | AQ23: DPWW2.16 | AT23: PCD_DPWW2_MBT1_NP | AV23: PCD_DPWW2_MBT1 | AW23: PCD_DPWW2_MBT1 | AX23: PCD_DPWW2_MBT1 | AY23: PCD_DPWW2_MBT1 | AZ23: PCD_DPWW2_MBT1 | BA23: PCD_DPWW2_MBT1 | BB23: PCD_DPWW2_MBT1 | BC23: PCD_DPWW2_MBT1 | BD23: PCD_DPWW2_MBT1 | BE23: PCD_DPWW2_MBT1 | BF23: PCD_DPWW2_MBT1 | BG23: PCD_DPWW2_MBT1_T | BH23: PCD_DPWW2_MBT1_T | BJ23: PCD_DPWW2_MBT1_O | BK23: PCD_DPWW2_MBT1_O | BL23: PCD_DPWW2_MBT1_O | BM23: PCD_DPWW2_MBT1_O | BN23: PCD_DPWW2_MBT1_O | BO23: PCD_DPWW2_MBT1_O | BP23: PCD_DPWW2_MBT1_O | BQ23: PCD_DPWW2_MBT1_O | BR23: PCD_DPWW2_MBT1_O | BS23: PCD_DPWW2_MBT1_O | BT23: PCD_DPWW2_MBT1_O | BU23: PCD_DPWW2_MBT1_OT | BV23: PCD_DPWW2_MBT1_OT | BX23: PCD_DPWW2_MBT1_P | BY23: PCD_DPWW2_MBT1_P
B24: BRL | D24: PCDWW15 | E24: =IFERROR(INDEX('PCD List'!$E$3:$O$41,MATCH(DPWW2!$D24,'PCD List'!$D$3:$D$41,0),MATCH(DPWW2!$B24,'PCD List'!$E$2:$O$2,0)),"") ->  | F24: Septic tank replacements - treatment solution; (WINEP/NEP) | G24: Total number of septic tank replacement or flow diversion schemes delivered | H24: £m | I24: 3 | W24: 0 | X24: 0 | AK24: 0 | AL24: 0 | AQ24: DPWW2.17 | AT24: PCD_DPWW2_STR_NP | AV24: PCD_DPWW2_STR | AW24: PCD_DPWW2_STR | AX24: PCD_DPWW2_STR | AY24: PCD_DPWW2_STR | AZ24: PCD_DPWW2_STR | BA24: PCD_DPWW2_STR | BB24: PCD_DPWW2_STR | BC24: PCD_DPWW2_STR | BD24: PCD_DPWW2_STR | BE24: PCD_DPWW2_STR | BF24: PCD_DPWW2_STR | BG24: PCD_DPWW2_STR_T | BH24: PCD_DPWW2_STR_T | BJ24: PCD_DPWW2_STR_O | BK24: PCD_DPWW2_STR_O | BL24: PCD_DPWW2_STR_O | BM24: PCD_DPWW2_STR_O | BN24: PCD_DPWW2_STR_O | BO24: PCD_DPWW2_STR_O | BP24: PCD_DPWW2_STR_O | BQ24: PCD_DPWW2_STR_O | BR24: PCD_DPWW2_STR_O | BS24: PCD_DPWW2_STR_O | BT24: PCD_DPWW2_STR_O | BU24: PCD_DPWW2_STR_OT | BV24: PCD_DPWW2_STR_OT | BX24: PCD_DPWW2_STR_P | BY24: PCD_DPWW2_STR_P
B25: BRL | D25: PCDWW17 | E25: =IFERROR(INDEX('PCD List'!$E$3:$O$41,MATCH(DPWW2!$D25,'PCD List'!$D$3:$D$41,0),MATCH(DPWW2!$B25,'PCD List'!$E$2:$O$2,0)),"") ->  | F25: 25 year environment plan; (WINEP/NEP) | G25: Number of schemes delivered | H25: £m | I25: 3 | W25: 0 | X25: 0 | AK25: 0 | AL25: 0 | AQ25: DPWW2.18 | AT25: PCD_DPWW2_25EP_NP | AV25: PCD_DPWW2_25EP | AW25: PCD_DPWW2_25EP | AX25: PCD_DPWW2_25EP | AY25: PCD_DPWW2_25EP | AZ25: PCD_DPWW2_25EP | BA25: PCD_DPWW2_25EP | BB25: PCD_DPWW2_25EP | BC25: PCD_DPWW2_25EP | BD25: PCD_DPWW2_25EP | BE25: PCD_DPWW2_25EP | BF25: PCD_DPWW2_25EP | BG25: PCD_DPWW2_25EP_T | BH25: PCD_DPWW2_25EP_T | BJ25: PCD_DPWW2_25EP_O | BK25: PCD_DPWW2_25EP_O | BL25: PCD_DPWW2_25EP_O | BM25: PCD_DPWW2_25EP_O | BN25: PCD_DPWW2_25EP_O | BO25: PCD_DPWW2_25EP_O | BP25: PCD_DPWW2_25EP_O | BQ25: PCD_DPWW2_25EP_O | BR25: PCD_DPWW2_25EP_O | BS25: PCD_DPWW2_25EP_O | BT25: PCD_DPWW2_25EP_O | BU25: PCD_DPWW2_25EP_OT | BV25: PCD_DPWW2_25EP_OT | BX25: PCD_DPWW2_25EP_P | BY25: PCD_DPWW2_25EP_P
B26: BRL | C26: PR24CA112 Wastewater Other WINEP | D26: PCDWW18 | E26: =IFERROR(INDEX('PCD List'!$E$3:$O$41,MATCH(DPWW2!$D26,'PCD List'!$D$3:$D$41,0),MATCH(DPWW2!$B26,'PCD List'!$E$2:$O$2,0)),"") ->  | F26: WINEP Investigations (wastewater) | G26: Number of satisfactorily completed WINEP / NEP investigations - all categories | H26: £m | I26: 3 | W26: 0 | X26: 0 | AK26: 0 | AL26: 0 | AQ26: DPWW2.19 | AT26: PCD_DPWW2_WINIVG_NP | AV26: PCD_DPWW2_WINIVG | AW26: PCD_DPWW2_WINIVG | AX26: PCD_DPWW2_WINIVG | AY26: PCD_DPWW2_WINIVG | AZ26: PCD_DPWW2_WINIVG | BA26: PCD_DPWW2_WINIVG | BB26: PCD_DPWW2_WINIVG | BC26: PCD_DPWW2_WINIVG | BD26: PCD_DPWW2_WINIVG | BE26: PCD_DPWW2_WINIVG | BF26: PCD_DPWW2_WINIVG | BG26: PCD_DPWW2_WINIVG_T | BH26: PCD_DPWW2_WINIVG_T | BJ26: PCD_DPWW2_WINIVG_O | BK26: PCD_DPWW2_WINIVG_O | BL26: PCD_DPWW2_WINIVG_O | BM26: PCD_DPWW2_WINIVG_O | BN26: PCD_DPWW2_WINIVG_O | BO26: PCD_DPWW2_WINIVG_O | BP26: PCD_DPWW2_WINIVG_O | BQ26: PCD_DPWW2_WINIVG_O | BR26: PCD_DPWW2_WINIVG_O | BS26: PCD_DPWW2_WINIVG_O | BT26: PCD_DPWW2_WINIVG_O | BU26: PCD_DPWW2_WINIVG_OT | BV26: PCD_DPWW2_WINIVG_OT | BX26: PCD_DPWW2_WINIVG_P | BY26: PCD_DPWW2_WINIVG_P
B27: BRL | D27: PCDWW23a | E27: =IFERROR(INDEX('PCD List'!$E$3:$O$41,MATCH(DPWW2!$D27,'PCD List'!$D$3:$D$41,0),MATCH(DPWW2!$B27,'PCD List'!$E$2:$O$2,0)),"") ->  | F27: Advanced WINEP | G27: Advanced WINEP | H27: £m | I27: 3 | W27: 0 | X27: 0 | AK27: 0 | AL27: 0 | AQ27: DPWW2.20 | AT27: PCD_DPWW2_ADWIN1_NP | AV27: PCD_DPWW2_ADWIN1 | AW27: PCD_DPWW2_ADWIN1 | AX27: PCD_DPWW2_ADWIN1 | AY27: PCD_DPWW2_ADWIN1 | AZ27: PCD_DPWW2_ADWIN1 | BA27: PCD_DPWW2_ADWIN1 | BB27: PCD_DPWW2_ADWIN1 | BC27: PCD_DPWW2_ADWIN1 | BD27: PCD_DPWW2_ADWIN1 | BE27: PCD_DPWW2_ADWIN1 | BF27: PCD_DPWW2_ADWIN1 | BG27: PCD_DPWW2_ADWIN1_T | BH27: PCD_DPWW2_ADWIN1_T | BJ27: PCD_DPWW2_ADWIN1_O | BK27: PCD_DPWW2_ADWIN1_O | BL27: PCD_DPWW2_ADWIN1_O | BM27: PCD_DPWW2_ADWIN1_O | BN27: PCD_DPWW2_ADWIN1_O | BO27: PCD_DPWW2_ADWIN1_O | BP27: PCD_DPWW2_ADWIN1_O | BQ27: PCD_DPWW2_ADWIN1_O | BR27: PCD_DPWW2_ADWIN1_O | BS27: PCD_DPWW2_ADWIN1_O | BT27: PCD_DPWW2_ADWIN1_O | BU27: PCD_DPWW2_ADWIN1_OT | BV27: PCD_DPWW2_ADWIN1_OT | BX27: PCD_DPWW2_ADWIN1_P | BY27: PCD_DPWW2_ADWIN1_P
B28: BRL | D28: PCDWW23b | E28: =IFERROR(INDEX('PCD List'!$E$3:$O$41,MATCH(DPWW2!$D28,'PCD List'!$D$3:$D$41,0),MATCH(DPWW2!$B28,'PCD List'!$E$2:$O$2,0)),"") ->  | F28: Advanced WINEP | G28: Equivalent storage avoided | H28: £m | I28: 3 | W28: 0 | X28: 0 | AK28: 0 | AL28: 0 | AQ28: DPWW2.21 | AT28: PCD_DPWW2_ADWIN2_NP | AV28: PCD_DPWW2_ADWIN2 | AW28: PCD_DPWW2_ADWIN2 | AX28: PCD_DPWW2_ADWIN2 | AY28: PCD_DPWW2_ADWIN2 | AZ28: PCD_DPWW2_ADWIN2 | BA28: PCD_DPWW2_ADWIN2 | BB28: PCD_DPWW2_ADWIN2 | BC28: PCD_DPWW2_ADWIN2 | BD28: PCD_DPWW2_ADWIN2 | BE28: PCD_DPWW2_ADWIN2 | BF28: PCD_DPWW2_ADWIN2 | BG28: PCD_DPWW2_ADWIN2_T | BH28: PCD_DPWW2_ADWIN2_T | BJ28: PCD_DPWW2_ADWIN2_O | BK28: PCD_DPWW2_ADWIN2_O | BL28: PCD_DPWW2_ADWIN2_O | BM28: PCD_DPWW2_ADWIN2_O | BN28: PCD_DPWW2_ADWIN2_O | BO28: PCD_DPWW2_ADWIN2_O | BP28: PCD_DPWW2_ADWIN2_O | BQ28: PCD_DPWW2_ADWIN2_O | BR28: PCD_DPWW2_ADWIN2_O | BS28: PCD_DPWW2_ADWIN2_O | BT28: PCD_DPWW2_ADWIN2_O | BU28: PCD_DPWW2_ADWIN2_OT | BV28: PCD_DPWW2_ADWIN2_OT | BX28: PCD_DPWW2_ADWIN2_P | BY28: PCD_DPWW2_ADWIN2_P
B29: BRL | C29: PR24CA114 Wastewater Bioresources | D29: PCDWW24a | E29: =IFERROR(INDEX('PCD List'!$E$3:$O$41,MATCH(DPWW2!$D29,'PCD List'!$D$3:$D$41,0),MATCH(DPWW2!$B29,'PCD List'!$E$2:$O$2,0)),"") ->  | F29: Sludge storage -Tanks | G29: Volume of Sludge Storage delivered | H29: £m | I29: 3 | W29: 0 | X29: 0 | AK29: 0 | AL29: 0 | AQ29: DPWW2.22 | AT29: PCD_DPWW2_SSTT_NP | AV29: PCD_DPWW2_SSTT | AW29: PCD_DPWW2_SSTT | AX29: PCD_DPWW2_SSTT | AY29: PCD_DPWW2_SSTT | AZ29: PCD_DPWW2_SSTT | BA29: PCD_DPWW2_SSTT | BB29: PCD_DPWW2_SSTT | BC29: PCD_DPWW2_SSTT | BD29: PCD_DPWW2_SSTT | BE29: PCD_DPWW2_SSTT | BF29: PCD_DPWW2_SSTT | BG29: PCD_DPWW2_SSTT_T | BH29: PCD_DPWW2_SSTT_T | BJ29: PCD_DPWW2_SSTT_O | BK29: PCD_DPWW2_SSTT_O | BL29: PCD_DPWW2_SSTT_O | BM29: PCD_DPWW2_SSTT_O | BN29: PCD_DPWW2_SSTT_O | BO29: PCD_DPWW2_SSTT_O | BP29: PCD_DPWW2_SSTT_O | BQ29: PCD_DPWW2_SSTT_O | BR29: PCD_DPWW2_SSTT_O | BS29: PCD_DPWW2_SSTT_O | BT29: PCD_DPWW2_SSTT_O | BU29: PCD_DPWW2_SSTT_OT | BV29: PCD_DPWW2_SSTT_OT | BX29: PCD_DPWW2_SSTT_P | BY29: PCD_DPWW2_SSTT_P
B30: BRL | D30: PCDWW24b | E30: =IFERROR(INDEX('PCD List'!$E$3:$O$41,MATCH(DPWW2!$D30,'PCD List'!$D$3:$D$41,0),MATCH(DPWW2!$B30,'PCD List'!$E$2:$O$2,0)),"") ->  | F30: Sludge storage (cake pads) | G30: Sludge Storage area delivered | H30: £m | I30: 3 | W30: 0 | X30: 0 | AK30: 0 | AL30: 0 | AQ30: DPWW2.23 | AT30: PCD_DPWW2_SSCP_NP | AV30: PCD_DPWW2_SSCP | AW30: PCD_DPWW2_SSCP | AX30: PCD_DPWW2_SSCP | AY30: PCD_DPWW2_SSCP | AZ30: PCD_DPWW2_SSCP | BA30: PCD_DPWW2_SSCP | BB30: PCD_DPWW2_SSCP | BC30: PCD_DPWW2_SSCP | BD30: PCD_DPWW2_SSCP | BE30: PCD_DPWW2_SSCP | BF30: PCD_DPWW2_SSCP | BG30: PCD_DPWW2_SSCP_T | BH30: PCD_DPWW2_SSCP_T | BJ30: PCD_DPWW2_SSCP_O | BK30: PCD_DPWW2_SSCP_O | BL30: PCD_DPWW2_SSCP_O | BM30: PCD_DPWW2_SSCP_O | BN30: PCD_DPWW2_SSCP_O | BO30: PCD_DPWW2_SSCP_O | BP30: PCD_DPWW2_SSCP_O | BQ30: PCD_DPWW2_SSCP_O | BR30: PCD_DPWW2_SSCP_O | BS30: PCD_DPWW2_SSCP_O | BT30: PCD_DPWW2_SSCP_O | BU30: PCD_DPWW2_SSCP_OT | BV30: PCD_DPWW2_SSCP_OT | BX30: PCD_DPWW2_SSCP_P | BY30: PCD_DPWW2_SSCP_P
B31: BRL | D31: PCDWW25a | E31: =IFERROR(INDEX('PCD List'!$E$3:$O$41,MATCH(DPWW2!$D31,'PCD List'!$D$3:$D$41,0),MATCH(DPWW2!$B31,'PCD List'!$E$2:$O$2,0)),"") ->  | F31: Sludge thickening and dewatering | G31: Tonnes of dry solids/ year | H31: £m | I31: 3 | W31: 0 | X31: 0 | AK31: 0 | AL31: 0 | AQ31: DPWW2.24 | AT31: PCD_DPWW2_STDW_NP | AV31: PCD_DPWW2_STDW | AW31: PCD_DPWW2_STDW | AX31: PCD_DPWW2_STDW | AY31: PCD_DPWW2_STDW | AZ31: PCD_DPWW2_STDW | BA31: PCD_DPWW2_STDW | BB31: PCD_DPWW2_STDW | BC31: PCD_DPWW2_STDW | BD31: PCD_DPWW2_STDW | BE31: PCD_DPWW2_STDW | BF31: PCD_DPWW2_STDW | BG31: PCD_DPWW2_STDW_T | BH31: PCD_DPWW2_STDW_T | BJ31: PCD_DPWW2_STDW_O | BK31: PCD_DPWW2_STDW_O | BL31: PCD_DPWW2_STDW_O | BM31: PCD_DPWW2_STDW_O | BN31: PCD_DPWW2_STDW_O | BO31: PCD_DPWW2_STDW_O | BP31: PCD_DPWW2_STDW_O | BQ31: PCD_DPWW2_STDW_O | BR31: PCD_DPWW2_STDW_O | BS31: PCD_DPWW2_STDW_O | BT31: PCD_DPWW2_STDW_O | BU31: PCD_DPWW2_STDW_OT | BV31: PCD_DPWW2_STDW_OT | BX31: PCD_DPWW2_STDW_P | BY31: PCD_DPWW2_STDW_P
B32: BRL | D32: PCDWW25b | E32: =IFERROR(INDEX('PCD List'!$E$3:$O$41,MATCH(DPWW2!$D32,'PCD List'!$D$3:$D$41,0),MATCH(DPWW2!$B32,'PCD List'!$E$2:$O$2,0)),"") ->  | F32: Sludge treatment (Other) | G32: Sludge throughput Dryer/Pelletiser installed plant capacity | H32: £m | I32: 3 | W32: 0 | X32: 0 | AK32: 0 | AL32: 0 | AQ32: DPWW2.25 | AT32: PCD_DPWW2_STOTH1_NP | AV32: PCD_DPWW2_STOTH1 | AW32: PCD_DPWW2_STOTH1 | AX32: PCD_DPWW2_STOTH1 | AY32: PCD_DPWW2_STOTH1 | AZ32: PCD_DPWW2_STOTH1 | BA32: PCD_DPWW2_STOTH1 | BB32: PCD_DPWW2_STOTH1 | BC32: PCD_DPWW2_STOTH1 | BD32: PCD_DPWW2_STOTH1 | BE32: PCD_DPWW2_STOTH1 | BF32: PCD_DPWW2_STOTH1 | BG32: PCD_DPWW2_STOTH1_T | BH32: PCD_DPWW2_STOTH1_T | BJ32: PCD_DPWW2_STOTH1_O | BK32: PCD_DPWW2_STOTH1_O | BL32: PCD_DPWW2_STOTH1_O | BM32: PCD_DPWW2_STOTH1_O | BN32: PCD_DPWW2_STOTH1_O | BO32: PCD_DPWW2_STOTH1_O | BP32: PCD_DPWW2_STOTH1_O | BQ32: PCD_DPWW2_STOTH1_O | BR32: PCD_DPWW2_STOTH1_O | BS32: PCD_DPWW2_STOTH1_O | BT32: PCD_DPWW2_STOTH1_O | BU32: PCD_DPWW2_STOTH1_OT | BV32: PCD_DPWW2_STOTH1_OT | BX32: PCD_DPWW2_STOTH1_P | BY32: PCD_DPWW2_STOTH1_P
B33: BRL | D33: PCDWW25b | E33: =IFERROR(INDEX('PCD List'!$E$3:$O$41,MATCH(DPWW2!$D33,'PCD List'!$D$3:$D$41,0),MATCH(DPWW2!$B33,'PCD List'!$E$2:$O$2,0)),"") ->  | F33: Sludge treatment (Other) | G33: Sludge Throughput P Recovery installed plant capacity | H33: £m | I33: 3 | W33: 0 | X33: 0 | AK33: 0 | AL33: 0 | AQ33: DPWW2.26 | AT33: PCD_DPWW2_STOTH2_NP | AV33: PCD_DPWW2_STOTH2 | AW33: PCD_DPWW2_STOTH2 | AX33: PCD_DPWW2_STOTH2 | AY33: PCD_DPWW2_STOTH2 | AZ33: PCD_DPWW2_STOTH2 | BA33: PCD_DPWW2_STOTH2 | BB33: PCD_DPWW2_STOTH2 | BC33: PCD_DPWW2_STOTH2 | BD33: PCD_DPWW2_STOTH2 | BE33: PCD_DPWW2_STOTH2 | BF33: PCD_DPWW2_STOTH2 | BG33: PCD_DPWW2_STOTH2_T | BH33: PCD_DPWW2_STOTH2_T | BJ33: PCD_DPWW2_STOTH2_O | BK33: PCD_DPWW2_STOTH2_O | BL33: PCD_DPWW2_STOTH2_O | BM33: PCD_DPWW2_STOTH2_O | BN33: PCD_DPWW2_STOTH2_O | BO33: PCD_DPWW2_STOTH2_O | BP33: PCD_DPWW2_STOTH2_O | BQ33: PCD_DPWW2_STOTH2_O | BR33: PCD_DPWW2_STOTH2_O | BS33: PCD_DPWW2_STOTH2_O | BT33: PCD_DPWW2_STOTH2_O | BU33: PCD_DPWW2_STOTH2_OT | BV33: PCD_DPWW2_STOTH2_OT | BX33: PCD_DPWW2_STOTH2_P | BY33: PCD_DPWW2_STOTH2_P
B34: BRL | D34: PCDWW30 | E34: =IFERROR(INDEX('PCD List'!$E$3:$O$41,MATCH(DPWW2!$D34,'PCD List'!$D$3:$D$41,0),MATCH(DPWW2!$B34,'PCD List'!$E$2:$O$2,0)),"") ->  | F34: Bioresources - IED and Reg changes | G34: Number of sites achieving IED compliance | H34: £m | I34: 3 | W34: 0 | X34: 0 | AK34: 0 | AL34: 0 | AQ34: DPWW2.27 | AT34: PCD_DPWW2_BIO_IED_NP | AV34: PCD_DPWW2_BIO_IED | AW34: PCD_DPWW2_BIO_IED | AX34: PCD_DPWW2_BIO_IED | AY34: PCD_DPWW2_BIO_IED | AZ34: PCD_DPWW2_BIO_IED | BA34: PCD_DPWW2_BIO_IED | BB34: PCD_DPWW2_BIO_IED | BC34: PCD_DPWW2_BIO_IED | BD34: PCD_DPWW2_BIO_IED | BE34: PCD_DPWW2_BIO_IED | BF34: PCD_DPWW2_BIO_IED | BG34: PCD_DPWW2_BIO_IED_T | BH34: PCD_DPWW2_BIO_IED_T | BJ34: PCD_DPWW2_BIO_IED_O | BK34: PCD_DPWW2_BIO_IED_O | BL34: PCD_DPWW2_BIO_IED_O | BM34: PCD_DPWW2_BIO_IED_O | BN34: PCD_DPWW2_BIO_IED_O | BO34: PCD_DPWW2_BIO_IED_O | BP34: PCD_DPWW2_BIO_IED_O | BQ34: PCD_DPWW2_BIO_IED_O | BR34: PCD_DPWW2_BIO_IED_O | BS34: PCD_DPWW2_BIO_IED_O | BT34: PCD_DPWW2_BIO_IED_O | BU34: PCD_DPWW2_BIO_IED_OT | BV34: PCD_DPWW2_BIO_IED_OT | BX34: PCD_DPWW2_BIO_IED_P | BY34: PCD_DPWW2_BIO_IED_P
B35: BRL | C35: PR24CA116 Wastewater Other | D35: PCDWW32 | E35: =IFERROR(INDEX('PCD List'!$E$3:$O$41,MATCH(DPWW2!$D35,'PCD List'!$D$3:$D$41,0),MATCH(DPWW2!$B35,'PCD List'!$E$2:$O$2,0)),"") ->  | F35: Climate change uplift | G35: Spend on schemes for power and flood resilience delivered: | H35: £m | I35: 3 | W35: 0 | X35: 0 | AK35: 0 | AL35: 0 | AQ35: DPWW2.28 | AT35: PCD_DPWW2_CCUP_NP | AV35: PCD_DPWW2_CCUP | AW35: PCD_DPWW2_CCUP | AX35: PCD_DPWW2_CCUP | AY35: PCD_DPWW2_CCUP | AZ35: PCD_DPWW2_CCUP | BA35: PCD_DPWW2_CCUP | BB35: PCD_DPWW2_CCUP | BC35: PCD_DPWW2_CCUP | BD35: PCD_DPWW2_CCUP | BE35: PCD_DPWW2_CCUP | BF35: PCD_DPWW2_CCUP | BG35: PCD_DPWW2_CCUP_T | BH35: PCD_DPWW2_CCUP_T | BJ35: PCD_DPWW2_CCUP_O | BK35: PCD_DPWW2_CCUP_O | BL35: PCD_DPWW2_CCUP_O | BM35: PCD_DPWW2_CCUP_O | BN35: PCD_DPWW2_CCUP_O | BO35: PCD_DPWW2_CCUP_O | BP35: PCD_DPWW2_CCUP_O | BQ35: PCD_DPWW2_CCUP_O | BR35: PCD_DPWW2_CCUP_O | BS35: PCD_DPWW2_CCUP_O | BT35: PCD_DPWW2_CCUP_O | BU35: PCD_DPWW2_CCUP_OT | BV35: PCD_DPWW2_CCUP_OT | BX35: PCD_DPWW2_CCUP_P | BY35: PCD_DPWW2_CCUP_P
B36: BRL | D36: PCDWW32b | E36: =IFERROR(INDEX('PCD List'!$E$3:$O$41,MATCH(DPWW2!$D36,'PCD List'!$D$3:$D$41,0),MATCH(DPWW2!$B36,'PCD List'!$E$2:$O$2,0)),"") ->  | F36: Coastal Erosion Risk | G36: Coastal Erosion Risk | H36: £m | I36: 3 | W36: 0 | X36: 0 | AK36: 0 | AL36: 0 | AQ36: DPWW2.29 | AT36: PCD_DPWW2_CER1_NP | AV36: PCD_DPWW2_CER1 | AW36: PCD_DPWW2_CER1 | AX36: PCD_DPWW2_CER1 | AY36: PCD_DPWW2_CER1 | AZ36: PCD_DPWW2_CER1 | BA36: PCD_DPWW2_CER1 | BB36: PCD_DPWW2_CER1 | BC36: PCD_DPWW2_CER1 | BD36: PCD_DPWW2_CER1 | BE36: PCD_DPWW2_CER1 | BF36: PCD_DPWW2_CER1 | BG36: PCD_DPWW2_CER1_T | BH36: PCD_DPWW2_CER1_T | BJ36: PCD_DPWW2_CER1_O | BK36: PCD_DPWW2_CER1_O | BL36: PCD_DPWW2_CER1_O | BM36: PCD_DPWW2_CER1_O | BN36: PCD_DPWW2_CER1_O | BO36: PCD_DPWW2_CER1_O | BP36: PCD_DPWW2_CER1_O | BQ36: PCD_DPWW2_CER1_O | BR36: PCD_DPWW2_CER1_O | BS36: PCD_DPWW2_CER1_O | BT36: PCD_DPWW2_CER1_O | BU36: PCD_DPWW2_CER1_OT | BV36: PCD_DPWW2_CER1_OT | BX36: PCD_DPWW2_CER1_P | BY36: PCD_DPWW2_CER1_P
B37: BRL | D37: PCDWW32d | E37: =IFERROR(INDEX('PCD List'!$E$3:$O$41,MATCH(DPWW2!$D37,'PCD List'!$D$3:$D$41,0),MATCH(DPWW2!$B37,'PCD List'!$E$2:$O$2,0)),"") ->  | F37: Infiltration | G37: Total length (in metre) of sewer effectively sealed / lined | H37: £m | I37: 3 | W37: 0 | X37: 0 | AK37: 0 | AL37: 0 | AQ37: DPWW2.30 | AT37: PCD_DPWW2_INF_NP | AV37: PCD_DPWW2_INF | AW37: PCD_DPWW2_INF | AX37: PCD_DPWW2_INF | AY37: PCD_DPWW2_INF | AZ37: PCD_DPWW2_INF | BA37: PCD_DPWW2_INF | BB37: PCD_DPWW2_INF | BC37: PCD_DPWW2_INF | BD37: PCD_DPWW2_INF | BE37: PCD_DPWW2_INF | BF37: PCD_DPWW2_INF | BG37: PCD_DPWW2_INF_T | BH37: PCD_DPWW2_INF_T | BJ37: PCD_DPWW2_INF_O | BK37: PCD_DPWW2_INF_O | BL37: PCD_DPWW2_INF_O | BM37: PCD_DPWW2_INF_O | BN37: PCD_DPWW2_INF_O | BO37: PCD_DPWW2_INF_O | BP37: PCD_DPWW2_INF_O | BQ37: PCD_DPWW2_INF_O | BR37: PCD_DPWW2_INF_O | BS37: PCD_DPWW2_INF_O | BT37: PCD_DPWW2_INF_O | BU37: PCD_DPWW2_INF_OT | BV37: PCD_DPWW2_INF_OT | BX37: PCD_DPWW2_INF_P | BY37: PCD_DPWW2_INF_P
B38: BRL | D38: PCDWW32e | E38: =IFERROR(INDEX('PCD List'!$E$3:$O$41,MATCH(DPWW2!$D38,'PCD List'!$D$3:$D$41,0),MATCH(DPWW2!$B38,'PCD List'!$E$2:$O$2,0)),"") ->  | F38: WW Partnership Funding | G38: WW Partnership Funding | H38: £m | I38: 3 | W38: 0 | X38: 0 | AK38: 0 | AL38: 0 | AQ38: DPWW2.31 | AT38: PCD_DPWW2_WWPF1_NP | AV38: PCD_DPWW2_WWPF1 | AW38: PCD_DPWW2_WWPF1 | AX38: PCD_DPWW2_WWPF1 | AY38: PCD_DPWW2_WWPF1 | AZ38: PCD_DPWW2_WWPF1 | BA38: PCD_DPWW2_WWPF1 | BB38: PCD_DPWW2_WWPF1 | BC38: PCD_DPWW2_WWPF1 | BD38: PCD_DPWW2_WWPF1 | BE38: PCD_DPWW2_WWPF1 | BF38: PCD_DPWW2_WWPF1 | BG38: PCD_DPWW2_WWPF1_T | BH38: PCD_DPWW2_WWPF1_T | BJ38: PCD_DPWW2_WWPF1_O | BK38: PCD_DPWW2_WWPF1_O | BL38: PCD_DPWW2_WWPF1_O | BM38: PCD_DPWW2_WWPF1_O | BN38: PCD_DPWW2_WWPF1_O | BO38: PCD_DPWW2_WWPF1_O | BP38: PCD_DPWW2_WWPF1_O | BQ38: PCD_DPWW2_WWPF1_O | BR38: PCD_DPWW2_WWPF1_O | BS38: PCD_DPWW2_WWPF1_O | BT38: PCD_DPWW2_WWPF1_O | BU38: PCD_DPWW2_WWPF1_OT | BV38: PCD_DPWW2_WWPF1_OT | BX38: PCD_DPWW2_WWPF1_P | BY38: PCD_DPWW2_WWPF1_P
B39: BRL | D39: PCDWW32f | E39: =IFERROR(INDEX('PCD List'!$E$3:$O$41,MATCH(DPWW2!$D39,'PCD List'!$D$3:$D$41,0),MATCH(DPWW2!$B39,'PCD List'!$E$2:$O$2,0)),"") ->  | F39: Rainwater management | G39: Rainwater management | H39: £m | I39: 3 | W39: 0 | X39: 0 | AK39: 0 | AL39: 0 | AQ39: DPWW2.32 | AT39: PCD_DPWW2_RRM_NP | AV39: PCD_DPWW2_RRM | AW39: PCD_DPWW2_RRM | AX39: PCD_DPWW2_RRM | AY39: PCD_DPWW2_RRM | AZ39: PCD_DPWW2_RRM | BA39: PCD_DPWW2_RRM | BB39: PCD_DPWW2_RRM | BC39: PCD_DPWW2_RRM | BD39: PCD_DPWW2_RRM | BE39: PCD_DPWW2_RRM | BF39: PCD_DPWW2_RRM | BG39: PCD_DPWW2_RRM_T | BH39: PCD_DPWW2_RRM_T | BJ39: PCD_DPWW2_RRM_O | BK39: PCD_DPWW2_RRM_O | BL39: PCD_DPWW2_RRM_O | BM39: PCD_DPWW2_RRM_O | BN39: PCD_DPWW2_RRM_O | BO39: PCD_DPWW2_RRM_O | BP39: PCD_DPWW2_RRM_O | BQ39: PCD_DPWW2_RRM_O | BR39: PCD_DPWW2_RRM_O | BS39: PCD_DPWW2_RRM_O | BT39: PCD_DPWW2_RRM_O | BU39: PCD_DPWW2_RRM_OT | BV39: PCD_DPWW2_RRM_OT | BX39: PCD_DPWW2_RRM_P | BY39: PCD_DPWW2_RRM_P
B40: BRL | D40: PCDWW32g | E40: =IFERROR(INDEX('PCD List'!$E$3:$O$41,MATCH(DPWW2!$D40,'PCD List'!$D$3:$D$41,0),MATCH(DPWW2!$B40,'PCD List'!$E$2:$O$2,0)),"") ->  | F40: Flood and power | G40: Flooding resilience scheme unit rate | H40: £m | I40: 3 | W40: 0 | X40: 0 | AK40: 0 | AL40: 0 | AQ40: DPWW2.33 | AT40: PCD_DPWW2_FP_NP | AV40: PCD_DPWW2_FP | AW40: PCD_DPWW2_FP | AX40: PCD_DPWW2_FP | AY40: PCD_DPWW2_FP | AZ40: PCD_DPWW2_FP | BA40: PCD_DPWW2_FP | BB40: PCD_DPWW2_FP | BC40: PCD_DPWW2_FP | BD40: PCD_DPWW2_FP | BE40: PCD_DPWW2_FP | BF40: PCD_DPWW2_FP | BG40: PCD_DPWW2_FP_T | BH40: PCD_DPWW2_FP_T | BJ40: PCD_DPWW2_FP_O | BK40: PCD_DPWW2_FP_O | BL40: PCD_DPWW2_FP_O | BM40: PCD_DPWW2_FP_O | BN40: PCD_DPWW2_FP_O | BO40: PCD_DPWW2_FP_O | BP40: PCD_DPWW2_FP_O | BQ40: PCD_DPWW2_FP_O | BR40: PCD_DPWW2_FP_O | BS40: PCD_DPWW2_FP_O | BT40: PCD_DPWW2_FP_O | BU40: PCD_DPWW2_FP_OT | BV40: PCD_DPWW2_FP_OT | BX40: PCD_DPWW2_FP_P | BY40: PCD_DPWW2_FP_P
B41: BRL | D41: PCDWW32g | E41: =IFERROR(INDEX('PCD List'!$E$3:$O$41,MATCH(DPWW2!$D41,'PCD List'!$D$3:$D$41,0),MATCH(DPWW2!$B41,'PCD List'!$E$2:$O$2,0)),"") ->  | F41: Flood and power | G41: Power resilience scheme unit rate | H41: £m | I41: 3 | W41: 0 | X41: 0 | AK41: 0 | AL41: 0 | AQ41: DPWW2.34 | AT41: PCD_DPWW2_FP1_NP | AV41: PCD_DPWW2_FP1 | AW41: PCD_DPWW2_FP1 | AX41: PCD_DPWW2_FP1 | AY41: PCD_DPWW2_FP1 | AZ41: PCD_DPWW2_FP1 | BA41: PCD_DPWW2_FP1 | BB41: PCD_DPWW2_FP1 | BC41: PCD_DPWW2_FP1 | BD41: PCD_DPWW2_FP1 | BE41: PCD_DPWW2_FP1 | BF41: PCD_DPWW2_FP1 | BG41: PCD_DPWW2_FP1_T | BH41: PCD_DPWW2_FP1_T | BJ41: PCD_DPWW2_FP1_O | BK41: PCD_DPWW2_FP1_O | BL41: PCD_DPWW2_FP1_O | BM41: PCD_DPWW2_FP1_O | BN41: PCD_DPWW2_FP1_O | BO41: PCD_DPWW2_FP1_O | BP41: PCD_DPWW2_FP1_O | BQ41: PCD_DPWW2_FP1_O | BR41: PCD_DPWW2_FP1_O | BS41: PCD_DPWW2_FP1_O | BT41: PCD_DPWW2_FP1_O | BU41: PCD_DPWW2_FP1_OT | BV41: PCD_DPWW2_FP1_OT | BX41: PCD_DPWW2_FP1_P | BY41: PCD_DPWW2_FP1_P
B42: BRL | D42: PCDWW29 | E42: =IFERROR(INDEX('PCD List'!$E$3:$O$41,MATCH(DPWW2!$D42,'PCD List'!$D$3:$D$41,0),MATCH(DPWW2!$B42,'PCD List'!$E$2:$O$2,0)),"") ->  | F42: First time sewerage | G42: Number of connected properties served by S101A schemes | H42: £m | I42: 3 | W42: 0 | X42: 0 | AK42: 0 | AL42: 0 | AQ42: DPWW2.35 | AT42: PCD_DPWW2_FTS_NP | AV42: PCD_DPWW2_FTS | AW42: PCD_DPWW2_FTS | AX42: PCD_DPWW2_FTS | AY42: PCD_DPWW2_FTS | AZ42: PCD_DPWW2_FTS | BA42: PCD_DPWW2_FTS | BB42: PCD_DPWW2_FTS | BC42: PCD_DPWW2_FTS | BD42: PCD_DPWW2_FTS | BE42: PCD_DPWW2_FTS | BF42: PCD_DPWW2_FTS | BG42: PCD_DPWW2_FTS_T | BH42: PCD_DPWW2_FTS_T | BJ42: PCD_DPWW2_FTS_O | BK42: PCD_DPWW2_FTS_O | BL42: PCD_DPWW2_FTS_O | BM42: PCD_DPWW2_FTS_O | BN42: PCD_DPWW2_FTS_O | BO42: PCD_DPWW2_FTS_O | BP42: PCD_DPWW2_FTS_O | BQ42: PCD_DPWW2_FTS_O | BR42: PCD_DPWW2_FTS_O | BS42: PCD_DPWW2_FTS_O | BT42: PCD_DPWW2_FTS_O | BU42: PCD_DPWW2_FTS_OT | BV42: PCD_DPWW2_FTS_OT | BX42: PCD_DPWW2_FTS_P | BY42: PCD_DPWW2_FTS_P
B43: BRL | C43: PR24CA117 WINEP and GER Carryover | D43: PCDWW36 | E43: =IFERROR(INDEX('PCD List'!$E$3:$O$41,MATCH(DPWW2!$D43,'PCD List'!$D$3:$D$41,0),MATCH(DPWW2!$B43,'PCD List'!$E$2:$O$2,0)),"") ->  | F43: PR19 Green recovery carryover | G43: PR19 Green recovery carryover | H43: £m | I43: 3 | W43: 0 | X43: 0 | AK43: 0 | AL43: 0 | AQ43: DPWW2.36 | AT43: PCD_DPWW2_PR19GRC_NP | AV43: PCD_DPWW2_PR19GRC | AW43: PCD_DPWW2_PR19GRC | AX43: PCD_DPWW2_PR19GRC | AY43: PCD_DPWW2_PR19GRC | AZ43: PCD_DPWW2_PR19GRC | BA43: PCD_DPWW2_PR19GRC | BB43: PCD_DPWW2_PR19GRC | BC43: PCD_DPWW2_PR19GRC | BD43: PCD_DPWW2_PR19GRC | BE43: PCD_DPWW2_PR19GRC | BF43: PCD_DPWW2_PR19GRC | BG43: PCD_DPWW2_PR19GRC_T | BH43: PCD_DPWW2_PR19GRC_T | BJ43: PCD_DPWW2_PR19GRC_O | BK43: PCD_DPWW2_PR19GRC_O | BL43: PCD_DPWW2_PR19GRC_O | BM43: PCD_DPWW2_PR19GRC_O | BN43: PCD_DPWW2_PR19GRC_O | BO43: PCD_DPWW2_PR19GRC_O | BP43: PCD_DPWW2_PR19GRC_O | BQ43: PCD_DPWW2_PR19GRC_O | BR43: PCD_DPWW2_PR19GRC_O | BS43: PCD_DPWW2_PR19GRC_O | BT43: PCD_DPWW2_PR19GRC_O | BU43: PCD_DPWW2_PR19GRC_OT | BV43: PCD_DPWW2_PR19GRC_OT | BX43: PCD_DPWW2_PR19GRC_P | BY43: PCD_DPWW2_PR19GRC_P
B44: BRL | C44: PR24CA113 Wastewater scheme level PCDs | D44: PCDWW5 | E44: =IFERROR(INDEX('PCD List'!$E$3:$O$41,MATCH(DPWW2!$D44,'PCD List'!$D$3:$D$41,0),MATCH(DPWW2!$B44,'PCD List'!$E$2:$O$2,0)),"") ->  | F44: Storm overflows | G44: Equivalent storage | H44: £m | I44: 3 | W44: 0 | X44: 0 | AK44: 0 | AL44: 0 | AQ44: DPWW2.37 | AT44: PCD_DPWW2_SOFES_NP | AV44: PCD_DPWW2_SOFES | AW44: PCD_DPWW2_SOFES | AX44: PCD_DPWW2_SOFES | AY44: PCD_DPWW2_SOFES | AZ44: PCD_DPWW2_SOFES | BA44: PCD_DPWW2_SOFES | BB44: PCD_DPWW2_SOFES | BC44: PCD_DPWW2_SOFES | BD44: PCD_DPWW2_SOFES | BE44: PCD_DPWW2_SOFES | BF44: PCD_DPWW2_SOFES | BG44: PCD_DPWW2_SOFES_T | BH44: PCD_DPWW2_SOFES_T | BJ44: PCD_DPWW2_SOFES_O | BK44: PCD_DPWW2_SOFES_O | BL44: PCD_DPWW2_SOFES_O | BM44: PCD_DPWW2_SOFES_O | BN44: PCD_DPWW2_SOFES_O | BO44: PCD_DPWW2_SOFES_O | BP44: PCD_DPWW2_SOFES_O | BQ44: PCD_DPWW2_SOFES_O | BR44: PCD_DPWW2_SOFES_O | BS44: PCD_DPWW2_SOFES_O | BT44: PCD_DPWW2_SOFES_O | BU44: PCD_DPWW2_SOFES_OT | BV44: PCD_DPWW2_SOFES_OT | BX44: PCD_DPWW2_SOFES_P | BY44: PCD_DPWW2_SOFES_P
B45: BRL | C45: PR24CA113 Wastewater scheme level PCDs | D45: PCDWW4 | E45: =IFERROR(INDEX('PCD List'!$E$3:$O$41,MATCH(DPWW2!$D45,'PCD List'!$D$3:$D$41,0),MATCH(DPWW2!$B45,'PCD List'!$E$2:$O$2,0)),"") ->  | F45: Flow to Full Treatment | G45: litres per second | H45: £m | I45: 3 | W45: 0 | X45: 0 | AK45: 0 | AL45: 0 | AQ45: DPWW2.38 | AT45: PCD_DPWW2_FTFT_NP | AV45: PCD_DPWW2_FTFT | AW45: PCD_DPWW2_FTFT | AX45: PCD_DPWW2_FTFT | AY45: PCD_DPWW2_FTFT | AZ45: PCD_DPWW2_FTFT | BA45: PCD_DPWW2_FTFT | BB45: PCD_DPWW2_FTFT | BC45: PCD_DPWW2_FTFT | BD45: PCD_DPWW2_FTFT | BE45: PCD_DPWW2_FTFT | BF45: PCD_DPWW2_FTFT | BG45: PCD_DPWW2_FTFT_T | BH45: PCD_DPWW2_FTFT_T | BJ45: PCD_DPWW2_FTFT_O | BK45: PCD_DPWW2_FTFT_O | BL45: PCD_DPWW2_FTFT_O | BM45: PCD_DPWW2_FTFT_O | BN45: PCD_DPWW2_FTFT_O | BO45: PCD_DPWW2_FTFT_O | BP45: PCD_DPWW2_FTFT_O | BQ45: PCD_DPWW2_FTFT_O | BR45: PCD_DPWW2_FTFT_O | BS45: PCD_DPWW2_FTFT_O | BT45: PCD_DPWW2_FTFT_O | BU45: PCD_DPWW2_FTFT_OT | BV45: PCD_DPWW2_FTFT_OT | BX45: PCD_DPWW2_FTFT_P | BY45: PCD_DPWW2_FTFT_P
B46: BRL | C46: PR24CA113 Wastewater scheme level PCDs | D46: PCDWW10 | E46: =IFERROR(INDEX('PCD List'!$E$3:$O$41,MATCH(DPWW2!$D46,'PCD List'!$D$3:$D$41,0),MATCH(DPWW2!$B46,'PCD List'!$E$2:$O$2,0)),"") ->  | F46: P-removal | G46: Population equivalent served | H46: £m | I46: 3 | W46: 0 | X46: 0 | AK46: 0 | AL46: 0 | AQ46: DPWW2.39 | AT46: PCD_DPWW2_PRMVL_NP | AV46: PCD_DPWW2_PRMVL | AW46: PCD_DPWW2_PRMVL | AX46: PCD_DPWW2_PRMVL | AY46: PCD_DPWW2_PRMVL | AZ46: PCD_DPWW2_PRMVL | BA46: PCD_DPWW2_PRMVL | BB46: PCD_DPWW2_PRMVL | BC46: PCD_DPWW2_PRMVL | BD46: PCD_DPWW2_PRMVL | BE46: PCD_DPWW2_PRMVL | BF46: PCD_DPWW2_PRMVL | BG46: PCD_DPWW2_PRMVL_T | BH46: PCD_DPWW2_PRMVL_T | BJ46: PCD_DPWW2_PRMVL_O | BK46: PCD_DPWW2_PRMVL_O | BL46: PCD_DPWW2_PRMVL_O | BM46: PCD_DPWW2_PRMVL_O | BN46: PCD_DPWW2_PRMVL_O | BO46: PCD_DPWW2_PRMVL_O | BP46: PCD_DPWW2_PRMVL_O | BQ46: PCD_DPWW2_PRMVL_O | BR46: PCD_DPWW2_PRMVL_O | BS46: PCD_DPWW2_PRMVL_O | BT46: PCD_DPWW2_PRMVL_O | BU46: PCD_DPWW2_PRMVL_OT | BV46: PCD_DPWW2_PRMVL_OT | BX46: PCD_DPWW2_PRMVL_P | BY46: PCD_DPWW2_PRMVL_P
B47: BRL | C47: PR24CA113 Wastewater scheme level PCDs | D47: PCDWW27 | E47: =IFERROR(INDEX('PCD List'!$E$3:$O$41,MATCH(DPWW2!$D47,'PCD List'!$D$3:$D$41,0),MATCH(DPWW2!$B47,'PCD List'!$E$2:$O$2,0)),"") ->  | F47: Growth to Sewerage Treatment Works | G47: Added Process Capacity in PE | H47: £m | I47: 3 | W47: 0 | X47: 0 | AK47: 0 | AL47: 0 | AQ47: DPWW2.40 | AT47: PCD_DPWW2_GSTW_NP | AV47: PCD_DPWW2_GSTW | AW47: PCD_DPWW2_GSTW | AX47: PCD_DPWW2_GSTW | AY47: PCD_DPWW2_GSTW | AZ47: PCD_DPWW2_GSTW | BA47: PCD_DPWW2_GSTW | BB47: PCD_DPWW2_GSTW | BC47: PCD_DPWW2_GSTW | BD47: PCD_DPWW2_GSTW | BE47: PCD_DPWW2_GSTW | BF47: PCD_DPWW2_GSTW | BG47: PCD_DPWW2_GSTW_T | BH47: PCD_DPWW2_GSTW_T | BJ47: PCD_DPWW2_GSTW_O | BK47: PCD_DPWW2_GSTW_O | BL47: PCD_DPWW2_GSTW_O | BM47: PCD_DPWW2_GSTW_O | BN47: PCD_DPWW2_GSTW_O | BO47: PCD_DPWW2_GSTW_O | BP47: PCD_DPWW2_GSTW_O | BQ47: PCD_DPWW2_GSTW_O | BR47: PCD_DPWW2_GSTW_O | BS47: PCD_DPWW2_GSTW_O | BT47: PCD_DPWW2_GSTW_O | BU47: PCD_DPWW2_GSTW_OT | BV47: PCD_DPWW2_GSTW_OT | BX47: PCD_DPWW2_GSTW_P | BY47: PCD_DPWW2_GSTW_P
B48: BRL | C48: PR24CA113 Wastewater scheme level PCDs | D48: PCDWW12 | E48: =IFERROR(INDEX('PCD List'!$E$3:$O$41,MATCH(DPWW2!$D48,'PCD List'!$D$3:$D$41,0),MATCH(DPWW2!$B48,'PCD List'!$E$2:$O$2,0)),"") ->  | F48: Treatment for tightening of sanitary parameters | G48: Population equivalent served | H48: £m | I48: 3 | W48: 0 | X48: 0 | AK48: 0 | AL48: 0 | AQ48: DPWW2.41 | AT48: PCD_DPWW2_TTSP_NP | AV48: PCD_DPWW2_TTSP | AW48: PCD_DPWW2_TTSP | AX48: PCD_DPWW2_TTSP | AY48: PCD_DPWW2_TTSP | AZ48: PCD_DPWW2_TTSP | BA48: PCD_DPWW2_TTSP | BB48: PCD_DPWW2_TTSP | BC48: PCD_DPWW2_TTSP | BD48: PCD_DPWW2_TTSP | BE48: PCD_DPWW2_TTSP | BF48: PCD_DPWW2_TTSP | BG48: PCD_DPWW2_TTSP_T | BH48: PCD_DPWW2_TTSP_T | BJ48: PCD_DPWW2_TTSP_O | BK48: PCD_DPWW2_TTSP_O | BL48: PCD_DPWW2_TTSP_O | BM48: PCD_DPWW2_TTSP_O | BN48: PCD_DPWW2_TTSP_O | BO48: PCD_DPWW2_TTSP_O | BP48: PCD_DPWW2_TTSP_O | BQ48: PCD_DPWW2_TTSP_O | BR48: PCD_DPWW2_TTSP_O | BS48: PCD_DPWW2_TTSP_O | BT48: PCD_DPWW2_TTSP_O | BU48: PCD_DPWW2_TTSP_OT | BV48: PCD_DPWW2_TTSP_OT | BX48: PCD_DPWW2_TTSP_P | BY48: PCD_DPWW2_TTSP_P
B49: BRL | C49: PR24CA117 WINEP and GER Carryover | D49: PCDWW35 | E49: =IFERROR(INDEX('PCD List'!$E$3:$O$41,MATCH(DPWW2!$D49,'PCD List'!$D$3:$D$41,0),MATCH(DPWW2!$B49,'PCD List'!$E$2:$O$2,0)),"") ->  | F49: PR19 WINEP Carryover actions | G49: Number of schemes | H49: £m | I49: 3 | W49: 0 | X49: 0 | AK49: 0 | AL49: 0 | AQ49: DPWW2.42 | AT49: PCD_DPWW2_PR19WINCA_NP | AV49: PCD_DPWW2_PR19WINCA | AW49: PCD_DPWW2_PR19WINCA | AX49: PCD_DPWW2_PR19WINCA | AY49: PCD_DPWW2_PR19WINCA | AZ49: PCD_DPWW2_PR19WINCA | BA49: PCD_DPWW2_PR19WINCA | BB49: PCD_DPWW2_PR19WINCA | BC49: PCD_DPWW2_PR19WINCA | BD49: PCD_DPWW2_PR19WINCA | BE49: PCD_DPWW2_PR19WINCA | BF49: PCD_DPWW2_PR19WINCA | BG49: PCD_DPWW2_PR19WINCA_T | BH49: PCD_DPWW2_PR19WINCA_T | BJ49: PCD_DPWW2_PR19WINCA_O | BK49: PCD_DPWW2_PR19WINCA_O | BL49: PCD_DPWW2_PR19WINCA_O | BM49: PCD_DPWW2_PR19WINCA_O | BN49: PCD_DPWW2_PR19WINCA_O | BO49: PCD_DPWW2_PR19WINCA_O | BP49: PCD_DPWW2_PR19WINCA_O | BQ49: PCD_DPWW2_PR19WINCA_O | BR49: PCD_DPWW2_PR19WINCA_O | BS49: PCD_DPWW2_PR19WINCA_O | BT49: PCD_DPWW2_PR19WINCA_O | BU49: PCD_DPWW2_PR19WINCA_OT | BV49: PCD_DPWW2_PR19WINCA_OT | BX49: PCD_DPWW2_PR19WINCA_P | BY49: PCD_DPWW2_PR19WINCA_P
B50: BRL | C50: PR24CA118 Net Zero | D50: PCDWW34 | E50: =IFERROR(INDEX('PCD List'!$E$3:$O$41,MATCH(DPWW2!$D50,'PCD List'!$D$3:$D$41,0),MATCH(DPWW2!$B50,'PCD List'!$E$2:$O$2,0)),"") ->  | F50: Greenhouse gas reduction (net zero) | G50: tCO2e/Number of sites | H50: £m | I50: 3 | W50: 0 | X50: 0 | AK50: 0 | AL50: 0 | AQ50: DPWW2.43 | AT50: PCD_DPWW2_GGR1_NP | AV50: PCD_DPWW2_GGR1 | AW50: PCD_DPWW2_GGR1 | AX50: PCD_DPWW2_GGR1 | AY50: PCD_DPWW2_GGR1 | AZ50: PCD_DPWW2_GGR1 | BA50: PCD_DPWW2_GGR1 | BB50: PCD_DPWW2_GGR1 | BC50: PCD_DPWW2_GGR1 | BD50: PCD_DPWW2_GGR1 | BE50: PCD_DPWW2_GGR1 | BF50: PCD_DPWW2_GGR1 | BG50: PCD_DPWW2_GGR1_T | BH50: PCD_DPWW2_GGR1_T | BJ50: PCD_DPWW2_GGR1_O | BK50: PCD_DPWW2_GGR1_O | BL50: PCD_DPWW2_GGR1_O | BM50: PCD_DPWW2_GGR1_O | BN50: PCD_DPWW2_GGR1_O | BO50: PCD_DPWW2_GGR1_O | BP50: PCD_DPWW2_GGR1_O | BQ50: PCD_DPWW2_GGR1_O | BR50: PCD_DPWW2_GGR1_O | BS50: PCD_DPWW2_GGR1_O | BT50: PCD_DPWW2_GGR1_O | BU50: PCD_DPWW2_GGR1_OT | BV50: PCD_DPWW2_GGR1_OT | BX50: PCD_DPWW2_GGR1_P | BY50: PCD_DPWW2_GGR1_P
W51: 0 | X51: 0 | AK51: 0 | AL51: 0
B52: =B51 -> 0 | E52: =IFERROR(INDEX('PCD List'!$E$3:$O$41,MATCH(DPWW2!$D52,'PCD List'!$D$3:$D$41,0),MATCH(DPWW2!$B52,'PCD List'!$E$2:$O$2,0)),"") ->  | F52: Total other non - PCD enhancement wastewater/bioresources expenditure, totex | G52: Total other non - PCD enhancement wastewater/bioresources expenditure, totex | H52: £m | I52: 3 | W52: 0 | X52: 0 | AK52: 0 | AL52: 0 | AQ52: DPWW2.44 | AT52: PCD_DPWW2_OTH1_NP | AV52: PCD_DPWW2_OTH1 | AW52: PCD_DPWW2_OTH1 | AX52: PCD_DPWW2_OTH1 | AY52: PCD_DPWW2_OTH1 | AZ52: PCD_DPWW2_OTH1 | BA52: PCD_DPWW2_OTH1 | BB52: PCD_DPWW2_OTH1 | BC52: PCD_DPWW2_OTH1 | BD52: PCD_DPWW2_OTH1 | BE52: PCD_DPWW2_OTH1 | BF52: PCD_DPWW2_OTH1 | BG52: PCD_DPWW2_OTH1_T | BH52: PCD_DPWW2_OTH1_T | BJ52: PCD_DPWW2_OTH1_O | BK52: PCD_DPWW2_OTH1_O | BL52: PCD_DPWW2_OTH1_O | BM52: PCD_DPWW2_OTH1_O | BN52: PCD_DPWW2_OTH1_O | BO52: PCD_DPWW2_OTH1_O | BP52: PCD_DPWW2_OTH1_O | BQ52: PCD_DPWW2_OTH1_O | BR52: PCD_DPWW2_OTH1_O | BS52: PCD_DPWW2_OTH1_O | BT52: PCD_DPWW2_OTH1_O | BU52: PCD_DPWW2_OTH1_OT | BV52: PCD_DPWW2_OTH1_OT | BX52: PCD_DPWW2_OTH1_P | BY52: PCD_DPWW2_OTH1_P
B53: 0 | E53: =IFERROR(INDEX('PCD List'!$E$3:$O$41,MATCH(DPWW2!$D53,'PCD List'!$D$3:$D$41,0),MATCH(DPWW2!$B53,'PCD List'!$E$2:$O$2,0)),"") ->  | F53: Total PCD and non - PCD enhancement expenditure; wastewater/bioresources totex | G53: Total PCD and non - PCD enhancement expenditure; wastewater/bioresources totex | H53: £m | I53: 3 | L53: =SUM(L8:L52) -> 0 | M53: 0 | N53: 0 | O53: 0 | P53: 0 | Q53: 0 | R53: 0 | S53: 0 | T53: 0 | U53: 0 | V53: 0 | W53: =Q53 -> 0 | X53: =V53 -> 0 | Z53: =SUM(Z8:Z52) -> 0 | AA53: 0 | AB53: 0 | AC53: 0 | AD53: 0 | AE53: 0 | AF53: 0 | AG53: 0 | AH53: 0 | AI53: 0 | AJ53: 0 | AK53: =AE53 -> 0 | AL53: =AJ53 -> 0 | AQ53: DPWW2.45 | AT53: PCD_DPWW2_OTH2_NP | AV53: PCD_DPWW2_OTH2 | AW53: PCD_DPWW2_OTH2 | AX53: PCD_DPWW2_OTH2 | AY53: PCD_DPWW2_OTH2 | AZ53: PCD_DPWW2_OTH2 | BA53: PCD_DPWW2_OTH2 | BB53: PCD_DPWW2_OTH2 | BC53: PCD_DPWW2_OTH2 | BD53: PCD_DPWW2_OTH2 | BE53: PCD_DPWW2_OTH2 | BF53: PCD_DPWW2_OTH2 | BG53: PCD_DPWW2_OTH2_T | BH53: PCD_DPWW2_OTH2_T | BJ53: PCD_DPWW2_OTH2_O | BK53: PCD_DPWW2_OTH2_O | BL53: PCD_DPWW2_OTH2_O | BM53: PCD_DPWW2_OTH2_O | BN53: PCD_DPWW2_OTH2_O | BO53: PCD_DPWW2_OTH2_O | BP53: PCD_DPWW2_OTH2_O | BQ53: PCD_DPWW2_OTH2_O | BR53: PCD_DPWW2_OTH2_O | BS53: PCD_DPWW2_OTH2_O | BT53: PCD_DPWW2_OTH2_O | BU53: PCD_DPWW2_OTH2_OT | BV53: PCD_DPWW2_OTH2_OT | BX53: PCD_DPWW2_OTH2_P | BY53: PCD_DPWW2_OTH2_P
AR54: End_Data | BZ54: End_BON

Sheet DPWW3
A1: =RIGHT(CELL("filename", A1), LEN(CELL("filename", A1)) - SEARCH("]", CELL("filename", A1))) -> DPWW3
A3: Interim Milestones - Wastewater - Programme level
B5: Company | C5: PCD Model | D5: PCD Ref | E5: PCD applicable to company | F5: Line description | G5: PCD Output Description | H5: Units | I5: DPs | K5: Number of Schemes (Nr) | AJ5: Total number of schemes with a 90+ day delay for any given IM | AK5: Reasons for delay - Number of delayed schemes falling into each 'primary reason for delay' category | AW5: DP reference | BA5: Number of Schemes (Nr) | BC5: IM1 has yet to be achieved | BY5: Total number of schemes with a 90+ day delay for any given IM | BZ5: Reasons for delay - Number of delayed schemes falling into each 'primary reason for delay' category
A6: Data_Start | M6: Pre 2025-26 | N6: 2025-26 Q1 | O6: 2025-26 Q2 | P6: 2025-26 Q3 | Q6: 2025-26 Q4 | R6: 2026-27 Q1 | S6: 2026-27 Q2 | T6: 2026-27 Q3 | U6: 2026-27 Q4 | V6: 2027-28 Q1 | W6: 2027-28 Q2 | X6: 2027-28 Q3 | Y6: 2027-28 Q4 | Z6: 2028-29 Q1 | AA6: 2028-29 Q2 | AB6: 2028-29 Q3 | AC6: 2028-29 Q4 | AD6: 2029-30 Q1 | AE6: 2029-30 Q2 | AF6: 2029-30 Q3 | AG6: 2029-30 Q4 | AK6: Lack of internal resourcing | AL6: Lack of supply chain resourcing | AM6: Change in solution (IM2) | AN6: Supply chain capacity | AO6: Land and planning permission | AP6: Third-party interface | AQ6: Contractual issues | AR6: Sites issues | AS6: Environmental risks | AT6: Regulatory Sign off Delay | AU6: Programme level efficiency | AZ6: BON_Start | BA6: Constant | BC6: 2024-25 Q4 | BD6: 2025-26 Q1 | BE6: 2025-26 Q2 | BF6: 2025-26 Q3 | BG6: 2025-26 Q4 | BH6: 2026-27 Q1 | BI6: 2026-27 Q2 | BJ6: 2026-27 Q3 | BK6: 2026-27 Q4 | BL6: 2027-28 Q1 | BM6: 2027-28 Q2 | BN6: 2027-28 Q3 | BO6: 2027-28 Q4 | BP6: 2028-29 Q1 | BQ6: 2028-29 Q2 | BR6: 2028-29 Q3 | BS6: 2028-29 Q4 | BT6: 2029-30 Q1 | BU6: 2029-30 Q2 | BV6: 2029-30 Q3 | BW6: 2029-30 Q4 | BY6: Conatant | BZ6: Lack of internal resourcing | CA6: Lack of supply chain resourcing | CB6: Change in solution (IM2) | CC6: Supply chain capacity | CD6: Land and planning permission | CE6: Third-party interface | CF6: Contractual issues | CG6: Sites issues | CH6: Environmental risks | CI6: Regulatory Sign off Delay | CJ6: Programme level efficiency
B7: =rngAcronym -> BRL | C7: PR24CA115 Wastewater Other Storm Overflow | D7: PCDWW5b | E7: =IFERROR(INDEX('PCD List'!$E$3:$O$41,MATCH(DPWW3!$D7,'PCD List'!$D$3:$D$41,0),MATCH(DPWW3!$B7,'PCD List'!$E$2:$O$2,0)),"") ->  | F7: Storm Overflow - Wetland | G7: Number of schemes at Stage 0 | H7: Nr | I7: 0 | AW7: DPWW3.1 | AZ7: PCD_DPWW3_SOW1 | BA7: PCD_DPWW3_SOW1_NR | BC7: PCD_DPWW3_SOW1_S0 | BD7: PCD_DPWW3_SOW1_S0 | BE7: PCD_DPWW3_SOW1_S0 | BF7: PCD_DPWW3_SOW1_S0 | BG7: PCD_DPWW3_SOW1_S0 | BH7: PCD_DPWW3_SOW1_S0 | BI7: PCD_DPWW3_SOW1_S0 | BJ7: PCD_DPWW3_SOW1_S0 | BK7: PCD_DPWW3_SOW1_S0 | BL7: PCD_DPWW3_SOW1_S0 | BM7: PCD_DPWW3_SOW1_S0 | BN7: PCD_DPWW3_SOW1_S0 | BO7: PCD_DPWW3_SOW1_S0 | BP7: PCD_DPWW3_SOW1_S0 | BQ7: PCD_DPWW3_SOW1_S0 | BR7: PCD_DPWW3_SOW1_S0 | BS7: PCD_DPWW3_SOW1_S0 | BT7: PCD_DPWW3_SOW1_S0 | BU7: PCD_DPWW3_SOW1_S0 | BV7: PCD_DPWW3_SOW1_S0 | BW7: PCD_DPWW3_SOW1_S0 | BY7: PCD_DPWW3_SOW1_DLY | BZ7: PCD_DPWW3_SOW1_DIR | CA7: PCD_DPWW3_SOW1_DSCR | CB7: PCD_DPWW3_SOW1_DCS | CC7: PCD_DPWW3_SOW1_DSCS | CD7: PCD_DPWW3_SOW1_DPP | CE7: PCD_DPWW3_SOW1_DTPI | CF7: PCD_DPWW3_SOW1_DCI | CG7: PCD_DPWW3_SOW1_DSI | CH7: PCD_DPWW3_SOW1_DER | CI7: PCD_DPWW3_SOW1_RS | CJ7: PCD_DPWW3_SOW1_DPLE
B8: =B7 -> BRL | C8: PR24CA115 Wastewater Other Storm Overflow | D8: PCDWW5b | E8: =IFERROR(INDEX('PCD List'!$E$3:$O$41,MATCH(DPWW3!$D8,'PCD List'!$D$3:$D$41,0),MATCH(DPWW3!$B8,'PCD List'!$E$2:$O$2,0)),"") ->  | F8: Storm Overflow - Wetland | G8: Number of schemes at Stage 1 | H8: Nr | I8: 0 | AW8: DPWW3.1 | AZ8: _S1 | BC8: PCD_DPWW3_SOW1_S1 | BD8: PCD_DPWW3_SOW1_S1 | BE8: PCD_DPWW3_SOW1_S1 | BF8: PCD_DPWW3_SOW1_S1 | BG8: PCD_DPWW3_SOW1_S1 | BH8: PCD_DPWW3_SOW1_S1 | BI8: PCD_DPWW3_SOW1_S1 | BJ8: PCD_DPWW3_SOW1_S1 | BK8: PCD_DPWW3_SOW1_S1 | BL8: PCD_DPWW3_SOW1_S1 | BM8: PCD_DPWW3_SOW1_S1 | BN8: PCD_DPWW3_SOW1_S1 | BO8: PCD_DPWW3_SOW1_S1 | BP8: PCD_DPWW3_SOW1_S1 | BQ8: PCD_DPWW3_SOW1_S1 | BR8: PCD_DPWW3_SOW1_S1 | BS8: PCD_DPWW3_SOW1_S1 | BT8: PCD_DPWW3_SOW1_S1 | BU8: PCD_DPWW3_SOW1_S1 | BV8: PCD_DPWW3_SOW1_S1 | BW8: PCD_DPWW3_SOW1_S1 | BY8: =BY$7&$AZ8 -> PCD_DPWW3_SOW1_DLY_S1 | BZ8: =BZ$7&$AZ8 -> PCD_DPWW3_SOW1_DIR_S1 | CA8: PCD_DPWW3_SOW1_DSCR_S1 | CB8: PCD_DPWW3_SOW1_DCS_S1 | CC8: PCD_DPWW3_SOW1_DSCS_S1 | CD8: PCD_DPWW3_SOW1_DPP_S1 | CE8: PCD_DPWW3_SOW1_DTPI_S1 | CF8: PCD_DPWW3_SOW1_DCI_S1 | CG8: PCD_DPWW3_SOW1_DSI_S1 | CH8: PCD_DPWW3_SOW1_DER_S1 | CI8: =CI$7&$AZ8 -> PCD_DPWW3_SOW1_RS_S1 | CJ8: PCD_DPWW3_SOW1_DPLE_S1
B9: =B8 -> BRL | C9: PR24CA115 Wastewater Other Storm Overflow | D9: PCDWW5b | E9: =IFERROR(INDEX('PCD List'!$E$3:$O$41,MATCH(DPWW3!$D9,'PCD List'!$D$3:$D$41,0),MATCH(DPWW3!$B9,'PCD List'!$E$2:$O$2,0)),"") ->  | F9: Storm Overflow - Wetland | G9: Number of schemes at Stage 2 | H9: Nr | I9: 0 | AW9: DPWW3.1 | AZ9: _S2 | BC9: PCD_DPWW3_SOW1_S2 | BD9: PCD_DPWW3_SOW1_S2 | BE9: PCD_DPWW3_SOW1_S2 | BF9: PCD_DPWW3_SOW1_S2 | BG9: PCD_DPWW3_SOW1_S2 | BH9: PCD_DPWW3_SOW1_S2 | BI9: PCD_DPWW3_SOW1_S2 | BJ9: PCD_DPWW3_SOW1_S2 | BK9: PCD_DPWW3_SOW1_S2 | BL9: PCD_DPWW3_SOW1_S2 | BM9: PCD_DPWW3_SOW1_S2 | BN9: PCD_DPWW3_SOW1_S2 | BO9: PCD_DPWW3_SOW1_S2 | BP9: PCD_DPWW3_SOW1_S2 | BQ9: PCD_DPWW3_SOW1_S2 | BR9: PCD_DPWW3_SOW1_S2 | BS9: PCD_DPWW3_SOW1_S2 | BT9: PCD_DPWW3_SOW1_S2 | BU9: PCD_DPWW3_SOW1_S2 | BV9: PCD_DPWW3_SOW1_S2 | BW9: PCD_DPWW3_SOW1_S2 | BY9: =BY$7&$AZ9 -> PCD_DPWW3_SOW1_DLY_S2 | BZ9: PCD_DPWW3_SOW1_DIR_S2 | CA9: PCD_DPWW3_SOW1_DSCR_S2 | CB9: PCD_DPWW3_SOW1_DCS_S2 | CC9: PCD_DPWW3_SOW1_DSCS_S2 | CD9: PCD_DPWW3_SOW1_DPP_S2 | CE9: PCD_DPWW3_SOW1_DTPI_S2 | CF9: PCD_DPWW3_SOW1_DCI_S2 | CG9: PCD_DPWW3_SOW1_DSI_S2 | CH9: PCD_DPWW3_SOW1_DER_S2 | CI9: PCD_DPWW3_SOW1_RS_S2 | CJ9: PCD_DPWW3_SOW1_DPLE_S2
B10: BRL | C10: PR24CA115 Wastewater Other Storm Overflow | D10: PCDWW5b | E10: =IFERROR(INDEX('PCD List'!$E$3:$O$41,MATCH(DPWW3!$D10,'PCD List'!$D$3:$D$41,0),MATCH(DPWW3!$B10,'PCD List'!$E$2:$O$2,0)),"") ->  | F10: Storm Overflow - Wetland | G10: Number of schemes at Stage 3 | H10: Nr | I10: 0 | AW10: DPWW3.1 | AZ10: _S3 | BC10: PCD_DPWW3_SOW1_S3 | BD10: PCD_DPWW3_SOW1_S3 | BE10: PCD_DPWW3_SOW1_S3 | BF10: PCD_DPWW3_SOW1_S3 | BG10: PCD_DPWW3_SOW1_S3 | BH10: PCD_DPWW3_SOW1_S3 | BI10: PCD_DPWW3_SOW1_S3 | BJ10: PCD_DPWW3_SOW1_S3 | BK10: PCD_DPWW3_SOW1_S3 | BL10: PCD_DPWW3_SOW1_S3 | BM10: PCD_DPWW3_SOW1_S3 | BN10: PCD_DPWW3_SOW1_S3 | BO10: PCD_DPWW3_SOW1_S3 | BP10: PCD_DPWW3_SOW1_S3 | BQ10: PCD_DPWW3_SOW1_S3 | BR10: PCD_DPWW3_SOW1_S3 | BS10: PCD_DPWW3_SOW1_S3 | BT10: PCD_DPWW3_SOW1_S3 | BU10: PCD_DPWW3_SOW1_S3 | BV10: PCD_DPWW3_SOW1_S3 | BW10: PCD_DPWW3_SOW1_S3 | BY10: PCD_DPWW3_SOW1_DLY_S3 | BZ10: PCD_DPWW3_SOW1_DIR_S3 | CA10: PCD_DPWW3_SOW1_DSCR_S3 | CB10: PCD_DPWW3_SOW1_DCS_S3 | CC10: PCD_DPWW3_SOW1_DSCS_S3 | CD10: PCD_DPWW3_SOW1_DPP_S3 | CE10: PCD_DPWW3_SOW1_DTPI_S3 | CF10: PCD_DPWW3_SOW1_DCI_S3 | CG10: PCD_DPWW3_SOW1_DSI_S3 | CH10: PCD_DPWW3_SOW1_DER_S3 | CI10: PCD_DPWW3_SOW1_RS_S3 | CJ10: PCD_DPWW3_SOW1_DPLE_S3
B11: BRL | C11: PR24CA115 Wastewater Other Storm Overflow | D11: PCDWW5b | E11: =IFERROR(INDEX('PCD List'!$E$3:$O$41,MATCH(DPWW3!$D11,'PCD List'!$D$3:$D$41,0),MATCH(DPWW3!$B11,'PCD List'!$E$2:$O$2,0)),"") ->  | F11: Storm Overflow - Wetland | G11: Number of schemes at Stage 4 | H11: Nr | I11: 0 | AW11: DPWW3.1 | AZ11: _S4 | BC11: PCD_DPWW3_SOW1_S4 | BD11: PCD_DPWW3_SOW1_S4 | BE11: PCD_DPWW3_SOW1_S4 | BF11: PCD_DPWW3_SOW1_S4 | BG11: PCD_DPWW3_SOW1_S4 | BH11: PCD_DPWW3_SOW1_S4 | BI11: PCD_DPWW3_SOW1_S4 | BJ11: PCD_DPWW3_SOW1_S4 | BK11: PCD_DPWW3_SOW1_S4 | BL11: PCD_DPWW3_SOW1_S4 | BM11: PCD_DPWW3_SOW1_S4 | BN11: PCD_DPWW3_SOW1_S4 | BO11: PCD_DPWW3_SOW1_S4 | BP11: PCD_DPWW3_SOW1_S4 | BQ11: PCD_DPWW3_SOW1_S4 | BR11: PCD_DPWW3_SOW1_S4 | BS11: PCD_DPWW3_SOW1_S4 | BT11: PCD_DPWW3_SOW1_S4 | BU11: PCD_DPWW3_SOW1_S4 | BV11: PCD_DPWW3_SOW1_S4 | BW11: PCD_DPWW3_SOW1_S4 | BY11: PCD_DPWW3_SOW1_DLY_S4 | BZ11: PCD_DPWW3_SOW1_DIR_S4 | CA11: PCD_DPWW3_SOW1_DSCR_S4 | CB11: PCD_DPWW3_SOW1_DCS_S4 | CC11: PCD_DPWW3_SOW1_DSCS_S4 | CD11: PCD_DPWW3_SOW1_DPP_S4 | CE11: PCD_DPWW3_SOW1_DTPI_S4 | CF11: PCD_DPWW3_SOW1_DCI_S4 | CG11: PCD_DPWW3_SOW1_DSI_S4 | CH11: PCD_DPWW3_SOW1_DER_S4 | CI11: PCD_DPWW3_SOW1_RS_S4 | CJ11: PCD_DPWW3_SOW1_DPLE_S4
B12: BRL | C12: PR24CA115 Wastewater Other Storm Overflow | D12: PCDWW5b | E12: =IFERROR(INDEX('PCD List'!$E$3:$O$41,MATCH(DPWW3!$D12,'PCD List'!$D$3:$D$41,0),MATCH(DPWW3!$B12,'PCD List'!$E$2:$O$2,0)),"") ->  | F12: Storm Overflow - Wetland | G12: Number of schemes at Stage 5 | H12: Nr | I12: 0 | AW12: DPWW3.1 | AZ12: _S5 | BC12: PCD_DPWW3_SOW1_S5 | BD12: PCD_DPWW3_SOW1_S5 | BE12: PCD_DPWW3_SOW1_S5 | BF12: PCD_DPWW3_SOW1_S5 | BG12: PCD_DPWW3_SOW1_S5 | BH12: PCD_DPWW3_SOW1_S5 | BI12: PCD_DPWW3_SOW1_S5 | BJ12: PCD_DPWW3_SOW1_S5 | BK12: PCD_DPWW3_SOW1_S5 | BL12: PCD_DPWW3_SOW1_S5 | BM12: PCD_DPWW3_SOW1_S5 | BN12: PCD_DPWW3_SOW1_S5 | BO12: PCD_DPWW3_SOW1_S5 | BP12: PCD_DPWW3_SOW1_S5 | BQ12: PCD_DPWW3_SOW1_S5 | BR12: PCD_DPWW3_SOW1_S5 | BS12: PCD_DPWW3_SOW1_S5 | BT12: PCD_DPWW3_SOW1_S5 | BU12: PCD_DPWW3_SOW1_S5 | BV12: PCD_DPWW3_SOW1_S5 | BW12: PCD_DPWW3_SOW1_S5 | BY12: PCD_DPWW3_SOW1_DLY_S5 | BZ12: PCD_DPWW3_SOW1_DIR_S5 | CA12: PCD_DPWW3_SOW1_DSCR_S5 | CB12: PCD_DPWW3_SOW1_DCS_S5 | CC12: PCD_DPWW3_SOW1_DSCS_S5 | CD12: PCD_DPWW3_SOW1_DPP_S5 | CE12: PCD_DPWW3_SOW1_DTPI_S5 | CF12: PCD_DPWW3_SOW1_DCI_S5 | CG12: PCD_DPWW3_SOW1_DSI_S5 | CH12: PCD_DPWW3_SOW1_DER_S5 | CI12: PCD_DPWW3_SOW1_RS_S5 | CJ12: PCD_DPWW3_SOW1_DPLE_S5
B13: BRL | C13: PR24CA115 Wastewater Other Storm Overflow | D13: PCDWW5b | E13: =IFERROR(INDEX('PCD List'!$E$3:$O$41,MATCH(DPWW3!$D13,'PCD List'!$D$3:$D$41,0),MATCH(DPWW3!$B13,'PCD List'!$E$2:$O$2,0)),"") ->  | F13: Storm Overflow - Wetland | G13: Number of schemes at Stage 6 | H13: Nr | I13: 0 | AW13: DPWW3.1 | AZ13: _S6 | BC13: PCD_DPWW3_SOW1_S6 | BD13: PCD_DPWW3_SOW1_S6 | BE13: PCD_DPWW3_SOW1_S6 | BF13: PCD_DPWW3_SOW1_S6 | BG13: PCD_DPWW3_SOW1_S6 | BH13: PCD_DPWW3_SOW1_S6 | BI13: PCD_DPWW3_SOW1_S6 | BJ13: PCD_DPWW3_SOW1_S6 | BK13: PCD_DPWW3_SOW1_S6 | BL13: PCD_DPWW3_SOW1_S6 | BM13: PCD_DPWW3_SOW1_S6 | BN13: PCD_DPWW3_SOW1_S6 | BO13: PCD_DPWW3_SOW1_S6 | BP13: PCD_DPWW3_SOW1_S6 | BQ13: PCD_DPWW3_SOW1_S6 | BR13: PCD_DPWW3_SOW1_S6 | BS13: PCD_DPWW3_SOW1_S6 | BT13: PCD_DPWW3_SOW1_S6 | BU13: PCD_DPWW3_SOW1_S6 | BV13: PCD_DPWW3_SOW1_S6 | BW13: PCD_DPWW3_SOW1_S6 | BY13: PCD_DPWW3_SOW1_DLY_S6 | BZ13: PCD_DPWW3_SOW1_DIR_S6 | CA13: PCD_DPWW3_SOW1_DSCR_S6 | CB13: PCD_DPWW3_SOW1_DCS_S6 | CC13: PCD_DPWW3_SOW1_DSCS_S6 | CD13: PCD_DPWW3_SOW1_DPP_S6 | CE13: PCD_DPWW3_SOW1_DTPI_S6 | CF13: PCD_DPWW3_SOW1_DCI_S6 | CG13: PCD_DPWW3_SOW1_DSI_S6 | CH13: PCD_DPWW3_SOW1_DER_S6 | CI13: PCD_DPWW3_SOW1_RS_S6 | CJ13: PCD_DPWW3_SOW1_DPLE_S6
B14: BRL | C14: PR24CA115 Wastewater Other Storm Overflow | D14: PCDWW5b | E14: =IFERROR(INDEX('PCD List'!$E$3:$O$41,MATCH(DPWW3!$D14,'PCD List'!$D$3:$D$41,0),MATCH(DPWW3!$B14,'PCD List'!$E$2:$O$2,0)),"") ->  | F14: Storm Overflow - Wetland | G14: Number of schemes at Stage 7 | H14: Nr | I14: 0 | AW14: DPWW3.1 | AZ14: _S7 | BC14: PCD_DPWW3_SOW1_S7 | BD14: PCD_DPWW3_SOW1_S7 | BE14: PCD_DPWW3_SOW1_S7 | BF14: PCD_DPWW3_SOW1_S7 | BG14: PCD_DPWW3_SOW1_S7 | BH14: PCD_DPWW3_SOW1_S7 | BI14: PCD_DPWW3_SOW1_S7 | BJ14: PCD_DPWW3_SOW1_S7 | BK14: PCD_DPWW3_SOW1_S7 | BL14: PCD_DPWW3_SOW1_S7 | BM14: PCD_DPWW3_SOW1_S7 | BN14: PCD_DPWW3_SOW1_S7 | BO14: PCD_DPWW3_SOW1_S7 | BP14: PCD_DPWW3_SOW1_S7 | BQ14: PCD_DPWW3_SOW1_S7 | BR14: PCD_DPWW3_SOW1_S7 | BS14: PCD_DPWW3_SOW1_S7 | BT14: PCD_DPWW3_SOW1_S7 | BU14: PCD_DPWW3_SOW1_S7 | BV14: PCD_DPWW3_SOW1_S7 | BW14: PCD_DPWW3_SOW1_S7 | BY14: PCD_DPWW3_SOW1_DLY_S7 | BZ14: PCD_DPWW3_SOW1_DIR_S7 | CA14: PCD_DPWW3_SOW1_DSCR_S7 | CB14: PCD_DPWW3_SOW1_DCS_S7 | CC14: PCD_DPWW3_SOW1_DSCS_S7 | CD14: PCD_DPWW3_SOW1_DPP_S7 | CE14: PCD_DPWW3_SOW1_DTPI_S7 | CF14: PCD_DPWW3_SOW1_DCI_S7 | CG14: PCD_DPWW3_SOW1_DSI_S7 | CH14: PCD_DPWW3_SOW1_DER_S7 | CI14: PCD_DPWW3_SOW1_RS_S7 | CJ14: PCD_DPWW3_SOW1_DPLE_S7
B15: BRL | C15: PR24CA115 Wastewater Other Storm Overflow | D15: PCDWW5b | E15: =IFERROR(INDEX('PCD List'!$E$3:$O$41,MATCH(DPWW3!$D15,'PCD List'!$D$3:$D$41,0),MATCH(DPWW3!$B15,'PCD List'!$E$2:$O$2,0)),"") ->  | F15: Storm Overflow - Wetland | G15: Number of schemes - total (Stage 0 to Stage 6) | H15: Nr | I15: 0 | M15: =SUM( M7:M13) -> 0 | N15: =SUM( N7:N13) -> 0 | O15: =SUM( O7:O13) -> 0 | P15: 0 | Q15: 0 | R15: 0 | S15: 0 | T15: 0 | U15: 0 | V15: 0 | W15: 0 | X15: 0 | Y15: 0 | Z15: 0 | AA15: 0 | AB15: 0 | AC15: 0 | AD15: 0 | AE15: 0 | AF15: 0 | AG15: 0 | AW15: DPWW3.1 | AZ15: _ST | BC15: PCD_DPWW3_SOW1_ST | BD15: PCD_DPWW3_SOW1_ST | BE15: PCD_DPWW3_SOW1_ST | BF15: PCD_DPWW3_SOW1_ST | BG15: PCD_DPWW3_SOW1_ST | BH15: PCD_DPWW3_SOW1_ST | BI15: PCD_DPWW3_SOW1_ST | BJ15: PCD_DPWW3_SOW1_ST | BK15: PCD_DPWW3_SOW1_ST | BL15: PCD_DPWW3_SOW1_ST | BM15: PCD_DPWW3_SOW1_ST | BN15: PCD_DPWW3_SOW1_ST | BO15: PCD_DPWW3_SOW1_ST | BP15: PCD_DPWW3_SOW1_ST | BQ15: PCD_DPWW3_SOW1_ST | BR15: PCD_DPWW3_SOW1_ST | BS15: PCD_DPWW3_SOW1_ST | BT15: PCD_DPWW3_SOW1_ST | BU15: PCD_DPWW3_SOW1_ST | BV15: PCD_DPWW3_SOW1_ST | BW15: PCD_DPWW3_SOW1_ST | BY15: PCD_DPWW3_SOW1_DLY_ST | BZ15: PCD_DPWW3_SOW1_DIR_ST | CA15: PCD_DPWW3_SOW1_DSCR_ST | CB15: PCD_DPWW3_SOW1_DCS_ST | CC15: PCD_DPWW3_SOW1_DSCS_ST | CD15: PCD_DPWW3_SOW1_DPP_ST | CE15: PCD_DPWW3_SOW1_DTPI_ST | CF15: PCD_DPWW3_SOW1_DCI_ST | CG15: PCD_DPWW3_SOW1_DSI_ST | CH15: PCD_DPWW3_SOW1_DER_ST | CI15: PCD_DPWW3_SOW1_RS_ST | CJ15: PCD_DPWW3_SOW1_DPLE_ST
B16: =B15 -> BRL | C16: PR24CA111 Wastewater Treatment | D16: PCDWW7 | E16: =IFERROR(INDEX('PCD List'!$E$3:$O$41,MATCH(DPWW3!$D16,'PCD List'!$D$3:$D$41,0),MATCH(DPWW3!$B16,'PCD List'!$E$2:$O$2,0)),"") ->  | F16: Treatment for chemical removal (WINEP/NEP) | G16: Number of schemes at Stage 0 | H16: Nr | I16: 0 | AW16: DPWW3.2 | AZ16: PCD_DPWW3_TCR1 | BA16: PCD_DPWW3_TCR1_NR | BC16: PCD_DPWW3_TCR1_S0 | BD16: PCD_DPWW3_TCR1_S0 | BE16: PCD_DPWW3_TCR1_S0 | BF16: PCD_DPWW3_TCR1_S0 | BG16: PCD_DPWW3_TCR1_S0 | BH16: PCD_DPWW3_TCR1_S0 | BI16: PCD_DPWW3_TCR1_S0 | BJ16: PCD_DPWW3_TCR1_S0 | BK16: PCD_DPWW3_TCR1_S0 | BL16: PCD_DPWW3_TCR1_S0 | BM16: PCD_DPWW3_TCR1_S0 | BN16: PCD_DPWW3_TCR1_S0 | BO16: PCD_DPWW3_TCR1_S0 | BP16: PCD_DPWW3_TCR1_S0 | BQ16: PCD_DPWW3_TCR1_S0 | BR16: PCD_DPWW3_TCR1_S0 | BS16: PCD_DPWW3_TCR1_S0 | BT16: PCD_DPWW3_TCR1_S0 | BU16: PCD_DPWW3_TCR1_S0 | BV16: PCD_DPWW3_TCR1_S0 | BW16: PCD_DPWW3_TCR1_S0 | BY16: PCD_DPWW3_TCR1_DLY | BZ16: PCD_DPWW3_TCR1_DIR | CA16: PCD_DPWW3_TCR1_DSCR | CB16: PCD_DPWW3_TCR1_DCS | CC16: PCD_DPWW3_TCR1_DSCS | CD16: PCD_DPWW3_TCR1_DPP | CE16: PCD_DPWW3_TCR1_DTPI | CF16: PCD_DPWW3_TCR1_DCI | CG16: PCD_DPWW3_TCR1_DSI | CH16: PCD_DPWW3_TCR1_DER | CI16: PCD_DPWW3_TCR1_RS | CJ16: PCD_DPWW3_TCR1_DPLE
B17: =B16 -> BRL | C17: PR24CA111 Wastewater Treatment | D17: PCDWW7 | E17: =IFERROR(INDEX('PCD List'!$E$3:$O$41,MATCH(DPWW3!$D17,'PCD List'!$D$3:$D$41,0),MATCH(DPWW3!$B17,'PCD List'!$E$2:$O$2,0)),"") ->  | F17: Treatment for chemical removal (WINEP/NEP) | G17: Number of schemes at Stage 1 | H17: Nr | I17: 0 | AW17: DPWW3.2 | AZ17: _S1 | BC17: PCD_DPWW3_TCR1_S1 | BD17: PCD_DPWW3_TCR1_S1 | BE17: PCD_DPWW3_TCR1_S1 | BF17: PCD_DPWW3_TCR1_S1 | BG17: PCD_DPWW3_TCR1_S1 | BH17: PCD_DPWW3_TCR1_S1 | BI17: PCD_DPWW3_TCR1_S1 | BJ17: PCD_DPWW3_TCR1_S1 | BK17: PCD_DPWW3_TCR1_S1 | BL17: PCD_DPWW3_TCR1_S1 | BM17: PCD_DPWW3_TCR1_S1 | BN17: PCD_DPWW3_TCR1_S1 | BO17: PCD_DPWW3_TCR1_S1 | BP17: PCD_DPWW3_TCR1_S1 | BQ17: PCD_DPWW3_TCR1_S1 | BR17: PCD_DPWW3_TCR1_S1 | BS17: PCD_DPWW3_TCR1_S1 | BT17: PCD_DPWW3_TCR1_S1 | BU17: PCD_DPWW3_TCR1_S1 | BV17: PCD_DPWW3_TCR1_S1 | BW17: PCD_DPWW3_TCR1_S1 | BY17: =BY$16&$AZ17 -> PCD_DPWW3_TCR1_DLY_S1 | BZ17: =BZ$16&$AZ17 -> PCD_DPWW3_TCR1_DIR_S1 | CA17: PCD_DPWW3_TCR1_DSCR_S1 | CB17: PCD_DPWW3_TCR1_DCS_S1 | CC17: PCD_DPWW3_TCR1_DSCS_S1 | CD17: PCD_DPWW3_TCR1_DPP_S1 | CE17: PCD_DPWW3_TCR1_DTPI_S1 | CF17: PCD_DPWW3_TCR1_DCI_S1 | CG17: PCD_DPWW3_TCR1_DSI_S1 | CH17: PCD_DPWW3_TCR1_DER_S1 | CI17: =CI$16&$AZ17 -> PCD_DPWW3_TCR1_RS_S1 | CJ17: PCD_DPWW3_TCR1_DPLE_S1
B18: BRL | C18: PR24CA111 Wastewater Treatment | D18: PCDWW7 | E18: =IFERROR(INDEX('PCD List'!$E$3:$O$41,MATCH(DPWW3!$D18,'PCD List'!$D$3:$D$41,0),MATCH(DPWW3!$B18,'PCD List'!$E$2:$O$2,0)),"") ->  | F18: Treatment for chemical removal (WINEP/NEP) | G18: Number of schemes at Stage 2 | H18: Nr | I18: 0 | AW18: DPWW3.2 | AZ18: _S2 | BC18: PCD_DPWW3_TCR1_S2 | BD18: PCD_DPWW3_TCR1_S2 | BE18: PCD_DPWW3_TCR1_S2 | BF18: PCD_DPWW3_TCR1_S2 | BG18: PCD_DPWW3_TCR1_S2 | BH18: PCD_DPWW3_TCR1_S2 | BI18: PCD_DPWW3_TCR1_S2 | BJ18: PCD_DPWW3_TCR1_S2 | BK18: PCD_DPWW3_TCR1_S2 | BL18: PCD_DPWW3_TCR1_S2 | BM18: PCD_DPWW3_TCR1_S2 | BN18: PCD_DPWW3_TCR1_S2 | BO18: PCD_DPWW3_TCR1_S2 | BP18: PCD_DPWW3_TCR1_S2 | BQ18: PCD_DPWW3_TCR1_S2 | BR18: PCD_DPWW3_TCR1_S2 | BS18: PCD_DPWW3_TCR1_S2 | BT18: PCD_DPWW3_TCR1_S2 | BU18: PCD_DPWW3_TCR1_S2 | BV18: PCD_DPWW3_TCR1_S2 | BW18: PCD_DPWW3_TCR1_S2 | BY18: =BY$16&$AZ18 -> PCD_DPWW3_TCR1_DLY_S2 | BZ18: PCD_DPWW3_TCR1_DIR_S2 | CA18: PCD_DPWW3_TCR1_DSCR_S2 | CB18: PCD_DPWW3_TCR1_DCS_S2 | CC18: PCD_DPWW3_TCR1_DSCS_S2 | CD18: PCD_DPWW3_TCR1_DPP_S2 | CE18: PCD_DPWW3_TCR1_DTPI_S2 | CF18: PCD_DPWW3_TCR1_DCI_S2 | CG18: PCD_DPWW3_TCR1_DSI_S2 | CH18: PCD_DPWW3_TCR1_DER_S2 | CI18: PCD_DPWW3_TCR1_RS_S2 | CJ18: PCD_DPWW3_TCR1_DPLE_S2
B19: BRL | C19: PR24CA111 Wastewater Treatment | D19: PCDWW7 | E19: =IFERROR(INDEX('PCD List'!$E$3:$O$41,MATCH(DPWW3!$D19,'PCD List'!$D$3:$D$41,0),MATCH(DPWW3!$B19,'PCD List'!$E$2:$O$2,0)),"") ->  | F19: Treatment for chemical removal (WINEP/NEP) | G19: Number of schemes at Stage 3 | H19: Nr | I19: 0 | AW19: DPWW3.2 | AZ19: _S3 | BC19: PCD_DPWW3_TCR1_S3 | BD19: PCD_DPWW3_TCR1_S3 | BE19: PCD_DPWW3_TCR1_S3 | BF19: PCD_DPWW3_TCR1_S3 | BG19: PCD_DPWW3_TCR1_S3 | BH19: PCD_DPWW3_TCR1_S3 | BI19: PCD_DPWW3_TCR1_S3 | BJ19: PCD_DPWW3_TCR1_S3 | BK19: PCD_DPWW3_TCR1_S3 | BL19: PCD_DPWW3_TCR1_S3 | BM19: PCD_DPWW3_TCR1_S3 | BN19: PCD_DPWW3_TCR1_S3 | BO19: PCD_DPWW3_TCR1_S3 | BP19: PCD_DPWW3_TCR1_S3 | BQ19: PCD_DPWW3_TCR1_S3 | BR19: PCD_DPWW3_TCR1_S3 | BS19: PCD_DPWW3_TCR1_S3 | BT19: PCD_DPWW3_TCR1_S3 | BU19: PCD_DPWW3_TCR1_S3 | BV19: PCD_DPWW3_TCR1_S3 | BW19: PCD_DPWW3_TCR1_S3 | BY19: PCD_DPWW3_TCR1_DLY_S3 | BZ19: PCD_DPWW3_TCR1_DIR_S3 | CA19: PCD_DPWW3_TCR1_DSCR_S3 | CB19: PCD_DPWW3_TCR1_DCS_S3 | CC19: PCD_DPWW3_TCR1_DSCS_S3 | CD19: PCD_DPWW3_TCR1_DPP_S3 | CE19: PCD_DPWW3_TCR1_DTPI_S3 | CF19: PCD_DPWW3_TCR1_DCI_S3 | CG19: PCD_DPWW3_TCR1_DSI_S3 | CH19: PCD_DPWW3_TCR1_DER_S3 | CI19: PCD_DPWW3_TCR1_RS_S3 | CJ19: PCD_DPWW3_TCR1_DPLE_S3
B20: BRL | C20: PR24CA111 Wastewater Treatment | D20: PCDWW7 | E20: =IFERROR(INDEX('PCD List'!$E$3:$O$41,MATCH(DPWW3!$D20,'PCD List'!$D$3:$D$41,0),MATCH(DPWW3!$B20,'PCD List'!$E$2:$O$2,0)),"") ->  | F20: Treatment for chemical removal (WINEP/NEP) | G20: Number of schemes at Stage 4 | H20: Nr | I20: 0 | AW20: DPWW3.2 | AZ20: _S4 | BC20: PCD_DPWW3_TCR1_S4 | BD20: PCD_DPWW3_TCR1_S4 | BE20: PCD_DPWW3_TCR1_S4 | BF20: PCD_DPWW3_TCR1_S4 | BG20: PCD_DPWW3_TCR1_S4 | BH20: PCD_DPWW3_TCR1_S4 | BI20: PCD_DPWW3_TCR1_S4 | BJ20: PCD_DPWW3_TCR1_S4 | BK20: PCD_DPWW3_TCR1_S4 | BL20: PCD_DPWW3_TCR1_S4 | BM20: PCD_DPWW3_TCR1_S4 | BN20: PCD_DPWW3_TCR1_S4 | BO20: PCD_DPWW3_TCR1_S4 | BP20: PCD_DPWW3_TCR1_S4 | BQ20: PCD_DPWW3_TCR1_S4 | BR20: PCD_DPWW3_TCR1_S4 | BS20: PCD_DPWW3_TCR1_S4 | BT20: PCD_DPWW3_TCR1_S4 | BU20: PCD_DPWW3_TCR1_S4 | BV20: PCD_DPWW3_TCR1_S4 | BW20: PCD_DPWW3_TCR1_S4 | BY20: PCD_DPWW3_TCR1_DLY_S4 | BZ20: PCD_DPWW3_TCR1_DIR_S4 | CA20: PCD_DPWW3_TCR1_DSCR_S4 | CB20: PCD_DPWW3_TCR1_DCS_S4 | CC20: PCD_DPWW3_TCR1_DSCS_S4 | CD20: PCD_DPWW3_TCR1_DPP_S4 | CE20: PCD_DPWW3_TCR1_DTPI_S4 | CF20: PCD_DPWW3_TCR1_DCI_S4 | CG20: PCD_DPWW3_TCR1_DSI_S4 | CH20: PCD_DPWW3_TCR1_DER_S4 | CI20: PCD_DPWW3_TCR1_RS_S4 | CJ20: PCD_DPWW3_TCR1_DPLE_S4
B21: BRL | C21: PR24CA111 Wastewater Treatment | D21: PCDWW7 | E21: =IFERROR(INDEX('PCD List'!$E$3:$O$41,MATCH(DPWW3!$D21,'PCD List'!$D$3:$D$41,0),MATCH(DPWW3!$B21,'PCD List'!$E$2:$O$2,0)),"") ->  | F21: Treatment for chemical removal (WINEP/NEP) | G21: Number of schemes at Stage 5 | H21: Nr | I21: 0 | AW21: DPWW3.2 | AZ21: _S5 | BC21: PCD_DPWW3_TCR1_S5 | BD21: PCD_DPWW3_TCR1_S5 | BE21: PCD_DPWW3_TCR1_S5 | BF21: PCD_DPWW3_TCR1_S5 | BG21: PCD_DPWW3_TCR1_S5 | BH21: PCD_DPWW3_TCR1_S5 | BI21: PCD_DPWW3_TCR1_S5 | BJ21: PCD_DPWW3_TCR1_S5 | BK21: PCD_DPWW3_TCR1_S5 | BL21: PCD_DPWW3_TCR1_S5 | BM21: PCD_DPWW3_TCR1_S5 | BN21: PCD_DPWW3_TCR1_S5 | BO21: PCD_DPWW3_TCR1_S5 | BP21: PCD_DPWW3_TCR1_S5 | BQ21: PCD_DPWW3_TCR1_S5 | BR21: PCD_DPWW3_TCR1_S5 | BS21: PCD_DPWW3_TCR1_S5 | BT21: PCD_DPWW3_TCR1_S5 | BU21: PCD_DPWW3_TCR1_S5 | BV21: PCD_DPWW3_TCR1_S5 | BW21: PCD_DPWW3_TCR1_S5 | BY21: PCD_DPWW3_TCR1_DLY_S5 | BZ21: PCD_DPWW3_TCR1_DIR_S5 | CA21: PCD_DPWW3_TCR1_DSCR_S5 | CB21: PCD_DPWW3_TCR1_DCS_S5 | CC21: PCD_DPWW3_TCR1_DSCS_S5 | CD21: PCD_DPWW3_TCR1_DPP_S5 | CE21: PCD_DPWW3_TCR1_DTPI_S5 | CF21: PCD_DPWW3_TCR1_DCI_S5 | CG21: PCD_DPWW3_TCR1_DSI_S5 | CH21: PCD_DPWW3_TCR1_DER_S5 | CI21: PCD_DPWW3_TCR1_RS_S5 | CJ21: PCD_DPWW3_TCR1_DPLE_S5
B22: BRL | C22: PR24CA111 Wastewater Treatment | D22: PCDWW7 | E22: =IFERROR(INDEX('PCD List'!$E$3:$O$41,MATCH(DPWW3!$D22,'PCD List'!$D$3:$D$41,0),MATCH(DPWW3!$B22,'PCD List'!$E$2:$O$2,0)),"") ->  | F22: Treatment for chemical removal (WINEP/NEP) | G22: Number of schemes at Stage 6 | H22: Nr | I22: 0 | AW22: DPWW3.2 | AZ22: _S6 | BC22: PCD_DPWW3_TCR1_S6 | BD22: PCD_DPWW3_TCR1_S6 | BE22: PCD_DPWW3_TCR1_S6 | BF22: PCD_DPWW3_TCR1_S6 | BG22: PCD_DPWW3_TCR1_S6 | BH22: PCD_DPWW3_TCR1_S6 | BI22: PCD_DPWW3_TCR1_S6 | BJ22: PCD_DPWW3_TCR1_S6 | BK22: PCD_DPWW3_TCR1_S6 | BL22: PCD_DPWW3_TCR1_S6 | BM22: PCD_DPWW3_TCR1_S6 | BN22: PCD_DPWW3_TCR1_S6 | BO22: PCD_DPWW3_TCR1_S6 | BP22: PCD_DPWW3_TCR1_S6 | BQ22: PCD_DPWW3_TCR1_S6 | BR22: PCD_DPWW3_TCR1_S6 | BS22: PCD_DPWW3_TCR1_S6 | BT22: PCD_DPWW3_TCR1_S6 | BU22: PCD_DPWW3_TCR1_S6 | BV22: PCD_DPWW3_TCR1_S6 | BW22: PCD_DPWW3_TCR1_S6 | BY22: PCD_DPWW3_TCR1_DLY_S6 | BZ22: PCD_DPWW3_TCR1_DIR_S6 | CA22: PCD_DPWW3_TCR1_DSCR_S6 | CB22: PCD_DPWW3_TCR1_DCS_S6 | CC22: PCD_DPWW3_TCR1_DSCS_S6 | CD22: PCD_DPWW3_TCR1_DPP_S6 | CE22: PCD_DPWW3_TCR1_DTPI_S6 | CF22: PCD_DPWW3_TCR1_DCI_S6 | CG22: PCD_DPWW3_TCR1_DSI_S6 | CH22: PCD_DPWW3_TCR1_DER_S6 | CI22: PCD_DPWW3_TCR1_RS_S6 | CJ22: PCD_DPWW3_TCR1_DPLE_S6
B23: BRL | C23: PR24CA111 Wastewater Treatment | D23: PCDWW7 | E23: =IFERROR(INDEX('PCD List'!$E$3:$O$41,MATCH(DPWW3!$D23,'PCD List'!$D$3:$D$41,0),MATCH(DPWW3!$B23,'PCD List'!$E$2:$O$2,0)),"") ->  | F23: Treatment for chemical removal (WINEP/NEP) | G23: Number of schemes at Stage 7 | H23: Nr | I23: 0 | AW23: DPWW3.2 | AZ23: _S7 | BC23: PCD_DPWW3_TCR1_S7 | BD23: PCD_DPWW3_TCR1_S7 | BE23: PCD_DPWW3_TCR1_S7 | BF23: PCD_DPWW3_TCR1_S7 | BG23: PCD_DPWW3_TCR1_S7 | BH23: PCD_DPWW3_TCR1_S7 | BI23: PCD_DPWW3_TCR1_S7 | BJ23: PCD_DPWW3_TCR1_S7 | BK23: PCD_DPWW3_TCR1_S7 | BL23: PCD_DPWW3_TCR1_S7 | BM23: PCD_DPWW3_TCR1_S7 | BN23: PCD_DPWW3_TCR1_S7 | BO23: PCD_DPWW3_TCR1_S7 | BP23: PCD_DPWW3_TCR1_S7 | BQ23: PCD_DPWW3_TCR1_S7 | BR23: PCD_DPWW3_TCR1_S7 | BS23: PCD_DPWW3_TCR1_S7 | BT23: PCD_DPWW3_TCR1_S7 | BU23: PCD_DPWW3_TCR1_S7 | BV23: PCD_DPWW3_TCR1_S7 | BW23: PCD_DPWW3_TCR1_S7 | BY23: PCD_DPWW3_TCR1_DLY_S7 | BZ23: PCD_DPWW3_TCR1_DIR_S7 | CA23: PCD_DPWW3_TCR1_DSCR_S7 | CB23: PCD_DPWW3_TCR1_DCS_S7 | CC23: PCD_DPWW3_TCR1_DSCS_S7 | CD23: PCD_DPWW3_TCR1_DPP_S7 | CE23: PCD_DPWW3_TCR1_DTPI_S7 | CF23: PCD_DPWW3_TCR1_DCI_S7 | CG23: PCD_DPWW3_TCR1_DSI_S7 | CH23: PCD_DPWW3_TCR1_DER_S7 | CI23: PCD_DPWW3_TCR1_RS_S7 | CJ23: PCD_DPWW3_TCR1_DPLE_S7
B24: =B23 -> BRL | C24: PR24CA111 Wastewater Treatment | D24: PCDWW7 | E24: =IFERROR(INDEX('PCD List'!$E$3:$O$41,MATCH(DPWW3!$D24,'PCD List'!$D$3:$D$41,0),MATCH(DPWW3!$B24,'PCD List'!$E$2:$O$2,0)),"") ->  | F24: Treatment for chemical removal (WINEP/NEP) | G24: Number of schemes - total (Stage 0 to Stage 6) | H24: Nr | I24: 0 | M24: =SUM( M16:M22) -> 0 | N24: =SUM( N16:N22) -> 0 | O24: 0 | P24: 0 | Q24: 0 | R24: 0 | S24: 0 | T24: 0 | U24: 0 | V24: 0 | W24: 0 | X24: 0 | Y24: 0 | Z24: 0 | AA24: 0 | AB24: 0 | AC24: 0 | AD24: 0 | AE24: 0 | AF24: 0 | AG24: 0 | AW24: DPWW3.2 | AZ24: _ST | BC24: PCD_DPWW3_TCR1_ST | BD24: PCD_DPWW3_TCR1_ST | BE24: PCD_DPWW3_TCR1_ST | BF24: PCD_DPWW3_TCR1_ST | BG24: PCD_DPWW3_TCR1_ST | BH24: PCD_DPWW3_TCR1_ST | BI24: PCD_DPWW3_TCR1_ST | BJ24: PCD_DPWW3_TCR1_ST | BK24: PCD_DPWW3_TCR1_ST | BL24: PCD_DPWW3_TCR1_ST | BM24: PCD_DPWW3_TCR1_ST | BN24: PCD_DPWW3_TCR1_ST | BO24: PCD_DPWW3_TCR1_ST | BP24: PCD_DPWW3_TCR1_ST | BQ24: PCD_DPWW3_TCR1_ST | BR24: PCD_DPWW3_TCR1_ST | BS24: PCD_DPWW3_TCR1_ST | BT24: PCD_DPWW3_TCR1_ST | BU24: PCD_DPWW3_TCR1_ST | BV24: PCD_DPWW3_TCR1_ST | BW24: PCD_DPWW3_TCR1_ST | BY24: PCD_DPWW3_TCR1_DLY_ST | BZ24: PCD_DPWW3_TCR1_DIR_ST | CA24: PCD_DPWW3_TCR1_DSCR_ST | CB24: PCD_DPWW3_TCR1_DCS_ST | CC24: PCD_DPWW3_TCR1_DSCS_ST | CD24: PCD_DPWW3_TCR1_DPP_ST | CE24: PCD_DPWW3_TCR1_DTPI_ST | CF24: PCD_DPWW3_TCR1_DCI_ST | CG24: PCD_DPWW3_TCR1_DSI_ST | CH24: PCD_DPWW3_TCR1_DER_ST | CI24: PCD_DPWW3_TCR1_RS_ST | CJ24: PCD_DPWW3_TCR1_DPLE_ST
B25: =B24 -> BRL | C25: PR24CA111 Wastewater Treatment | D25: PCDWW9 | E25: =IFERROR(INDEX('PCD List'!$E$3:$O$41,MATCH(DPWW3!$D25,'PCD List'!$D$3:$D$41,0),MATCH(DPWW3!$B25,'PCD List'!$E$2:$O$2,0)),"") ->  | F25: Treatment for total nitrogen removal (WINEP/NEP) | G25: Number of schemes at Stage 0 | H25: Nr | I25: 0 | AW25: DPWW3.3 | AZ25: PCD_DPWW3_TNR1 | BA25: PCD_DPWW3_TNR1_NR | BC25: PCD_DPWW3_TNR1_S0 | BD25: PCD_DPWW3_TNR1_S0 | BE25: PCD_DPWW3_TNR1_S0 | BF25: PCD_DPWW3_TNR1_S0 | BG25: PCD_DPWW3_TNR1_S0 | BH25: PCD_DPWW3_TNR1_S0 | BI25: PCD_DPWW3_TNR1_S0 | BJ25: PCD_DPWW3_TNR1_S0 | BK25: PCD_DPWW3_TNR1_S0 | BL25: PCD_DPWW3_TNR1_S0 | BM25: PCD_DPWW3_TNR1_S0 | BN25: PCD_DPWW3_TNR1_S0 | BO25: PCD_DPWW3_TNR1_S0 | BP25: PCD_DPWW3_TNR1_S0 | BQ25: PCD_DPWW3_TNR1_S0 | BR25: PCD_DPWW3_TNR1_S0 | BS25: PCD_DPWW3_TNR1_S0 | BT25: PCD_DPWW3_TNR1_S0 | BU25: PCD_DPWW3_TNR1_S0 | BV25: PCD_DPWW3_TNR1_S0 | BW25: PCD_DPWW3_TNR1_S0 | BY25: PCD_DPWW3_TNR1_DLY | BZ25: PCD_DPWW3_TNR1_DIR | CA25: PCD_DPWW3_TNR1_DSCR | CB25: PCD_DPWW3_TNR1_DCS | CC25: PCD_DPWW3_TNR1_DSCS | CD25: PCD_DPWW3_TNR1_DPP | CE25: PCD_DPWW3_TNR1_DTPI | CF25: PCD_DPWW3_TNR1_DCI | CG25: PCD_DPWW3_TNR1_DSI | CH25: PCD_DPWW3_TNR1_DER | CI25: PCD_DPWW3_TNR1_RS | CJ25: PCD_DPWW3_TNR1_DPLE
B26: =B25 -> BRL | C26: PR24CA111 Wastewater Treatment | D26: PCDWW9 | E26: =IFERROR(INDEX('PCD List'!$E$3:$O$41,MATCH(DPWW3!$D26,'PCD List'!$D$3:$D$41,0),MATCH(DPWW3!$B26,'PCD List'!$E$2:$O$2,0)),"") ->  | F26: Treatment for total nitrogen removal (WINEP/NEP) | G26: Number of schemes at Stage 1 | H26: Nr | I26: 0 | AW26: DPWW3.3 | AZ26: _S1 | BC26: PCD_DPWW3_TNR1_S1 | BD26: PCD_DPWW3_TNR1_S1 | BE26: PCD_DPWW3_TNR1_S1 | BF26: PCD_DPWW3_TNR1_S1 | BG26: PCD_DPWW3_TNR1_S1 | BH26: PCD_DPWW3_TNR1_S1 | BI26: PCD_DPWW3_TNR1_S1 | BJ26: PCD_DPWW3_TNR1_S1 | BK26: PCD_DPWW3_TNR1_S1 | BL26: PCD_DPWW3_TNR1_S1 | BM26: PCD_DPWW3_TNR1_S1 | BN26: PCD_DPWW3_TNR1_S1 | BO26: PCD_DPWW3_TNR1_S1 | BP26: PCD_DPWW3_TNR1_S1 | BQ26: PCD_DPWW3_TNR1_S1 | BR26: PCD_DPWW3_TNR1_S1 | BS26: PCD_DPWW3_TNR1_S1 | BT26: PCD_DPWW3_TNR1_S1 | BU26: PCD_DPWW3_TNR1_S1 | BV26: PCD_DPWW3_TNR1_S1 | BW26: PCD_DPWW3_TNR1_S1 | BY26: =BY$25&$AZ26 -> PCD_DPWW3_TNR1_DLY_S1 | BZ26: =BZ$25&$AZ26 -> PCD_DPWW3_TNR1_DIR_S1 | CA26: PCD_DPWW3_TNR1_DSCR_S1 | CB26: PCD_DPWW3_TNR1_DCS_S1 | CC26: PCD_DPWW3_TNR1_DSCS_S1 | CD26: PCD_DPWW3_TNR1_DPP_S1 | CE26: PCD_DPWW3_TNR1_DTPI_S1 | CF26: PCD_DPWW3_TNR1_DCI_S1 | CG26: PCD_DPWW3_TNR1_DSI_S1 | CH26: PCD_DPWW3_TNR1_DER_S1 | CI26: =CI$25&$AZ26 -> PCD_DPWW3_TNR1_RS_S1 | CJ26: PCD_DPWW3_TNR1_DPLE_S1
B27: BRL | C27: PR24CA111 Wastewater Treatment | D27: PCDWW9 | E27: =IFERROR(INDEX('PCD List'!$E$3:$O$41,MATCH(DPWW3!$D27,'PCD List'!$D$3:$D$41,0),MATCH(DPWW3!$B27,'PCD List'!$E$2:$O$2,0)),"") ->  | F27: Treatment for total nitrogen removal (WINEP/NEP) | G27: Number of schemes at Stage 2 | H27: Nr | I27: 0 | AW27: DPWW3.3 | AZ27: _S2 | BC27: PCD_DPWW3_TNR1_S2 | BD27: PCD_DPWW3_TNR1_S2 | BE27: PCD_DPWW3_TNR1_S2 | BF27: PCD_DPWW3_TNR1_S2 | BG27: PCD_DPWW3_TNR1_S2 | BH27: PCD_DPWW3_TNR1_S2 | BI27: PCD_DPWW3_TNR1_S2 | BJ27: PCD_DPWW3_TNR1_S2 | BK27: PCD_DPWW3_TNR1_S2 | BL27: PCD_DPWW3_TNR1_S2 | BM27: PCD_DPWW3_TNR1_S2 | BN27: PCD_DPWW3_TNR1_S2 | BO27: PCD_DPWW3_TNR1_S2 | BP27: PCD_DPWW3_TNR1_S2 | BQ27: PCD_DPWW3_TNR1_S2 | BR27: PCD_DPWW3_TNR1_S2 | BS27: PCD_DPWW3_TNR1_S2 | BT27: PCD_DPWW3_TNR1_S2 | BU27: PCD_DPWW3_TNR1_S2 | BV27: PCD_DPWW3_TNR1_S2 | BW27: PCD_DPWW3_TNR1_S2 | BY27: =BY$25&$AZ27 -> PCD_DPWW3_TNR1_DLY_S2 | BZ27: PCD_DPWW3_TNR1_DIR_S2 | CA27: PCD_DPWW3_TNR1_DSCR_S2 | CB27: PCD_DPWW3_TNR1_DCS_S2 | CC27: PCD_DPWW3_TNR1_DSCS_S2 | CD27: PCD_DPWW3_TNR1_DPP_S2 | CE27: PCD_DPWW3_TNR1_DTPI_S2 | CF27: PCD_DPWW3_TNR1_DCI_S2 | CG27: PCD_DPWW3_TNR1_DSI_S2 | CH27: PCD_DPWW3_TNR1_DER_S2 | CI27: PCD_DPWW3_TNR1_RS_S2 | CJ27: PCD_DPWW3_TNR1_DPLE_S2
B28: BRL | C28: PR24CA111 Wastewater Treatment | D28: PCDWW9 | E28: =IFERROR(INDEX('PCD List'!$E$3:$O$41,MATCH(DPWW3!$D28,'PCD List'!$D$3:$D$41,0),MATCH(DPWW3!$B28,'PCD List'!$E$2:$O$2,0)),"") ->  | F28: Treatment for total nitrogen removal (WINEP/NEP) | G28: Number of schemes at Stage 3 | H28: Nr | I28: 0 | AW28: DPWW3.3 | AZ28: _S3 | BC28: PCD_DPWW3_TNR1_S3 | BD28: PCD_DPWW3_TNR1_S3 | BE28: PCD_DPWW3_TNR1_S3 | BF28: PCD_DPWW3_TNR1_S3 | BG28: PCD_DPWW3_TNR1_S3 | BH28: PCD_DPWW3_TNR1_S3 | BI28: PCD_DPWW3_TNR1_S3 | BJ28: PCD_DPWW3_TNR1_S3 | BK28: PCD_DPWW3_TNR1_S3 | BL28: PCD_DPWW3_TNR1_S3 | BM28: PCD_DPWW3_TNR1_S3 | BN28: PCD_DPWW3_TNR1_S3 | BO28: PCD_DPWW3_TNR1_S3 | BP28: PCD_DPWW3_TNR1_S3 | BQ28: PCD_DPWW3_TNR1_S3 | BR28: PCD_DPWW3_TNR1_S3 | BS28: PCD_DPWW3_TNR1_S3 | BT28: PCD_DPWW3_TNR1_S3 | BU28: PCD_DPWW3_TNR1_S3 | BV28: PCD_DPWW3_TNR1_S3 | BW28: PCD_DPWW3_TNR1_S3 | BY28: PCD_DPWW3_TNR1_DLY_S3 | BZ28: PCD_DPWW3_TNR1_DIR_S3 | CA28: PCD_DPWW3_TNR1_DSCR_S3 | CB28: PCD_DPWW3_TNR1_DCS_S3 | CC28: PCD_DPWW3_TNR1_DSCS_S3 | CD28: PCD_DPWW3_TNR1_DPP_S3 | CE28: PCD_DPWW3_TNR1_DTPI_S3 | CF28: PCD_DPWW3_TNR1_DCI_S3 | CG28: PCD_DPWW3_TNR1_DSI_S3 | CH28: PCD_DPWW3_TNR1_DER_S3 | CI28: PCD_DPWW3_TNR1_RS_S3 | CJ28: PCD_DPWW3_TNR1_DPLE_S3
B29: BRL | C29: PR24CA111 Wastewater Treatment | D29: PCDWW9 | E29: =IFERROR(INDEX('PCD List'!$E$3:$O$41,MATCH(DPWW3!$D29,'PCD List'!$D$3:$D$41,0),MATCH(DPWW3!$B29,'PCD List'!$E$2:$O$2,0)),"") ->  | F29: Treatment for total nitrogen removal (WINEP/NEP) | G29: Number of schemes at Stage 4 | H29: Nr | I29: 0 | AW29: DPWW3.3 | AZ29: _S4 | BC29: PCD_DPWW3_TNR1_S4 | BD29: PCD_DPWW3_TNR1_S4 | BE29: PCD_DPWW3_TNR1_S4 | BF29: PCD_DPWW3_TNR1_S4 | BG29: PCD_DPWW3_TNR1_S4 | BH29: PCD_DPWW3_TNR1_S4 | BI29: PCD_DPWW3_TNR1_S4 | BJ29: PCD_DPWW3_TNR1_S4 | BK29: PCD_DPWW3_TNR1_S4 | BL29: PCD_DPWW3_TNR1_S4 | BM29: PCD_DPWW3_TNR1_S4 | BN29: PCD_DPWW3_TNR1_S4 | BO29: PCD_DPWW3_TNR1_S4 | BP29: PCD_DPWW3_TNR1_S4 | BQ29: PCD_DPWW3_TNR1_S4 | BR29: PCD_DPWW3_TNR1_S4 | BS29: PCD_DPWW3_TNR1_S4 | BT29: PCD_DPWW3_TNR1_S4 | BU29: PCD_DPWW3_TNR1_S4 | BV29: PCD_DPWW3_TNR1_S4 | BW29: PCD_DPWW3_TNR1_S4 | BY29: PCD_DPWW3_TNR1_DLY_S4 | BZ29: PCD_DPWW3_TNR1_DIR_S4 | CA29: PCD_DPWW3_TNR1_DSCR_S4 | CB29: PCD_DPWW3_TNR1_DCS_S4 | CC29: PCD_DPWW3_TNR1_DSCS_S4 | CD29: PCD_DPWW3_TNR1_DPP_S4 | CE29: PCD_DPWW3_TNR1_DTPI_S4 | CF29: PCD_DPWW3_TNR1_DCI_S4 | CG29: PCD_DPWW3_TNR1_DSI_S4 | CH29: PCD_DPWW3_TNR1_DER_S4 | CI29: PCD_DPWW3_TNR1_RS_S4 | CJ29: PCD_DPWW3_TNR1_DPLE_S4
B30: BRL | C30: PR24CA111 Wastewater Treatment | D30: PCDWW9 | E30: =IFERROR(INDEX('PCD List'!$E$3:$O$41,MATCH(DPWW3!$D30,'PCD List'!$D$3:$D$41,0),MATCH(DPWW3!$B30,'PCD List'!$E$2:$O$2,0)),"") ->  | F30: Treatment for total nitrogen removal (WINEP/NEP) | G30: Number of schemes at Stage 5 | H30: Nr | I30: 0 | AW30: DPWW3.3 | AZ30: _S5 | BC30: PCD_DPWW3_TNR1_S5 | BD30: PCD_DPWW3_TNR1_S5 | BE30: PCD_DPWW3_TNR1_S5 | BF30: PCD_DPWW3_TNR1_S5 | BG30: PCD_DPWW3_TNR1_S5 | BH30: PCD_DPWW3_TNR1_S5 | BI30: PCD_DPWW3_TNR1_S5 | BJ30: PCD_DPWW3_TNR1_S5 | BK30: PCD_DPWW3_TNR1_S5 | BL30: PCD_DPWW3_TNR1_S5 | BM30: PCD_DPWW3_TNR1_S5 | BN30: PCD_DPWW3_TNR1_S5 | BO30: PCD_DPWW3_TNR1_S5 | BP30: PCD_DPWW3_TNR1_S5 | BQ30: PCD_DPWW3_TNR1_S5 | BR30: PCD_DPWW3_TNR1_S5 | BS30: PCD_DPWW3_TNR1_S5 | BT30: PCD_DPWW3_TNR1_S5 | BU30: PCD_DPWW3_TNR1_S5 | BV30: PCD_DPWW3_TNR1_S5 | BW30: PCD_DPWW3_TNR1_S5 | BY30: PCD_DPWW3_TNR1_DLY_S5 | BZ30: PCD_DPWW3_TNR1_DIR_S5 | CA30: PCD_DPWW3_TNR1_DSCR_S5 | CB30: PCD_DPWW3_TNR1_DCS_S5 | CC30: PCD_DPWW3_TNR1_DSCS_S5 | CD30: PCD_DPWW3_TNR1_DPP_S5 | CE30: PCD_DPWW3_TNR1_DTPI_S5 | CF30: PCD_DPWW3_TNR1_DCI_S5 | CG30: PCD_DPWW3_TNR1_DSI_S5 | CH30: PCD_DPWW3_TNR1_DER_S5 | CI30: PCD_DPWW3_TNR1_RS_S5 | CJ30: PCD_DPWW3_TNR1_DPLE_S5
B31: BRL | C31: PR24CA111 Wastewater Treatment | D31: PCDWW9 | E31: =IFERROR(INDEX('PCD List'!$E$3:$O$41,MATCH(DPWW3!$D31,'PCD List'!$D$3:$D$41,0),MATCH(DPWW3!$B31,'PCD List'!$E$2:$O$2,0)),"") ->  | F31: Treatment for total nitrogen removal (WINEP/NEP) | G31: Number of schemes at Stage 6 | H31: Nr | I31: 0 | AW31: DPWW3.3 | AZ31: _S6 | BC31: PCD_DPWW3_TNR1_S6 | BD31: PCD_DPWW3_TNR1_S6 | BE31: PCD_DPWW3_TNR1_S6 | BF31: PCD_DPWW3_TNR1_S6 | BG31: PCD_DPWW3_TNR1_S6 | BH31: PCD_DPWW3_TNR1_S6 | BI31: PCD_DPWW3_TNR1_S6 | BJ31: PCD_DPWW3_TNR1_S6 | BK31: PCD_DPWW3_TNR1_S6 | BL31: PCD_DPWW3_TNR1_S6 | BM31: PCD_DPWW3_TNR1_S6 | BN31: PCD_DPWW3_TNR1_S6 | BO31: PCD_DPWW3_TNR1_S6 | BP31: PCD_DPWW3_TNR1_S6 | BQ31: PCD_DPWW3_TNR1_S6 | BR31: PCD_DPWW3_TNR1_S6 | BS31: PCD_DPWW3_TNR1_S6 | BT31: PCD_DPWW3_TNR1_S6 | BU31: PCD_DPWW3_TNR1_S6 | BV31: PCD_DPWW3_TNR1_S6 | BW31: PCD_DPWW3_TNR1_S6 | BY31: PCD_DPWW3_TNR1_DLY_S6 | BZ31: PCD_DPWW3_TNR1_DIR_S6 | CA31: PCD_DPWW3_TNR1_DSCR_S6 | CB31: PCD_DPWW3_TNR1_DCS_S6 | CC31: PCD_DPWW3_TNR1_DSCS_S6 | CD31: PCD_DPWW3_TNR1_DPP_S6 | CE31: PCD_DPWW3_TNR1_DTPI_S6 | CF31: PCD_DPWW3_TNR1_DCI_S6 | CG31: PCD_DPWW3_TNR1_DSI_S6 | CH31: PCD_DPWW3_TNR1_DER_S6 | CI31: PCD_DPWW3_TNR1_RS_S6 | CJ31: PCD_DPWW3_TNR1_DPLE_S6
B32: BRL | C32: PR24CA111 Wastewater Treatment | D32: PCDWW9 | E32: =IFERROR(INDEX('PCD List'!$E$3:$O$41,MATCH(DPWW3!$D32,'PCD List'!$D$3:$D$41,0),MATCH(DPWW3!$B32,'PCD List'!$E$2:$O$2,0)),"") ->  | F32: Treatment for total nitrogen removal (WINEP/NEP) | G32: Number of schemes at Stage 7 | H32: Nr | I32: 0 | AW32: DPWW3.3 | AZ32: _S7 | BC32: PCD_DPWW3_TNR1_S7 | BD32: PCD_DPWW3_TNR1_S7 | BE32: PCD_DPWW3_TNR1_S7 | BF32: PCD_DPWW3_TNR1_S7 | BG32: PCD_DPWW3_TNR1_S7 | BH32: PCD_DPWW3_TNR1_S7 | BI32: PCD_DPWW3_TNR1_S7 | BJ32: PCD_DPWW3_TNR1_S7 | BK32: PCD_DPWW3_TNR1_S7 | BL32: PCD_DPWW3_TNR1_S7 | BM32: PCD_DPWW3_TNR1_S7 | BN32: PCD_DPWW3_TNR1_S7 | BO32: PCD_DPWW3_TNR1_S7 | BP32: PCD_DPWW3_TNR1_S7 | BQ32: PCD_DPWW3_TNR1_S7 | BR32: PCD_DPWW3_TNR1_S7 | BS32: PCD_DPWW3_TNR1_S7 | BT32: PCD_DPWW3_TNR1_S7 | BU32: PCD_DPWW3_TNR1_S7 | BV32: PCD_DPWW3_TNR1_S7 | BW32: PCD_DPWW3_TNR1_S7 | BY32: PCD_DPWW3_TNR1_DLY_S7 | BZ32: PCD_DPWW3_TNR1_DIR_S7 | CA32: PCD_DPWW3_TNR1_DSCR_S7 | CB32: PCD_DPWW3_TNR1_DCS_S7 | CC32: PCD_DPWW3_TNR1_DSCS_S7 | CD32: PCD_DPWW3_TNR1_DPP_S7 | CE32: PCD_DPWW3_TNR1_DTPI_S7 | CF32: PCD_DPWW3_TNR1_DCI_S7 | CG32: PCD_DPWW3_TNR1_DSI_S7 | CH32: PCD_DPWW3_TNR1_DER_S7 | CI32: PCD_DPWW3_TNR1_RS_S7 | CJ32: PCD_DPWW3_TNR1_DPLE_S7
B33: BRL | C33: PR24CA111 Wastewater Treatment | D33: PCDWW9 | E33: =IFERROR(INDEX('PCD List'!$E$3:$O$41,MATCH(DPWW3!$D33,'PCD List'!$D$3:$D$41,0),MATCH(DPWW3!$B33,'PCD List'!$E$2:$O$2,0)),"") ->  | F33: Treatment for total nitrogen removal (WINEP/NEP) | G33: Number of schemes - total (Stage 0 to Stage 6) | H33: Nr | I33: 0 | M33: =SUM( M25:M31) -> 0 | N33: =SUM( N25:N31) -> 0 | O33: 0 | P33: 0 | Q33: 0 | R33: 0 | S33: 0 | T33: 0 | U33: 0 | V33: 0 | W33: 0 | X33: 0 | Y33: 0 | Z33: 0 | AA33: 0 | AB33: 0 | AC33: 0 | AD33: 0 | AE33: 0 | AF33: 0 | AG33: 0 | AW33: DPWW3.3 | AZ33: _ST | BC33: PCD_DPWW3_TNR1_ST | BD33: PCD_DPWW3_TNR1_ST | BE33: PCD_DPWW3_TNR1_ST | BF33: PCD_DPWW3_TNR1_ST | BG33: PCD_DPWW3_TNR1_ST | BH33: PCD_DPWW3_TNR1_ST | BI33: PCD_DPWW3_TNR1_ST | BJ33: PCD_DPWW3_TNR1_ST | BK33: PCD_DPWW3_TNR1_ST | BL33: PCD_DPWW3_TNR1_ST | BM33: PCD_DPWW3_TNR1_ST | BN33: PCD_DPWW3_TNR1_ST | BO33: PCD_DPWW3_TNR1_ST | BP33: PCD_DPWW3_TNR1_ST | BQ33: PCD_DPWW3_TNR1_ST | BR33: PCD_DPWW3_TNR1_ST | BS33: PCD_DPWW3_TNR1_ST | BT33: PCD_DPWW3_TNR1_ST | BU33: PCD_DPWW3_TNR1_ST | BV33: PCD_DPWW3_TNR1_ST | BW33: PCD_DPWW3_TNR1_ST | BY33: PCD_DPWW3_TNR1_DLY_ST | BZ33: PCD_DPWW3_TNR1_DIR_ST | CA33: PCD_DPWW3_TNR1_DSCR_ST | CB33: PCD_DPWW3_TNR1_DCS_ST | CC33: PCD_DPWW3_TNR1_DSCS_ST | CD33: PCD_DPWW3_TNR1_DPP_ST | CE33: PCD_DPWW3_TNR1_DTPI_ST | CF33: PCD_DPWW3_TNR1_DCI_ST | CG33: PCD_DPWW3_TNR1_DSI_ST | CH33: PCD_DPWW3_TNR1_DER_ST | CI33: PCD_DPWW3_TNR1_RS_ST | CJ33: PCD_DPWW3_TNR1_DPLE_ST
B34: =B33 -> BRL | C34: PR24CA111 Wastewater Treatment | D34: PCDWW11 | E34: =IFERROR(INDEX('PCD List'!$E$3:$O$41,MATCH(DPWW3!$D34,'PCD List'!$D$3:$D$41,0),MATCH(DPWW3!$B34,'PCD List'!$E$2:$O$2,0)),"") ->  | F34: Nature based solutions for treatment for nutrients and/or sanitary determinands (WINEP/NEP) | G34: Number of schemes at Stage 0 | H34: Nr | I34: 0 | AW34: DPWW3.4 | AZ34: PCD_DPWW3_NBS_SOL | BA34: PCD_DPWW3_NBS_SOL_NR | BC34: PCD_DPWW3_NBS_SOL_S0 | BD34: PCD_DPWW3_NBS_SOL_S0 | BE34: PCD_DPWW3_NBS_SOL_S0 | BF34: PCD_DPWW3_NBS_SOL_S0 | BG34: PCD_DPWW3_NBS_SOL_S0 | BH34: PCD_DPWW3_NBS_SOL_S0 | BI34: PCD_DPWW3_NBS_SOL_S0 | BJ34: PCD_DPWW3_NBS_SOL_S0 | BK34: PCD_DPWW3_NBS_SOL_S0 | BL34: PCD_DPWW3_NBS_SOL_S0 | BM34: PCD_DPWW3_NBS_SOL_S0 | BN34: PCD_DPWW3_NBS_SOL_S0 | BO34: PCD_DPWW3_NBS_SOL_S0 | BP34: PCD_DPWW3_NBS_SOL_S0 | BQ34: PCD_DPWW3_NBS_SOL_S0 | BR34: PCD_DPWW3_NBS_SOL_S0 | BS34: PCD_DPWW3_NBS_SOL_S0 | BT34: PCD_DPWW3_NBS_SOL_S0 | BU34: PCD_DPWW3_NBS_SOL_S0 | BV34: PCD_DPWW3_NBS_SOL_S0 | BW34: PCD_DPWW3_NBS_SOL_S0 | BY34: PCD_DPWW3_NBS_SOL_DLY | BZ34: PCD_DPWW3_NBS_SOL_DIR | CA34: PCD_DPWW3_NBS_SOL_DSCR | CB34: PCD_DPWW3_NBS_SOL_DCS | CC34: PCD_DPWW3_NBS_SOL_DSCS | CD34: PCD_DPWW3_NBS_SOL_DPP | CE34: PCD_DPWW3_NBS_SOL_DTPI | CF34: PCD_DPWW3_NBS_SOL_DCI | CG34: PCD_DPWW3_NBS_SOL_DSI | CH34: PCD_DPWW3_NBS_SOL_DER | CI34: PCD_DPWW3_NBS_SOL_RS | CJ34: PCD_DPWW3_NBS_SOL_DPLE
B35: =B34 -> BRL | C35: PR24CA111 Wastewater Treatment | D35: PCDWW11 | E35: =IFERROR(INDEX('PCD List'!$E$3:$O$41,MATCH(DPWW3!$D35,'PCD List'!$D$3:$D$41,0),MATCH(DPWW3!$B35,'PCD List'!$E$2:$O$2,0)),"") ->  | F35: Nature based solutions for treatment for nutrients and/or sanitary determinands (WINEP/NEP) | G35: Number of schemes at Stage 1 | H35: Nr | I35: 0 | AW35: DPWW3.4 | AZ35: _S1 | BC35: PCD_DPWW3_NBS_SOL_S1 | BD35: PCD_DPWW3_NBS_SOL_S1 | BE35: PCD_DPWW3_NBS_SOL_S1 | BF35: PCD_DPWW3_NBS_SOL_S1 | BG35: PCD_DPWW3_NBS_SOL_S1 | BH35: PCD_DPWW3_NBS_SOL_S1 | BI35: PCD_DPWW3_NBS_SOL_S1 | BJ35: PCD_DPWW3_NBS_SOL_S1 | BK35: PCD_DPWW3_NBS_SOL_S1 | BL35: PCD_DPWW3_NBS_SOL_S1 | BM35: PCD_DPWW3_NBS_SOL_S1 | BN35: PCD_DPWW3_NBS_SOL_S1 | BO35: PCD_DPWW3_NBS_SOL_S1 | BP35: PCD_DPWW3_NBS_SOL_S1 | BQ35: PCD_DPWW3_NBS_SOL_S1 | BR35: PCD_DPWW3_NBS_SOL_S1 | BS35: PCD_DPWW3_NBS_SOL_S1 | BT35: PCD_DPWW3_NBS_SOL_S1 | BU35: PCD_DPWW3_NBS_SOL_S1 | BV35: PCD_DPWW3_NBS_SOL_S1 | BW35: PCD_DPWW3_NBS_SOL_S1 | BY35: =BY$34&$AZ35 -> PCD_DPWW3_NBS_SOL_DLY_S1 | BZ35: =BZ$34&$AZ35 -> PCD_DPWW3_NBS_SOL_DIR_S1 | CA35: PCD_DPWW3_NBS_SOL_DSCR_S1 | CB35: PCD_DPWW3_NBS_SOL_DCS_S1 | CC35: PCD_DPWW3_NBS_SOL_DSCS_S1 | CD35: PCD_DPWW3_NBS_SOL_DPP_S1 | CE35: PCD_DPWW3_NBS_SOL_DTPI_S1 | CF35: PCD_DPWW3_NBS_SOL_DCI_S1 | CG35: PCD_DPWW3_NBS_SOL_DSI_S1 | CH35: PCD_DPWW3_NBS_SOL_DER_S1 | CI35: =CI$34&$AZ35 -> PCD_DPWW3_NBS_SOL_RS_S1 | CJ35: PCD_DPWW3_NBS_SOL_DPLE_S1
